Workbook

Sheet ГОЛОВНА
B9: ЗМІСТ | K9: Рівень знижки
K10: (введіть значення)
B12: FAST DELIVERY | D12: Популярні моделі & Швидка доставка | F12: ПОШУК | K12: DH | L12: 0
B13: ALPHA, MAGHA | D13: ='ALPHA, MAGNA'!G2 -> Регулюємі циркуляційні насоси для систем опалення | K13: DC | L13: 0
B14: UPS, UPD | D14: ='UPS, UPSD'!G2 -> Циркуляційні насоси для систем опалення | K14: CB | L14: 0
B15: Comfort, UP, UP N, Solar | D15: ='Comfort, UP, UP N, Solar'!G2 -> Циркуляційні насоси для систем гарячого водопостачання | K15: CW | L15: 0
B16: MQ, Scala, JP, Hydrojet, SB, SBA | D16: ='MQ, JP, Hydrojet, SB, SBA, UPA'!G2 -> Насоси і насосні установки для систем водопостачання | K16: DD | L16: 0
B17: SQ, SQE, SP, SP-NE | D17: ='SQ, SQE, SP, SP-NE'!G12 -> Глибинні насоси та пакети постійного тиску | K17: WW | L17: 0
B18: Unilift AP, KP, Sololift2 | D18: ='Sololift, Unilift AP, KP'!G13 -> Дренажні та каналізаційні насоси та насосні станції | K18: WS | L18: 0
B19: SEG, AutoADAPT | D19: ='SEG, AutoADAPT'!G2 -> Каналізаційні насоси з ріжучим механізмом | K19: GI | L19: 0
B20: Multilift | D20: =Multilift!G2 -> Компактні каналізаційні станції для встановлення у приміщенні
B21: SE, SL | D21: Каналізаційні насоси
B22: DP, EF | D22: ='DP, EF'!G2 -> Дренажні насоси
B23: PUST | D23: =PUST!G2 -> Комплектні каналізаційні станції
B24: TP (E), TPD (E) | D24: ='TP (E), TPD (E)'!G2 -> Ін-лайн насоси для систем опалення та кондиціонування | H24: Ціни зазначено в Євро без ПДВ.
B25: NB (E), NK (E) | D25: ='NB (E), NK (E)'!G2 -> Насоси для водопостачання, пожежогасіння та промисловості | H25: УВАГА! Грундфос залишає за собою право змінювати ціни на продукцію. Актуальна ціна продажу та строки поставки зазначені в Комерційних пропозиціях та Рахунках-Специфікаціях. У випадку, якщо Ви не змогли знайти потрібну Вам модель насоса\аксесуара\т.п. - зверніться до Вашого торгового представника Грундфос.
B26: LS | D26: =LS!G2 -> Насоси для систем водопостачання
B27: MTR | D27: =MTR!G2 -> Напівзанурені насоси
B28: CM (E), CMB (E) | D28: ='CM (E), CMB (E)'!G2 -> Самовсмоктуючі насоси для систем водопостачання
B29: CR (E), CRI (E),CRN (E) | D29: ='CR (E), CRI (E),CRN (E)'!G2 -> Насоси для водопостачання, пожежогасіння та промисловості
B30: HYDRO Boosters | D30: ='HYDRO Boosters'!G2 -> Станції підвищення тиску
B31: Controls | D31: =Шафи!G2 -> Шафи керування
B32: Dosing | D32: =Dosing!G2 -> Дозатори
B33: GT | D33: Мембранні баки

Sheet FAST DELIVERY
A1: АРТИКУЛ | B1: НАЙМЕНУВАННЯ (УКР) | C1: PRICE GROUP | D1: ДОСТАВКА (ТИЖНІВ) | E1: ДОДАТКОВО | F1: ЦІНА (ЕВРО БЕЗ ПДВ) | G1: ЦІНА ЗІ ЗНИЖКОЮ | H1: НА ГОЛОВНУ
G2: Циркуляційні насоси
A3: 99411263 | B3: Циркуляційний насос ALPHA2 32-80 180 1x230V 50Hz 6H | C3: DH | D3: 1 | F3: 293.1378 | G3: =IFERROR(F3*(1-VLOOKUP(C3,ГОЛОВНА!K:L,2,0)), "-") -> 293.1378
A4: 99411107 | B4: Циркуляційний насос ALPHA2 15-40 130 1x230V 50Hz 6H | C4: DH | D4: 1 | F4: 206.1928 | G4: =IFERROR(F4*(1-VLOOKUP(C4,ГОЛОВНА!K:L,2,0)), "-") -> 206.1928
A5: 99411114 | B5: Циркуляційний насос ALPHA2 15-60 130 1x230V 50Hz 6H | C5: DH | D5: 1 | F5: 237.1248 | G5: =IFERROR(F5*(1-VLOOKUP(C5,ГОЛОВНА!K:L,2,0)), "-") -> 237.1248
A6: 99411116 | B6: Циркуляційний насос ALPHA2 15-80 130 1x230V 50Hz 6H | C6: DH | D6: 1 | F6: 268.4352 | G6: =IFERROR(F6*(1-VLOOKUP(C6,ГОЛОВНА!K:L,2,0)), "-") -> 268.4352
A7: 99411143 | B7: Циркуляційний насос ALPHA2 25-40 130 1x230V 50Hz 6H | C7: DH | D7: 1 | F7: 184.2623 | G7: =IFERROR(F7*(1-VLOOKUP(C7,ГОЛОВНА!K:L,2,0)), "-") -> 184.2623
A8: 99411165 | B8: Циркуляційний насос ALPHA2 25-40 180 1x230V 50Hz 6H | C8: DH | D8: 1 | F8: 185.3361 | G8: =IFERROR(F8*(1-VLOOKUP(C8,ГОЛОВНА!K:L,2,0)), "-") -> 185.3361
A9: 99411365 | B9: Циркуляційний насос ALPHA2 25-40 N 180 1x230V 50Hz 6H | C9: DH | D9: 2 | F9: 350.1604 | G9: =IFERROR(F9*(1-VLOOKUP(C9,ГОЛОВНА!K:L,2,0)), "-") -> 350.1604
A10: 99411287 | B10: Циркуляційний насос ALPHA2 25-60 N 130 1x230V 50Hz 6H | C10: DH | D10: 1 | F10: 402.6828 | G10: =IFERROR(F10*(1-VLOOKUP(C10,ГОЛОВНА!K:L,2,0)), "-") -> 402.6828
A11: 99411424 | B11: Циркуляційний насос ALPHA2 25-60 N 180 1x230V 50Hz 6H | C11: DH | D11: 1 | F11: 402.6828 | G11: =IFERROR(F11*(1-VLOOKUP(C11,ГОЛОВНА!K:L,2,0)), "-") -> 402.6828
A12: 99411207 | B12: Циркуляційний насос ALPHA2 32-40 180 1x230V 50Hz 6H | C12: DH | D12: 1 | F12: 206.1928 | G12: =IFERROR(F12*(1-VLOOKUP(C12,ГОЛОВНА!K:L,2,0)), "-") -> 206.1928
A13: 99160550 | B13: Циркуляційний насос ALPHA1 L 15-40 130 1x230V 50Hz 6H | C13: DH | D13: 1 | F13: 152.3711 | G13: =IFERROR(F13*(1-VLOOKUP(C13,ГОЛОВНА!K:L,2,0)), "-") -> 152.3711
A14: 99160574 | B14: Циркуляційний насос ALPHA1 L 15-60 130 1x230V 50Hz 6H | C14: DH | D14: 1 | F14: 175.2175 | G14: =IFERROR(F14*(1-VLOOKUP(C14,ГОЛОВНА!K:L,2,0)), "-") -> 175.2175
A15: 99160578 | B15: Циркуляційний насос ALPHA1 L 25-40 130 1x230V 50Hz 6H | C15: DH | D15: 1 | F15: 137.83158 | G15: =IFERROR(F15*(1-VLOOKUP(C15,ГОЛОВНА!K:L,2,0)), "-") -> 137.83158
A16: 99160579 | B16: Циркуляційний насос ALPHA1 L 25-40 180 1x230V 50Hz 6H | C16: DH | D16: 1 | F16: 137.83158 | G16: =IFERROR(F16*(1-VLOOKUP(C16,ГОЛОВНА!K:L,2,0)), "-") -> 137.83158
A17: 99160583 | B17: Циркуляційний насос ALPHA1 L 25-60 130 1x230V 50Hz 6H | C17: DH | D17: 1 | F17: 159.8511 | G17: =IFERROR(F17*(1-VLOOKUP(C17,ГОЛОВНА!K:L,2,0)), "-") -> 159.8511
A18: 99160584 | B18: Циркуляційний насос ALPHA1 L 25-60 180 1x230V 50Hz 6H | C18: DH | D18: 1 | F18: 158.411 | G18: =IFERROR(F18*(1-VLOOKUP(C18,ГОЛОВНА!K:L,2,0)), "-") -> 158.411
A19: 99160594 | B19: Циркуляційний насос ALPHA1 L 25-60 N 180 1x230V 50Hz 6H | C19: DH | D19: 1 | F19: 256.7356 | G19: =IFERROR(F19*(1-VLOOKUP(C19,ГОЛОВНА!K:L,2,0)), "-") -> 256.7356
A20: 99160587 | B20: Циркуляційний насос ALPHA1 L 32-40 180 1x230V 50Hz 6H | C20: DH | D20: 1 | F20: 153.769 | G20: =IFERROR(F20*(1-VLOOKUP(C20,ГОЛОВНА!K:L,2,0)), "-") -> 153.769
A21: 99160590 | B21: Циркуляційний насос ALPHA1 L 32-60 180 1x230V 50Hz 6H | C21: DH | D21: 1 | F21: 169.136 | G21: =IFERROR(F21*(1-VLOOKUP(C21,ГОЛОВНА!K:L,2,0)), "-") -> 169.136
A22: 99411175 | B22: Циркуляційний насос ALPHA2 25-60 180 1x230V 50Hz 6H | C22: DH | D22: 1 | F22: 210.6914 | G22: =IFERROR(F22*(1-VLOOKUP(C22,ГОЛОВНА!K:L,2,0)), "-") -> 210.6914
A23: 97916771 | B23: Циркуляційний насос COMFORT15-14B PM | C23: DH | D23: 1 | F23: 107.7084 | G23: =IFERROR(F23*(1-VLOOKUP(C23,ГОЛОВНА!K:L,2,0)), "-") -> 107.7084
A24: 97916757 | B24: Циркуляційний насос COMFORT15-14BA PM | C24: DH | D24: 1 | F24: 176.5952 | G24: =IFERROR(F24*(1-VLOOKUP(C24,ГОЛОВНА!K:L,2,0)), "-") -> 176.5952
A25: 97916772 | B25: Циркуляційний насос COMFORT 15-14 BX PM | C25: DH | D25: 1 | F25: 125.9192 | G25: =IFERROR(F25*(1-VLOOKUP(C25,ГОЛОВНА!K:L,2,0)), "-") -> 125.9192
A26: 97916749 | B26: Циркуляційний насос COMFORT15-14BXA PM | C26: DH | D26: 1 | F26: 199.4814 | G26: =IFERROR(F26*(1-VLOOKUP(C26,ГОЛОВНА!K:L,2,0)), "-") -> 199.4814
A27: 96281376 | B27: Циркуляційний насос UPS25-40 130 1x230В | C27: DH | D27: 1 | F27: 77.1779 | G27: =IFERROR(F27*(1-VLOOKUP(C27,ГОЛОВНА!K:L,2,0)), "-") -> 77.1779
A28: 98367575 | B28: Циркуляційний насос UPS25-40 180 1x230V | C28: DH | D28: 1 | F28: 65.2608 | G28: =IFERROR(F28*(1-VLOOKUP(C28,ГОЛОВНА!K:L,2,0)), "-") -> 65.2608
A29: 96913060 | B29: Циркуляційний насос UPS25-40 N 180 1x230 | C29: DH | D29: 1 | F29: 171.2318019 | G29: =IFERROR(F29*(1-VLOOKUP(C29,ГОЛОВНА!K:L,2,0)), "-") -> 171.2318019
A30: 96281432 | B30: Циркуляційний насос UPS25-50 180 1x230В | C30: DH | D30: 1 | F30: 106.2385 | G30: =IFERROR(F30*(1-VLOOKUP(C30,ГОЛОВНА!K:L,2,0)), "-") -> 106.2385
A31: 95906404 | B31: Циркуляційний насос UPS25-55 180 1x230B | C31: DH | D31: 1 | F31: 198.9603 | G31: =IFERROR(F31*(1-VLOOKUP(C31,ГОЛОВНА!K:L,2,0)), "-") -> 198.9603
A32: 96281476 | B32: Циркуляційний насос UPS25-60 130 1x230В | C32: DH | D32: 1 | F32: 115.9 | G32: =IFERROR(F32*(1-VLOOKUP(C32,ГОЛОВНА!K:L,2,0)), "-") -> 115.9
A33: 98368443 | B33: Циркуляційний насос UPS25-60 180 1x230V | C33: DH | D33: 1 | F33: 71.3275 | G33: =IFERROR(F33*(1-VLOOKUP(C33,ГОЛОВНА!K:L,2,0)), "-") -> 71.3275
A34: 96913085 | B34: Циркуляційний насос UPS25-60 N 180 1x230 | C34: DH | D34: 1 | F34: 226.0582909 | G34: =IFERROR(F34*(1-VLOOKUP(C34,ГОЛОВНА!K:L,2,0)), "-") -> 226.0582909
A35: 96621354 | B35: Циркуляційний насос UPS25-70 180 1x230В | C35: DH | D35: 1 | F35: 106.4299 | G35: =IFERROR(F35*(1-VLOOKUP(C35,ГОЛОВНА!K:L,2,0)), "-") -> 106.4299
A36: 95906429 | B36: Циркуляційний насос UPS25-80 180 1x230V | C36: DH | D36: 1 | F36: 202.1014 | G36: =IFERROR(F36*(1-VLOOKUP(C36,ГОЛОВНА!K:L,2,0)), "-") -> 202.1014
A37: 95906439 | B37: Циркуляційний насос UPS25-80 N 180 1x230 | C37: DH | D37: 1 | F37: 381.9354 | G37: =IFERROR(F37*(1-VLOOKUP(C37,ГОЛОВНА!K:L,2,0)), "-") -> 381.9354
A38: 98368439 | B38: Циркуляційний насос UPS32-40 180 1x230V | C38: DH | D38: 1 | F38: 83.018 | G38: =IFERROR(F38*(1-VLOOKUP(C38,ГОЛОВНА!K:L,2,0)), "-") -> 83.018
A39: 95906409 | B39: Циркуляційний насос UPS32-55 180 1x230V | C39: DH | D39: 1 | F39: 260.235 | G39: =IFERROR(F39*(1-VLOOKUP(C39,ГОЛОВНА!K:L,2,0)), "-") -> 260.235
A40: 98368440 | B40: Циркуляційний насос UPS32-60 180 1x230V | C40: DH | D40: 1 | F40: 99.255805 | G40: =IFERROR(F40*(1-VLOOKUP(C40,ГОЛОВНА!K:L,2,0)), "-") -> 99.255805
A41: 96621355 | B41: Циркуляційний насос UPS32-70 180 1x230В | C41: DH | D41: 1 | F41: 115.772 | G41: =IFERROR(F41*(1-VLOOKUP(C41,ГОЛОВНА!K:L,2,0)), "-") -> 115.772
A42: 95906442 | B42: Циркуляційний насос UPS32-80 180 | C42: DH | D42: 1 | F42: 300.4496 | G42: =IFERROR(F42*(1-VLOOKUP(C42,ГОЛОВНА!K:L,2,0)), "-") -> 300.4496
A43: 95906448 | B43: Циркуляційний насос UPS32-80 N 180 1x230 | C43: DH | D43: 1 | F43: 460.3984 | G43: =IFERROR(F43*(1-VLOOKUP(C43,ГОЛОВНА!K:L,2,0)), "-") -> 460.3984
A44: 95906455 | B44: Циркуляційний насос UPSD 32-80 180 | C44: DH | D44: 1 | F44: 522.315 | G44: =IFERROR(F44*(1-VLOOKUP(C44,ГОЛОВНА!K:L,2,0)), "-") -> 522.315
A45: 99221214 | B45: Циркуляційний насос MAGNA1 25-100 180 1x230V PN10 | C45: CB | D45: 1 | F45: 550.305 | G45: =IFERROR(F45*(1-VLOOKUP(C45,ГОЛОВНА!K:L,2,0)), "-") -> 550.305
A46: 99221226 | B46: Циркуляційний насос MAGNA1 25-100 N 180 1x230V PN10 | C46: CB | D46: 2 | F46: 852.966 | G46: =IFERROR(F46*(1-VLOOKUP(C46,ГОЛОВНА!K:L,2,0)), "-") -> 852.966
A47: 99221215 | B47: Циркуляційний насос MAGNA1 25-120 180 1x230V PN10 | C47: CB | D47: 2 | F47: 619.11 | G47: =IFERROR(F47*(1-VLOOKUP(C47,ГОЛОВНА!K:L,2,0)), "-") -> 619.11
A48: 99221227 | B48: Циркуляційний насос MAGNA1 25-120 N 180 1x230V PN10 | C48: CB | D48: 1 | F48: 959.58 | G48: =IFERROR(F48*(1-VLOOKUP(C48,ГОЛОВНА!K:L,2,0)), "-") -> 959.58
A49: 99221216 | B49: Циркуляційний насос MAGNA1 25-40 180 1x230V PN10 | C49: CB | D49: 2 | F49: 366.876 | G49: =IFERROR(F49*(1-VLOOKUP(C49,ГОЛОВНА!K:L,2,0)), "-") -> 366.876
A50: 99221217 | B50: Циркуляційний насос MAGNA1 25-60 180 1x230V PN10 | C50: CB | D50: 2 | F50: 435.663 | G50: =IFERROR(F50*(1-VLOOKUP(C50,ГОЛОВНА!K:L,2,0)), "-") -> 435.663
A51: 99221213 | B51: Циркуляційний насос MAGNA1 25-80 180 1x230V PN10 | C51: CB | D51: 2 | F51: 496.8 | G51: =IFERROR(F51*(1-VLOOKUP(C51,ГОЛОВНА!K:L,2,0)), "-") -> 496.8
A52: 99221236 | B52: Циркуляційний насос MAGNA1 32-100 180 1x230V PN10 | C52: CB | D52: 2 | F52: 603.801 | G52: =IFERROR(F52*(1-VLOOKUP(C52,ГОЛОВНА!K:L,2,0)), "-") -> 603.801
A53: 99221237 | B53: Циркуляційний насос MAGNA1 32-100 F 220 1x230V PN6/10 | C53: CB | D53: 2 | F53: 703.161 | G53: =IFERROR(F53*(1-VLOOKUP(C53,ГОЛОВНА!K:L,2,0)), "-") -> 703.161
A54: 99221281 | B54: Циркуляційний насос MAGNA1 32-120 180 1x230V PN10 | C54: CB | D54: 2 | F54: 653.49 | G54: =IFERROR(F54*(1-VLOOKUP(C54,ГОЛОВНА!K:L,2,0)), "-") -> 653.49
A55: 99221285 | B55: Циркуляційний насос MAGNA1 32-120 F 220 1x230V PN6/10 | C55: CB | D55: 2 | F55: 802.755 | G55: =IFERROR(F55*(1-VLOOKUP(C55,ГОЛОВНА!K:L,2,0)), "-") -> 802.755
A56: 99221234 | B56: Циркуляційний насос MAGNA1 32-60 180 1x230V PN10 | C56: CB | D56: 2 | F56: 527.391 | G56: =IFERROR(F56*(1-VLOOKUP(C56,ГОЛОВНА!K:L,2,0)), "-") -> 527.391
A57: 99221269 | B57: Циркуляційний насос MAGNA1 32-60 F 220 1x230V PN6/10 | C57: CB | D57: 2 | F57: 580.896 | G57: =IFERROR(F57*(1-VLOOKUP(C57,ГОЛОВНА!K:L,2,0)), "-") -> 580.896
A58: 99221235 | B58: Циркуляційний насос MAGNA1 32-80 180 1x230V PN10 | C58: CB | D58: 2 | F58: 550.305 | G58: =IFERROR(F58*(1-VLOOKUP(C58,ГОЛОВНА!K:L,2,0)), "-") -> 550.305
A59: 99221275 | B59: Циркуляційний насос MAGNA1 32-80 F 220 1x230V PN6/10 | C59: CB | D59: 2 | F59: 611.46 | G59: =IFERROR(F59*(1-VLOOKUP(C59,ГОЛОВНА!K:L,2,0)), "-") -> 611.46
A60: 99221304 | B60: Циркуляційний насос MAGNA1 40-100 F 220 1x230V PN6/10 | C60: CB | D60: 2 | F60: 860.904 | G60: =IFERROR(F60*(1-VLOOKUP(C60,ГОЛОВНА!K:L,2,0)), "-") -> 860.904
A61: 99221305 | B61: Циркуляційний насос MAGNA1 40-120 F 250 1x230V PN6/10 | C61: CB | D61: 2 | F61: 975.303 | G61: =IFERROR(F61*(1-VLOOKUP(C61,ГОЛОВНА!K:L,2,0)), "-") -> 975.303
A62: 95906480 | B62: Циркуляційний насос UPS25-100 180 1x230 | C62: DH | D62: 1 | F62: 370.44 | G62: =IFERROR(F62*(1-VLOOKUP(C62,ГОЛОВНА!K:L,2,0)), "-") -> 370.44
A63: 95906489 | B63: Циркуляційний насос UPS32 -100 N 180 1x2 | C63: DH | D63: 1 | F63: 557.46 | G63: =IFERROR(F63*(1-VLOOKUP(C63,ГОЛОВНА!K:L,2,0)), "-") -> 557.46
A64: 95906500 | B64: Циркуляційний насос UPS32-100 180 1x230V | C64: DH | D64: 1 | F64: 362.184 | G64: =IFERROR(F64*(1-VLOOKUP(C64,ГОЛОВНА!K:L,2,0)), "-") -> 362.184
A65: 96401837 | B65: Циркуляційний насос UPS32-120 F 1x230-24 | C65: CB | D65: 1 | F65: 396.83 | G65: =IFERROR(F65*(1-VLOOKUP(C65,ГОЛОВНА!K:L,2,0)), "-") -> 396.83
A66: 96401839 | B66: Циркуляційний насос UPS32-120 F 3x400-41 | C66: CB | D66: 1 | F66: 360.752 | G66: =IFERROR(F66*(1-VLOOKUP(C66,ГОЛОВНА!K:L,2,0)), "-") -> 360.752
A67: 96401771 | B67: Циркуляційний насос UPS32-60 F 1x230-240 | C67: CB | D67: 1 | F67: 435.6003 | G67: =IFERROR(F67*(1-VLOOKUP(C67,ГОЛОВНА!K:L,2,0)), "-") -> 435.6003
A68: 96401777 | B68: Циркуляційний насос UPS32-60 F 3x400-415 | C68: CB | D68: 1 | F68: 407.109 | G68: =IFERROR(F68*(1-VLOOKUP(C68,ГОЛОВНА!K:L,2,0)), "-") -> 407.109
A69: 95906458 | B69: Циркуляційний насос UPS32-80 F 220 1x230 | C69: DH | D69: 1 | F69: 375.7725 | G69: =IFERROR(F69*(1-VLOOKUP(C69,ГОЛОВНА!K:L,2,0)), "-") -> 375.7725
A70: 96401942 | B70: Циркуляційний насос UPS40-120 F 1x230-24 | C70: CB | D70: 1 | F70: 614.6696 | G70: =IFERROR(F70*(1-VLOOKUP(C70,ГОЛОВНА!K:L,2,0)), "-") -> 614.6696
A71: 96401944 | B71: Циркуляційний насос UPS40-120 F 3x400-41 | C71: CB | D71: 1 | F71: 558.817 | G71: =IFERROR(F71*(1-VLOOKUP(C71,ГОЛОВНА!K:L,2,0)), "-") -> 558.817
A72: 96401977 | B72: Циркуляційний насос UPS40-180 F 1x230-24 | C72: CB | D72: 1 | F72: 699.752 | G72: =IFERROR(F72*(1-VLOOKUP(C72,ГОЛОВНА!K:L,2,0)), "-") -> 699.752
A73: 96401979 | B73: Циркуляційний насос UPS40-180 F 3x400-41 | C73: CB | D73: 1 | F73: 642.625 | G73: =IFERROR(F73*(1-VLOOKUP(C73,ГОЛОВНА!K:L,2,0)), "-") -> 642.625
A74: 96430299 | B74: Циркуляційний насос UPS40-185 F 1x230-24 | C74: CB | D74: 1 | F74: 768.337 | G74: =IFERROR(F74*(1-VLOOKUP(C74,ГОЛОВНА!K:L,2,0)), "-") -> 768.337
A75: 96430296 | B75: Циркуляційний насос UPS40-185 F 3x400-41 | C75: CB | D75: 1 | F75: 691.4352 | G75: =IFERROR(F75*(1-VLOOKUP(C75,ГОЛОВНА!K:L,2,0)), "-") -> 691.4352
A76: 96401915 | B76: Циркуляційний насос UPS40-60/2 F 1x230-2 | C76: CB | D76: 1 | F76: 517.2056 | G76: =IFERROR(F76*(1-VLOOKUP(C76,ГОЛОВНА!K:L,2,0)), "-") -> 517.2056
A77: 96401917 | B77: Циркуляційний насос UPS40-60/2 F 3x400-4 | C77: CB | D77: 1 | F77: 470.1752 | G77: =IFERROR(F77*(1-VLOOKUP(C77,ГОЛОВНА!K:L,2,0)), "-") -> 470.1752
A78: 95906462 | B78: Циркуляційний насос UPS40-80 F 250 1x230 | C78: DH | D78: 1 | F78: 398.297 | G78: =IFERROR(F78*(1-VLOOKUP(C78,ГОЛОВНА!K:L,2,0)), "-") -> 398.297
A79: 96402101 | B79: Циркуляційний насос UPS50-120 F 1x230-24 | C79: CB | D79: 1 | F79: 746.3762 | G79: =IFERROR(F79*(1-VLOOKUP(C79,ГОЛОВНА!K:L,2,0)), "-") -> 746.3762
A80: 96402103 | B80: Циркуляційний насос UPS50-120 F 3x400-41 | C80: CB | D80: 1 | F80: 678.5344 | G80: =IFERROR(F80*(1-VLOOKUP(C80,ГОЛОВНА!K:L,2,0)), "-") -> 678.5344
A81: 96402134 | B81: Циркуляційний насос UPS50-180 F 1x230-24 | C81: CB | D81: 1 | F81: 858.353 | G81: =IFERROR(F81*(1-VLOOKUP(C81,ГОЛОВНА!K:L,2,0)), "-") -> 858.353
A82: 96402136 | B82: Циркуляційний насос UPS50-180 F 3x400-41 | C82: CB | D82: 1 | F82: 780.3262 | G82: =IFERROR(F82*(1-VLOOKUP(C82,ГОЛОВНА!K:L,2,0)), "-") -> 780.3262
A83: 96430297 | B83: Циркуляційний насос UPS50-185 F 3x400-41 | C83: CB | D83: 1 | F83: 848.556 | G83: =IFERROR(F83*(1-VLOOKUP(C83,ГОЛОВНА!K:L,2,0)), "-") -> 848.556
A84: 96402053 | B84: Циркуляційний насос UPS50-60/2 F 1x230-2 | C84: CB | D84: 1 | F84: 634.4188 | G84: =IFERROR(F84*(1-VLOOKUP(C84,ГОЛОВНА!K:L,2,0)), "-") -> 634.4188
A85: 96402055 | B85: Циркуляційний насос UPS50-60/2 F 3x400-4 | C85: CB | D85: 1 | F85: 576.762 | G85: =IFERROR(F85*(1-VLOOKUP(C85,ГОЛОВНА!K:L,2,0)), "-") -> 576.762
A86: 96402278 | B86: Циркуляційний насос UPS65-120 F 1x230-24 | C86: CB | D86: 1 | F86: 878.1022 | G86: =IFERROR(F86*(1-VLOOKUP(C86,ГОЛОВНА!K:L,2,0)), "-") -> 878.1022
A87: 96402280 | B87: Циркуляційний насос UPS65-120 F 3x400-41 | C87: CB | D87: 1 | F87: 798.2712 | G87: =IFERROR(F87*(1-VLOOKUP(C87,ГОЛОВНА!K:L,2,0)), "-") -> 798.2712
A88: 96402316 | B88: Циркуляційний насос UPS65-180 F 3x400-41 | C88: CB | D88: 1 | F88: 908.5632 | G88: =IFERROR(F88*(1-VLOOKUP(C88,ГОЛОВНА!K:L,2,0)), "-") -> 908.5632
A89: 96430298 | B89: Циркуляційний насос UPS65-185 F 3x400-41 | C89: CB | D89: 1 | F89: 997.839 | G89: =IFERROR(F89*(1-VLOOKUP(C89,ГОЛОВНА!K:L,2,0)), "-") -> 997.839
A90: 96402260 | B90: Циркуляційний насос UPS65-60/2 F 3x400-4 | C90: CB | D90: 1 | F90: 678.5344 | G90: =IFERROR(F90*(1-VLOOKUP(C90,ГОЛОВНА!K:L,2,0)), "-") -> 678.5344
A91: 96402441 | B91: Циркуляційний насос UPS80-120 F 3x400-41 | C91: CB | D91: 1 | F91: 1027.2812 | G91: =IFERROR(F91*(1-VLOOKUP(C91,ГОЛОВНА!K:L,2,0)), "-") -> 1027.2812
A92: 96402440 | B92: Циркуляційний насос UPS80-120 F 3x400-41 | C92: CB | D92: 1 | F92: 997.839 | G92: =IFERROR(F92*(1-VLOOKUP(C92,ГОЛОВНА!K:L,2,0)), "-") -> 997.839
G93: Насоси і насосні установки для систем водопостачання
A94: 96943353 | B94: Гориз насос CM10-3 A-R-A-E-AQQE F-A-A-N | C94: DC | D94: 2 | F94: 554.79 | G94: =IFERROR(F94*(1-VLOOKUP(C94,ГОЛОВНА!K:L,2,0)), "-") -> 554.79
A95: 96943345 | B95: Гориз насос CM10-2 A-R-A-E-AQQE F-A-A-N | C95: DC | D95: 1 | F95: 374.8224 | G95: =IFERROR(F95*(1-VLOOKUP(C95,ГОЛОВНА!K:L,2,0)), "-") -> 374.8224
A96: 96945992 | B96: Гориз насос CM10-2 A-R-I-E-AQQE F-A-A-N | C96: GI | D96: 2 | F96: 513.7608 | G96: =IFERROR(F96*(1-VLOOKUP(C96,ГОЛОВНА!K:L,2,0)), "-") -> 513.7608
A97: 96943251 | B97: Горизонт насос CM10-3 A-R-G-E-AQQE F-A-A | C97: GI | D97: 2 | F97: 827.7689 | G97: =IFERROR(F97*(1-VLOOKUP(C97,ГОЛОВНА!K:L,2,0)), "-") -> 827.7689
A98: 96967504 | B98: Гориз насос CM1-8 A-R-A-E-AQQE F-A-A-N | C98: DC | D98: 1 | F98: 331.63 | G98: =IFERROR(F98*(1-VLOOKUP(C98,ГОЛОВНА!K:L,2,0)), "-") -> 331.63
A99: 97515124 | B99: Гориз насос CM1-9 A-R-G-E-AQQE F-A-A-N | C99: GI | D99: 1 | F99: 607.2777 | G99: =IFERROR(F99*(1-VLOOKUP(C99,ГОЛОВНА!K:L,2,0)), "-") -> 607.2777
A100: 96807023 | B100: Гориз насос CM3-3 A-R-A-E-AQQE C-A-A-N | C100: DC | D100: 1 | F100: 232.6455 | G100: =IFERROR(F100*(1-VLOOKUP(C100,ГОЛОВНА!K:L,2,0)), "-") -> 232.6455
A101: 97516565 | B101: Гориз насос CM3-4 A-R-A-E-AQQE C-A-A-N | C101: DC | D101: 2 | F101: 250.458 | G101: =IFERROR(F101*(1-VLOOKUP(C101,ГОЛОВНА!K:L,2,0)), "-") -> 250.458
A102: 96807031 | B102: Горизонт насос CM5-2 A-R-A-E-AQQE F-A-A- | C102: DC | D102: 2 | F102: 217.702 | G102: =IFERROR(F102*(1-VLOOKUP(C102,ГОЛОВНА!K:L,2,0)), "-") -> 217.702
A103: 96807032 | B103: Горизонт насос CM5-3 A-R-A-E-AQQE F-A-A- | C103: DC | D103: 2 | F103: 233.7285 | G103: =IFERROR(F103*(1-VLOOKUP(C103,ГОЛОВНА!K:L,2,0)), "-") -> 233.7285
A104: 97516571 | B104: Горизонт насос CM5-5 A-R-A-E-AQQE C-A-A- | C104: DC | D104: 1 | F104: 366.8805 | G104: =IFERROR(F104*(1-VLOOKUP(C104,ГОЛОВНА!K:L,2,0)), "-") -> 366.8805
A105: 96807033 | B105: Гориз насос CM5-5 A-R-A-E-AQQE F-A-A-N | C105: DC | D105: 1 | F105: 345.147 | G105: =IFERROR(F105*(1-VLOOKUP(C105,ГОЛОВНА!K:L,2,0)), "-") -> 345.147
A106: 96807034 | B106: Гориз насос CM5-6 A-R-A-E-AQQE F-A-A-N | C106: DC | D106: 1 | F106: 361.0035 | G106: =IFERROR(F106*(1-VLOOKUP(C106,ГОЛОВНА!K:L,2,0)), "-") -> 361.0035
A107: 97516575 | B107: Горизонт насос CM5-8 A-R-A-E-AQQE C-A-A- | C107: DC | D107: 2 | F107: 614.802 | G107: =IFERROR(F107*(1-VLOOKUP(C107,ГОЛОВНА!K:L,2,0)), "-") -> 614.802
A108: 97509614 | B108: Гориз насос CM5-8 A-R-A-E-AQQE F-A-A-N | C108: DC | D108: 1 | F108: 470.118 | G108: =IFERROR(F108*(1-VLOOKUP(C108,ГОЛОВНА!K:L,2,0)), "-") -> 470.118
A109: 97908658 | B109: Верт. насос CMV5-10 A-R-A-E-AVBE F-A-A-N | C109: DC | D109: 2 | F109: 537.3295 | G109: =IFERROR(F109*(1-VLOOKUP(C109,ГОЛОВНА!K:L,2,0)), "-") -> 537.3295
A110: 97908654 | B110: Вертикальний насос CMV5-8 A-R-A-E-AVBE F | C110: DC | D110: 2 | F110: 496.451 | G110: =IFERROR(F110*(1-VLOOKUP(C110,ГОЛОВНА!K:L,2,0)), "-") -> 496.451
A111: 96500964 | B111: Верт. насос CR10-02 A-FJ-A-E-HQQE 3x2 | C111: CW | D111: 2 | F111: 715.977 | G111: =IFERROR(F111*(1-VLOOKUP(C111,ГОЛОВНА!K:L,2,0)), "-") -> 715.977
A112: 96500965 | B112: Верт. насос CR10-03 A-FJ-A-E-HQQE 3x2 | C112: CW | D112: 2 | F112: 844.821 | G112: =IFERROR(F112*(1-VLOOKUP(C112,ГОЛОВНА!K:L,2,0)), "-") -> 844.821
A113: 96500982 | B113: Верт. насос CR10-04 A-A-A-E-HQQE 3x23 | C113: CW | D113: 2 | F113: 918.819 | G113: =IFERROR(F113*(1-VLOOKUP(C113,ГОЛОВНА!K:L,2,0)), "-") -> 918.819
A114: 96500966 | B114: Верт. насос CR10-04 A-FJ-A-E-HQQE 3x2 | C114: CW | D114: 2 | F114: 949.716 | G114: =IFERROR(F114*(1-VLOOKUP(C114,ГОЛОВНА!K:L,2,0)), "-") -> 949.716
A115: 96501227 | B115: Верт. насос CR10-05 A-A-A-E-HQQE 3x40 | C115: CW | D115: 2 | F115: 1000.818 | G115: =IFERROR(F115*(1-VLOOKUP(C115,ГОЛОВНА!K:L,2,0)), "-") -> 1000.818
A116: 96501229 | B116: Верт. насос CR10-07 A-A-A-E-HQQE 3x40 | C116: CW | D116: 1 | F116: 1167.156 | G116: =IFERROR(F116*(1-VLOOKUP(C116,ГОЛОВНА!K:L,2,0)), "-") -> 1167.156
A117: 96501230 | B117: Верт. насос CR10-08 A-A-A-E-HQQE 3x40 | C117: CW | D117: 2 | F117: 1223.352 | G117: =IFERROR(F117*(1-VLOOKUP(C117,ГОЛОВНА!K:L,2,0)), "-") -> 1223.352
A118: 96501231 | B118: Верт. насос CR10-09 A-A-A-E-HQQE 3x40 | C118: CW | D118: 2 | F118: 1281.222 | G118: =IFERROR(F118*(1-VLOOKUP(C118,ГОЛОВНА!K:L,2,0)), "-") -> 1281.222
A119: 96501232 | B119: Верт. насос CR10-10 A-A-A-E-HQQE 3x40 | C119: CW | D119: 2 | F119: 1468.116 | G119: =IFERROR(F119*(1-VLOOKUP(C119,ГОЛОВНА!K:L,2,0)), "-") -> 1468.116
A120: 96501232 | B120: Верт. насос CR10-10 A-A-A-E-HQQE 3x40 | C120: CW | D120: 2 | F120: 1468.116 | G120: =IFERROR(F120*(1-VLOOKUP(C120,ГОЛОВНА!K:L,2,0)), "-") -> 1468.116
A121: 96501219 | B121: Верт. насос CR10-10 A-FJ-A-E-HQQE 3x4 | C121: CW | D121: 1 | F121: 1499.022 | G121: =IFERROR(F121*(1-VLOOKUP(C121,ГОЛОВНА!K:L,2,0)), "-") -> 1499.022
A122: 96501234 | B122: Верт. насос CR10-14 A-A-A-E-HQQE 3x40 | C122: CW | D122: 2 | F122: 1851.399 | G122: =IFERROR(F122*(1-VLOOKUP(C122,ГОЛОВНА!K:L,2,0)), "-") -> 1851.399
A123: 96501221 | B123: Верт. насос CR10-14 A-FJ-A-E-HQQE 3x4 | C123: CW | D123: 2 | F123: 1882.287 | G123: =IFERROR(F123*(1-VLOOKUP(C123,ГОЛОВНА!K:L,2,0)), "-") -> 1882.287
A124: 96501222 | B124: Верт. насос CR10-16 A-FJ-A-E-HQQE 3x4 | C124: CW | D124: 2 | F124: 1998.234 | G124: =IFERROR(F124*(1-VLOOKUP(C124,ГОЛОВНА!K:L,2,0)), "-") -> 1998.234
A125: 96501223 | B125: Верт. насос CR10-18 A-FJ-A-E-HQQE 3x4 | C125: CW | D125: 2 | F125: 2171.88 | G125: =IFERROR(F125*(1-VLOOKUP(C125,ГОЛОВНА!K:L,2,0)), "-") -> 2171.88
A126: 96516192 | B126: Верт. насос CR1-21 A-A-A-E-HQQE 3x230 | C126: CW | D126: 2 | F126: 852.8004 | G126: =IFERROR(F126*(1-VLOOKUP(C126,ГОЛОВНА!K:L,2,0)), "-") -> 852.8004
A127: 96501893 | B127: Верт. насос CR15-02 A-F-A-E-HQQE 3x40 | C127: CW | D127: 2 | F127: 1186.107 | G127: =IFERROR(F127*(1-VLOOKUP(C127,ГОЛОВНА!K:L,2,0)), "-") -> 1186.107
A128: 96501894 | B128: Верт. насос CR15-03 A-F-A-E-HQQE 3x40 | C128: CW | D128: 2 | F128: 1371.2268 | G128: =IFERROR(F128*(1-VLOOKUP(C128,ГОЛОВНА!K:L,2,0)), "-") -> 1371.2268
A129: 96501895 | B129: Верт. насос CR15-04 A-F-A-E-HQQE 3x40 | C129: CW | D129: 2 | F129: 1592.5566 | G129: =IFERROR(F129*(1-VLOOKUP(C129,ГОЛОВНА!K:L,2,0)), "-") -> 1592.5566
A130: 96501896 | B130: Верт. насос CR15-05 A-F-A-E-HQQE | C130: CW | D130: 2 | F130: 1671.5046 | G130: =IFERROR(F130*(1-VLOOKUP(C130,ГОЛОВНА!K:L,2,0)), "-") -> 1671.5046
A131: 96501910 | B131: Верт. насос CR15-07 A-A-A-E-HQQE 3x40 | C131: CW | D131: 2 | F131: 2034.2778 | G131: =IFERROR(F131*(1-VLOOKUP(C131,ГОЛОВНА!K:L,2,0)), "-") -> 2034.2778
A132: 96501910 | B132: Верт. насос CR15-07 A-A-A-E-HQQE 3x40 | C132: CW | D132: 2 | F132: 2034.2778 | G132: =IFERROR(F132*(1-VLOOKUP(C132,ГОЛОВНА!K:L,2,0)), "-") -> 2034.2778
A133: 96501898 | B133: Верт. насос CR15-07 A-F-A-E-HQQE 3x40 | C133: CW | D133: 2 | F133: 2067.54 | G133: =IFERROR(F133*(1-VLOOKUP(C133,ГОЛОВНА!K:L,2,0)), "-") -> 2067.54
A134: 96501901 | B134: Верт. насос CR15-10 A-F-A-E-HQQE 3x40 | C134: CW | D134: 2 | F134: 2921.382 | G134: =IFERROR(F134*(1-VLOOKUP(C134,ГОЛОВНА!K:L,2,0)), "-") -> 2921.382
A135: 96501902 | B135: Верт. насос CR15-12 A-F-A-E-HQQE 3x40 | C135: CW | D135: 2 | F135: 3078.7374 | G135: =IFERROR(F135*(1-VLOOKUP(C135,ГОЛОВНА!K:L,2,0)), "-") -> 3078.7374
A136: 96500508 | B136: Верт. насос CR20-02 A-F-A-E-HQQE 3x40 | C136: CW | D136: 2 | F136: 1197.7355 | G136: =IFERROR(F136*(1-VLOOKUP(C136,ГОЛОВНА!K:L,2,0)), "-") -> 1197.7355
A137: 96500509 | B137: Верт. насос CR20-03 A-F-A-E-HQQE 3x40 | C137: CW | D137: 2 | F137: 1687.8919 | G137: =IFERROR(F137*(1-VLOOKUP(C137,ГОЛОВНА!K:L,2,0)), "-") -> 1687.8919
A138: 96500522 | B138: Верт. насос CR20-05 A-A-A-E-HQQE 3x40 | C138: CW | D138: 2 | F138: 2054.2217 | G138: =IFERROR(F138*(1-VLOOKUP(C138,ГОЛОВНА!K:L,2,0)), "-") -> 2054.2217
A139: 96500511 | B139: Верт. насос CR20-05 A-F-A-E-HQQE 3x40 | C139: CW | D139: 2 | F139: 2087.81 | G139: =IFERROR(F139*(1-VLOOKUP(C139,ГОЛОВНА!K:L,2,0)), "-") -> 2087.81
A140: 96516603 | B140: Верт. насос CR3-19 A-A-A-E-HQQE 3x230 | C140: CW | D140: 2 | F140: 941.0418 | G140: =IFERROR(F140*(1-VLOOKUP(C140,ГОЛОВНА!K:L,2,0)), "-") -> 941.0418
A141: 96516663 | B141: Верт. насос CR3-19 A-FGJ-A-E-HQQE 3x2 | C141: CW | D141: 2 | F141: 971.1576 | G141: =IFERROR(F141*(1-VLOOKUP(C141,ГОЛОВНА!K:L,2,0)), "-") -> 971.1576
A142: 96513345 | B142: Верт. насос CR3-21 A-FGJ-A-E-HQQE 3x4 | C142: CW | D142: 2 | F142: 991.476 | G142: =IFERROR(F142*(1-VLOOKUP(C142,ГОЛОВНА!K:L,2,0)), "-") -> 991.476
A143: 96122009 | B143: Верт. насос CR32-2 A-F-A-E-HQQE | C143: CW | D143: 2 | F143: 1978.3828 | G143: =IFERROR(F143*(1-VLOOKUP(C143,ГОЛОВНА!K:L,2,0)), "-") -> 1978.3828
A144: 96122013 | B144: Верт. насос CR32-4 A-F-A-E-HQQE | C144: CW | D144: 2 | F144: 3086.7864 | G144: =IFERROR(F144*(1-VLOOKUP(C144,ГОЛОВНА!K:L,2,0)), "-") -> 3086.7864
A145: 96513347 | B145: Верт. насос CR3-25 A-FGJ-A-E-HQQE 3x4 | C145: CW | D145: 2 | F145: 1098.3438 | G145: =IFERROR(F145*(1-VLOOKUP(C145,ГОЛОВНА!K:L,2,0)), "-") -> 1098.3438
A146: 96513349 | B146: Верт. насос CR3-29 A-FGJ-A-E-HQQE 3x4 | C146: CW | D146: 2 | F146: 1202.13 | G146: =IFERROR(F146*(1-VLOOKUP(C146,ГОЛОВНА!K:L,2,0)), "-") -> 1202.13
A147: 96516650 | B147: Верт. насос CR3-3 A-FGJ-A-E-HQQE 3x23 | C147: CW | D147: 2 | F147: 484.956 | G147: =IFERROR(F147*(1-VLOOKUP(C147,ГОЛОВНА!K:L,2,0)), "-") -> 484.956
A148: 96513351 | B148: Верт. насос CR3-33 A-FGJ-A-E-HQQE 3x4 | C148: CW | D148: 2 | F148: 1314.162 | G148: =IFERROR(F148*(1-VLOOKUP(C148,ГОЛОВНА!K:L,2,0)), "-") -> 1314.162
A149: 96516594 | B149: Верт. насос CR3-7 A-A-A-E-HQQE 3x230/ | C149: CW | D149: 2 | F149: 547.1064 | G149: =IFERROR(F149*(1-VLOOKUP(C149,ГОЛОВНА!K:L,2,0)), "-") -> 547.1064
A150: 96516654 | B150: Верт. насос CR3-7 A-FGJ-A-E-HQQE 3x23 | C150: CW | D150: 2 | F150: 574.416 | G150: =IFERROR(F150*(1-VLOOKUP(C150,ГОЛОВНА!K:L,2,0)), "-") -> 574.416
A151: 96516993 | B151: Верт. насос CR5-10 A-A-A-E-HQQE 3x230 | C151: CW | D151: 1 | F151: 809.334 | G151: =IFERROR(F151*(1-VLOOKUP(C151,ГОЛОВНА!K:L,2,0)), "-") -> 809.334
A152: 96516993 | B152: Верт. насос CR5-10 A-A-A-E-HQQE 3x230 | C152: CW | D152: 2 | F152: 809.334 | G152: =IFERROR(F152*(1-VLOOKUP(C152,ГОЛОВНА!K:L,2,0)), "-") -> 809.334
A153: 96517044 | B153: Верт. насос CR5-10 A-FGJ-A-E-HQQE | C153: CW | D153: 2 | F153: 838.197 | G153: =IFERROR(F153*(1-VLOOKUP(C153,ГОЛОВНА!K:L,2,0)), "-") -> 838.197
A154: 96513387 | B154: Верт. насос CR5-16 A-FGJ-A-E-HQQE 3x400 | C154: CW | D154: 2 | F154: 1043.928 | G154: =IFERROR(F154*(1-VLOOKUP(C154,ГОЛОВНА!K:L,2,0)), "-") -> 1043.928
A155: 96513369 | B155: Верт. насос CR5-18 A-A-A-E-HQQE 3x400D | C155: CW | D155: 2 | F155: 1130.841 | G155: =IFERROR(F155*(1-VLOOKUP(C155,ГОЛОВНА!K:L,2,0)), "-") -> 1130.841
A156: 96513380 | B156: Верт. насос CR5-20 A-A-A-E-HQQE 3x400 | C156: CW | D156: 2 | F156: 1183.446 | G156: =IFERROR(F156*(1-VLOOKUP(C156,ГОЛОВНА!K:L,2,0)), "-") -> 1183.446
A157: 96513389 | B157: Верт. насос CR5-20 A-FGJ-A-E-HQQE 3x4 | C157: CW | D157: 2 | F157: 1212.309 | G157: =IFERROR(F157*(1-VLOOKUP(C157,ГОЛОВНА!K:L,2,0)), "-") -> 1212.309
A158: 96513381 | B158: Верт. насос CR5-22 A-FGJ-A-E-HQQE 3x4 | C158: CW | D158: 2 | F158: 1244.727 | G158: =IFERROR(F158*(1-VLOOKUP(C158,ГОЛОВНА!K:L,2,0)), "-") -> 1244.727
A159: 96513392 | B159: Верт. насос CR5-29 A-FGJ-A-E-HQQE 3x4 | C159: CW | D159: 2 | F159: 1429.929 | G159: =IFERROR(F159*(1-VLOOKUP(C159,ГОЛОВНА!K:L,2,0)), "-") -> 1429.929
A160: 96513394 | B160: Верт. насос CR5-36 A-FGJ-A-E-HQQE 3x4 | C160: CW | D160: 2 | F160: 1730.88 | G160: =IFERROR(F160*(1-VLOOKUP(C160,ГОЛОВНА!K:L,2,0)), "-") -> 1730.88
A161: 96517039 | B161: Акція Верт. насос CR5-4 A-FGJ-A-E-HQQE | C161: CW | D161: 1 | F161: 597.159 | G161: =IFERROR(F161*(1-VLOOKUP(C161,ГОЛОВНА!K:L,2,0)), "-") -> 597.159
A162: 96517039 | B162: Акція Верт. насос CR5-4 A-FGJ-A-E-HQQE | C162: CW | D162: 2 | F162: 597.159 | G162: =IFERROR(F162*(1-VLOOKUP(C162,ГОЛОВНА!K:L,2,0)), "-") -> 597.159
A163: 96516978 | B163: Верт. насос CR5-5 A-A-A-E-HQQE 3x230/ | C163: CW | D163: 2 | F163: 611.253 | G163: =IFERROR(F163*(1-VLOOKUP(C163,ГОЛОВНА!K:L,2,0)), "-") -> 611.253
A164: 96516991 | B164: Верт. насос CR5-8 A-A-A-E-HQQE 3x230/ | C164: CW | D164: 2 | F164: 682.2 | G164: =IFERROR(F164*(1-VLOOKUP(C164,ГОЛОВНА!K:L,2,0)), "-") -> 682.2
A165: 96511750 | B165: Верт. насос CR5-8 A-FGJ-A-E-HQQE 3x230/ | C165: CW | D165: 2 | F165: 711.063 | G165: =IFERROR(F165*(1-VLOOKUP(C165,ГОЛОВНА!K:L,2,0)), "-") -> 711.063
A166: 96516992 | B166: Верт. насос CR5-9 A-A-A-E-HQQE 3x230/ | C166: CW | D166: 2 | F166: 783.207 | G166: =IFERROR(F166*(1-VLOOKUP(C166,ГОЛОВНА!K:L,2,0)), "-") -> 783.207
A167: 96516724 | B167: Верт. насос CRI3-6 A-CA-I-E-HQQE 3x23 | C167: CW | D167: 2 | F167: 575.766 | G167: =IFERROR(F167*(1-VLOOKUP(C167,ГОЛОВНА!K:L,2,0)), "-") -> 575.766
A168: 96516726 | B168: Верт. насос CRI3-8 A-CA-I-E-HQQE 3x23 | C168: CW | D168: 2 | F168: 637.209 | G168: =IFERROR(F168*(1-VLOOKUP(C168,ГОЛОВНА!K:L,2,0)), "-") -> 637.209
A169: 96516727 | B169: Верт. насос CRI3-9 A-CA-I-E-HQQE 3x23 | C169: CW | D169: 2 | F169: 665.397 | G169: =IFERROR(F169*(1-VLOOKUP(C169,ГОЛОВНА!K:L,2,0)), "-") -> 665.397
A170: 96517103 | B170: Верт. насос CRI5-8 A-CA-I-E-HQQE 3x23 | C170: CW | D170: 2 | F170: 757.053 | G170: =IFERROR(F170*(1-VLOOKUP(C170,ГОЛОВНА!K:L,2,0)), "-") -> 757.053
G171: Глибинні насоси
A172: 96160961 | B172: Глиб.насос SQE2-70 +60м+пакет пост.тиску | C172: DC | D172: 1 | F172: 1581.808 | G172: =IFERROR(F172*(1-VLOOKUP(C172,ГОЛОВНА!K:L,2,0)), "-") -> 1581.808
A173: 96510162 | B173: Глибинний насос SQE3-105 1,85кВт 220-240 | C173: DC | D173: 1 | F173: 1139.26 | G173: =IFERROR(F173*(1-VLOOKUP(C173,ГОЛОВНА!K:L,2,0)), "-") -> 1139.26
A174: 96510179 | B174: Глибинний насос SQ1-50 0,7кВт 220-240В | C174: DC | D174: 2 | F174: 569.8664 | G174: =IFERROR(F174*(1-VLOOKUP(C174,ГОЛОВНА!K:L,2,0)), "-") -> 569.8664
A175: 96510198 | B175: Глибинний насос SQ2-35 0,7кВт 220-240В | C175: DC | D175: 2 | F175: 545.2564 | G175: =IFERROR(F175*(1-VLOOKUP(C175,ГОЛОВНА!K:L,2,0)), "-") -> 545.2564
A176: 96510199 | B176: Глибинний насос SQ2-55 0,7кВт 220-240В | C176: DC | D176: 1 | F176: 579.2872 | G176: =IFERROR(F176*(1-VLOOKUP(C176,ГОЛОВНА!K:L,2,0)), "-") -> 579.2872
A177: 96510200 | B177: Глибинний насос SQ2-70 1,15кВт 220-240В | C177: DC | D177: 1 | F177: 641.5436 | G177: =IFERROR(F177*(1-VLOOKUP(C177,ГОЛОВНА!K:L,2,0)), "-") -> 641.5436
A178: 96510201 | B178: Глибинний насос SQ2-85 1,15кВт 220-240В | C178: DC | D178: 1 | F178: 717.968 | G178: =IFERROR(F178*(1-VLOOKUP(C178,ГОЛОВНА!K:L,2,0)), "-") -> 717.968
A179: 96510203 | B179: Глибинний насос SQ2-115 1,85кВт 220-240В | C179: DC | D179: 1 | F179: 922.3644 | G179: =IFERROR(F179*(1-VLOOKUP(C179,ГОЛОВНА!K:L,2,0)), "-") -> 922.3644
A180: 96510205 | B180: Глибинний насос SQ3-40 0,7кВт 220-240В | C180: DC | D180: 2 | F180: 554.6496 | G180: =IFERROR(F180*(1-VLOOKUP(C180,ГОЛОВНА!K:L,2,0)), "-") -> 554.6496
A181: 96510206 | B181: Глибинний насос SQ3-55 1,15кВт 220-240В | C181: DC | D181: 1 | F181: 641.5436 | G181: =IFERROR(F181*(1-VLOOKUP(C181,ГОЛОВНА!K:L,2,0)), "-") -> 641.5436
A182: 96510207 | B182: Глибинний насос SQ3-65 1,15кВт 220-240В | C182: DC | D182: 1 | F182: 717.968 | G182: =IFERROR(F182*(1-VLOOKUP(C182,ГОЛОВНА!K:L,2,0)), "-") -> 717.968
A183: 96510208 | B183: Глибинний насос SQ3-80 1,68кВт 220-240В | C183: DC | D183: 1 | F183: 890.652 | G183: =IFERROR(F183*(1-VLOOKUP(C183,ГОЛОВНА!K:L,2,0)), "-") -> 890.652
A184: 96510209 | B184: Глибинний насос SQ3-95 1,68кВт 220-240В | C184: DC | D184: 2 | F184: 922.3644 | G184: =IFERROR(F184*(1-VLOOKUP(C184,ГОЛОВНА!K:L,2,0)), "-") -> 922.3644
A185: 96510210 | B185: Глибинний насос SQ3-105 1,85кВт 220-240В | C185: DC | D185: 1 | F185: 952.936 | G185: =IFERROR(F185*(1-VLOOKUP(C185,ГОЛОВНА!K:L,2,0)), "-") -> 952.936
A186: 96510213 | B186: Глибинний насос SQ5-35 1,15кВт 220-240В | C186: DC | D186: 2 | F186: 641.5436 | G186: =IFERROR(F186*(1-VLOOKUP(C186,ГОЛОВНА!K:L,2,0)), "-") -> 641.5436
A187: 96510217 | B187: Глибинний насос SQ5-70 1,85кВт 220-240В | C187: DC | D187: 2 | F187: 952.936 | G187: =IFERROR(F187*(1-VLOOKUP(C187,ГОЛОВНА!K:L,2,0)), "-") -> 952.936
A188: 96524501 | B188: Глиб.насос SQE3-65 +40м+пакет пост.тиску | C188: DC | D188: 1 | F188: 1570.036 | G188: =IFERROR(F188*(1-VLOOKUP(C188,ГОЛОВНА!K:L,2,0)), "-") -> 1570.036
A189: 96524503 | B189: Глиб.насос SQE5-70 +40м+пакет пост.тиску | C189: DC | D189: 1 | F189: 1635.51135 | G189: =IFERROR(F189*(1-VLOOKUP(C189,ГОЛОВНА!K:L,2,0)), "-") -> 1635.51135
A190: 96524505 | B190: Глиб.насос SQE2-55 +40м+пакет пост.тиску | C190: DC | D190: 1 | F190: 1411.6544 | G190: =IFERROR(F190*(1-VLOOKUP(C190,ГОЛОВНА!K:L,2,0)), "-") -> 1411.6544
A191: 96524506 | B191: Глиб.насос SQE2-85+60м+пакет пост.тиску | C191: DC | D191: 1 | F191: 1749.28 | G191: =IFERROR(F191*(1-VLOOKUP(C191,ГОЛОВНА!K:L,2,0)), "-") -> 1749.28
A192: 96524507 | B192: Глиб.насос SQE2-115 +80м+пакет пост.тиск | C192: DC | D192: 1 | F192: 1911.9723 | G192: =IFERROR(F192*(1-VLOOKUP(C192,ГОЛОВНА!K:L,2,0)), "-") -> 1911.9723
A193: 96524508 | B193: Глиб.насос SQE3-105+80m+пакет пост.тиск | C193: DC | D193: 1 | F193: 1831.3572 | G193: =IFERROR(F193*(1-VLOOKUP(C193,ГОЛОВНА!K:L,2,0)), "-") -> 1831.3572
A194: 05001K06 | B194: Глибинна помпа SP5A- 6 0.55kW 380-415V 5 | C194: CW | D194: 2 | F194: 576.916 | G194: =IFERROR(F194*(1-VLOOKUP(C194,ГОЛОВНА!K:L,2,0)), "-") -> 576.916
A195: 05001K08 | B195: Глибинна помпа SP5A- 8 0.75kW 380-415V 5 | C195: CW | D195: 2 | F195: 630.173 | G195: =IFERROR(F195*(1-VLOOKUP(C195,ГОЛОВНА!K:L,2,0)), "-") -> 630.173
A196: 05001K12 | B196: Глибинна помпа SP5A-12 1.1kW 380 | C196: CW | D196: 2 | F196: 711.911 | G196: =IFERROR(F196*(1-VLOOKUP(C196,ГОЛОВНА!K:L,2,0)), "-") -> 711.911
A197: 05001K17 | B197: Глибинний насос SP5A-17 1.5kW 380-415V 5 | C197: CW | D197: 2 | F197: 807.291 | G197: =IFERROR(F197*(1-VLOOKUP(C197,ГОЛОВНА!K:L,2,0)), "-") -> 807.291
A198: 05001K21 | B198: Глибинний насос SP5A-21 2.2KW 3x380-415B | C198: CW | D198: 2 | F198: 925.3855 | G198: =IFERROR(F198*(1-VLOOKUP(C198,ГОЛОВНА!K:L,2,0)), "-") -> 925.3855
A199: 05001K25 | B199: Глибинний насос SP5A-25 2.2KW 3x380-415B | C199: CW | D199: 1 | F199: 964.82 | G199: =IFERROR(F199*(1-VLOOKUP(C199,ГОЛОВНА!K:L,2,0)), "-") -> 964.82
A200: 09001K06 | B200: Глибинна помпа SP2A- 6 0.37kW 380-415V 5 | C200: CW | D200: 2 | F200: 547.96 | G200: =IFERROR(F200*(1-VLOOKUP(C200,ГОЛОВНА!K:L,2,0)), "-") -> 547.96
... 90 more rows

Sheet ALPHA, MAGNA
A1: АРТИКУЛ | B1: НАЙМЕНУВАННЯ (УКР) | C1: PRICE GROUP | D1: ДОСТАВКА (ТИЖНІВ) | E1: ДОДАТКОВО | F1: ЦІНА (ЕВРО БЕЗ ПДВ) | G1: ЦІНА ЗІ ЗНИЖКОЮ | H1: НА ГОЛОВНУ
A2: ALPHA2, ALPHA2 L | G2: Регулюємі циркуляційні насоси для систем опалення
A3: 98989298 | B3: Циркуляційний насос ALPHA Solar 15-75 130 1x230V 9H | C3: DH | F3: 236.8608 | G3: =IFERROR(F3*(1-VLOOKUP(C3,ГОЛОВНА!K:L,2,0)), "-") -> 236.8608
A4: 98989297 | B4: Циркуляційний насос ALPHA Solar 25-145 180 1x230V 9H | C4: DH | F4: 263.1728 | G4: =IFERROR(F4*(1-VLOOKUP(C4,ГОЛОВНА!K:L,2,0)), "-") -> 263.1728
A5: 98989299 | B5: Циркуляційний насос ALPHA Solar 25-75 130 1x230V 9H | C5: DH | F5: 245.6344 | G5: =IFERROR(F5*(1-VLOOKUP(C5,ГОЛОВНА!K:L,2,0)), "-") -> 245.6344
A6: 98989300 | B6: Циркуляційний насос ALPHA Solar 25-75 180 1x230V 9H | C6: DH | F6: 245.6344 | G6: =IFERROR(F6*(1-VLOOKUP(C6,ГОЛОВНА!K:L,2,0)), "-") -> 245.6344
A7: 99160550 | B7: Циркуляційний насос ALPHA1 L 15-40 130 1x230V 50Hz 6H | C7: DH | F7: 152.3711 | G7: =IFERROR(F7*(1-VLOOKUP(C7,ГОЛОВНА!K:L,2,0)), "-") -> 152.3711
A8: 99160574 | B8: Циркуляційний насос ALPHA1 L 15-60 130 1x230V 50Hz 6H | C8: DH | F8: 175.2175 | G8: =IFERROR(F8*(1-VLOOKUP(C8,ГОЛОВНА!K:L,2,0)), "-") -> 175.2175
A9: 99160595 | B9: Циркуляційний насос ALPHA1 L 20-40 N 150 1x230V 50Hz 6H | C9: DH | F9: 231.2755 | G9: =IFERROR(F9*(1-VLOOKUP(C9,ГОЛОВНА!K:L,2,0)), "-") -> 231.2755
A10: 99160598 | B10: Циркуляційний насос ALPHA1 L 20-60 N 150 1x230V 50Hz 6H | C10: DH | F10: 265.97225 | G10: =IFERROR(F10*(1-VLOOKUP(C10,ГОЛОВНА!K:L,2,0)), "-") -> 265.97225
A11: 99160578 | B11: Циркуляційний насос ALPHA1 L 25-40 130 1x230V 50Hz 6H | C11: DH | F11: 137.83158 | G11: =IFERROR(F11*(1-VLOOKUP(C11,ГОЛОВНА!K:L,2,0)), "-") -> 137.83158
A12: 99160579 | B12: Циркуляційний насос ALPHA1 L 25-40 180 1x230V 50Hz 6H | C12: DH | F12: 137.83158 | G12: =IFERROR(F12*(1-VLOOKUP(C12,ГОЛОВНА!K:L,2,0)), "-") -> 137.83158
A13: 99160592 | B13: Циркуляційний насос ALPHA1 L 25-40 N 180 1x230V 50Hz 6H | C13: DH | F13: 233.4036 | G13: =IFERROR(F13*(1-VLOOKUP(C13,ГОЛОВНА!K:L,2,0)), "-") -> 233.4036
A14: 99160583 | B14: Циркуляційний насос ALPHA1 L 25-60 130 1x230V 50Hz 6H | C14: DH | F14: 159.8511 | G14: =IFERROR(F14*(1-VLOOKUP(C14,ГОЛОВНА!K:L,2,0)), "-") -> 159.8511
A15: 99160584 | B15: Циркуляційний насос ALPHA1 L 25-60 180 1x230V 50Hz 6H | C15: DH | F15: 158.411 | G15: =IFERROR(F15*(1-VLOOKUP(C15,ГОЛОВНА!K:L,2,0)), "-") -> 158.411
A16: 99160594 | B16: Циркуляційний насос ALPHA1 L 25-60 N 180 1x230V 50Hz 6H | C16: DH | F16: 256.7356 | G16: =IFERROR(F16*(1-VLOOKUP(C16,ГОЛОВНА!K:L,2,0)), "-") -> 256.7356
A17: 99160587 | B17: Циркуляційний насос ALPHA1 L 32-40 180 1x230V 50Hz 6H | C17: DH | F17: 153.769 | G17: =IFERROR(F17*(1-VLOOKUP(C17,ГОЛОВНА!K:L,2,0)), "-") -> 153.769
A18: 99160590 | B18: Циркуляційний насос ALPHA1 L 32-60 180 1x230V 50Hz 6H | C18: DH | F18: 169.136 | G18: =IFERROR(F18*(1-VLOOKUP(C18,ГОЛОВНА!K:L,2,0)), "-") -> 169.136
A19: 99411107 | B19: Циркуляційний насос ALPHA2 15-40 130 1x230V 50Hz 6H | C19: DH | F19: 206.1928 | G19: =IFERROR(F19*(1-VLOOKUP(C19,ГОЛОВНА!K:L,2,0)), "-") -> 206.1928
A20: 97993192 | B20: Циркуляційний насос ALPHA2 15-40 130 1x230V 50Hz 6H | C20: DH | F20: 206.1928 | G20: =IFERROR(F20*(1-VLOOKUP(C20,ГОЛОВНА!K:L,2,0)), "-") -> 206.1928
A21: 97993193 | B21: Циркуляційний насос ALPHA2 15-50 130 1x230V 50Hz 6H | C21: DH | F21: 226.8376 | G21: =IFERROR(F21*(1-VLOOKUP(C21,ГОЛОВНА!K:L,2,0)), "-") -> 226.8376
A22: 99411113 | B22: Циркуляційний насос ALPHA2 15-50 130 1x230V 50Hz 6H | C22: DH | F22: 226.8376 | G22: =IFERROR(F22*(1-VLOOKUP(C22,ГОЛОВНА!K:L,2,0)), "-") -> 226.8376
A23: 97993194 | B23: Циркуляційний насос ALPHA2 15-60 130 1x230V 50Hz 6H | C23: DH | F23: 237.1248 | G23: =IFERROR(F23*(1-VLOOKUP(C23,ГОЛОВНА!K:L,2,0)), "-") -> 237.1248
A24: 99411114 | B24: Циркуляційний насос ALPHA2 15-60 130 1x230V 50Hz 6H | C24: DH | F24: 237.1248 | G24: =IFERROR(F24*(1-VLOOKUP(C24,ГОЛОВНА!K:L,2,0)), "-") -> 237.1248
A25: 99411116 | B25: Циркуляційний насос ALPHA2 15-80 130 1x230V 50Hz 6H | C25: DH | F25: 268.4352 | G25: =IFERROR(F25*(1-VLOOKUP(C25,ГОЛОВНА!K:L,2,0)), "-") -> 268.4352
A26: 98676765 | B26: Циркуляційний насос ALPHA2 15-80 130 1x230V 50Hz 6H | C26: DH | F26: 268.4352 | G26: =IFERROR(F26*(1-VLOOKUP(C26,ГОЛОВНА!K:L,2,0)), "-") -> 268.4352
A27: 97660453 | B27: Циркуляційний насос ALPHA2 20-40 N 150 1x230V 50Hz 6H | C27: DH | F27: 337.504 | G27: =IFERROR(F27*(1-VLOOKUP(C27,ГОЛОВНА!K:L,2,0)), "-") -> 337.504
A28: 97660456 | B28: Циркуляційний насос ALPHA2 20-60 N 150 1x230V 50Hz 6H | C28: DH | F28: 388.128 | G28: =IFERROR(F28*(1-VLOOKUP(C28,ГОЛОВНА!K:L,2,0)), "-") -> 388.128
A29: 97993195 | B29: Циркуляційний насос ALPHA2 25-40 130 1x230V 50Hz 6H | C29: DH | F29: 187.4664 | G29: =IFERROR(F29*(1-VLOOKUP(C29,ГОЛОВНА!K:L,2,0)), "-") -> 187.4664
A30: 99411143 | B30: Циркуляційний насос ALPHA2 25-40 130 1x230V 50Hz 6H | C30: DH | F30: 184.2623 | G30: =IFERROR(F30*(1-VLOOKUP(C30,ГОЛОВНА!K:L,2,0)), "-") -> 184.2623
A31: 97704990 | B31: Циркуляційний насос ALPHA2 25-40 180 1x230V 50Hz 6H | C31: DH | F31: 187.4664 | G31: =IFERROR(F31*(1-VLOOKUP(C31,ГОЛОВНА!K:L,2,0)), "-") -> 187.4664
A32: 99411165 | B32: Циркуляційний насос ALPHA2 25-40 180 1x230V 50Hz 6H | C32: DH | F32: 185.3361 | G32: =IFERROR(F32*(1-VLOOKUP(C32,ГОЛОВНА!K:L,2,0)), "-") -> 185.3361
A33: 97993199 | B33: Циркуляційний насос ALPHA2 25-40 A 180 1x230V 50Hz 6H | C33: DH | F33: 213.1326 | G33: =IFERROR(F33*(1-VLOOKUP(C33,ГОЛОВНА!K:L,2,0)), "-") -> 213.1326
A34: 99411272 | B34: Циркуляційний насос ALPHA2 25-40 N 130 1x230V 50Hz 6H | C34: DH | F34: 350.1604 | G34: =IFERROR(F34*(1-VLOOKUP(C34,ГОЛОВНА!K:L,2,0)), "-") -> 350.1604
A35: 97993206 | B35: Циркуляційний насос ALPHA2 25-40 N 130 1x230V 50Hz 6H | C35: DH | F35: 337.504 | G35: =IFERROR(F35*(1-VLOOKUP(C35,ГОЛОВНА!K:L,2,0)), "-") -> 337.504
A36: 97993209 | B36: Циркуляційний насос ALPHA2 25-40 N 180 1x230V 50Hz 6H | C36: DH | F36: 337.504 | G36: =IFERROR(F36*(1-VLOOKUP(C36,ГОЛОВНА!K:L,2,0)), "-") -> 337.504
A37: 99411365 | B37: Циркуляційний насос ALPHA2 25-40 N 180 1x230V 50Hz 6H | C37: DH | F37: 350.1604 | G37: =IFERROR(F37*(1-VLOOKUP(C37,ГОЛОВНА!K:L,2,0)), "-") -> 350.1604
A38: 99411146 | B38: Циркуляційний насос ALPHA2 25-50 130 1x230V 50Hz 6H | C38: DH | F38: 206.2192 | G38: =IFERROR(F38*(1-VLOOKUP(C38,ГОЛОВНА!K:L,2,0)), "-") -> 206.2192
A39: 97993196 | B39: Циркуляційний насос ALPHA2 25-50 130 1x230V 50Hz 6H | C39: DH | F39: 206.1928 | G39: =IFERROR(F39*(1-VLOOKUP(C39,ГОЛОВНА!K:L,2,0)), "-") -> 206.1928
A40: 97993200 | B40: Циркуляційний насос ALPHA2 25-50 180 1x230V 50Hz 6H | C40: DH | F40: 206.1928 | G40: =IFERROR(F40*(1-VLOOKUP(C40,ГОЛОВНА!K:L,2,0)), "-") -> 206.1928
A41: 99411173 | B41: Циркуляційний насос ALPHA2 25-50 180 1x230V 50Hz 6H | C41: DH | F41: 206.1928 | G41: =IFERROR(F41*(1-VLOOKUP(C41,ГОЛОВНА!K:L,2,0)), "-") -> 206.1928
A42: 99411286 | B42: Циркуляційний насос ALPHA2 25-50 N 130 1x230V 50Hz 6H | C42: DH | F42: 385.1864 | G42: =IFERROR(F42*(1-VLOOKUP(C42,ГОЛОВНА!K:L,2,0)), "-") -> 385.1864
A43: 97993207 | B43: Циркуляційний насос ALPHA2 25-50 N 130 1x230V 50Hz 6H | C43: DH | F43: 371.264 | G43: =IFERROR(F43*(1-VLOOKUP(C43,ГОЛОВНА!K:L,2,0)), "-") -> 371.264
A44: 99411371 | B44: Циркуляційний насос ALPHA2 25-50 N 180 1x230V 50Hz 6H | C44: DH | F44: 385.1864 | G44: =IFERROR(F44*(1-VLOOKUP(C44,ГОЛОВНА!K:L,2,0)), "-") -> 385.1864
A45: 97993210 | B45: Циркуляційний насос ALPHA2 25-50 N 180 1x230V 50Hz 6H | C45: DH | F45: 371.264 | G45: =IFERROR(F45*(1-VLOOKUP(C45,ГОЛОВНА!K:L,2,0)), "-") -> 371.264
A46: 99411150 | B46: Циркуляційний насос ALPHA2 25-60 130 1x230V 50Hz 6H | C46: DH | F46: 212.9294 | G46: =IFERROR(F46*(1-VLOOKUP(C46,ГОЛОВНА!K:L,2,0)), "-") -> 212.9294
A47: 97993201 | B47: Циркуляційний насос ALPHA2 25-60 180 1x230V 50Hz 6H | C47: DH | F47: 214.3575 | G47: =IFERROR(F47*(1-VLOOKUP(C47,ГОЛОВНА!K:L,2,0)), "-") -> 214.3575
A48: 99411175 | B48: Циркуляційний насос ALPHA2 25-60 180 1x230V 50Hz 6H | C48: DH | F48: 210.6914 | G48: =IFERROR(F48*(1-VLOOKUP(C48,ГОЛОВНА!K:L,2,0)), "-") -> 210.6914
A49: 97993202 | B49: Циркуляційний насос ALPHA2 25-60 A 180 1x230V 50Hz 6H | C49: DH | F49: 247.9224 | G49: =IFERROR(F49*(1-VLOOKUP(C49,ГОЛОВНА!K:L,2,0)), "-") -> 247.9224
A50: 99411287 | B50: Циркуляційний насос ALPHA2 25-60 N 130 1x230V 50Hz 6H | C50: DH | F50: 402.6828 | G50: =IFERROR(F50*(1-VLOOKUP(C50,ГОЛОВНА!K:L,2,0)), "-") -> 402.6828
A51: 97993208 | B51: Циркуляційний насос ALPHA2 25-60 N 130 1x230V 50Hz 6H | C51: DH | F51: 388.128 | G51: =IFERROR(F51*(1-VLOOKUP(C51,ГОЛОВНА!K:L,2,0)), "-") -> 388.128
A52: 99411424 | B52: Циркуляційний насос ALPHA2 25-60 N 180 1x230V 50Hz 6H | C52: DH | F52: 402.6828 | G52: =IFERROR(F52*(1-VLOOKUP(C52,ГОЛОВНА!K:L,2,0)), "-") -> 402.6828
A53: 97993211 | B53: Циркуляційний насос ALPHA2 25-60 N 180 1x230V 50Hz 6H | C53: DH | F53: 388.128 | G53: =IFERROR(F53*(1-VLOOKUP(C53,ГОЛОВНА!K:L,2,0)), "-") -> 388.128
A54: 99411163 | B54: Циркуляційний насос ALPHA2 25-80 130 1x230V 50Hz 6H | C54: DH | F54: 265.3848 | G54: =IFERROR(F54*(1-VLOOKUP(C54,ГОЛОВНА!K:L,2,0)), "-") -> 265.3848
A55: 98649753 | B55: Циркуляційний насос ALPHA2 25-80 130 1x230V 50Hz 6H | C55: DH | F55: 265.3848 | G55: =IFERROR(F55*(1-VLOOKUP(C55,ГОЛОВНА!K:L,2,0)), "-") -> 265.3848
A56: 99411178 | B56: Циркуляційний насос ALPHA2 25-80 180 1x230V 50Hz 6H | C56: DH | F56: 263.8596 | G56: =IFERROR(F56*(1-VLOOKUP(C56,ГОЛОВНА!K:L,2,0)), "-") -> 263.8596
A57: 98649757 | B57: Циркуляційний насос ALPHA2 25-80 180 1x230V 50Hz 6H | C57: DH | F57: 268.4352 | G57: =IFERROR(F57*(1-VLOOKUP(C57,ГОЛОВНА!K:L,2,0)), "-") -> 268.4352
A58: 99411289 | B58: Циркуляційний насос ALPHA2 25-80 N 130 1x230V 50Hz 6H | C58: DH | F58: 504.9637 | G58: =IFERROR(F58*(1-VLOOKUP(C58,ГОЛОВНА!K:L,2,0)), "-") -> 504.9637
A59: 98676782 | B59: Циркуляційний насос ALPHA2 25-80 N 130 1x230V 50Hz 6H | C59: DH | F59: 483.336 | G59: =IFERROR(F59*(1-VLOOKUP(C59,ГОЛОВНА!K:L,2,0)), "-") -> 483.336
A60: 98676783 | B60: Циркуляційний насос ALPHA2 25-80 N 180 1x230V 50Hz 6H | C60: DH | F60: 468.23175 | G60: =IFERROR(F60*(1-VLOOKUP(C60,ГОЛОВНА!K:L,2,0)), "-") -> 468.23175
A61: 99411428 | B61: Циркуляційний насос ALPHA2 25-80 N 180 1x230V 50Hz 6H | C61: DH | F61: 501.4611 | G61: =IFERROR(F61*(1-VLOOKUP(C61,ГОЛОВНА!K:L,2,0)), "-") -> 501.4611
A62: 97993203 | B62: Циркуляційний насос ALPHA2 32-40 180 1x230V 50Hz 6H | C62: DH | F62: 206.1928 | G62: =IFERROR(F62*(1-VLOOKUP(C62,ГОЛОВНА!K:L,2,0)), "-") -> 206.1928
A63: 99411207 | B63: Циркуляційний насос ALPHA2 32-40 180 1x230V 50Hz 6H | C63: DH | F63: 206.1928 | G63: =IFERROR(F63*(1-VLOOKUP(C63,ГОЛОВНА!K:L,2,0)), "-") -> 206.1928
A64: 99411215 | B64: Циркуляційний насос ALPHA2 32-50 180 1x230V 50Hz 6H | C64: DH | F64: 226.8376 | G64: =IFERROR(F64*(1-VLOOKUP(C64,ГОЛОВНА!K:L,2,0)), "-") -> 226.8376
A65: 97993205 | B65: Циркуляційний насос ALPHA2 32-60 180 1x230V 50Hz 6H | C65: DH | F65: 234.4302 | G65: =IFERROR(F65*(1-VLOOKUP(C65,ГОЛОВНА!K:L,2,0)), "-") -> 234.4302
A66: 99411221 | B66: Циркуляційний насос ALPHA2 32-60 180 1x230V 50Hz 6H | C66: DH | F66: 234.4215 | G66: =IFERROR(F66*(1-VLOOKUP(C66,ГОЛОВНА!K:L,2,0)), "-") -> 234.4215
A67: 98676766 | B67: Циркуляційний насос ALPHA2 32-80 180 1x230V 50Hz 6H | C67: DH | F67: 293.1378 | G67: =IFERROR(F67*(1-VLOOKUP(C67,ГОЛОВНА!K:L,2,0)), "-") -> 293.1378
A68: 99411263 | B68: Циркуляційний насос ALPHA2 32-80 180 1x230V 50Hz 6H | C68: DH | F68: 293.1378 | G68: =IFERROR(F68*(1-VLOOKUP(C68,ГОЛОВНА!K:L,2,0)), "-") -> 293.1378
A69: 98676784 | B69: Циркуляційний насос ALPHA2 32-80 N 180 1x230V 50Hz 6H | C69: DH | F69: 546.8896 | G69: =IFERROR(F69*(1-VLOOKUP(C69,ГОЛОВНА!K:L,2,0)), "-") -> 546.8896
A70: 95047560 | B70: Циркуляційний насос ALPHA2 L 15-40 130 1x230V 50Hz 6H | C70: DH | F70: 154.31 | G70: =IFERROR(F70*(1-VLOOKUP(C70,ГОЛОВНА!K:L,2,0)), "-") -> 154.31
A71: 95047561 | B71: Циркуляційний насос ALPHA2 L 25-40 130 1x230V 50Hz 6H | C71: DH | F71: 138.879 | G71: =IFERROR(F71*(1-VLOOKUP(C71,ГОЛОВНА!K:L,2,0)), "-") -> 138.879
A72: 95047562 | B72: Циркуляційний насос ALPHA2 L 25-40 180 1x230V 50Hz 6H | C72: DH | F72: 138.8574 | G72: =IFERROR(F72*(1-VLOOKUP(C72,ГОЛОВНА!K:L,2,0)), "-") -> 138.8574
A73: 95047563 | B73: Циркуляційний насос ALPHA2 L 25-60 130 1x230V 50Hz 6H | C73: DH | F73: 159.6969 | G73: =IFERROR(F73*(1-VLOOKUP(C73,ГОЛОВНА!K:L,2,0)), "-") -> 159.6969
A74: 95047564 | B74: Циркуляційний насос ALPHA2 L 25-60 180 1x230V 50Hz 6H | C74: DH | F74: 159.6969 | G74: =IFERROR(F74*(1-VLOOKUP(C74,ГОЛОВНА!K:L,2,0)), "-") -> 159.6969
A75: 98288707 | B75: Циркуляційний насос ALPHA2 L 25-60 N 180 1x230V 50Hz 6H | C75: DH | F75: 274.576 | G75: =IFERROR(F75*(1-VLOOKUP(C75,ГОЛОВНА!K:L,2,0)), "-") -> 274.576
A76: 95047565 | B76: Циркуляційний насос ALPHA2 L 32-40 180 1x230V 50Hz 6H | C76: DH | F76: 154.31 | G76: =IFERROR(F76*(1-VLOOKUP(C76,ГОЛОВНА!K:L,2,0)), "-") -> 154.31
A77: 95047566 | B77: Циркуляційний насос ALPHA2 L 32-60 180 1x230V 50Hz 6H | C77: DH | F77: 168.568 | G77: =IFERROR(F77*(1-VLOOKUP(C77,ГОЛОВНА!K:L,2,0)), "-") -> 168.568
A78: 98890717 | B78: Циркуляційний насос ALPHA3 15-40 130 1x230V 50Hz 6H | C78: DH | F78: 277.5696 | G78: =IFERROR(F78*(1-VLOOKUP(C78,ГОЛОВНА!K:L,2,0)), "-") -> 277.5696
A79: 98890747 | B79: Циркуляційний насос ALPHA3 15-60 130 1x230V 50Hz 6H | C79: DH | F79: 313.0864 | G79: =IFERROR(F79*(1-VLOOKUP(C79,ГОЛОВНА!K:L,2,0)), "-") -> 313.0864
A80: 98890748 | B80: Циркуляційний насос ALPHA3 15-80 130 1x230V 50Hz 6H | C80: DH | F80: 392.0312 | G80: =IFERROR(F80*(1-VLOOKUP(C80,ГОЛОВНА!K:L,2,0)), "-") -> 392.0312
A81: 98890750 | B81: Циркуляційний насос ALPHA3 25-40 130 1x230V 50Hz 6H | C81: DH | F81: 247.4912 | G81: =IFERROR(F81*(1-VLOOKUP(C81,ГОЛОВНА!K:L,2,0)), "-") -> 247.4912
A82: 98890766 | B82: Циркуляційний насос ALPHA3 25-40 180 1x230V 50Hz 6H | C82: DH | F82: 247.4912 | G82: =IFERROR(F82*(1-VLOOKUP(C82,ГОЛОВНА!K:L,2,0)), "-") -> 247.4912
A83: 99371956 | B83: Циркуляційний насос ALPHA3 25-40 180 1x230V 50Hz 6H | C83: DH | F83: 243.6465 | G83: =IFERROR(F83*(1-VLOOKUP(C83,ГОЛОВНА!K:L,2,0)), "-") -> 243.6465
A84: 98890761 | B84: Циркуляційний насос ALPHA3 25-50 130 1x230V 50Hz 6H | C84: DH | F84: 277.5696 | G84: =IFERROR(F84*(1-VLOOKUP(C84,ГОЛОВНА!K:L,2,0)), "-") -> 277.5696
A85: 98890762 | B85: Циркуляційний насос ALPHA3 25-60 130 1x230V 50Hz 6H | C85: DH | F85: 284.6272 | G85: =IFERROR(F85*(1-VLOOKUP(C85,ГОЛОВНА!K:L,2,0)), "-") -> 284.6272
A86: 98890769 | B86: Циркуляційний насос ALPHA3 25-60 180 1x230V 50Hz 6H | C86: DH | F86: 284.6272 | G86: =IFERROR(F86*(1-VLOOKUP(C86,ГОЛОВНА!K:L,2,0)), "-") -> 284.6272
A87: 99371959 | B87: Циркуляційний насос ALPHA3 25-60 180 1x230V 50Hz 6H | C87: DH | F87: 280.2025 | G87: =IFERROR(F87*(1-VLOOKUP(C87,ГОЛОВНА!K:L,2,0)), "-") -> 280.2025
A88: 98890770 | B88: Циркуляційний насос ALPHA3 25-80 180 1x230V 50Hz 6H | C88: DH | F88: 356.4 | G88: =IFERROR(F88*(1-VLOOKUP(C88,ГОЛОВНА!K:L,2,0)), "-") -> 356.4
A89: 99371961 | B89: Циркуляційний насос ALPHA3 25-80 180 1x230V 50Hz 6H | C89: DH | F89: 345.192 | G89: =IFERROR(F89*(1-VLOOKUP(C89,ГОЛОВНА!K:L,2,0)), "-") -> 345.192
A90: 98890783 | B90: Циркуляційний насос ALPHA3 32-40 180 1x230V 50Hz 6H | C90: DH | F90: 272.2456 | G90: =IFERROR(F90*(1-VLOOKUP(C90,ГОЛОВНА!K:L,2,0)), "-") -> 272.2456
A91: 98890785 | B91: Циркуляційний насос ALPHA3 32-60 180 1x230V 50Hz 6H | C91: DH | F91: 313.0864 | G91: =IFERROR(F91*(1-VLOOKUP(C91,ГОЛОВНА!K:L,2,0)), "-") -> 313.0864
A92: 98890786 | B92: Циркуляційний насос ALPHA3 32-80 180 1x230V 50Hz 6H | C92: DH | F92: 392.0312 | G92: =IFERROR(F92*(1-VLOOKUP(C92,ГОЛОВНА!K:L,2,0)), "-") -> 392.0312
A93: 99371965 | B93: Циркуляційний насос ALPHA3 32-80 180 1x230V 50Hz 6H | C93: DH | F93: 319.7568 | G93: =IFERROR(F93*(1-VLOOKUP(C93,ГОЛОВНА!K:L,2,0)), "-") -> 319.7568
A95: MAGNA3, MAGNA1 | G95: Регулюємі циркуляційні насоси для систем опалення
A96: 99224456 | B96: Циркуляційний насос MAGNA1 25-100 180 1X230V PN16 | C96: CB | F96: 643.6584 | G96: =IFERROR(F96*(1-VLOOKUP(C96,ГОЛОВНА!K:L,2,0)), "-") -> 643.6584
A97: 99224457 | B97: Циркуляційний насос MAGNA1 25-120 180 1X230V PN16 | C97: CB | F97: 724.1157 | G97: =IFERROR(F97*(1-VLOOKUP(C97,ГОЛОВНА!K:L,2,0)), "-") -> 724.1157
A98: 99224458 | B98: Циркуляційний насос MAGNA1 32-40 180 1X230V PN16 | C98: CB | F98: 527.41854 | G98: =IFERROR(F98*(1-VLOOKUP(C98,ГОЛОВНА!K:L,2,0)), "-") -> 527.41854
A99: 99224459 | B99: Циркуляційний насос MAGNA1 32-60 180 1X230V PN16 | C99: CB | F99: 616.8393 | G99: =IFERROR(F99*(1-VLOOKUP(C99,ГОЛОВНА!K:L,2,0)), "-") -> 616.8393
A100: 99224460 | B100: Циркуляційний насос MAGNA1 32-80 180 1X230V PN16 | C100: CB | F100: 643.6584 | G100: =IFERROR(F100*(1-VLOOKUP(C100,ГОЛОВНА!K:L,2,0)), "-") -> 643.6584
A101: 99224462 | B101: Циркуляційний насос MAGNA1 32-100 F 220 1X230V PN16 | C101: CB | F101: 822.44646 | G101: =IFERROR(F101*(1-VLOOKUP(C101,ГОЛОВНА!K:L,2,0)), "-") -> 822.44646
A102: 99224463 | B102: Циркуляційний насос MAGNA1 32-120 F 220 1X230V PN16 | C102: CB | F102: 916.62408 | G102: =IFERROR(F102*(1-VLOOKUP(C102,ГОЛОВНА!K:L,2,0)), "-") -> 916.62408
A103: 99224464 | B103: Циркуляційний насос MAGNA1 40-40 F 220 1X230V PN16 | C103: CB | F103: 724.1157 | G103: =IFERROR(F103*(1-VLOOKUP(C103,ГОЛОВНА!K:L,2,0)), "-") -> 724.1157
A104: 99224465 | B104: Циркуляційний насос MAGNA1 40-60 F 220 1X230V PN16 | C104: CB | F104: 795.62736 | G104: =IFERROR(F104*(1-VLOOKUP(C104,ГОЛОВНА!K:L,2,0)), "-") -> 795.62736
A105: 99224466 | B105: Циркуляційний насос MAGNA1 40-80 F 220 1X230V PN16 | C105: CB | F105: 916.62408 | G105: =IFERROR(F105*(1-VLOOKUP(C105,ГОЛОВНА!K:L,2,0)), "-") -> 916.62408
A106: 99224467 | B106: Циркуляційний насос MAGNA1 40-100 F 220 1X230V PN16 | C106: CB | F106: 1010.85156 | G106: =IFERROR(F106*(1-VLOOKUP(C106,ГОЛОВНА!K:L,2,0)), "-") -> 1010.85156
A107: 99224468 | B107: Циркуляційний насос MAGNA1 40-120 F 250 1X230V PN16 | C107: CB | F107: 1122.219 | G107: =IFERROR(F107*(1-VLOOKUP(C107,ГОЛОВНА!K:L,2,0)), "-") -> 1122.219
A108: 99224469 | B108: Циркуляційний насос MAGNA1 40-150 F 250 1X230V PN16 | C108: CB | F108: 1370.65536 | G108: =IFERROR(F108*(1-VLOOKUP(C108,ГОЛОВНА!K:L,2,0)), "-") -> 1370.65536
A109: 99224470 | B109: Циркуляційний насос MAGNA1 40-180 F 250 1X230V PN16 | C109: CB | F109: 1576.23336 | G109: =IFERROR(F109*(1-VLOOKUP(C109,ГОЛОВНА!K:L,2,0)), "-") -> 1576.23336
A110: 99224471 | B110: Циркуляційний насос MAGNA1 50-60 F 240 1X230V PN16 | C110: CB | F110: 1190.745 | G110: =IFERROR(F110*(1-VLOOKUP(C110,ГОЛОВНА!K:L,2,0)), "-") -> 1190.745
A111: 99224472 | B111: Циркуляційний насос MAGNA1 50-80 F 240 1X230V PN16 | C111: CB | F111: 1310.69088 | G111: =IFERROR(F111*(1-VLOOKUP(C111,ГОЛОВНА!K:L,2,0)), "-") -> 1310.69088
A112: 99224473 | B112: Циркуляційний насос MAGNA1 50-100 F 280 1X230V PN16 | C112: CB | F112: 1387.7784 | G112: =IFERROR(F112*(1-VLOOKUP(C112,ГОЛОВНА!K:L,2,0)), "-") -> 1387.7784
A113: 99224474 | B113: Циркуляційний насос MAGNA1 50-120 F 280 1X230V PN16 | C113: CB | F113: 1464.88284 | G113: =IFERROR(F113*(1-VLOOKUP(C113,ГОЛОВНА!K:L,2,0)), "-") -> 1464.88284
A114: 99224475 | B114: Циркуляційний насос MAGNA1 50-150 F 280 1X230V PN16 | C114: CB | F114: 1687.61772 | G114: =IFERROR(F114*(1-VLOOKUP(C114,ГОЛОВНА!K:L,2,0)), "-") -> 1687.61772
A115: 99224476 | B115: Циркуляційний насос MAGNA1 50-180 F 280 1X230V PN16 | C115: CB | F115: 1978.86168 | G115: =IFERROR(F115*(1-VLOOKUP(C115,ГОЛОВНА!K:L,2,0)), "-") -> 1978.86168
A116: 99224477 | B116: Циркуляційний насос MAGNA1 65-40 F 340 1X230V PN16 | C116: CB | F116: 1267.84944 | G116: =IFERROR(F116*(1-VLOOKUP(C116,ГОЛОВНА!K:L,2,0)), "-") -> 1267.84944
A117: 99224479 | B117: Циркуляційний насос MAGNA1 65-80 F 340 1X230V PN16 | C117: CB | F117: 1576.23336 | G117: =IFERROR(F117*(1-VLOOKUP(C117,ГОЛОВНА!K:L,2,0)), "-") -> 1576.23336
A118: 99224480 | B118: Циркуляційний насос MAGNA1 65-100 F 340 1X230V PN16 | C118: CB | F118: 1661.91624 | G118: =IFERROR(F118*(1-VLOOKUP(C118,ГОЛОВНА!K:L,2,0)), "-") -> 1661.91624
A119: 99224481 | B119: Циркуляційний насос MAGNA1 65-120 F 340 1X230V PN16 | C119: CB | F119: 1781.8452 | G119: =IFERROR(F119*(1-VLOOKUP(C119,ГОЛОВНА!K:L,2,0)), "-") -> 1781.8452
A120: 99224482 | B120: Циркуляційний насос MAGNA1 65-150 F 340 1X230V PN16 | C120: CB | F120: 2055.96612 | G120: =IFERROR(F120*(1-VLOOKUP(C120,ГОЛОВНА!K:L,2,0)), "-") -> 2055.96612
A121: 99224483 | B121: Циркуляційний насос MAGNA1 80-60 F 360 1X230V PN16 | C121: CB | F121: 1670.47776 | G121: =IFERROR(F121*(1-VLOOKUP(C121,ГОЛОВНА!K:L,2,0)), "-") -> 1670.47776
A122: 99224484 | B122: Циркуляційний насос MAGNA1 80-80 F 360 1X230V PN16 | C122: CB | F122: 1798.96824 | G122: =IFERROR(F122*(1-VLOOKUP(C122,ГОЛОВНА!K:L,2,0)), "-") -> 1798.96824
A123: 99224485 | B123: Циркуляційний насос MAGNA1 80-100 F 360 1X230V PN16 | C123: CB | F123: 1961.73864 | G123: =IFERROR(F123*(1-VLOOKUP(C123,ГОЛОВНА!K:L,2,0)), "-") -> 1961.73864
A124: 99224486 | B124: Циркуляційний насос MAGNA1 80-120 F 360 1X230V PN16 | C124: CB | F124: 2201.59656 | G124: =IFERROR(F124*(1-VLOOKUP(C124,ГОЛОВНА!K:L,2,0)), "-") -> 2201.59656
A125: 99224487 | B125: Циркуляційний насос MAGNA1 100-40 F 450 1X230V PN16 | C125: CB | F125: 1781.8452 | G125: =IFERROR(F125*(1-VLOOKUP(C125,ГОЛОВНА!K:L,2,0)), "-") -> 1781.8452
A126: 99224488 | B126: Циркуляційний насос MAGNA1 100-60 F 450 1X230V PN16 | C126: CB | F126: 1944.6156 | G126: =IFERROR(F126*(1-VLOOKUP(C126,ГОЛОВНА!K:L,2,0)), "-") -> 1944.6156
A127: 99224489 | B127: Циркуляційний насос MAGNA1 100-80 F 450 1X230V PN16 | C127: CB | F127: 2107.36908 | G127: =IFERROR(F127*(1-VLOOKUP(C127,ГОЛОВНА!K:L,2,0)), "-") -> 2107.36908
A128: 99224490 | B128: Циркуляційний насос MAGNA1 100-100 F 450 1X230V PN16 | C128: CB | F128: 2295.82404 | G128: =IFERROR(F128*(1-VLOOKUP(C128,ГОЛОВНА!K:L,2,0)), "-") -> 2295.82404
A129: 99224491 | B129: Циркуляційний насос MAGNA1 D 32-40 180 1X230V PN16 | C129: CB | F129: 976.12614 | G129: =IFERROR(F129*(1-VLOOKUP(C129,ГОЛОВНА!K:L,2,0)), "-") -> 976.12614
A130: 99224492 | B130: Циркуляційний насос MAGNA1 D 32-60 180 1X230V PN16 | C130: CB | F130: 1141.58484 | G130: =IFERROR(F130*(1-VLOOKUP(C130,ГОЛОВНА!K:L,2,0)), "-") -> 1141.58484
A131: 99224494 | B131: Циркуляційний насос MAGNA1 D 32-100 180 1X230V PN16 | C131: CB | F131: 1307.0079 | G131: =IFERROR(F131*(1-VLOOKUP(C131,ГОЛОВНА!K:L,2,0)), "-") -> 1307.0079
A132: 99224496 | B132: Циркуляційний насос MAGNA1 D 32-120 F 220 1X230V PN16 | C132: CB | F132: 1696.38228 | G132: =IFERROR(F132*(1-VLOOKUP(C132,ГОЛОВНА!K:L,2,0)), "-") -> 1696.38228
A133: 99224497 | B133: Циркуляційний насос MAGNA1 D 40-40 F 220 1X230V PN16 | C133: CB | F133: 1340.13528 | G133: =IFERROR(F133*(1-VLOOKUP(C133,ГОЛОВНА!K:L,2,0)), "-") -> 1340.13528
A134: 99224498 | B134: Циркуляційний насос MAGNA1 D 40-60 F 220 1X230V PN16 | C134: CB | F134: 1470.47076 | G134: =IFERROR(F134*(1-VLOOKUP(C134,ГОЛОВНА!K:L,2,0)), "-") -> 1470.47076
A135: 99224499 | B135: Циркуляційний насос MAGNA1 D 40-80 F 220 1X230V PN16 | C135: CB | F135: 1696.36536 | G135: =IFERROR(F135*(1-VLOOKUP(C135,ГОЛОВНА!K:L,2,0)), "-") -> 1696.36536
A136: 99224500 | B136: Циркуляційний насос MAGNA1 D 40-100 F 220 1X230V PN16 | C136: CB | F136: 1870.77672 | G136: =IFERROR(F136*(1-VLOOKUP(C136,ГОЛОВНА!K:L,2,0)), "-") -> 1870.77672
A137: 99224501 | B137: Циркуляційний насос MAGNA1 D 40-120 F 250 1X230V PN16 | C137: CB | F137: 2076.86232 | G137: =IFERROR(F137*(1-VLOOKUP(C137,ГОЛОВНА!K:L,2,0)), "-") -> 2076.86232
A138: 99224502 | B138: Циркуляційний насос MAGNA1 D 40-150 F 250 1X230V PN16 | C138: CB | F138: 2536.62948 | G138: =IFERROR(F138*(1-VLOOKUP(C138,ГОЛОВНА!K:L,2,0)), "-") -> 2536.62948
A139: 99224503 | B139: Циркуляційний насос MAGNA1 D 40-180 F 250 1X230V PN16 | C139: CB | F139: 2917.12644 | G139: =IFERROR(F139*(1-VLOOKUP(C139,ГОЛОВНА!K:L,2,0)), "-") -> 2917.12644
A140: 99224504 | B140: Циркуляційний насос MAGNA1 D 50-60 F 240 1X230V PN16 | C140: CB | F140: 2203.69464 | G140: =IFERROR(F140*(1-VLOOKUP(C140,ГОЛОВНА!K:L,2,0)), "-") -> 2203.69464
A141: 99224505 | B141: Циркуляційний насос MAGNA1 D 50-80 F 240 1X230V PN16 | C141: CB | F141: 2425.66812 | G141: =IFERROR(F141*(1-VLOOKUP(C141,ГОЛОВНА!K:L,2,0)), "-") -> 2425.66812
A142: 99224506 | B142: Циркуляційний насос MAGNA1 D 50-100 F 280 1X230V PN16 | C142: CB | F142: 2568.33756 | G142: =IFERROR(F142*(1-VLOOKUP(C142,ГОЛОВНА!K:L,2,0)), "-") -> 2568.33756
A143: 99224507 | B143: Циркуляційний насос MAGNA1 D 50-120 F 280 1X230V PN16 | C143: CB | F143: 2711.02392 | G143: =IFERROR(F143*(1-VLOOKUP(C143,ГОЛОВНА!K:L,2,0)), "-") -> 2711.02392
A144: 99224508 | B144: Циркуляційний насос MAGNA1 D 50-150 F 280 1X230V PN16 | C144: CB | F144: 3123.22896 | G144: =IFERROR(F144*(1-VLOOKUP(C144,ГОЛОВНА!K:L,2,0)), "-") -> 3123.22896
A145: 99224509 | B145: Циркуляційний насос MAGNA1 D 50-180 F 280 1X230V PN16 | C145: CB | F145: 3662.26632 | G145: =IFERROR(F145*(1-VLOOKUP(C145,ГОЛОВНА!K:L,2,0)), "-") -> 3662.26632
A146: 99224510 | B146: Циркуляційний насос MAGNA1 D 65-40 F 340 1X230V PN16 | C146: CB | F146: 2346.381 | G146: =IFERROR(F146*(1-VLOOKUP(C146,ГОЛОВНА!K:L,2,0)), "-") -> 2346.381
A147: 99224511 | B147: Циркуляційний насос MAGNA1 D 65-60 F 340 1X230V PN16 | C147: CB | F147: 2679.31584 | G147: =IFERROR(F147*(1-VLOOKUP(C147,ГОЛОВНА!K:L,2,0)), "-") -> 2679.31584
A148: 99224512 | B148: Циркуляційний насос MAGNA1 D 65-80 F 340 1X230V PN16 | C148: CB | F148: 2917.12644 | G148: =IFERROR(F148*(1-VLOOKUP(C148,ГОЛОВНА!K:L,2,0)), "-") -> 2917.12644
A149: 99224513 | B149: Циркуляційний насос MAGNA1 D 65-100 F 340 1X230V PN16 | C149: CB | F149: 3075.66684 | G149: =IFERROR(F149*(1-VLOOKUP(C149,ГОЛОВНА!K:L,2,0)), "-") -> 3075.66684
A150: 99224514 | B150: Циркуляційний насос MAGNA1 D 65-120 F 340 1X230V PN16 | C150: CB | F150: 3297.6234 | G150: =IFERROR(F150*(1-VLOOKUP(C150,ГОЛОВНА!K:L,2,0)), "-") -> 3297.6234
A151: 99224515 | B151: Циркуляційний насос MAGNA1 D 65-150 F 340 1X230V PN16 | C151: CB | F151: 3804.95268 | G151: =IFERROR(F151*(1-VLOOKUP(C151,ГОЛОВНА!K:L,2,0)), "-") -> 3804.95268
A152: 99224516 | B152: Циркуляційний насос MAGNA1 D 80-60 F 360 1X230V PN16 | C152: CB | F152: 3091.52088 | G152: =IFERROR(F152*(1-VLOOKUP(C152,ГОЛОВНА!K:L,2,0)), "-") -> 3091.52088
A153: 99224517 | B153: Циркуляційний насос MAGNA1 D 80-80 F 360 1X230V PN16 | C153: CB | F153: 3329.33148 | G153: =IFERROR(F153*(1-VLOOKUP(C153,ГОЛОВНА!K:L,2,0)), "-") -> 3329.33148
A154: 99224518 | B154: Циркуляційний насос MAGNA1 D 80-100 F 360 1X230V PN16 | C154: CB | F154: 3630.55824 | G154: =IFERROR(F154*(1-VLOOKUP(C154,ГОЛОВНА!K:L,2,0)), "-") -> 3630.55824
A155: 99224519 | B155: Циркуляційний насос MAGNA1 D 80-120 F 360 1X230V PN16 | C155: CB | F155: 4074.45444 | G155: =IFERROR(F155*(1-VLOOKUP(C155,ГОЛОВНА!K:L,2,0)), "-") -> 4074.45444
A156: 99224520 | B156: Циркуляційний насос MAGNA1 D 100-40 F 450 1X230V PN16 | C156: CB | F156: 3297.6234 | G156: =IFERROR(F156*(1-VLOOKUP(C156,ГОЛОВНА!K:L,2,0)), "-") -> 3297.6234
A157: 99224521 | B157: Циркуляційний насос MAGNA1 D 100-60 F 450 1X230V PN16 | C157: CB | F157: 3598.83324 | G157: =IFERROR(F157*(1-VLOOKUP(C157,ГОЛОВНА!K:L,2,0)), "-") -> 3598.83324
A158: 99224522 | B158: Циркуляційний насос MAGNA1 D 100-80 F 450 1X230V PN16 | C158: CB | F158: 3900.06 | G158: =IFERROR(F158*(1-VLOOKUP(C158,ГОЛОВНА!K:L,2,0)), "-") -> 3900.06
A159: 99224523 | B159: Циркуляційний насос MAGNA1 D 100-100 F 450 1X230V PN16 | C159: CB | F159: 4248.84888 | G159: =IFERROR(F159*(1-VLOOKUP(C159,ГОЛОВНА!K:L,2,0)), "-") -> 4248.84888
A160: 99224524 | B160: Циркуляційний насос MAGNA1 D 100-120 F 450 1X230V PN16 | C160: CB | F160: 4819.59432 | G160: =IFERROR(F160*(1-VLOOKUP(C160,ГОЛОВНА!K:L,2,0)), "-") -> 4819.59432
A161: 99224598 | B161: Циркуляційний насос MAGNA1 32-40 F 220 1X230V PN16 | C161: CB | F161: 581.09238 | G161: =IFERROR(F161*(1-VLOOKUP(C161,ГОЛОВНА!K:L,2,0)), "-") -> 581.09238
A162: 99224600 | B162: Циркуляційний насос MAGNA1 D 32-40 F 220 1X230V PN16 | C162: CB | F162: 1075.38354 | G162: =IFERROR(F162*(1-VLOOKUP(C162,ГОЛОВНА!K:L,2,0)), "-") -> 1075.38354
A163: 99224602 | B163: Циркуляційний насос MAGNA1 32-60 F 220 1X230V PN16 | C163: CB | F163: 679.44096 | G163: =IFERROR(F163*(1-VLOOKUP(C163,ГОЛОВНА!K:L,2,0)), "-") -> 679.44096
A164: 99224604 | B164: Циркуляційний насос MAGNA1 D 32-60 F 220 1X230V PN16 | C164: CB | F164: 1257.39702 | G164: =IFERROR(F164*(1-VLOOKUP(C164,ГОЛОВНА!K:L,2,0)), "-") -> 1257.39702
A165: 99224606 | B165: Циркуляційний насос MAGNA1 32-80 F 220 1X230V PN16 | C165: CB | F165: 715.18788 | G165: =IFERROR(F165*(1-VLOOKUP(C165,ГОЛОВНА!K:L,2,0)), "-") -> 715.18788
A166: 99224608 | B166: Циркуляційний насос MAGNA1 D 32-80 F 220 1X230V PN16 | C166: CB | F166: 1323.56268 | G166: =IFERROR(F166*(1-VLOOKUP(C166,ГОЛОВНА!K:L,2,0)), "-") -> 1323.56268
A167: 99224610 | B167: Циркуляційний насос MAGNA1 100-120 F 450 1X230V PN16 | C167: CB | F167: 2604.22488 | G167: =IFERROR(F167*(1-VLOOKUP(C167,ГОЛОВНА!K:L,2,0)), "-") -> 2604.22488
A168: 99224611 | B168: Циркуляційний насос MAGNA1 32-120 180 1X230V PN16 | C168: CB | F168: 764.35326 | G168: =IFERROR(F168*(1-VLOOKUP(C168,ГОЛОВНА!K:L,2,0)), "-") -> 764.35326
A169: 99231362 | B169: Циркуляційний насос MAGNA1 D 50-40 F 240 1x230V PN16 | C169: CB | F169: 1870.77672 | G169: =IFERROR(F169*(1-VLOOKUP(C169,ГОЛОВНА!K:L,2,0)), "-") -> 1870.77672
A170: 99231368 | B170: Циркуляційний насос MAGNA1 D 80-40 F 360 1x230V PN16 | C170: CB | F170: 2806.14816 | G170: =IFERROR(F170*(1-VLOOKUP(C170,ГОЛОВНА!K:L,2,0)), "-") -> 2806.14816
A171: 99221291 | B171: Циркуляційний насос MAGNA1 40-40 F 220 1x230V PN6/10 | C171: CB | F171: 619.11 | G171: =IFERROR(F171*(1-VLOOKUP(C171,ГОЛОВНА!K:L,2,0)), "-") -> 619.11
A172: 99224454 | B172: Циркуляційний насос MAGNA1 25-60 180 1X230V PN16 | C172: CB | F172: 509.751 | G172: =IFERROR(F172*(1-VLOOKUP(C172,ГОЛОВНА!K:L,2,0)), "-") -> 509.751
A173: 99221256 | B173: Циркуляційний насос MAGNA1 32-100 N 180 1x230V PN10 | C173: CB | F173: 935.919 | G173: =IFERROR(F173*(1-VLOOKUP(C173,ГОЛОВНА!K:L,2,0)), "-") -> 935.919
A174: 99221253 | B174: Циркуляційний насос MAGNA1 32-40 N 180 1x230V PN10 | C174: CB | F174: 698.994 | G174: =IFERROR(F174*(1-VLOOKUP(C174,ГОЛОВНА!K:L,2,0)), "-") -> 698.994
A175: 99221234 | B175: Циркуляційний насос MAGNA1 32-60 180 1x230V PN10 | C175: CB | F175: 527.391 | G175: =IFERROR(F175*(1-VLOOKUP(C175,ГОЛОВНА!K:L,2,0)), "-") -> 527.391
A176: 99221265 | B176: Циркуляційний насос MAGNA1 32-40 F N 220 1x230V PN6/10 | C176: CB | F176: 770.04 | G176: =IFERROR(F176*(1-VLOOKUP(C176,ГОЛОВНА!K:L,2,0)), "-") -> 770.04
A177: 99224453 | B177: Циркуляційний насос MAGNA1 25-40 180 1X230V PN16 | C177: CB | F177: 429.237 | G177: =IFERROR(F177*(1-VLOOKUP(C177,ГОЛОВНА!K:L,2,0)), "-") -> 429.237
A178: 99221226 | B178: Циркуляційний насос MAGNA1 25-100 N 180 1x230V PN10 | C178: CB | F178: 852.966 | G178: =IFERROR(F178*(1-VLOOKUP(C178,ГОЛОВНА!K:L,2,0)), "-") -> 852.966
A179: 99224461 | B179: Циркуляційний насос MAGNA1 32-100 180 1X230V PN16 | C179: CB | F179: 706.455 | G179: =IFERROR(F179*(1-VLOOKUP(C179,ГОЛОВНА!K:L,2,0)), "-") -> 706.455
A180: 99221237 | B180: Циркуляційний насос MAGNA1 32-100 F 220 1x230V PN6/10 | C180: CB | F180: 703.161 | G180: =IFERROR(F180*(1-VLOOKUP(C180,ГОЛОВНА!K:L,2,0)), "-") -> 703.161
A181: 99221233 | B181: Циркуляційний насос MAGNA1 32-40 180 1x230V PN10 | C181: CB | F181: 450.927 | G181: =IFERROR(F181*(1-VLOOKUP(C181,ГОЛОВНА!K:L,2,0)), "-") -> 450.927
A182: 99221271 | B182: Циркуляційний насос MAGNA1 32-60 F N 220 1x230V PN6/10 | C182: CB | F182: 900.36 | G182: =IFERROR(F182*(1-VLOOKUP(C182,ГОЛОВНА!K:L,2,0)), "-") -> 900.36
A183: 99224455 | B183: Циркуляційний насос MAGNA1 25-80 180 1X230V PN16 | C183: CB | F183: 581.274 | G183: =IFERROR(F183*(1-VLOOKUP(C183,ГОЛОВНА!K:L,2,0)), "-") -> 581.274
A184: 99221277 | B184: Циркуляційний насос MAGNA1 32-80 F N 220 1x230V PN6/10 | C184: CB | F184: 947.745 | G184: =IFERROR(F184*(1-VLOOKUP(C184,ГОЛОВНА!K:L,2,0)), "-") -> 947.745
A185: 99221223 | B185: Циркуляційний насос MAGNA1 25-40 N 180 1x230V PN10 | C185: CB | F185: 568.638 | G185: =IFERROR(F185*(1-VLOOKUP(C185,ГОЛОВНА!K:L,2,0)), "-") -> 568.638
A186: 99221292 | B186: Циркуляційний насос MAGNA1 40-60 F 220 1x230V PN6/10 | C186: CB | F186: 680.238 | G186: =IFERROR(F186*(1-VLOOKUP(C186,ГОЛОВНА!K:L,2,0)), "-") -> 680.238
A187: 99221254 | B187: Циркуляційний насос MAGNA1 32-60 N 180 1x230V PN10 | C187: CB | F187: 817.416 | G187: =IFERROR(F187*(1-VLOOKUP(C187,ГОЛОВНА!K:L,2,0)), "-") -> 817.416
A188: 99221224 | B188: Циркуляційний насос MAGNA1 25-60 N 180 1x230V PN10 | C188: CB | F188: 675.27 | G188: =IFERROR(F188*(1-VLOOKUP(C188,ГОЛОВНА!K:L,2,0)), "-") -> 675.27
A189: 99221227 | B189: Циркуляційний насос MAGNA1 25-120 N 180 1x230V PN10 | C189: CB | F189: 959.58 | G189: =IFERROR(F189*(1-VLOOKUP(C189,ГОЛОВНА!K:L,2,0)), "-") -> 959.58
A190: 99221299 | B190: Циркуляційний насос MAGNA1 40-40 F N 220 1x230V PN6/10 | C190: CB | F190: 959.58 | G190: =IFERROR(F190*(1-VLOOKUP(C190,ГОЛОВНА!K:L,2,0)), "-") -> 959.58
A191: 99221255 | B191: Циркуляційний насос MAGNA1 32-80 N 180 1x230V PN10 | C191: CB | F191: 852.957 | G191: =IFERROR(F191*(1-VLOOKUP(C191,ГОЛОВНА!K:L,2,0)), "-") -> 852.957
A192: 99221300 | B192: Циркуляційний насос MAGNA1 40-60 F N 220 1x230V PN6/10 | C192: CB | F192: 1054.359 | G192: =IFERROR(F192*(1-VLOOKUP(C192,ГОЛОВНА!K:L,2,0)), "-") -> 1054.359
A193: 99221257 | B193: Циркуляційний насос MAGNA1 32-100 F N 220 1x230V PN6/10 | C193: CB | F193: 1089.9 | G193: =IFERROR(F193*(1-VLOOKUP(C193,ГОЛОВНА!K:L,2,0)), "-") -> 1089.9
A194: 99221374 | B194: Циркуляційний насос MAGNA1 65-120 F 340 1x230V PN6/10 | C194: CB | F194: 1553.013 | G194: =IFERROR(F194*(1-VLOOKUP(C194,ГОЛОВНА!K:L,2,0)), "-") -> 1553.013
A195: 99221305 | B195: Циркуляційний насос MAGNA1 40-120 F 250 1x230V PN6/10 | C195: CB | F195: 975.303 | G195: =IFERROR(F195*(1-VLOOKUP(C195,ГОЛОВНА!K:L,2,0)), "-") -> 975.303
A196: 99221289 | B196: Циркуляційний насос MAGNA1 32-120 F N 220 1x230V PN6/10 | C196: CB | F196: 1220.346 | G196: =IFERROR(F196*(1-VLOOKUP(C196,ГОЛОВНА!K:L,2,0)), "-") -> 1220.346
A197: 99221442 | B197: Циркуляційний насос MAGNA1 100-120 F 450 1x230V PN6 | C197: CB | F197: 2229.516 | G197: =IFERROR(F197*(1-VLOOKUP(C197,ГОЛОВНА!K:L,2,0)), "-") -> 2229.516
A198: 99221447 | B198: Циркуляційний насос MAGNA1 100-120 F 450 1x230V PN10 | C198: CB | F198: 2340.999 | G198: =IFERROR(F198*(1-VLOOKUP(C198,ГОЛОВНА!K:L,2,0)), "-") -> 2340.999
A199: 99221446 | B199: Циркуляційний насос MAGNA1 100-100 F 450 1x230V PN10 | C199: CB | F199: 2062.854 | G199: =IFERROR(F199*(1-VLOOKUP(C199,ГОЛОВНА!K:L,2,0)), "-") -> 2062.854
A200: 99221441 | B200: Циркуляційний насос MAGNA1 100-100 F 450 1x230V PN6 | C200: CB | F200: 1964.61 | G200: =IFERROR(F200*(1-VLOOKUP(C200,ГОЛОВНА!K:L,2,0)), "-") -> 1964.61
A201: 99224478 | B201: Циркуляційний насос MAGNA1 65-60 F 340 1X230V PN16 | C201: CB | F201: 1449.297 | G201: =IFERROR(F201*(1-VLOOKUP(C201,ГОЛОВНА!K:L,2,0)), "-") -> 1449.297
... 308 more rows

Sheet UPS, UPSD
A1: АРТИКУЛ | B1: НАЙМЕНУВАННЯ (УКР) | C1: PRICE GROUP | D1: ДОСТАВКА (ТИЖНІВ) | E1: ДОДАТКОВО | F1: ЦІНА (ЕВРО БЕЗ ПДВ) | G1: ЦІНА ЗІ ЗНИЖКОЮ | H1: НА ГОЛОВНУ
A2: UPS, UPSD серія 100 | G2: Циркуляційні насоси для систем опалення
A3: 52588336 | B3: Циркуляційний насос UPS25-120 180 1x230B | C3: DH | F3: 269.50077 | G3: =IFERROR(F3*(1-VLOOKUP(C3,ГОЛОВНА!K:L,2,0)), "-") -> 269.50077
A4: 95906400 | B4: Циркуляційний насос UPS25-25 180 1x230B | C4: DH | F4: 169.506 | G4: =IFERROR(F4*(1-VLOOKUP(C4,ГОЛОВНА!K:L,2,0)), "-") -> 169.506
A5: 95906404 | B5: Циркуляційний насос UPS25-55 180 1x230B | C5: DH | F5: 198.9603 | G5: =IFERROR(F5*(1-VLOOKUP(C5,ГОЛОВНА!K:L,2,0)), "-") -> 198.9603
A6: 95906429 | B6: Циркуляційний насос UPS25-80 180 1x230V | C6: DH | F6: 202.1014 | G6: =IFERROR(F6*(1-VLOOKUP(C6,ГОЛОВНА!K:L,2,0)), "-") -> 202.1014
A7: 95906401 | B7: Циркуляційний насос UPS32-25 180 1x230B | C7: DH | F7: 211.869 | G7: =IFERROR(F7*(1-VLOOKUP(C7,ГОЛОВНА!K:L,2,0)), "-") -> 211.869
A8: 95906409 | B8: Циркуляційний насос UPS32-55 180 1x230V | C8: DH | F8: 260.235 | G8: =IFERROR(F8*(1-VLOOKUP(C8,ГОЛОВНА!K:L,2,0)), "-") -> 260.235
A9: 95906442 | B9: Циркуляційний насос UPS32-80 180 | C9: DH | F9: 300.4496 | G9: =IFERROR(F9*(1-VLOOKUP(C9,ГОЛОВНА!K:L,2,0)), "-") -> 300.4496
A10: 95906413 | B10: Циркуляційний насос UPSD32-50 180 1x230V | C10: DH | F10: 398.54178 | G10: =IFERROR(F10*(1-VLOOKUP(C10,ГОЛОВНА!K:L,2,0)), "-") -> 398.54178
A11: 95906455 | B11: Циркуляційний насос UPSD 32-80 180 | C11: DH | F11: 522.315 | G11: =IFERROR(F11*(1-VLOOKUP(C11,ГОЛОВНА!K:L,2,0)), "-") -> 522.315
A12: 59502503 | B12: Циркуляційний насос UPS15 -20 130 1x230V | C12: DH | F12: 122.6735 | G12: =IFERROR(F12*(1-VLOOKUP(C12,ГОЛОВНА!K:L,2,0)), "-") -> 122.6735
A13: 59503000 | B13: Циркуляційний насос UPS15-30 130 1x230B | C13: DH | F13: 122.6735 | G13: =IFERROR(F13*(1-VLOOKUP(C13,ГОЛОВНА!K:L,2,0)), "-") -> 122.6735
A14: 96281368 | B14: Циркуляційний насос UPS15-40 130 1x230В | C14: DH | F14: 111.0835 | G14: =IFERROR(F14*(1-VLOOKUP(C14,ГОЛОВНА!K:L,2,0)), "-") -> 111.0835
A15: 96281418 | B15: Циркуляційний насос UPS15-50 130 1x230В | C15: DH | F15: 116.869 | G15: =IFERROR(F15*(1-VLOOKUP(C15,ГОЛОВНА!K:L,2,0)), "-") -> 116.869
A16: 97549426 | B16: Циркуляційний насос UPS15-50 N 130 1x230 | C16: DH | F16: 250.1149369 | G16: =IFERROR(F16*(1-VLOOKUP(C16,ГОЛОВНА!K:L,2,0)), "-") -> 250.1149369
A17: 96281471 | B17: Циркуляційний насос UPS15-60 130 1х230В | C17: DH | F17: 127.4995 | G17: =IFERROR(F17*(1-VLOOKUP(C17,ГОЛОВНА!K:L,2,0)), "-") -> 127.4995
A18: 96281371 | B18: Циркуляційний насос UPS20-40 130 1x230В | C18: DH | F18: 102.4005 | G18: =IFERROR(F18*(1-VLOOKUP(C18,ГОЛОВНА!K:L,2,0)), "-") -> 102.4005
A19: 59514517 | B19: Циркуляційний насос UPS20-40 K 130 1x230 | C19: DH | F19: 101.8052 | G19: =IFERROR(F19*(1-VLOOKUP(C19,ГОЛОВНА!K:L,2,0)), "-") -> 101.8052
A20: 96281420 | B20: Циркуляційний насос UPS 20-50 130 1x230B | C20: DH | F20: 114.057 | G20: =IFERROR(F20*(1-VLOOKUP(C20,ГОЛОВНА!K:L,2,0)), "-") -> 114.057
A21: 96281472 | B21: Циркуляційний насос UPS20-60 130 1x230В | C21: DH | F21: 118.731 | G21: =IFERROR(F21*(1-VLOOKUP(C21,ГОЛОВНА!K:L,2,0)), "-") -> 118.731
A22: 96913106 | B22: Циркуляційний насос UPS20-60 N 150 1x230 | C22: DH | F22: 272.8469421 | G22: =IFERROR(F22*(1-VLOOKUP(C22,ГОЛОВНА!K:L,2,0)), "-") -> 272.8469421
A23: 96913096 | B23: Циркуляційний насос UPS20-60N 150 1x240 | C23: DH | F23: 245.96 | G23: =IFERROR(F23*(1-VLOOKUP(C23,ГОЛОВНА!K:L,2,0)), "-") -> 245.96
A24: 96913097 | B24: Циркуляційний насос UPS20-60 NK 150 1x24 | C24: DH | F24: 357.888 | G24: =IFERROR(F24*(1-VLOOKUP(C24,ГОЛОВНА!K:L,2,0)), "-") -> 357.888
A25: 59542500 | B25: Циркуляційний насос UPS25-20 180 1x230V | C25: DH | F25: 111.074 | G25: =IFERROR(F25*(1-VLOOKUP(C25,ГОЛОВНА!K:L,2,0)), "-") -> 111.074
A26: 59543000 | B26: Циркуляційний насос UPS25-30 180 1x230B | C26: DH | F26: 111.074 | G26: =IFERROR(F26*(1-VLOOKUP(C26,ГОЛОВНА!K:L,2,0)), "-") -> 111.074
A27: 96281376 | B27: Циркуляційний насос UPS25-40 130 1x230В | C27: DH | F27: 77.1779 | G27: =IFERROR(F27*(1-VLOOKUP(C27,ГОЛОВНА!K:L,2,0)), "-") -> 77.1779
A28: 98367575 | B28: Циркуляційний насос UPS25-40 180 1x230V | C28: DH | F28: 65.2608 | G28: =IFERROR(F28*(1-VLOOKUP(C28,ГОЛОВНА!K:L,2,0)), "-") -> 65.2608
A29: 96281387 | B29: Циркуляційний насос UPS25-40 A 180 1x230 | C29: DH | F29: 126.2368 | G29: =IFERROR(F29*(1-VLOOKUP(C29,ГОЛОВНА!K:L,2,0)), "-") -> 126.2368
A30: 59544505 | B30: Циркуляційний насос UPS25-40 K 180 1x230 | C30: DH | F30: 135.2135 | G30: =IFERROR(F30*(1-VLOOKUP(C30,ГОЛОВНА!K:L,2,0)), "-") -> 135.2135
A31: 96913060 | B31: Циркуляційний насос UPS25-40 N 180 1x230 | C31: DH | F31: 171.2318019 | G31: =IFERROR(F31*(1-VLOOKUP(C31,ГОЛОВНА!K:L,2,0)), "-") -> 171.2318019
A32: 96281424 | B32: Циркуляційний насос UPS25-50 130 1x230В | C32: DH | F32: 106.2385 | G32: =IFERROR(F32*(1-VLOOKUP(C32,ГОЛОВНА!K:L,2,0)), "-") -> 106.2385
A33: 96281432 | B33: Циркуляційний насос UPS25-50 180 1x230В | C33: DH | F33: 106.2385 | G33: =IFERROR(F33*(1-VLOOKUP(C33,ГОЛОВНА!K:L,2,0)), "-") -> 106.2385
A34: 96281476 | B34: Циркуляційний насос UPS25-60 130 1x230В | C34: DH | F34: 115.9 | G34: =IFERROR(F34*(1-VLOOKUP(C34,ГОЛОВНА!K:L,2,0)), "-") -> 115.9
A35: 98368443 | B35: Циркуляційний насос UPS25-60 180 1x230V | C35: DH | F35: 71.3275 | G35: =IFERROR(F35*(1-VLOOKUP(C35,ГОЛОВНА!K:L,2,0)), "-") -> 71.3275
A36: 96281491 | B36: Циркуляційний насос UPS25-60 A 180 1x230 | C36: DH | F36: 151.4718 | G36: =IFERROR(F36*(1-VLOOKUP(C36,ГОЛОВНА!K:L,2,0)), "-") -> 151.4718
A37: 96913090 | B37: Циркуляц. насос UPS25-60 N 180 | C37: DH | F37: 248.0747297 | G37: =IFERROR(F37*(1-VLOOKUP(C37,ГОЛОВНА!K:L,2,0)), "-") -> 248.0747297
A38: 96913085 | B38: Циркуляційний насос UPS25-60 N 180 1x230 | C38: DH | F38: 226.0582909 | G38: =IFERROR(F38*(1-VLOOKUP(C38,ГОЛОВНА!K:L,2,0)), "-") -> 226.0582909
A39: 96913058 | B39: Циркуляційний насос UPS25-60 N 180 3x400 | C39: DH | F39: 348.616 | G39: =IFERROR(F39*(1-VLOOKUP(C39,ГОЛОВНА!K:L,2,0)), "-") -> 348.616
A40: 96621356 | B40: Циркуляційний насос UPS 25-70 130 1x230V | C40: DH | F40: 130.397 | G40: =IFERROR(F40*(1-VLOOKUP(C40,ГОЛОВНА!K:L,2,0)), "-") -> 130.397
A41: 96621354 | B41: Циркуляційний насос UPS25-70 180 1x230В | C41: DH | F41: 106.4299 | G41: =IFERROR(F41*(1-VLOOKUP(C41,ГОЛОВНА!K:L,2,0)), "-") -> 106.4299
A42: 59582800 | B42: Циркуляційний насос UPS32-20 180 3x400V | C42: DH | F42: 192.2392 | G42: =IFERROR(F42*(1-VLOOKUP(C42,ГОЛОВНА!K:L,2,0)), "-") -> 192.2392
A43: 59583000 | B43: Циркуляційний насос UPS32-30 180 1x230V | C43: DH | F43: 128.1629 | G43: =IFERROR(F43*(1-VLOOKUP(C43,ГОЛОВНА!K:L,2,0)), "-") -> 128.1629
A44: 98368439 | B44: Циркуляційний насос UPS32-40 180 1x230V | C44: DH | F44: 83.018 | G44: =IFERROR(F44*(1-VLOOKUP(C44,ГОЛОВНА!K:L,2,0)), "-") -> 83.018
A45: 96281435 | B45: Циркуляційний насос UPS32-50 180 1x230В | C45: DH | F45: 123.3116 | G45: =IFERROR(F45*(1-VLOOKUP(C45,ГОЛОВНА!K:L,2,0)), "-") -> 123.3116
A46: 59585800 | B46: Циркуляційний насос UPS32-50 180 3x400V | C46: DH | F46: 175.5017 | G46: =IFERROR(F46*(1-VLOOKUP(C46,ГОЛОВНА!K:L,2,0)), "-") -> 175.5017
A47: 98368440 | B47: Циркуляційний насос UPS32-60 180 1x230V | C47: DH | F47: 99.255805 | G47: =IFERROR(F47*(1-VLOOKUP(C47,ГОЛОВНА!K:L,2,0)), "-") -> 99.255805
A48: 59586800 | B48: Циркуляційний насос UPS32 -60 180 3x400V | C48: DH | F48: 200.9942 | G48: =IFERROR(F48*(1-VLOOKUP(C48,ГОЛОВНА!K:L,2,0)), "-") -> 200.9942
A49: 96621355 | B49: Циркуляційний насос UPS32-70 180 1x230В | C49: DH | F49: 115.772 | G49: =IFERROR(F49*(1-VLOOKUP(C49,ГОЛОВНА!K:L,2,0)), "-") -> 115.772
A51: UPS, серія 200, | G51: Циркуляційні насоси для систем опалення і кондиціонування
A52: 96401837 | B52: Циркуляційний насос UPS32-120 F 1x230-24 | C52: CB | F52: 396.83 | G52: =IFERROR(F52*(1-VLOOKUP(C52,ГОЛОВНА!K:L,2,0)), "-") -> 396.83
A53: 96401839 | B53: Циркуляційний насос UPS32-120 F 3x400-41 | C53: CB | F53: 360.752 | G53: =IFERROR(F53*(1-VLOOKUP(C53,ГОЛОВНА!K:L,2,0)), "-") -> 360.752
A54: 96401844 | B54: Циркуляційний насос UPS32-120 F B 1x230- | C54: CB | F54: 1053.711 | G54: =IFERROR(F54*(1-VLOOKUP(C54,ГОЛОВНА!K:L,2,0)), "-") -> 1053.711
A55: 96401846 | B55: Циркуляційний насос UPS32-120 F B 3x400- | C55: CB | F55: 958.0875 | G55: =IFERROR(F55*(1-VLOOKUP(C55,ГОЛОВНА!K:L,2,0)), "-") -> 958.0875
A56: 96401771 | B56: Циркуляційний насос UPS32-60 F 1x230-240 | C56: CB | F56: 435.6003 | G56: =IFERROR(F56*(1-VLOOKUP(C56,ГОЛОВНА!K:L,2,0)), "-") -> 435.6003
A57: 96401777 | B57: Циркуляційний насос UPS32-60 F 3x400-415 | C57: CB | F57: 407.109 | G57: =IFERROR(F57*(1-VLOOKUP(C57,ГОЛОВНА!K:L,2,0)), "-") -> 407.109
A58: 96401797 | B58: Циркуляційний насос UPS32-60 F B 1x230-2 | C58: CB | F58: 895.8042 | G58: =IFERROR(F58*(1-VLOOKUP(C58,ГОЛОВНА!K:L,2,0)), "-") -> 895.8042
A59: 96401808 | B59: Циркуляційний насос UPS32-60 F B 3x400-4 | C59: CB | F59: 814.3635 | G59: =IFERROR(F59*(1-VLOOKUP(C59,ГОЛОВНА!K:L,2,0)), "-") -> 814.3635
A60: 96401942 | B60: Циркуляційний насос UPS40-120 F 1x230-24 | C60: CB | F60: 614.6696 | G60: =IFERROR(F60*(1-VLOOKUP(C60,ГОЛОВНА!K:L,2,0)), "-") -> 614.6696
A61: 96401949 | B61: Циркуляційний насос UPS40-120 F B 1x230- | C61: CB | F61: 1229.3198 | G61: =IFERROR(F61*(1-VLOOKUP(C61,ГОЛОВНА!K:L,2,0)), "-") -> 1229.3198
A62: 96401951 | B62: Циркуляційний насос UPS40-120 F B 3x400- | C62: CB | F62: 1117.5758 | G62: =IFERROR(F62*(1-VLOOKUP(C62,ГОЛОВНА!K:L,2,0)), "-") -> 1117.5758
A63: 96401944 | B63: Циркуляційний насос UPS40-120 F 3x400-41 | C63: CB | F63: 558.817 | G63: =IFERROR(F63*(1-VLOOKUP(C63,ГОЛОВНА!K:L,2,0)), "-") -> 558.817
A64: 96401977 | B64: Циркуляційний насос UPS40-180 F 1x230-24 | C64: CB | F64: 699.752 | G64: =IFERROR(F64*(1-VLOOKUP(C64,ГОЛОВНА!K:L,2,0)), "-") -> 699.752
A65: 96401979 | B65: Циркуляційний насос UPS40-180 F 3x400-41 | C65: CB | F65: 642.625 | G65: =IFERROR(F65*(1-VLOOKUP(C65,ГОЛОВНА!K:L,2,0)), "-") -> 642.625
A66: 96401983 | B66: Циркуляційний насос UPS40-180 F B 1x230- | C66: CB | F66: 1413.7362 | G66: =IFERROR(F66*(1-VLOOKUP(C66,ГОЛОВНА!K:L,2,0)), "-") -> 1413.7362
A67: 96401985 | B67: Циркуляційний насос UPS40-180 F B 3x400- | C67: CB | F67: 1285.2112 | G67: =IFERROR(F67*(1-VLOOKUP(C67,ГОЛОВНА!K:L,2,0)), "-") -> 1285.2112
A68: 96430299 | B68: Циркуляційний насос UPS40-185 F 1x230-24 | C68: CB | F68: 768.337 | G68: =IFERROR(F68*(1-VLOOKUP(C68,ГОЛОВНА!K:L,2,0)), "-") -> 768.337
A69: 96430296 | B69: Циркуляційний насос UPS40-185 F 3x400-41 | C69: CB | F69: 691.4352 | G69: =IFERROR(F69*(1-VLOOKUP(C69,ГОЛОВНА!K:L,2,0)), "-") -> 691.4352
A70: 96401915 | B70: Циркуляційний насос UPS40-60/2 F 1x230-2 | C70: CB | F70: 517.2056 | G70: =IFERROR(F70*(1-VLOOKUP(C70,ГОЛОВНА!K:L,2,0)), "-") -> 517.2056
A71: 96401917 | B71: Циркуляційний насос UPS40-60/2 F 3x400-4 | C71: CB | F71: 470.1752 | G71: =IFERROR(F71*(1-VLOOKUP(C71,ГОЛОВНА!K:L,2,0)), "-") -> 470.1752
A72: 96401921 | B72: Циркуляційний насос UPS40-60/2 F B 1x230 | C72: CB | F72: 1044.9616 | G72: =IFERROR(F72*(1-VLOOKUP(C72,ГОЛОВНА!K:L,2,0)), "-") -> 1044.9616
A73: 96401923 | B73: Циркуляційний насос UPS40-60/2 F B 3x400 | C73: CB | F73: 949.9598 | G73: =IFERROR(F73*(1-VLOOKUP(C73,ГОЛОВНА!K:L,2,0)), "-") -> 949.9598
A74: 96402101 | B74: Циркуляційний насос UPS50-120 F 1x230-24 | C74: CB | F74: 746.3762 | G74: =IFERROR(F74*(1-VLOOKUP(C74,ГОЛОВНА!K:L,2,0)), "-") -> 746.3762
A75: 96402103 | B75: Циркуляційний насос UPS50-120 F 3x400-41 | C75: CB | F75: 678.5344 | G75: =IFERROR(F75*(1-VLOOKUP(C75,ГОЛОВНА!K:L,2,0)), "-") -> 678.5344
A76: 96402108 | B76: Циркуляційний насос UPS50-120 F B 1x230- | C76: CB | F76: 1492.7718 | G76: =IFERROR(F76*(1-VLOOKUP(C76,ГОЛОВНА!K:L,2,0)), "-") -> 1492.7718
A77: 96402110 | B77: Циркуляційний насос UPS50-120 F B 3x400- | C77: CB | F77: 1357.0688 | G77: =IFERROR(F77*(1-VLOOKUP(C77,ГОЛОВНА!K:L,2,0)), "-") -> 1357.0688
A78: 96402134 | B78: Циркуляційний насос UPS50-180 F 1x230-24 | C78: CB | F78: 858.353 | G78: =IFERROR(F78*(1-VLOOKUP(C78,ГОЛОВНА!K:L,2,0)), "-") -> 858.353
A79: 96402136 | B79: Циркуляційний насос UPS50-180 F 3x400-41 | C79: CB | F79: 780.3262 | G79: =IFERROR(F79*(1-VLOOKUP(C79,ГОЛОВНА!K:L,2,0)), "-") -> 780.3262
A80: 96402140 | B80: Циркуляційний насос UPS50-180 F B 1x230- | C80: CB | F80: 1716.6866 | G80: =IFERROR(F80*(1-VLOOKUP(C80,ГОЛОВНА!K:L,2,0)), "-") -> 1716.6866
A81: 96402142 | B81: Циркуляційний насос UPS50-180 F B 3x400- | C81: CB | F81: 1560.633 | G81: =IFERROR(F81*(1-VLOOKUP(C81,ГОЛОВНА!K:L,2,0)), "-") -> 1560.633
A82: 96430300 | B82: Циркуляційний насос UPS50-185 F 1x230-24 | C82: CB | F82: 933.431 | G82: =IFERROR(F82*(1-VLOOKUP(C82,ГОЛОВНА!K:L,2,0)), "-") -> 933.431
A83: 96430297 | B83: Циркуляційний насос UPS50-185 F 3x400-41 | C83: CB | F83: 848.556 | G83: =IFERROR(F83*(1-VLOOKUP(C83,ГОЛОВНА!K:L,2,0)), "-") -> 848.556
A84: 96402053 | B84: Циркуляційний насос UPS50-60/2 F 1x230-2 | C84: CB | F84: 634.4188 | G84: =IFERROR(F84*(1-VLOOKUP(C84,ГОЛОВНА!K:L,2,0)), "-") -> 634.4188
A85: 96402055 | B85: Циркуляційний насос UPS50-60/2 F 3x400-4 | C85: CB | F85: 576.762 | G85: =IFERROR(F85*(1-VLOOKUP(C85,ГОЛОВНА!K:L,2,0)), "-") -> 576.762
A86: 96402064 | B86: Циркуляційний насос UPS50-60/2 F B 1x230 | C86: CB | F86: 1268.857 | G86: =IFERROR(F86*(1-VLOOKUP(C86,ГОЛОВНА!K:L,2,0)), "-") -> 1268.857
A87: 96402072 | B87: Циркуляційний насос UPS50-60/2 F B 3x400 | C87: CB | F87: 1153.5046 | G87: =IFERROR(F87*(1-VLOOKUP(C87,ГОЛОВНА!K:L,2,0)), "-") -> 1153.5046
A88: 96402278 | B88: Циркуляційний насос UPS65-120 F 1x230-24 | C88: CB | F88: 878.1022 | G88: =IFERROR(F88*(1-VLOOKUP(C88,ГОЛОВНА!K:L,2,0)), "-") -> 878.1022
A89: 96402280 | B89: Циркуляційний насос UPS65-120 F 3x400-41 | C89: CB | F89: 798.2712 | G89: =IFERROR(F89*(1-VLOOKUP(C89,ГОЛОВНА!K:L,2,0)), "-") -> 798.2712
A90: 96402285 | B90: Циркуляційний насос UPS65-120 F B 1x230- | C90: CB | F90: 1756.2044 | G90: =IFERROR(F90*(1-VLOOKUP(C90,ГОЛОВНА!K:L,2,0)), "-") -> 1756.2044
A91: 96402287 | B91: Циркуляційний насос UPS65-120 F B 3x400- | C91: CB | F91: 1596.5618 | G91: =IFERROR(F91*(1-VLOOKUP(C91,ГОЛОВНА!K:L,2,0)), "-") -> 1596.5618
A92: 96402316 | B92: Циркуляційний насос UPS65-180 F 3x400-41 | C92: CB | F92: 908.5632 | G92: =IFERROR(F92*(1-VLOOKUP(C92,ГОЛОВНА!K:L,2,0)), "-") -> 908.5632
A93: 96402320 | B93: Циркуляційний насос UPS65-180 F B 3x400- | C93: CB | F93: 1836.0354 | G93: =IFERROR(F93*(1-VLOOKUP(C93,ГОЛОВНА!K:L,2,0)), "-") -> 1836.0354
A94: 96430298 | B94: Циркуляційний насос UPS65-185 F 3x400-41 | C94: CB | F94: 997.839 | G94: =IFERROR(F94*(1-VLOOKUP(C94,ГОЛОВНА!K:L,2,0)), "-") -> 997.839
A95: 96402258 | B95: Циркуляційний насос UPS65-60/2 F 1x230-2 | C95: CB | F95: 746.3762 | G95: =IFERROR(F95*(1-VLOOKUP(C95,ГОЛОВНА!K:L,2,0)), "-") -> 746.3762
A96: 96402260 | B96: Циркуляційний насос UPS65-60/2 F 3x400-4 | C96: CB | F96: 678.5344 | G96: =IFERROR(F96*(1-VLOOKUP(C96,ГОЛОВНА!K:L,2,0)), "-") -> 678.5344
A97: 96402262 | B97: Циркуляційний насос UPS65-60/2 F B 1x230 | C97: CB | F97: 1492.7718 | G97: =IFERROR(F97*(1-VLOOKUP(C97,ГОЛОВНА!K:L,2,0)), "-") -> 1492.7718
A98: 96402264 | B98: Циркуляційний насос UPS65-60/2 F B 3x400 | C98: CB | F98: 1357.0688 | G98: =IFERROR(F98*(1-VLOOKUP(C98,ГОЛОВНА!K:L,2,0)), "-") -> 1357.0688
A99: 96402441 | B99: Циркуляційний насос UPS80-120 F 3x400-41 | C99: CB | F99: 1027.2812 | G99: =IFERROR(F99*(1-VLOOKUP(C99,ГОЛОВНА!K:L,2,0)), "-") -> 1027.2812
A100: 96402440 | B100: Циркуляційний насос UPS80-120 F 3x400-41 | C100: CB | F100: 997.839 | G100: =IFERROR(F100*(1-VLOOKUP(C100,ГОЛОВНА!K:L,2,0)), "-") -> 997.839
A101: 96402445 | B101: Циркуляційний насос UPS80-120 F B 3x400- | C101: CB | F101: 2075.5284 | G101: =IFERROR(F101*(1-VLOOKUP(C101,ГОЛОВНА!K:L,2,0)), "-") -> 2075.5284
A102: 96404924 | B102: Циркуляційний насос UPS80-120 FB 3x400-4 | C102: CB | F102: 1995.6974 | G102: =IFERROR(F102*(1-VLOOKUP(C102,ГОЛОВНА!K:L,2,0)), "-") -> 1995.6974
A103: 96402392 | B103: Циркуляційний насос UPS80-60 F 3x400-415 | C103: CB | F103: 975.9176 | G103: =IFERROR(F103*(1-VLOOKUP(C103,ГОЛОВНА!K:L,2,0)), "-") -> 975.9176
A104: 96402391 | B104: Циркуляційний насос UPS80-60 F 3x400-415 | C104: CB | F104: 938.3908 | G104: =IFERROR(F104*(1-VLOOKUP(C104,ГОЛОВНА!K:L,2,0)), "-") -> 938.3908
A105: 96402401 | B105: Циркуляційний насос UPS80-60 F B 3x400-4 | C105: CB | F105: 1971.7384 | G105: =IFERROR(F105*(1-VLOOKUP(C105,ГОЛОВНА!K:L,2,0)), "-") -> 1971.7384
A106: 96404916 | B106: Циркуляційний насос UPS80-60 FB 3x400-41 | C106: CB | F106: 1895.9038 | G106: =IFERROR(F106*(1-VLOOKUP(C106,ГОЛОВНА!K:L,2,0)), "-") -> 1895.9038
A107: 95906500 | B107: Циркуляційний насос UPS32-100 180 1x230V | C107: DH | F107: 362.184 | G107: =IFERROR(F107*(1-VLOOKUP(C107,ГОЛОВНА!K:L,2,0)), "-") -> 362.184
A108: 95906480 | B108: Циркуляційний насос UPS25-100 180 1x230 | C108: DH | F108: 370.44 | G108: =IFERROR(F108*(1-VLOOKUP(C108,ГОЛОВНА!K:L,2,0)), "-") -> 370.44
A109: 95906483 | B109: Циркуляційний насос UPS32 -100 F 220 1x2 | C109: DH | F109: 416.34 | G109: =IFERROR(F109*(1-VLOOKUP(C109,ГОЛОВНА!K:L,2,0)), "-") -> 416.34
A110: 95906489 | B110: Циркуляційний насос UPS32 -100 N 180 1x2 | C110: DH | F110: 557.46 | G110: =IFERROR(F110*(1-VLOOKUP(C110,ГОЛОВНА!K:L,2,0)), "-") -> 557.46
A111: 95906415 | B111: Циркуляційний насос UPS32-50 F 220 1x230 | C111: DH | F111: 313.1675 | G111: =IFERROR(F111*(1-VLOOKUP(C111,ГОЛОВНА!K:L,2,0)), "-") -> 313.1675
A112: 95906458 | B112: Циркуляційний насос UPS32-80 F 220 1x230 | C112: DH | F112: 375.7725 | G112: =IFERROR(F112*(1-VLOOKUP(C112,ГОЛОВНА!K:L,2,0)), "-") -> 375.7725
A113: 95906486 | B113: Циркуляційний насос UPS40 -100 F 250 1x2 | C113: DH | F113: 452.367 | G113: =IFERROR(F113*(1-VLOOKUP(C113,ГОЛОВНА!K:L,2,0)), "-") -> 452.367
A114: 95906420 | B114: Циркуляційний насос UPS40-50 F 250 1x230 | C114: DH | F114: 332.329 | G114: =IFERROR(F114*(1-VLOOKUP(C114,ГОЛОВНА!K:L,2,0)), "-") -> 332.329
A115: 95906422 | B115: Циркуляційний насос UPS40-50 FN 250 1x23 | C115: DH | F115: 618.0405 | G115: =IFERROR(F115*(1-VLOOKUP(C115,ГОЛОВНА!K:L,2,0)), "-") -> 618.0405
A116: 95906462 | B116: Циркуляційний насос UPS40-80 F 250 1x230 | C116: DH | F116: 398.297 | G116: =IFERROR(F116*(1-VLOOKUP(C116,ГОЛОВНА!K:L,2,0)), "-") -> 398.297
A117: 95906753 | B117: Циркуляційний насос UPS40-80 FN 250 1x23 | C117: DH | F117: 727.0417 | G117: =IFERROR(F117*(1-VLOOKUP(C117,ГОЛОВНА!K:L,2,0)), "-") -> 727.0417
A119: Здвоєнні насоси UPS, UPSD серія 200 | G119: Циркуляційні насоси для систем опалення і кондиціонування
A120: 96408893 | B120: Циркуляційний насос UPSD32-120 F 1x230-2 | C120: CB | F120: 975.3375 | G120: =IFERROR(F120*(1-VLOOKUP(C120,ГОЛОВНА!K:L,2,0)), "-") -> 975.3375
A121: 96401841 | B121: Циркуляційний насос UPSD32-120 F 1x230-2 | C121: CB | F121: 1028.0778 | G121: =IFERROR(F121*(1-VLOOKUP(C121,ГОЛОВНА!K:L,2,0)), "-") -> 1028.0778
A122: 96408961 | B122: Циркуляційний насос UPSD32-120 F 3x400-4 | C122: CB | F122: 886.6713 | G122: =IFERROR(F122*(1-VLOOKUP(C122,ГОЛОВНА!K:L,2,0)), "-") -> 886.6713
A123: 96401843 | B123: Циркуляційний насос UPSD32-120 F 3x400-4 | C123: CB | F123: 934.5849 | G123: =IFERROR(F123*(1-VLOOKUP(C123,ГОЛОВНА!K:L,2,0)), "-") -> 934.5849
A124: 96408898 | B124: Циркуляційний насос UPSD32-60 F 1x230-24 | C124: CB | F124: 829.0392 | G124: =IFERROR(F124*(1-VLOOKUP(C124,ГОЛОВНА!K:L,2,0)), "-") -> 829.0392
A125: 96401783 | B125: Циркуляційний насос UPSD32-60 F 1x230-24 | C125: CB | F125: 873.8559 | G125: =IFERROR(F125*(1-VLOOKUP(C125,ГОЛОВНА!K:L,2,0)), "-") -> 873.8559
A126: 96408900 | B126: Циркуляційний насос UPSD32-60 F | C126: CB | F126: 753.6906 | G126: =IFERROR(F126*(1-VLOOKUP(C126,ГОЛОВНА!K:L,2,0)), "-") -> 753.6906
A127: 96401792 | B127: Циркуляційний насос UPSD32 -60 F 3x400-4 | C127: CB | F127: 794.4246 | G127: =IFERROR(F127*(1-VLOOKUP(C127,ГОЛОВНА!K:L,2,0)), "-") -> 794.4246
A128: 96408901 | B128: Циркуляційний насос UPSD40-120 F 1x230-2 | C128: CB | F128: 1137.9015 | G128: =IFERROR(F128*(1-VLOOKUP(C128,ГОЛОВНА!K:L,2,0)), "-") -> 1137.9015
A129: 96401946 | B129: Циркуляційний насос UPSD40-120 F 1x230-2 | C129: CB | F129: 1199.4024 | G129: =IFERROR(F129*(1-VLOOKUP(C129,ГОЛОВНА!K:L,2,0)), "-") -> 1199.4024
A130: 96408903 | B130: Циркуляційний насос UPSD40-120 F 3x400-4 | C130: CB | F130: 1034.4576 | G130: =IFERROR(F130*(1-VLOOKUP(C130,ГОЛОВНА!K:L,2,0)), "-") -> 1034.4576
A131: 96401948 | B131: Циркуляційний насос UPSD40-120 F | C131: CB | F131: 1090.3878 | G131: =IFERROR(F131*(1-VLOOKUP(C131,ГОЛОВНА!K:L,2,0)), "-") -> 1090.3878
A132: 96408907 | B132: Циркуляційний насос UPSD40-60 F 1x230-24 | C132: CB | F132: 967.2186 | G132: =IFERROR(F132*(1-VLOOKUP(C132,ГОЛОВНА!K:L,2,0)), "-") -> 967.2186
A133: 96401918 | B133: Циркуляційний насос UPSD40-60 F 1x230-24 | C133: CB | F133: 1019.5032 | G133: =IFERROR(F133*(1-VLOOKUP(C133,ГОЛОВНА!K:L,2,0)), "-") -> 1019.5032
A134: 96408909 | B134: Циркуляційний насос UPSD40-60 F 3x400-41 | C134: CB | F134: 879.2871 | G134: =IFERROR(F134*(1-VLOOKUP(C134,ГОЛОВНА!K:L,2,0)), "-") -> 879.2871
A135: 96401920 | B135: Циркуляційний насос UPSD40-60/2 F 3x400 | C135: CB | F135: 926.8194 | G135: =IFERROR(F135*(1-VLOOKUP(C135,ГОЛОВНА!K:L,2,0)), "-") -> 926.8194
A136: 96408910 | B136: Циркуляційний насос UPSD50-120 F 1x230-2 | C136: CB | F136: 1381.7289 | G136: =IFERROR(F136*(1-VLOOKUP(C136,ГОЛОВНА!K:L,2,0)), "-") -> 1381.7289
A137: 96402105 | B137: Циркуляційний насос UPSD 50-120 F 1x230- | C137: CB | F137: 1456.4172 | G137: =IFERROR(F137*(1-VLOOKUP(C137,ГОЛОВНА!K:L,2,0)), "-") -> 1456.4172
A138: 96408912 | B138: Циркуляційний насос UPSD50-120 F 3x400-4 | C138: CB | F138: 1256.1231 | G138: =IFERROR(F138*(1-VLOOKUP(C138,ГОЛОВНА!K:L,2,0)), "-") -> 1256.1231
A139: 96402107 | B139: Циркуляційний насос UPSD50-120 F 3x400-4 | C139: CB | F139: 1324.0224 | G139: =IFERROR(F139*(1-VLOOKUP(C139,ГОЛОВНА!K:L,2,0)), "-") -> 1324.0224
A140: 96408913 | B140: Циркуляційний насос UPSD50-180 F 1x230-2 | C140: CB | F140: 1588.9887 | G140: =IFERROR(F140*(1-VLOOKUP(C140,ГОЛОВНА!K:L,2,0)), "-") -> 1588.9887
A141: 96402137 | B141: Циркуляційний насос UPSD50-180 F 1x230-2 | C141: CB | F141: 1674.9021 | G141: =IFERROR(F141*(1-VLOOKUP(C141,ГОЛОВНА!K:L,2,0)), "-") -> 1674.9021
A142: 96408915 | B142: Циркуляційний насос UPSD50-180 F 3x400-4 | C142: CB | F142: 1444.5504 | G142: =IFERROR(F142*(1-VLOOKUP(C142,ГОЛОВНА!K:L,2,0)), "-") -> 1444.5504
A143: 96402139 | B143: Циркуляційний насос UPSD50-180 F 3x400-4 | C143: CB | F143: 1522.6425 | G143: =IFERROR(F143*(1-VLOOKUP(C143,ГОЛОВНА!K:L,2,0)), "-") -> 1522.6425
A144: 96408919 | B144: Циркуляційний насос UPSD50-60/2 F 1x230- | C144: CB | F144: 1174.4784 | G144: =IFERROR(F144*(1-VLOOKUP(C144,ГОЛОВНА!K:L,2,0)), "-") -> 1174.4784
A145: 96402057 | B145: Циркуляційний насос UPSD50-60/2 F 1x230- | C145: CB | F145: 1237.9788 | G145: =IFERROR(F145*(1-VLOOKUP(C145,ГОЛОВНА!K:L,2,0)), "-") -> 1237.9788
A146: 96408921 | B146: Циркуляційний насос UPSD50-60/2 F | C146: CB | F146: 1067.7051 | G146: =IFERROR(F146*(1-VLOOKUP(C146,ГОЛОВНА!K:L,2,0)), "-") -> 1067.7051
A147: 96402060 | B147: Циркуляційний насос UPSD50-60/2 F 3x400- | C147: CB | F147: 1125.4116 | G147: =IFERROR(F147*(1-VLOOKUP(C147,ГОЛОВНА!K:L,2,0)), "-") -> 1125.4116
A148: 96408925 | B148: Циркуляційний насос UPSD65-120 F 1x230-2 | C148: CB | F148: 1625.5563 | G148: =IFERROR(F148*(1-VLOOKUP(C148,ГОЛОВНА!K:L,2,0)), "-") -> 1625.5563
A149: 96402282 | B149: Циркуляційний насос UPSD65-120 F 1x230-2 | C149: CB | F149: 1713.4413 | G149: =IFERROR(F149*(1-VLOOKUP(C149,ГОЛОВНА!K:L,2,0)), "-") -> 1713.4413
A150: 96408927 | B150: Циркуляційний насос UPSD65-120 F 3x400-4 | C150: CB | F150: 1477.8072 | G150: =IFERROR(F150*(1-VLOOKUP(C150,ГОЛОВНА!K:L,2,0)), "-") -> 1477.8072
A151: 96402284 | B151: Циркуляційний насос UPSD65-120 F 3x400-4 | C151: CB | F151: 1557.6756 | G151: =IFERROR(F151*(1-VLOOKUP(C151,ГОЛОВНА!K:L,2,0)), "-") -> 1557.6756
A152: 96408929 | B152: Циркуляційний насос UPSD65-180 F 3x400-4 | C152: CB | F152: 1699.4727 | G152: =IFERROR(F152*(1-VLOOKUP(C152,ГОЛОВНА!K:L,2,0)), "-") -> 1699.4727
A153: 96402318 | B153: Циркуляційний насос UPSD65-180 F 3x400-4 | C153: CB | F153: 1791.3288 | G153: =IFERROR(F153*(1-VLOOKUP(C153,ГОЛОВНА!K:L,2,0)), "-") -> 1791.3288
A154: 96408933 | B154: Циркуляційний насос UPSD65-60/2 1x230-24 | C154: CB | F154: 1381.7289 | G154: =IFERROR(F154*(1-VLOOKUP(C154,ГОЛОВНА!K:L,2,0)), "-") -> 1381.7289
A155: 96408935 | B155: Циркуляційний насос UPSD65-60/2 3x400-41 | C155: CB | F155: 1256.1231 | G155: =IFERROR(F155*(1-VLOOKUP(C155,ГОЛОВНА!K:L,2,0)), "-") -> 1256.1231
A156: 96404981 | B156: Циркуляційний насос UPSD65-60/2 F 1x230- | C156: CB | F156: 1456.4172 | G156: =IFERROR(F156*(1-VLOOKUP(C156,ГОЛОВНА!K:L,2,0)), "-") -> 1456.4172
A157: 96404983 | B157: Циркуляційний насос UPSD65-60/2 F 3x400- | C157: CB | F157: 1324.0224 | G157: =IFERROR(F157*(1-VLOOKUP(C157,ГОЛОВНА!K:L,2,0)), "-") -> 1324.0224
A158: 96408943 | B158: Циркуляційний насос UPSD80-120 F 3x400-4 | C158: CB | F158: 1921.1289 | G158: =IFERROR(F158*(1-VLOOKUP(C158,ГОЛОВНА!K:L,2,0)), "-") -> 1921.1289
A159: 96403132 | B159: Циркуляційний насос UPSD80-120F 3x400-41 | C159: CB | F159: 2024.982 | G159: =IFERROR(F159*(1-VLOOKUP(C159,ГОЛОВНА!K:L,2,0)), "-") -> 2024.982
A160: 96408944 | B160: Циркуляційний насос UPSD80-120 F 3x400-4 | C160: CB | F160: 1847.2311 | G160: =IFERROR(F160*(1-VLOOKUP(C160,ГОЛОВНА!K:L,2,0)), "-") -> 1847.2311
A161: 96403131 | B161: Циркуляційний насос UPSD80-120 F 3x400-4 | C161: CB | F161: 1947.0945 | G161: =IFERROR(F161*(1-VLOOKUP(C161,ГОЛОВНА!K:L,2,0)), "-") -> 1947.0945
A162: 96408951 | B162: Циркуляційний насос UPSD80-60 F 3x400-41 | C162: CB | F162: 1825.0785 | G162: =IFERROR(F162*(1-VLOOKUP(C162,ГОЛОВНА!K:L,2,0)), "-") -> 1825.0785
A163: 96402398 | B163: Циркуляційний насос UPSD80-60 F 3x400-41 | C163: CB | F163: 1923.7236 | G163: =IFERROR(F163*(1-VLOOKUP(C163,ГОЛОВНА!K:L,2,0)), "-") -> 1923.7236
A164: 96408952 | B164: Циркуляційний насос UPSD80-60 F 3x400-41 | C164: CB | F164: 1754.8914 | G164: =IFERROR(F164*(1-VLOOKUP(C164,ГОЛОВНА!K:L,2,0)), "-") -> 1754.8914
A165: 96402397 | B165: Циркуляційний насос UPSD80-60 F 3x400-41 | C165: CB | F165: 1849.7235 | G165: =IFERROR(F165*(1-VLOOKUP(C165,ГОЛОВНА!K:L,2,0)), "-") -> 1849.7235
A166: 95906484 | B166: Циркуляційний насос UPSD 32-100 F 220 1x | C166: DH | F166: 888.903505 | G166: =IFERROR(F166*(1-VLOOKUP(C166,ГОЛОВНА!K:L,2,0)), "-") -> 888.903505
A167: 95906416 | B167: Циркуляційний насос UPSD32-50 F 220 1x23 | C167: DH | F167: 423.711 | G167: =IFERROR(F167*(1-VLOOKUP(C167,ГОЛОВНА!K:L,2,0)), "-") -> 423.711
A168: 95906459 | B168: Циркуляційний насос UPSD32-80 F220 | C168: DH | F168: 511.272 | G168: =IFERROR(F168*(1-VLOOKUP(C168,ГОЛОВНА!K:L,2,0)), "-") -> 511.272
A169: 95906487 | B169: Циркуляційний насос UPSD 40-100 F 250 1x | C169: DH | F169: 897.504615 | G169: =IFERROR(F169*(1-VLOOKUP(C169,ГОЛОВНА!K:L,2,0)), "-") -> 897.504615
A170: 95906423 | B170: Циркуляційний насос UPSD40-50 F 250 1x23 | C170: DH | F170: 629.828815 | G170: =IFERROR(F170*(1-VLOOKUP(C170,ГОЛОВНА!K:L,2,0)), "-") -> 629.828815
A171: 95906465 | B171: Циркуляційний насос UPSD40-80 F 250 1x23 | C171: DH | F171: 702.533265 | G171: =IFERROR(F171*(1-VLOOKUP(C171,ГОЛОВНА!K:L,2,0)), "-") -> 702.533265
B173: Аксесуари
A174: 505821 | B174: Комплект теплоізоляції до UPS 25/32-30/4 | C174: CB | F174: 15.444 | G174: =IFERROR(F174*(1-VLOOKUP(C174,ГОЛОВНА!K:L,2,0)), "-") -> 15.444
A175: 519801 | B175: К-кт з'єднувальних елементів G1 1/4""-22 | C175: CB | F175: 25.773 | G175: =IFERROR(F175*(1-VLOOKUP(C175,ГОЛОВНА!K:L,2,0)), "-") -> 25.773
A176: 519802 | B176: Елемент з'єднувальний з кульк-м клап-м G | C176: CB | F176: 25.773 | G176: =IFERROR(F176*(1-VLOOKUP(C176,ГОЛОВНА!K:L,2,0)), "-") -> 25.773
A177: 519805 | B177: З'єднувальний елемент G 1 1/2 x Rp 3/4 | C177: CB | F177: 23.419 | G177: =IFERROR(F177*(1-VLOOKUP(C177,ГОЛОВНА!K:L,2,0)), "-") -> 23.419
A178: 519806 | B178: З’єднув. елемент з кульк. клапаном G 1 1 | C178: CB | F178: 23.881 | G178: =IFERROR(F178*(1-VLOOKUP(C178,ГОЛОВНА!K:L,2,0)), "-") -> 23.881
A179: 519807 | B179: Комплект з'єднань з кульк овим клапаном | C179: CB | F179: 28.149 | G179: =IFERROR(F179*(1-VLOOKUP(C179,ГОЛОВНА!K:L,2,0)), "-") -> 28.149
A180: 529922 | B180: Комплект з'єднань G1 1/2"Rp1" | C180: CB | F180: 6.556 | G180: =IFERROR(F180*(1-VLOOKUP(C180,ГОЛОВНА!K:L,2,0)), "-") -> 6.556
A181: 529972 | B181: Комплект зєднань G11/2"x1" | C181: CB | F181: 11.814 | G181: =IFERROR(F181*(1-VLOOKUP(C181,ГОЛОВНА!K:L,2,0)), "-") -> 11.814
A182: 529982 | B182: Комплект з'єднань 3/4' | C182: CB | F182: 27.599 | G182: =IFERROR(F182*(1-VLOOKUP(C182,ГОЛОВНА!K:L,2,0)), "-") -> 27.599
A183: 529983 | B183: Комплект з'єднань G 1 1/4 "x Rp 1", лату | C183: CB | F183: 47.058 | G183: =IFERROR(F183*(1-VLOOKUP(C183,ГОЛОВНА!K:L,2,0)), "-") -> 47.058
A184: 539702 | B184: Фланці сталеві приварювальні, DN 40 | C184: CB | F184: 55.55 | G184: =IFERROR(F184*(1-VLOOKUP(C184,ГОЛОВНА!K:L,2,0)), "-") -> 55.55
A185: 539703 | B185: Комплект різьбових фланці PN10 UPS32 1 1 | C185: CB | F185: 55.209 | G185: =IFERROR(F185*(1-VLOOKUP(C185,ГОЛОВНА!K:L,2,0)), "-") -> 55.209
A186: 539704 | B186: Фланцы стальные приварные DN 32 | C186: CB | F186: 70.455 | G186: =IFERROR(F186*(1-VLOOKUP(C186,ГОЛОВНА!K:L,2,0)), "-") -> 70.455
A187: 549802 | B187: Фланцы стальные приварные DN 50 | C187: CB | F187: 64.405 | G187: =IFERROR(F187*(1-VLOOKUP(C187,ГОЛОВНА!K:L,2,0)), "-") -> 64.405
A188: 559802 | B188: Фланцы стальные приварные DN 65 | C188: CB | F188: 103.43 | G188: =IFERROR(F188*(1-VLOOKUP(C188,ГОЛОВНА!K:L,2,0)), "-") -> 103.43
A189: 95906254 | B189: Блок тривоги до UPS XX 100 | C189: CB | F189: 119.394 | G189: =IFERROR(F189*(1-VLOOKUP(C189,ГОЛОВНА!K:L,2,0)), "-") -> 119.394
A190: 95906653 | B190: Теплоізолятор для UPS XX- 100 | C190: CB | F190: 42.614 | G190: =IFERROR(F190*(1-VLOOKUP(C190,ГОЛОВНА!K:L,2,0)), "-") -> 42.614
A191: 95906655 | B191: Термоізоляція до насосів серії UPS | C191: CB | F191: 24.464 | G191: =IFERROR(F191*(1-VLOOKUP(C191,ГОЛОВНА!K:L,2,0)), "-") -> 24.464
A192: 96433906 | B192: Фланец для удаления возду ха | C192: CB | F192: 21.241 | G192: =IFERROR(F192*(1-VLOOKUP(C192,ГОЛОВНА!K:L,2,0)), "-") -> 21.241
A193: 96433911 | B193: Подовжувач R1/2"-G11/4" L=35мм 2-шт | C193: CB | F193: 20.482 | G193: =IFERROR(F193*(1-VLOOKUP(C193,ГОЛОВНА!K:L,2,0)), "-") -> 20.482
A194: 96433912 | B194: Подовжувачі, R1/2"-G11/2" L=25мм 2 шт. | C194: CB | F194: 20.482 | G194: =IFERROR(F194*(1-VLOOKUP(C194,ГОЛОВНА!K:L,2,0)), "-") -> 20.482
A195: 96436559 | B195: Подовжувач 1 1/4"/1 1/4" L = 40 мм | C195: CB | F195: 13.16 | G195: =IFERROR(F195*(1-VLOOKUP(C195,ГОЛОВНА!K:L,2,0)), "-") -> 13.16
A196: 96406992 | B196: Реле часу TS 3/T з 24 годинною шкалою | C196: CB | F196: 59.367 | G196: =IFERROR(F196*(1-VLOOKUP(C196,ГОЛОВНА!K:L,2,0)), "-") -> 59.367
A197: 96406993 | B197: Реле TS 3/W з тижневою годинною шкалою | C197: CB | F197: 57.464 | G197: =IFERROR(F197*(1-VLOOKUP(C197,ГОЛОВНА!K:L,2,0)), "-") -> 57.464

Sheet Comfort, UP, UP N, Solar
A1: АРТИКУЛ | B1: НАЙМЕНУВАННЯ (УКР) | C1: PRICE GROUP | D1: ДОСТАВКА (ТИЖНІВ) | E1: ДОДАТКОВО | F1: ЦІНА (ЕВРО БЕЗ ПДВ) | G1: ЦІНА ЗІ ЗНИЖКОЮ | H1: НА ГОЛОВНУ
A2: Comfort, UP, UPS, Solar | G2: Циркуляційні насоси для систем гарячого водопостачання
A3: 97916771 | B3: Циркуляційний насос COMFORT15-14B PM | C3: DH | E3: реле часу 98465228 | F3: 107.7084 | G3: =IFERROR(F3*(1-VLOOKUP(C3,ГОЛОВНА!K:L,2,0)), "-") -> 107.7084
A4: 97916757 | B4: Циркуляційний насос COMFORT15-14BA PM | C4: DH | F4: 176.5952 | G4: =IFERROR(F4*(1-VLOOKUP(C4,ГОЛОВНА!K:L,2,0)), "-") -> 176.5952
A5: 59640506 | B5: Циркуляційний насос UP20-07 N 150 1x230B | C5: DH | F5: 186.2 | G5: =IFERROR(F5*(1-VLOOKUP(C5,ГОЛОВНА!K:L,2,0)), "-") -> 186.2
A6: 97916772 | B6: Циркуляційний насос COMFORT 15-14 BX PM | C6: DH | E6: реле часу 98465228 | F6: 125.9192 | G6: =IFERROR(F6*(1-VLOOKUP(C6,ГОЛОВНА!K:L,2,0)), "-") -> 125.9192
A7: 97916749 | B7: Циркуляційний насос COMFORT15-14BXA PM | C7: DH | F7: 199.4814 | G7: =IFERROR(F7*(1-VLOOKUP(C7,ГОЛОВНА!K:L,2,0)), "-") -> 199.4814
A8: 59641500 | B8: Циркуляційний насос UP20-15 N 150 1x230B | C8: DH | F8: 189.8133437 | G8: =IFERROR(F8*(1-VLOOKUP(C8,ГОЛОВНА!K:L,2,0)), "-") -> 189.8133437
A9: 59643500 | B9: Циркуляційний насос UP20-30 N 150 1x230B | C9: DH | F9: 210.9155311 | G9: =IFERROR(F9*(1-VLOOKUP(C9,ГОЛОВНА!K:L,2,0)), "-") -> 210.9155311
A10: 95906472 | B10: Циркуляційний насос UP20-45 N 150 1x230B | C10: DH | F10: 241.1794 | G10: =IFERROR(F10*(1-VLOOKUP(C10,ГОЛОВНА!K:L,2,0)), "-") -> 241.1794
A11: 95906408 | B11: Циркуляційний насос UPS25-55 N 180 1x230 | C11: DH | F11: 318.9109 | G11: =IFERROR(F11*(1-VLOOKUP(C11,ГОЛОВНА!K:L,2,0)), "-") -> 318.9109
A12: 95906439 | B12: Циркуляційний насос UPS25-80 N 180 1x230 | C12: DH | F12: 381.9354 | G12: =IFERROR(F12*(1-VLOOKUP(C12,ГОЛОВНА!K:L,2,0)), "-") -> 381.9354
A13: 95906752 | B13: Циркуляційний насос UPS32-55 N 180 1x230 | C13: DH | F13: 403.4646 | G13: =IFERROR(F13*(1-VLOOKUP(C13,ГОЛОВНА!K:L,2,0)), "-") -> 403.4646
A14: 95906448 | B14: Циркуляційний насос UPS32-80 N 180 1x230 | C14: DH | F14: 460.3984 | G14: =IFERROR(F14*(1-VLOOKUP(C14,ГОЛОВНА!K:L,2,0)), "-") -> 460.3984
B16: Аксесуари
A17: 98465228 | B17: Модуль керування з реле часу TS4/T | C17: CB | F17: 47.641 | G17: =IFERROR(F17*(1-VLOOKUP(C17,ГОЛОВНА!K:L,2,0)), "-") -> 47.641
A18: 505821 | B18: Комплект теплоізоляції до UPS 25/32-30/4 | C18: CB | F18: 15.444 | G18: =IFERROR(F18*(1-VLOOKUP(C18,ГОЛОВНА!K:L,2,0)), "-") -> 15.444
A19: 519801 | B19: К-кт з'єднувальних елементів G1 1/4""-22 | C19: CB | F19: 25.773 | G19: =IFERROR(F19*(1-VLOOKUP(C19,ГОЛОВНА!K:L,2,0)), "-") -> 25.773
A20: 519802 | B20: Елемент з'єднувальний з кульк-м клап-м G | C20: CB | F20: 25.773 | G20: =IFERROR(F20*(1-VLOOKUP(C20,ГОЛОВНА!K:L,2,0)), "-") -> 25.773
A21: 519805 | B21: З'єднувальний елемент G 1 1/2 x Rp 3/4 | C21: CB | F21: 23.419 | G21: =IFERROR(F21*(1-VLOOKUP(C21,ГОЛОВНА!K:L,2,0)), "-") -> 23.419
A22: 519806 | B22: З’єднув. елемент з кульк. клапаном G 1 1 | C22: CB | F22: 23.881 | G22: =IFERROR(F22*(1-VLOOKUP(C22,ГОЛОВНА!K:L,2,0)), "-") -> 23.881
A23: 519807 | B23: Комплект з'єднань з кульк овим клапаном | C23: CB | F23: 28.149 | G23: =IFERROR(F23*(1-VLOOKUP(C23,ГОЛОВНА!K:L,2,0)), "-") -> 28.149
A24: 529922 | B24: Комплект з'єднань G1 1/2"Rp1" | C24: CB | F24: 6.556 | G24: =IFERROR(F24*(1-VLOOKUP(C24,ГОЛОВНА!K:L,2,0)), "-") -> 6.556
A25: 529972 | B25: Комплект зєднань G11/2"x1" | C25: CB | F25: 11.814 | G25: =IFERROR(F25*(1-VLOOKUP(C25,ГОЛОВНА!K:L,2,0)), "-") -> 11.814
A26: 529982 | B26: Комплект з'єднань 3/4' | C26: CB | F26: 27.599 | G26: =IFERROR(F26*(1-VLOOKUP(C26,ГОЛОВНА!K:L,2,0)), "-") -> 27.599
A27: 529983 | B27: Комплект з'єднань G 1 1/4 "x Rp 1", лату | C27: CB | F27: 47.058 | G27: =IFERROR(F27*(1-VLOOKUP(C27,ГОЛОВНА!K:L,2,0)), "-") -> 47.058
A28: 539702 | B28: Фланці сталеві приварювальні, DN 40 | C28: CB | F28: 55.55 | G28: =IFERROR(F28*(1-VLOOKUP(C28,ГОЛОВНА!K:L,2,0)), "-") -> 55.55
A29: 539703 | B29: Комплект різьбових фланці PN10 UPS32 1 1 | C29: CB | F29: 55.209 | G29: =IFERROR(F29*(1-VLOOKUP(C29,ГОЛОВНА!K:L,2,0)), "-") -> 55.209
A30: 539704 | B30: Фланцы стальные приварные DN 32 | C30: CB | F30: 70.455 | G30: =IFERROR(F30*(1-VLOOKUP(C30,ГОЛОВНА!K:L,2,0)), "-") -> 70.455
A31: 549802 | B31: Фланцы стальные приварные DN 50 | C31: CB | F31: 64.405 | G31: =IFERROR(F31*(1-VLOOKUP(C31,ГОЛОВНА!K:L,2,0)), "-") -> 64.405
A32: 559802 | B32: Фланцы стальные приварные DN 65 | C32: CB | F32: 103.43 | G32: =IFERROR(F32*(1-VLOOKUP(C32,ГОЛОВНА!K:L,2,0)), "-") -> 103.43
A33: 95906254 | B33: Блок тривоги до UPS XX 100 | C33: CB | F33: 119.394 | G33: =IFERROR(F33*(1-VLOOKUP(C33,ГОЛОВНА!K:L,2,0)), "-") -> 119.394
A34: 95906653 | B34: Теплоізолятор для UPS XX- 100 | C34: CB | F34: 42.614 | G34: =IFERROR(F34*(1-VLOOKUP(C34,ГОЛОВНА!K:L,2,0)), "-") -> 42.614
A35: 95906655 | B35: Термоізоляція до насосів серії UPS | C35: CB | F35: 24.464 | G35: =IFERROR(F35*(1-VLOOKUP(C35,ГОЛОВНА!K:L,2,0)), "-") -> 24.464
A36: 96433906 | B36: Фланец для удаления возду ха | C36: CB | F36: 21.241 | G36: =IFERROR(F36*(1-VLOOKUP(C36,ГОЛОВНА!K:L,2,0)), "-") -> 21.241
A37: 96433911 | B37: Подовжувач R1/2"-G11/4" L=35мм 2-шт | C37: CB | F37: 20.482 | G37: =IFERROR(F37*(1-VLOOKUP(C37,ГОЛОВНА!K:L,2,0)), "-") -> 20.482
A38: 96433912 | B38: Подовжувачі, R1/2"-G11/2" L=25мм 2 шт. | C38: CB | F38: 20.482 | G38: =IFERROR(F38*(1-VLOOKUP(C38,ГОЛОВНА!K:L,2,0)), "-") -> 20.482
A39: 96436559 | B39: Подовжувач 1 1/4"/1 1/4" L = 40 мм | C39: CB | F39: 13.16 | G39: =IFERROR(F39*(1-VLOOKUP(C39,ГОЛОВНА!K:L,2,0)), "-") -> 13.16

Sheet MQ, JP, Hydrojet, SB, SBA, UPA
A1: АРТИКУЛ | B1: НАЙМЕНУВАННЯ (УКР) | C1: PRICE GROUP | D1: ДОСТАВКА (ТИЖНІВ) | E1: ДОДАТКОВО | F1: ЦІНА (ЕВРО БЕЗ ПДВ) | G1: ЦІНА ЗІ ЗНИЖКОЮ | H1: НА ГОЛОВНУ
A2: MQ, JP, Hydrojet | G2: Насоси і насосні установки для систем водопостачання
A3: 96515412 | B3: Насосна установка MQ3-35 A-O-A-BVBP, 1x2 | C3: DC | F3: 313.8051 | G3: =IFERROR(F3*(1-VLOOKUP(C3,ГОЛОВНА!K:L,2,0)), "-") -> 313.8051
A4: 96515415 | B4: Насосна установка MQ3-45 A-O-A-BVBP, 1x2 | C4: DC | F4: 328.3905 | G4: =IFERROR(F4*(1-VLOOKUP(C4,ГОЛОВНА!K:L,2,0)), "-") -> 328.3905
A5: 98562862 | B5: Насосна установка SCALA2 3-45 AKCCDE 1x2 | C5: DC | F5: 380.8191 | G5: =IFERROR(F5*(1-VLOOKUP(C5,ГОЛОВНА!K:L,2,0)), "-") -> 380.8191
A6: 46511002 | B6: Насос водопостач. JP 5 B-A-CVBP-C-Y 1x22 | C6: DC | F6: 207.6305 | G6: =IFERROR(F6*(1-VLOOKUP(C6,ГОЛОВНА!K:L,2,0)), "-") -> 207.6305
A7: 46611002 | B7: Насос водопостач. JP 6 B-A-CVBP-C-Y 1x22 | C7: DC | F7: 262.6547 | G7: =IFERROR(F7*(1-VLOOKUP(C7,ГОЛОВНА!K:L,2,0)), "-") -> 262.6547
A8: 4651BPBB | B8: Насосна установка JP5 бак 24л, 1х220В | C8: DC | F8: 356.1381 | G8: =IFERROR(F8*(1-VLOOKUP(C8,ГОЛОВНА!K:L,2,0)), "-") -> 356.1381
A9: 4651BQBB | B9: Насосна установка JPB5, бак 60л 1X220В 5 | C9: DC | F9: 450.68445 | G9: =IFERROR(F9*(1-VLOOKUP(C9,ГОЛОВНА!K:L,2,0)), "-") -> 450.68445
A10: 4661BPBB | B10: Насосна установка JPB6, бак 24л 1X220В 5 | C10: DC | F10: 378.13185 | G10: =IFERROR(F10*(1-VLOOKUP(C10,ГОЛОВНА!K:L,2,0)), "-") -> 378.13185
A11: 4661BQBB | B11: Насосна установка JPB6, бак 60л 1X220В 5 | C11: DC | F11: 472.6476 | G11: =IFERROR(F11*(1-VLOOKUP(C11,ГОЛОВНА!K:L,2,0)), "-") -> 472.6476
A13: SB, SBA | G13: Насоси і насосні установки для систем водопостачання
A14: 97686699 | B14: Насос для колодязів SB3-25 A 1x230V 50Hz | C14: DC | F14: 250.9356 | G14: =IFERROR(F14*(1-VLOOKUP(C14,ГОЛОВНА!K:L,2,0)), "-") -> 250.9356
A15: 97686701 | B15: Насос для колодязів SB 3-35 A 1x220-240V | C15: DC | F15: 269.5164 | G15: =IFERROR(F15*(1-VLOOKUP(C15,ГОЛОВНА!K:L,2,0)), "-") -> 269.5164
A16: 97686703 | B16: Насос для колодязів SB3-35 AW 1x230V 50H | C16: DC | F16: 343.887 | G16: =IFERROR(F16*(1-VLOOKUP(C16,ГОЛОВНА!K:L,2,0)), "-") -> 343.887
A17: 97686705 | B17: Насос для колодязів SB 3-45 A 1x22 | C17: DC | F17: 277.46576 | G17: =IFERROR(F17*(1-VLOOKUP(C17,ГОЛОВНА!K:L,2,0)), "-") -> 277.46576
A18: 97686707 | B18: Насос для колодязів SB3-45 AW 1x220-240V | C18: DC | F18: 338.15034 | G18: =IFERROR(F18*(1-VLOOKUP(C18,ГОЛОВНА!K:L,2,0)), "-") -> 338.15034
A19: 97904026 | B19: Насос для колодязів SB Booster 3-35AW, P | C19: DC | F19: 410.4761 | G19: =IFERROR(F19*(1-VLOOKUP(C19,ГОЛОВНА!K:L,2,0)), "-") -> 410.4761
A20: 97904043 | B20: Насос для колодязів SB Booster 3-45AW,PM | C20: DC | F20: 427.5085 | G20: =IFERROR(F20*(1-VLOOKUP(C20,ГОЛОВНА!K:L,2,0)), "-") -> 427.5085
A21: 97896286 | B21: Насос для колодязів SBA3-35 A 1x220-240V | C21: DC | F21: 317.91969 | G21: =IFERROR(F21*(1-VLOOKUP(C21,ГОЛОВНА!K:L,2,0)), "-") -> 317.91969
A22: 97896288 | B22: Насос для колодязів SBA3-35 AW 1x220-240 | C22: DC | F22: 418.226 | G22: =IFERROR(F22*(1-VLOOKUP(C22,ГОЛОВНА!K:L,2,0)), "-") -> 418.226
A23: 97896290 | B23: Насос для колодязів SBA 3-45 A 1x220-240 | C23: DC | F23: 333.80204 | G23: =IFERROR(F23*(1-VLOOKUP(C23,ГОЛОВНА!K:L,2,0)), "-") -> 333.80204
A24: 97896312 | B24: Насос для колодязів SBA3-45 AW 1x220-240 | C24: DC | F24: 406.06489 | G24: =IFERROR(F24*(1-VLOOKUP(C24,ГОЛОВНА!K:L,2,0)), "-") -> 406.06489
A26: UPA | G26: Насоси для підвищення тиску
A27: 59539512 | B27: Насос для підвищ. тиску UPA15-90 | C27: DC | F27: 90.882 | G27: =IFERROR(F27*(1-VLOOKUP(C27,ГОЛОВНА!K:L,2,0)), "-") -> 90.882
A28: 96621403 | B28: Насос для підвищ. тиску UPA15-90N 160 1x | C28: DC | F28: 174.947 | G28: =IFERROR(F28*(1-VLOOKUP(C28,ГОЛОВНА!K:L,2,0)), "-") -> 174.947
A29: 98699677 | B29: Насос для підвищ. тиску UPA15-120 AUTO 1 | C29: DC | F29: 126.8625 | G29: =IFERROR(F29*(1-VLOOKUP(C29,ГОЛОВНА!K:L,2,0)), "-") -> 126.8625
B31: Аксесуари
A32: 96848670 | B32: Реле тиску PM 1 15 1x230V 50Hz | C32: DC | F32: 84.45 | G32: =IFERROR(F32*(1-VLOOKUP(C32,ГОЛОВНА!K:L,2,0)), "-") -> 84.45
A33: 96848693 | B33: Реле тиску PM 1 15 1x230V 50/60Hz | C33: DC | F33: 84.45 | G33: =IFERROR(F33*(1-VLOOKUP(C33,ГОЛОВНА!K:L,2,0)), "-") -> 84.45
A34: 96848722 | B34: Реле тиску PM 1 22 1x230V 50/60Hz | C34: DC | F34: 84.45 | G34: =IFERROR(F34*(1-VLOOKUP(C34,ГОЛОВНА!K:L,2,0)), "-") -> 84.45
A35: 96848738 | B35: Реле тиску PM 2 AD 1x230V 50Hz | C35: DC | F35: 145.61 | G35: =IFERROR(F35*(1-VLOOKUP(C35,ГОЛОВНА!K:L,2,0)), "-") -> 145.61
A36: 96848740 | B36: Реле тиску PM 2 AD 1x230V 50/60Hz | C36: DC | F36: 145.61 | G36: =IFERROR(F36*(1-VLOOKUP(C36,ГОЛОВНА!K:L,2,0)), "-") -> 145.61

Sheet Basic Line
A1: АРТИКУЛ | B1: НАЙМЕНУВАННЯ (УКР) | C1: PRICE GROUP | D1: ДОСТАВКА (ТИЖНІВ) | E1: ДОДАТКОВО | F1: ЦІНА (ЕВРО БЕЗ ПДВ) | G1: ЦІНА ЗІ ЗНИЖКОЮ | H1: НА ГОЛОВНУ
A2: JPBASIC, JPBASIC PT, PF BASIC | G2: Насоси і насосні установки для систем водопостачання
A4: 98904963 | B4: Насос водопостач NS 3-40 1x230V 50Hz IT | C4: DC | F4: 160.2365 | G4: =IFERROR(F4*(1-VLOOKUP(C4,ГОЛОВНА!K:L,2,0)), "-") -> 160.2365
A5: 98904964 | B5: Насос водопостач NS 4-23 1x230V 50Hz IT | C5: DC | F5: 116.3465 | G5: =IFERROR(F5*(1-VLOOKUP(C5,ГОЛОВНА!K:L,2,0)), "-") -> 116.3465
A6: 98904967 | B6: Насос водопостач NS 5-50 1x230V 50Hz IT | C6: DC | F6: 261.06 | G6: =IFERROR(F6*(1-VLOOKUP(C6,ГОЛОВНА!K:L,2,0)), "-") -> 261.06
A7: 98904968 | B7: Насос водопостач NS 5-60 1x230V 50Hz IT | C7: DC | F7: 283.328 | G7: =IFERROR(F7*(1-VLOOKUP(C7,ГОЛОВНА!K:L,2,0)), "-") -> 283.328
A8: 98904970 | B8: Насос водопостач NS 6-40 1x230V 50Hz IT | C8: DC | F8: 252.339 | G8: =IFERROR(F8*(1-VLOOKUP(C8,ГОЛОВНА!K:L,2,0)), "-") -> 252.339
A9: 98904981 | B9: Насос водопостач NS 13-18 1x230V 50Hz IT | C9: DC | F9: 146.984 | G9: =IFERROR(F9*(1-VLOOKUP(C9,ГОЛОВНА!K:L,2,0)), "-") -> 146.984
A10: 98904982 | B10: Насос водопостач NS 30-18 1x230V 50Hz IT | C10: DC | F10: 248.6245 | G10: =IFERROR(F10*(1-VLOOKUP(C10,ГОЛОВНА!K:L,2,0)), "-") -> 248.6245
A11: 98907044 | B11: Насос водопостач NS 30-30 3x400V 50Hz IT | C11: DC | F11: 424.232 | G11: =IFERROR(F11*(1-VLOOKUP(C11,ГОЛОВНА!K:L,2,0)), "-") -> 424.232
A12: 98907045 | B12: Насос водопостач NS 30-36 3x400V 50Hz IT | C12: DC | F12: 431.965 | G12: =IFERROR(F12*(1-VLOOKUP(C12,ГОЛОВНА!K:L,2,0)), "-") -> 431.965
A13: 98946095 | B13: Насос водопостач JPA 12-41, 230V, 50Hz | C13: DC | F13: 380.66 | G13: =IFERROR(F13*(1-VLOOKUP(C13,ГОЛОВНА!K:L,2,0)), "-") -> 380.66
A14: 98946091 | B14: Насос водопостач JPA 4-47, 230V, 50Hz, n | C14: DC | F14: 115.92 | G14: =IFERROR(F14*(1-VLOOKUP(C14,ГОЛОВНА!K:L,2,0)), "-") -> 115.92
A15: 98946092 | B15: Насос водопостач JPA 4-54, 230V, 50Hz, n | C15: DC | F15: 131.11 | G15: =IFERROR(F15*(1-VLOOKUP(C15,ГОЛОВНА!K:L,2,0)), "-") -> 131.11
A16: 98946108 | B16: Насосна станція JPA 4-47 PT-H, 230V, 50H | C16: DC | F16: 228.8 | G16: =IFERROR(F16*(1-VLOOKUP(C16,ГОЛОВНА!K:L,2,0)), "-") -> 228.8
A17: 98946109 | B17: Насосна станція JPA 4-54 PT-H, 230V, 50H | C17: DC | F17: 243.14 | G17: =IFERROR(F17*(1-VLOOKUP(C17,ГОЛОВНА!K:L,2,0)), "-") -> 243.14
A18: 98863989 | B18: Насос для брудн води KPC 300 A 1x220 50H | C18: DC | F18: 122.5392 | G18: =IFERROR(F18*(1-VLOOKUP(C18,ГОЛОВНА!K:L,2,0)), "-") -> 122.5392
A19: 98864015 | B19: Насос для брудн води KPC 600 A 1x220 50H | C19: DC | F19: 157.3068 | G19: =IFERROR(F19*(1-VLOOKUP(C19,ГОЛОВНА!K:L,2,0)), "-") -> 157.3068

Sheet SQ, SQE, SP, SP-NE
A1: АРТИКУЛ | B1: НАЙМЕНУВАННЯ (УКР) | C1: PRICE GROUP | D1: ДОСТАВКА (ТИЖНІВ) | E1: ДОДАТКОВО | F1: ЦІНА (ЕВРО БЕЗ ПДВ) | G1: ЦІНА ЗІ ЗНИЖКОЮ | H1: НА ГОЛОВНУ
A2: SQE | G2: Пакети постійного тиску
A3: 96160961 | B3: Глиб.насос SQE2-70 +60м+пакет пост.тиску | C3: DC | F3: 1581.808 | G3: =IFERROR(F3*(1-VLOOKUP(C3,ГОЛОВНА!K:L,2,0)), "-") -> 1581.808
A4: 96160962 | B4: Комплект пост. тиску SQE2-85+90m.3x2.5mm | C4: DC | F4: 1719.616 | G4: =IFERROR(F4*(1-VLOOKUP(C4,ГОЛОВНА!K:L,2,0)), "-") -> 1719.616
A5: 96524501 | B5: Глиб.насос SQE3-65 +40м+пакет пост.тиску | C5: DC | F5: 1570.036 | G5: =IFERROR(F5*(1-VLOOKUP(C5,ГОЛОВНА!K:L,2,0)), "-") -> 1570.036
A6: 96524503 | B6: Глиб.насос SQE5-70 +40м+пакет пост.тиску | C6: DC | F6: 1635.51135 | G6: =IFERROR(F6*(1-VLOOKUP(C6,ГОЛОВНА!K:L,2,0)), "-") -> 1635.51135
A7: 96524505 | B7: Глиб.насос SQE2-55 +40м+пакет пост.тиску | C7: DC | F7: 1411.6544 | G7: =IFERROR(F7*(1-VLOOKUP(C7,ГОЛОВНА!K:L,2,0)), "-") -> 1411.6544
A8: 96524506 | B8: Глиб.насос SQE2-85+60м+пакет пост.тиску | C8: DC | F8: 1749.28 | G8: =IFERROR(F8*(1-VLOOKUP(C8,ГОЛОВНА!K:L,2,0)), "-") -> 1749.28
A9: 96524507 | B9: Глиб.насос SQE2-115 +80м+пакет пост.тиск | C9: DC | F9: 1911.9723 | G9: =IFERROR(F9*(1-VLOOKUP(C9,ГОЛОВНА!K:L,2,0)), "-") -> 1911.9723
A10: 96524508 | B10: Глиб.насос SQE3-105+80m+пакет пост.тиск | C10: DC | F10: 1831.3572 | G10: =IFERROR(F10*(1-VLOOKUP(C10,ГОЛОВНА!K:L,2,0)), "-") -> 1831.3572
A12: SQ, SQE | G12: Глибинні насоси та пакети постійного тиску
A13: 96510071 | B13: Глибинний насос SQE1-35 0,7кВт 220-240В | C13: DC | F13: 598.177 | G13: =IFERROR(F13*(1-VLOOKUP(C13,ГОЛОВНА!K:L,2,0)), "-") -> 598.177
A14: 96510141 | B14: Глибинний насос SQE1-50 0,7кВт 220-240В | C14: DC | F14: 649.135 | G14: =IFERROR(F14*(1-VLOOKUP(C14,ГОЛОВНА!K:L,2,0)), "-") -> 649.135
A15: 96510142 | B15: Глибинний насос SQE1-65 0,7кВт 220-240В | C15: DC | F15: 697.6705 | G15: =IFERROR(F15*(1-VLOOKUP(C15,ГОЛОВНА!K:L,2,0)), "-") -> 697.6705
A16: 96510143 | B16: Глибинний насос SQE1-80 1,15кВт 220-240В | C16: DC | F16: 840.845 | G16: =IFERROR(F16*(1-VLOOKUP(C16,ГОЛОВНА!K:L,2,0)), "-") -> 840.845
A17: 96510144 | B17: Глибинний насос SQE1-95 1,15кВт 220-240В | C17: DC | F17: 876.0615 | G17: =IFERROR(F17*(1-VLOOKUP(C17,ГОЛОВНА!K:L,2,0)), "-") -> 876.0615
A18: 96510145 | B18: Глибинний насос SQE1-110 1,15кВт 220-240 | C18: DC | F18: 905.9675 | G18: =IFERROR(F18*(1-VLOOKUP(C18,ГОЛОВНА!K:L,2,0)), "-") -> 905.9675
A19: 96510146 | B19: Глибинний насос SQE1-125 1,68кВт 220-240 | C19: DC | F19: 1085.9165 | G19: =IFERROR(F19*(1-VLOOKUP(C19,ГОЛОВНА!K:L,2,0)), "-") -> 1085.9165
A20: 96510147 | B20: Глибинний насос SQE1-140 1,68кВт 220-240 | C20: DC | F20: 1121.114 | G20: =IFERROR(F20*(1-VLOOKUP(C20,ГОЛОВНА!K:L,2,0)), "-") -> 1121.114
A21: 96510148 | B21: Глибинний насос SQE1-155 1,85кВт 220-240 | C21: DC | F21: 1156.321 | G21: =IFERROR(F21*(1-VLOOKUP(C21,ГОЛОВНА!K:L,2,0)), "-") -> 1156.321
A22: 96510150 | B22: Глибинний насос SQE2-35 0,7кВт 220-240В | C22: DC | F22: 621.224 | G22: =IFERROR(F22*(1-VLOOKUP(C22,ГОЛОВНА!K:L,2,0)), "-") -> 621.224
A23: 96510151 | B23: Глибинний насос SQE2-55 0,7кВт 220-240В | C23: DC | F23: 693.54 | G23: =IFERROR(F23*(1-VLOOKUP(C23,ГОЛОВНА!K:L,2,0)), "-") -> 693.54
A24: 96510152 | B24: Глибинний насос SQE2-70 1,15кВт 220-240В | C24: DC | F24: 729.22 | G24: =IFERROR(F24*(1-VLOOKUP(C24,ГОЛОВНА!K:L,2,0)), "-") -> 729.22
A25: 96510153 | B25: Глибинний насос SQE2-85 1,15кВт 220-240В | C25: DC | F25: 815.366 | G25: =IFERROR(F25*(1-VLOOKUP(C25,ГОЛОВНА!K:L,2,0)), "-") -> 815.366
A26: 96510154 | B26: Глибинний насос SQE2-100 1,68кВт 220-240 | C26: DC | F26: 1011.9495 | G26: =IFERROR(F26*(1-VLOOKUP(C26,ГОЛОВНА!K:L,2,0)), "-") -> 1011.9495
A27: 96510155 | B27: Глибинний насос SQE2-115 1,85кВт 220-240 | C27: DC | F27: 1047.1375 | G27: =IFERROR(F27*(1-VLOOKUP(C27,ГОЛОВНА!K:L,2,0)), "-") -> 1047.1375
A28: 96510156 | B28: Глибинний насос SQE3-30 0,7кВт 220-240В | C28: DC | F28: 595.7165 | G28: =IFERROR(F28*(1-VLOOKUP(C28,ГОЛОВНА!K:L,2,0)), "-") -> 595.7165
A29: 96510157 | B29: Глибинний насос SQE3-40 0,7кВт 220-240В | C29: DC | F29: 630.9235 | G29: =IFERROR(F29*(1-VLOOKUP(C29,ГОЛОВНА!K:L,2,0)), "-") -> 630.9235
A30: 96510158 | B30: Глибинний насос SQE3-55 1,15кВт 220-240В | C30: DC | F30: 729.22 | G30: =IFERROR(F30*(1-VLOOKUP(C30,ГОЛОВНА!K:L,2,0)), "-") -> 729.22
A31: 96510159 | B31: Глибинний насос SQE3-65 1,15кВт 220-240В | C31: DC | F31: 858.28 | G31: =IFERROR(F31*(1-VLOOKUP(C31,ГОЛОВНА!K:L,2,0)), "-") -> 858.28
A32: 96510160 | B32: Глибинний насос SQE3-80 1,68кВт 220-240В | C32: DC | F32: 1065.21 | G32: =IFERROR(F32*(1-VLOOKUP(C32,ГОЛОВНА!K:L,2,0)), "-") -> 1065.21
A33: 96510161 | B33: Глибинний насос SQE3-95 1,68кВт 220-240В | C33: DC | F33: 1047.1375 | G33: =IFERROR(F33*(1-VLOOKUP(C33,ГОЛОВНА!K:L,2,0)), "-") -> 1047.1375
A34: 96510162 | B34: Глибинний насос SQE3-105 1,85кВт 220-240 | C34: DC | F34: 1139.26 | G34: =IFERROR(F34*(1-VLOOKUP(C34,ГОЛОВНА!K:L,2,0)), "-") -> 1139.26
A35: 96510163 | B35: Глибинний насос SQE5-15 0,7кВт 220-240В | C35: DC | F35: 588.449 | G35: =IFERROR(F35*(1-VLOOKUP(C35,ГОЛОВНА!K:L,2,0)), "-") -> 588.449
A36: 96510164 | B36: Глибинний насос SQE5-25 0,7кВт 220-240В | C36: DC | F36: 613.947 | G36: =IFERROR(F36*(1-VLOOKUP(C36,ГОЛОВНА!K:L,2,0)), "-") -> 613.947
A37: 96510165 | B37: Глибинний насос SQE5-35 1,15кВт 220-240В | C37: DC | F37: 729.22 | G37: =IFERROR(F37*(1-VLOOKUP(C37,ГОЛОВНА!K:L,2,0)), "-") -> 729.22
A38: 96510166 | B38: Глибинний насос SQE5-50 1,68кВт 220-240В | C38: DC | F38: 815.366 | G38: =IFERROR(F38*(1-VLOOKUP(C38,ГОЛОВНА!K:L,2,0)), "-") -> 815.366
A39: 96510167 | B39: Глибинний насос SQE5-60 1,68кВт 220-240В | C39: DC | F39: 1102.25 | G39: =IFERROR(F39*(1-VLOOKUP(C39,ГОЛОВНА!K:L,2,0)), "-") -> 1102.25
A40: 96510168 | B40: Глибинний насос SQE5-70 1,85кВт 220-240В | C40: DC | F40: 1139.26 | G40: =IFERROR(F40*(1-VLOOKUP(C40,ГОЛОВНА!K:L,2,0)), "-") -> 1139.26
A41: 96510169 | B41: Глибинний насос SQE7-15 0,7кВт 220-240В | C41: DC | F41: 805.619 | G41: =IFERROR(F41*(1-VLOOKUP(C41,ГОЛОВНА!K:L,2,0)), "-") -> 805.619
A42: 96510170 | B42: Глибинний насос SQE7-30 1,15кВт 220-240В | C42: DC | F42: 876.0615 | G42: =IFERROR(F42*(1-VLOOKUP(C42,ГОЛОВНА!K:L,2,0)), "-") -> 876.0615
A43: 96510171 | B43: Глибинний насос SQE7-40 1,68кВт 220-240В | C43: DC | F43: 1121.114 | G43: =IFERROR(F43*(1-VLOOKUP(C43,ГОЛОВНА!K:L,2,0)), "-") -> 1121.114
A44: 96524509 | B44: Занурений насос SQE5-50 + 40m 3x1,5mm | C44: DC | F44: 1549.11 | G44: =IFERROR(F44*(1-VLOOKUP(C44,ГОЛОВНА!K:L,2,0)), "-") -> 1549.11
A45: 96510178 | B45: Глибинний насос SQ1-35 0,7кВт 220-240В | C45: DC | F45: 527.5556 | G45: =IFERROR(F45*(1-VLOOKUP(C45,ГОЛОВНА!K:L,2,0)), "-") -> 527.5556
A46: 96510179 | B46: Глибинний насос SQ1-50 0,7кВт 220-240В | C46: DC | F46: 569.8664 | G46: =IFERROR(F46*(1-VLOOKUP(C46,ГОЛОВНА!K:L,2,0)), "-") -> 569.8664
A47: 96510190 | B47: Глибинний насос SQ1-65 0,7кВт 220-240В | C47: DC | F47: 613.3824 | G47: =IFERROR(F47*(1-VLOOKUP(C47,ГОЛОВНА!K:L,2,0)), "-") -> 613.3824
A48: 96510191 | B48: Глибинний насос SQ1-80 1,15кВт 220-240В | C48: DC | F48: 740.2504 | G48: =IFERROR(F48*(1-VLOOKUP(C48,ГОЛОВНА!K:L,2,0)), "-") -> 740.2504
A49: 96510192 | B49: Глибинний насос SQ1-95 1,15кВт 220-240В | C49: DC | F49: 770.8404 | G49: =IFERROR(F49*(1-VLOOKUP(C49,ГОЛОВНА!K:L,2,0)), "-") -> 770.8404
A50: 96510193 | B50: Глибинний насос SQ1-110 1,15кВт 220-240В | C50: DC | F50: 801.4028 | G50: =IFERROR(F50*(1-VLOOKUP(C50,ГОЛОВНА!K:L,2,0)), "-") -> 801.4028
A51: 96510194 | B51: Глибинний насос SQ1-125 1,68кВт 220-240В | C51: DC | F51: 955.2912 | G51: =IFERROR(F51*(1-VLOOKUP(C51,ГОЛОВНА!K:L,2,0)), "-") -> 955.2912
A52: 96510195 | B52: Глибинний насос SQ1-140 1,68кВт 220-240В | C52: DC | F52: 987.0128 | G52: =IFERROR(F52*(1-VLOOKUP(C52,ГОЛОВНА!K:L,2,0)), "-") -> 987.0128
A53: 96510196 | B53: Глибинний насос SQ1-155 1,85кВт 220-240В | C53: DC | F53: 1017.5752 | G53: =IFERROR(F53*(1-VLOOKUP(C53,ГОЛОВНА!K:L,2,0)), "-") -> 1017.5752
A54: 96510198 | B54: Глибинний насос SQ2-35 0,7кВт 220-240В | C54: DC | F54: 545.2564 | G54: =IFERROR(F54*(1-VLOOKUP(C54,ГОЛОВНА!K:L,2,0)), "-") -> 545.2564
A55: 96510199 | B55: Глибинний насос SQ2-55 0,7кВт 220-240В | C55: DC | F55: 579.2872 | G55: =IFERROR(F55*(1-VLOOKUP(C55,ГОЛОВНА!K:L,2,0)), "-") -> 579.2872
A56: 96510200 | B56: Глибинний насос SQ2-70 1,15кВт 220-240В | C56: DC | F56: 641.5436 | G56: =IFERROR(F56*(1-VLOOKUP(C56,ГОЛОВНА!K:L,2,0)), "-") -> 641.5436
A57: 96510201 | B57: Глибинний насос SQ2-85 1,15кВт 220-240В | C57: DC | F57: 717.968 | G57: =IFERROR(F57*(1-VLOOKUP(C57,ГОЛОВНА!K:L,2,0)), "-") -> 717.968
A58: 96510202 | B58: Глибинний насос SQ2-100 1,68кВт 220-240В | C58: DC | F58: 890.652 | G58: =IFERROR(F58*(1-VLOOKUP(C58,ГОЛОВНА!K:L,2,0)), "-") -> 890.652
A59: 96510203 | B59: Глибинний насос SQ2-115 1,85кВт 220-240В | C59: DC | F59: 922.3644 | G59: =IFERROR(F59*(1-VLOOKUP(C59,ГОЛОВНА!K:L,2,0)), "-") -> 922.3644
A60: 96524434 | B60: Глибинний насос з кабелем SQ2-70 (30м, 3 | C60: DC | F60: 774.5756 | G60: =IFERROR(F60*(1-VLOOKUP(C60,ГОЛОВНА!K:L,2,0)), "-") -> 774.5756
A61: 96160906 | B61: SQ pump cpl. with fitting s | C61: DC | F61: 713.064768 | G61: =IFERROR(F61*(1-VLOOKUP(C61,ГОЛОВНА!K:L,2,0)), "-") -> 713.064768
A62: 96160907 | B62: SQ pump cpl. with fitting s | C62: DC | F62: 854.7628 | G62: =IFERROR(F62*(1-VLOOKUP(C62,ГОЛОВНА!K:L,2,0)), "-") -> 854.7628
A63: 96160908 | B63: Пакет для водопостачання SQ3-40 з кабеле | C63: DC | F63: 907.5064 | G63: =IFERROR(F63*(1-VLOOKUP(C63,ГОЛОВНА!K:L,2,0)), "-") -> 907.5064
A64: 96510204 | B64: Глибинний насос SQ3-30 0,7кВт 220-240В | C64: DC | F64: 524.0688 | G64: =IFERROR(F64*(1-VLOOKUP(C64,ГОЛОВНА!K:L,2,0)), "-") -> 524.0688
A65: 96510205 | B65: Глибинний насос SQ3-40 0,7кВт 220-240В | C65: DC | F65: 554.6496 | G65: =IFERROR(F65*(1-VLOOKUP(C65,ГОЛОВНА!K:L,2,0)), "-") -> 554.6496
A66: 96510206 | B66: Глибинний насос SQ3-55 1,15кВт 220-240В | C66: DC | F66: 641.5436 | G66: =IFERROR(F66*(1-VLOOKUP(C66,ГОЛОВНА!K:L,2,0)), "-") -> 641.5436
A67: 96510207 | B67: Глибинний насос SQ3-65 1,15кВт 220-240В | C67: DC | F67: 717.968 | G67: =IFERROR(F67*(1-VLOOKUP(C67,ГОЛОВНА!K:L,2,0)), "-") -> 717.968
A68: 96510208 | B68: Глибинний насос SQ3-80 1,68кВт 220-240В | C68: DC | F68: 890.652 | G68: =IFERROR(F68*(1-VLOOKUP(C68,ГОЛОВНА!K:L,2,0)), "-") -> 890.652
A69: 96510209 | B69: Глибинний насос SQ3-95 1,68кВт 220-240В | C69: DC | F69: 922.3644 | G69: =IFERROR(F69*(1-VLOOKUP(C69,ГОЛОВНА!K:L,2,0)), "-") -> 922.3644
A70: 96510210 | B70: Глибинний насос SQ3-105 1,85кВт 220-240В | C70: DC | F70: 952.936 | G70: =IFERROR(F70*(1-VLOOKUP(C70,ГОЛОВНА!K:L,2,0)), "-") -> 952.936
A71: 96524445 | B71: Глибинний насос з кабелем SQ3-80 (30м, 3 | C71: DC | F71: 1023.454 | G71: =IFERROR(F71*(1-VLOOKUP(C71,ГОЛОВНА!K:L,2,0)), "-") -> 1023.454
A72: 96510211 | B72: Глибинний насос SQ5-15 0,7кВт 220-240В | C72: DC | F72: 518.2176 | G72: =IFERROR(F72*(1-VLOOKUP(C72,ГОЛОВНА!K:L,2,0)), "-") -> 518.2176
A73: 96510212 | B73: Глибинний насос SQ5-25 0,7кВт 220-240В | C73: DC | F73: 530.012 | G73: =IFERROR(F73*(1-VLOOKUP(C73,ГОЛОВНА!K:L,2,0)), "-") -> 530.012
A74: 96510213 | B74: Глибинний насос SQ5-35 1,15кВт 220-240В | C74: DC | F74: 641.5436 | G74: =IFERROR(F74*(1-VLOOKUP(C74,ГОЛОВНА!K:L,2,0)), "-") -> 641.5436
A75: 96510214 | B75: Глибинний насос SQ5-50 1,68кВт 220-240В | C75: DC | F75: 717.968 | G75: =IFERROR(F75*(1-VLOOKUP(C75,ГОЛОВНА!K:L,2,0)), "-") -> 717.968
A76: 96510215 | B76: Глибинний насос SQ5-60 1,68кВт 220-240В | C76: DC | F76: 922.3644 | G76: =IFERROR(F76*(1-VLOOKUP(C76,ГОЛОВНА!K:L,2,0)), "-") -> 922.3644
A77: 96510217 | B77: Глибинний насос SQ5-70 1,85кВт 220-240В | C77: DC | F77: 952.936 | G77: =IFERROR(F77*(1-VLOOKUP(C77,ГОЛОВНА!K:L,2,0)), "-") -> 952.936
A78: 96510218 | B78: Глибинний насос SQ7-15 0,7кВт 220-240В | C78: DC | F78: 709.6972 | G78: =IFERROR(F78*(1-VLOOKUP(C78,ГОЛОВНА!K:L,2,0)), "-") -> 709.6972
A79: 96510219 | B79: Глибинний насос SQ7-30 1,15кВт 220-240В | C79: DC | F79: 770.8404 | G79: =IFERROR(F79*(1-VLOOKUP(C79,ГОЛОВНА!K:L,2,0)), "-") -> 770.8404
A80: 96510220 | B80: Глибинний насос SQ7-40 1,68кВт 220-240В | C80: DC | F80: 987.0128 | G80: =IFERROR(F80*(1-VLOOKUP(C80,ГОЛОВНА!K:L,2,0)), "-") -> 987.0128
A81: 96160370 | B81: Занурений насос SQ 1- 35 N 0.70kW 200 | C81: DC | F81: 591.0264 | G81: =IFERROR(F81*(1-VLOOKUP(C81,ГОЛОВНА!K:L,2,0)), "-") -> 591.0264
A82: 96160371 | B82: Глибинний насос SQ 1- 50 N 0.70kW 200 | C82: DC | F82: 638.4064 | G82: =IFERROR(F82*(1-VLOOKUP(C82,ГОЛОВНА!K:L,2,0)), "-") -> 638.4064
A83: 96160372 | B83: Занурений насос SQ 1- 65 N 0.70kW 200 | C83: DC | F83: 711.1232 | G83: =IFERROR(F83*(1-VLOOKUP(C83,ГОЛОВНА!K:L,2,0)), "-") -> 711.1232
A84: 96160373 | B84: Занурений насос SQ 1- 80 N 1.15kW 200 | C84: DC | F84: 829.2328 | G84: =IFERROR(F84*(1-VLOOKUP(C84,ГОЛОВНА!K:L,2,0)), "-") -> 829.2328
A85: 96160374 | B85: Насос SQ 1- 95 N 1.15kW 200-240V 50/60 | C85: DC | F85: 863.5212 | G85: =IFERROR(F85*(1-VLOOKUP(C85,ГОЛОВНА!K:L,2,0)), "-") -> 863.5212
A86: 96160375 | B86: Занурений насос SQ 1-110 N 1.15kW 200 | C86: DC | F86: 897.7452 | G86: =IFERROR(F86*(1-VLOOKUP(C86,ГОЛОВНА!K:L,2,0)), "-") -> 897.7452
A87: 96160376 | B87: Занурений насос SQ 1-125 N 1.68kW 200 | C87: DC | F87: 1070.19 | G87: =IFERROR(F87*(1-VLOOKUP(C87,ГОЛОВНА!K:L,2,0)), "-") -> 1070.19
A88: 96160377 | B88: Занурений насос SQ 1-140 N 1.68kW 200 | C88: DC | F88: 1105.7572 | G88: =IFERROR(F88*(1-VLOOKUP(C88,ГОЛОВНА!K:L,2,0)), "-") -> 1105.7572
A89: 96160378 | B89: Занурений насос SQ 1-155 N 1.73kW 200 | C89: DC | F89: 1139.926 | G89: =IFERROR(F89*(1-VLOOKUP(C89,ГОЛОВНА!K:L,2,0)), "-") -> 1139.926
A90: 96160379 | B90: Занурений насос SQ 2- 35 N 0.70kW 200 | C90: DC | F90: 610.7512 | G90: =IFERROR(F90*(1-VLOOKUP(C90,ГОЛОВНА!K:L,2,0)), "-") -> 610.7512
A91: 96160380 | B91: Занурений насос SQ 2- 55 N 0.70kW 200 | C91: DC | F91: 648.9588 | G91: =IFERROR(F91*(1-VLOOKUP(C91,ГОЛОВНА!K:L,2,0)), "-") -> 648.9588
A92: 96160381 | B92: Глибинний насос SQ 2- 70 N 1.15kW 200 | C92: DC | F92: 718.7224 | G92: =IFERROR(F92*(1-VLOOKUP(C92,ГОЛОВНА!K:L,2,0)), "-") -> 718.7224
A93: 96160382 | B93: Занурений насос SQ 2- 85 N 1.15kW 200 | C93: DC | F93: 804.264 | G93: =IFERROR(F93*(1-VLOOKUP(C93,ГОЛОВНА!K:L,2,0)), "-") -> 804.264
A94: 96160383 | B94: Занурений насос SQ 2-100 N 1.68kW 200 | C94: DC | F94: 997.74 | G94: =IFERROR(F94*(1-VLOOKUP(C94,ГОЛОВНА!K:L,2,0)), "-") -> 997.74
A95: 96160384 | B95: Глибинний насос SQ2-115 N 1.85кВт 200-24 | C95: DC | F95: 1033.3072 | G95: =IFERROR(F95*(1-VLOOKUP(C95,ГОЛОВНА!K:L,2,0)), "-") -> 1033.3072
A96: 96160386 | B96: Занурений насос SQ 3- 30 N 0.63kW 200 | C96: DC | F96: 587.1256 | G96: =IFERROR(F96*(1-VLOOKUP(C96,ГОЛОВНА!K:L,2,0)), "-") -> 587.1256
A97: 96160387 | B97: Глибинний насос SQ3-40 N 0.63kW 200-240V | C97: DC | F97: 621.3036 | G97: =IFERROR(F97*(1-VLOOKUP(C97,ГОЛОВНА!K:L,2,0)), "-") -> 621.3036
A98: 96160388 | B98: Занурений насос SQ 3- 55 N 1.15kW 200 | C98: DC | F98: 718.7224 | G98: =IFERROR(F98*(1-VLOOKUP(C98,ГОЛОВНА!K:L,2,0)), "-") -> 718.7224
A99: 96160389 | B99: Занурений насос SQ 3- 65 N 1.05kW 200 | C99: DC | F99: 804.264 | G99: =IFERROR(F99*(1-VLOOKUP(C99,ГОЛОВНА!K:L,2,0)), "-") -> 804.264
A100: 96160390 | B100: Занурений насос SQ 3- 80 N 1.68kW 200 | C100: DC | F100: 997.74 | G100: =IFERROR(F100*(1-VLOOKUP(C100,ГОЛОВНА!K:L,2,0)), "-") -> 997.74
A101: 96160391 | B101: Занурений насос SQ 3- 95 N 1.68kW 200 | C101: DC | F101: 1033.3072 | G101: =IFERROR(F101*(1-VLOOKUP(C101,ГОЛОВНА!K:L,2,0)), "-") -> 1033.3072
A102: 96160392 | B102: Занурений насос SQ 3-105 N 1.85kW 200 | C102: DC | F102: 1067.5312 | G102: =IFERROR(F102*(1-VLOOKUP(C102,ГОЛОВНА!K:L,2,0)), "-") -> 1067.5312
A103: 96160393 | B103: Занурений насос SQ 5- 15 N 0.70kW 200 | C103: DC | F103: 580.4832 | G103: =IFERROR(F103*(1-VLOOKUP(C103,ГОЛОВНА!K:L,2,0)), "-") -> 580.4832
A104: 96160394 | B104: Занурений насос SQ 5- 25 N 0.70kW 200 | C104: DC | F104: 604.2008 | G104: =IFERROR(F104*(1-VLOOKUP(C104,ГОЛОВНА!K:L,2,0)), "-") -> 604.2008
A105: 96160395 | B105: Занурений насос SQ 5- 35 N 1.15kW 200 | C105: DC | F105: 718.7224 | G105: =IFERROR(F105*(1-VLOOKUP(C105,ГОЛОВНА!K:L,2,0)), "-") -> 718.7224
A106: 96160396 | B106: Занурений насос SQ 5- 50 N 1.68kW 200 | C106: DC | F106: 801.6328 | G106: =IFERROR(F106*(1-VLOOKUP(C106,ГОЛОВНА!K:L,2,0)), "-") -> 801.6328
A107: 96160397 | B107: Занурений насос SQ 5- 60 N 1.68kW 200 | C107: DC | F107: 1033.3072 | G107: =IFERROR(F107*(1-VLOOKUP(C107,ГОЛОВНА!K:L,2,0)), "-") -> 1033.3072
A108: 96160398 | B108: Занурений насос SQ 5- 70 N 1.85kW 200 | C108: DC | F108: 1067.5312 | G108: =IFERROR(F108*(1-VLOOKUP(C108,ГОЛОВНА!K:L,2,0)), "-") -> 1067.5312
A109: 96160399 | B109: Занурений насос SQ 7- 15 N 0.70kW 200 | C109: DC | F109: 795.0364 | G109: =IFERROR(F109*(1-VLOOKUP(C109,ГОЛОВНА!K:L,2,0)), "-") -> 795.0364
A110: 96160400 | B110: Занурений насос SQ 7- 30 N 1.15kW 200 | C110: DC | F110: 863.5212 | G110: =IFERROR(F110*(1-VLOOKUP(C110,ГОЛОВНА!K:L,2,0)), "-") -> 863.5212
A111: 96160401 | B111: Занурений насос SQ 7- 40 N 1.68kW 200 | C111: DC | F111: 1105.7572 | G111: =IFERROR(F111*(1-VLOOKUP(C111,ГОЛОВНА!K:L,2,0)), "-") -> 1105.7572
B113: Аксесуари
A114: 96524504 | B114: Комплект пост. тиску без насоса SQE | C114: DC | F114: 552.024 | G114: =IFERROR(F114*(1-VLOOKUP(C114,ГОЛОВНА!K:L,2,0)), "-") -> 552.024
A115: 00ID8952 | B115: Реле тиску FF4-4 DAY 0,22-4 bar | C115: CW | F115: 59.12 | G115: =IFERROR(F115*(1-VLOOKUP(C115,ГОЛОВНА!K:L,2,0)), "-") -> 59.12
A116: 00ID8953 | B116: Реле тиску FF4-8 DAY 0,5-8 bar | C116: CW | F116: 60.585 | G116: =IFERROR(F116*(1-VLOOKUP(C116,ГОЛОВНА!K:L,2,0)), "-") -> 60.585
A117: 00ID8954 | B117: Реле тиску FF4-16 DAY 1-16 bar | C117: CW | F117: 68.49 | G117: =IFERROR(F117*(1-VLOOKUP(C117,ГОЛОВНА!K:L,2,0)), "-") -> 68.49
A118: 96021473 | B118: Термоусадкова муфта для кабелю 3х6мм2, 3 | C118: DC | F118: 24.9 | G118: =IFERROR(F118*(1-VLOOKUP(C118,ГОЛОВНА!K:L,2,0)), "-") -> 24.9
A119: 96037559 | B119: Реле протоку (SQE 5-7qm) | C119: DC | F119: 407.26 | G119: 407.26
A120: 96040636 | B120: Компл. для водопостачання для SQ 1 / 2 / | C120: DC | F120: 516.3025 | G120: 516.3025
A121: 96436753 | B121: Блок керування CU301 в зборі | C121: DC | F121: 261.9785 | G121: =IFERROR(F121*(1-VLOOKUP(C121,ГОЛОВНА!K:L,2,0)), "-") -> 261.9785
A122: 97512995 | B122: Накладні хомути (2шт.) D68/D88 | C122: DC | F122: 76.109 | G122: =IFERROR(F122*(1-VLOOKUP(C122,ГОЛОВНА!K:L,2,0)), "-") -> 76.109
A123: 98148594 | B123: Кожух охолодження SQ/SQE | C123: DC | F123: 240.4225 | G123: =IFERROR(F123*(1-VLOOKUP(C123,ГОЛОВНА!K:L,2,0)), "-") -> 240.4225
A124: 00ID7946 | B124: Кабель для питної води 3x1.5 мм2 | C124: WS | F124: 2.8 | G124: =IFERROR(F124*(1-VLOOKUP(C124,ГОЛОВНА!K:L,2,0)), "-") -> 2.8
A125: 00ID7947 | B125: Кабель для питної води 3x2.5 мм2 | C125: WS | F125: 4.09 | G125: =IFERROR(F125*(1-VLOOKUP(C125,ГОЛОВНА!K:L,2,0)), "-") -> 4.09
A127: SP, SP-NE | G127: Глибинні насоси для професійного водопостачання
A128: 98779739 | B128: Глиб. насос SP9-10 Rp2 4"3X380-415/50 2 | C128: CW | F128: 1228.3656 | G128: =IFERROR(F128*(1-VLOOKUP(C128,ГОЛОВНА!K:L,2,0)), "-") -> 1228.3656
A129: 98699312 | B129: Глиб. насос SP11- 3 Rp2 4"3X380-415/50 | C129: CW | F129: 676.5252 | G129: =IFERROR(F129*(1-VLOOKUP(C129,ГОЛОВНА!K:L,2,0)), "-") -> 676.5252
A130: 98699313 | B130: Глиб. насос SP11- 5 Rp2 4"3X380-415/50 | C130: CW | F130: 833.2482 | G130: =IFERROR(F130*(1-VLOOKUP(C130,ГОЛОВНА!K:L,2,0)), "-") -> 833.2482
A131: 98699315 | B131: Глиб. насос SP11-11 Rp2 4"3X380-415/50 | C131: CW | F131: 1334.568 | G131: =IFERROR(F131*(1-VLOOKUP(C131,ГОЛОВНА!K:L,2,0)), "-") -> 1334.568
A132: 98699317 | B132: Глиб. насос SP11-20 Rp2 4"3X380-415/50 | C132: CW | F132: 2234.9526 | G132: =IFERROR(F132*(1-VLOOKUP(C132,ГОЛОВНА!K:L,2,0)), "-") -> 2234.9526
A133: 05051K06 | B133: Глибинна помпа 50 Hz | C133: CW | F133: 576.916 | G133: =IFERROR(F133*(1-VLOOKUP(C133,ГОЛОВНА!K:L,2,0)), "-") -> 576.916
A134: 98699293 | B134: Глиб. насос SP11- 3 Rp2 4"1X230/50 0.75 | C134: CW | F134: 676.5252 | G134: =IFERROR(F134*(1-VLOOKUP(C134,ГОЛОВНА!K:L,2,0)), "-") -> 676.5252
A135: 98699321 | B135: Глиб. насос SP11- 3N Rp2 4"3X380-415/50 | C135: CW | F135: 1615.221 | G135: =IFERROR(F135*(1-VLOOKUP(C135,ГОЛОВНА!K:L,2,0)), "-") -> 1615.221
A136: 98699294 | B136: Глиб. насос SP11- 5 Rp2 4"1X230/50 1.10 | C136: CW | F136: 833.2482 | G136: =IFERROR(F136*(1-VLOOKUP(C136,ГОЛОВНА!K:L,2,0)), "-") -> 833.2482
A137: 98699322 | B137: Глиб. насос SP11- 5N Rp2 4"3X380-415/50 | C137: CW | F137: 1816.5894 | G137: =IFERROR(F137*(1-VLOOKUP(C137,ГОЛОВНА!K:L,2,0)), "-") -> 1816.5894
A138: 98699295 | B138: Глиб. насос SP11- 7 Rp2 4"1X230/50 1.5k | C138: CW | F138: 1003.884 | G138: =IFERROR(F138*(1-VLOOKUP(C138,ГОЛОВНА!K:L,2,0)), "-") -> 1003.884
A139: 98699314 | B139: Глибинний насос SP11- 7 Rp2 4"3X380-415/ | C139: CW | F139: 1003.884 | G139: =IFERROR(F139*(1-VLOOKUP(C139,ГОЛОВНА!K:L,2,0)), "-") -> 1003.884
A140: 98699323 | B140: Глиб. насос SP11- 7N Rp2 4"3X380-415/50 | C140: CW | F140: 2004.3816 | G140: =IFERROR(F140*(1-VLOOKUP(C140,ГОЛОВНА!K:L,2,0)), "-") -> 2004.3816
A141: 98699296 | B141: Глибинний насосSP11-11 Rp2 4"1X220- | C141: CW | F141: 1559.4066 | G141: =IFERROR(F141*(1-VLOOKUP(C141,ГОЛОВНА!K:L,2,0)), "-") -> 1559.4066
A142: 98699324 | B142: Глиб. насос SP11-11N Rp2 4"3X380-415/50 | C142: CW | F142: 2396.3676 | G142: =IFERROR(F142*(1-VLOOKUP(C142,ГОЛОВНА!K:L,2,0)), "-") -> 2396.3676
A143: 98699316 | B143: Глиб. насос SP11-15 Rp2 4"3X380-415/50 | C143: CW | F143: 1830.8184 | G143: =IFERROR(F143*(1-VLOOKUP(C143,ГОЛОВНА!K:L,2,0)), "-") -> 1830.8184
A144: 98699325 | B144: Глиб. насос SP11-15N Rp2 4"3X380-415/50 | C144: CW | F144: 2807.1318 | G144: =IFERROR(F144*(1-VLOOKUP(C144,ГОЛОВНА!K:L,2,0)), "-") -> 2807.1318
A145: 98699318 | B145: Глиб. насос SP11-24 Rp2 4"3X380-415/50 | C145: CW | F145: 2565.9528 | G145: =IFERROR(F145*(1-VLOOKUP(C145,ГОЛОВНА!K:L,2,0)), "-") -> 2565.9528
A146: 98699336 | B146: Глиб. насос SP14- 4 Rp2 4"1X230/50 1.10 | C146: CW | F146: 772.64 | G146: =IFERROR(F146*(1-VLOOKUP(C146,ГОЛОВНА!K:L,2,0)), "-") -> 772.64
A147: 98699353 | B147: Глиб. насос SP14- 4 Rp2 4"3X380-415/50 | C147: CW | F147: 772.64 | G147: =IFERROR(F147*(1-VLOOKUP(C147,ГОЛОВНА!K:L,2,0)), "-") -> 772.64
A148: 98699362 | B148: Глиб. насос SP14- 4N Rp2 4"3X380-415/50 | C148: CW | F148: 1714.58 | G148: =IFERROR(F148*(1-VLOOKUP(C148,ГОЛОВНА!K:L,2,0)), "-") -> 1714.58
A149: 98699337 | B149: Глиб. насос SP14- 6 Rp2 4"1X230/50 1.5k | C149: CW | F149: 949.15 | G149: =IFERROR(F149*(1-VLOOKUP(C149,ГОЛОВНА!K:L,2,0)), "-") -> 949.15
A150: 98699354 | B150: Глиб. насос SP14- 6 Rp2 4"3X380-415/50 | C150: CW | F150: 949.15 | G150: =IFERROR(F150*(1-VLOOKUP(C150,ГОЛОВНА!K:L,2,0)), "-") -> 949.15
A151: 98699363 | B151: Глиб. насос SP14- 6N Rp2 4"3X380-415/50 | C151: CW | F151: 1912.5 | G151: =IFERROR(F151*(1-VLOOKUP(C151,ГОЛОВНА!K:L,2,0)), "-") -> 1912.5
A152: 98699338 | B152: Глиб. насос SP14- 8 Rp2 4"1X220-230/50 | C152: CW | F152: 1379.45 | G152: =IFERROR(F152*(1-VLOOKUP(C152,ГОЛОВНА!K:L,2,0)), "-") -> 1379.45
A153: 98699355 | B153: Глиб. насос SP14- 8 Rp2 4"3X380-415/50 | C153: CW | F153: 1158.99 | G153: =IFERROR(F153*(1-VLOOKUP(C153,ГОЛОВНА!K:L,2,0)), "-") -> 1158.99
A154: 98699364 | B154: Глиб. насос SP14- 8N Rp2 4"3X380-415/50 | C154: CW | F154: 2125.28 | G154: =IFERROR(F154*(1-VLOOKUP(C154,ГОЛОВНА!K:L,2,0)), "-") -> 2125.28
A155: 98699365 | B155: Глиб. насос SP14-11N Rp2 4"3X380-415/50 | C155: CW | F155: 2455.23 | G155: =IFERROR(F155*(1-VLOOKUP(C155,ГОЛОВНА!K:L,2,0)), "-") -> 2455.23
A156: 98699357 | B156: Глиб. насос SP14-13 Rp2 4"3X380-415/50 | C156: CW | F156: 1726.68 | G156: =IFERROR(F156*(1-VLOOKUP(C156,ГОЛОВНА!K:L,2,0)), "-") -> 1726.68
A157: 98699366 | B157: Глиб. насос SP14-13N Rp2 4"3X380-415/50 | C157: CW | F157: 2649.73 | G157: =IFERROR(F157*(1-VLOOKUP(C157,ГОЛОВНА!K:L,2,0)), "-") -> 2649.73
A158: 98699358 | B158: Глиб. насос SP14-15 Rp2 4"3X380-415/50 | C158: CW | F158: 1947.75 | G158: =IFERROR(F158*(1-VLOOKUP(C158,ГОЛОВНА!K:L,2,0)), "-") -> 1947.75
A159: 98699359 | B159: Глиб. насос SP14-17 Rp2 4"3X380-415/50 | C159: CW | F159: 2076.78 | G159: =IFERROR(F159*(1-VLOOKUP(C159,ГОЛОВНА!K:L,2,0)), "-") -> 2076.78
A160: 98699360 | B160: Глиб. насос SP14-20 Rp2 4"3X380-415/50 | C160: CW | F160: 2355.19 | G160: =IFERROR(F160*(1-VLOOKUP(C160,ГОЛОВНА!K:L,2,0)), "-") -> 2355.19
A161: 98699371 | B161: Глиб. насос SP14-20 Rp2 6"3X380-415/50 | C161: CW | F161: 2959.41 | G161: =IFERROR(F161*(1-VLOOKUP(C161,ГОЛОВНА!K:L,2,0)), "-") -> 2959.41
A162: 98699361 | B162: Глиб. насос SP14-23 Rp2 4"3X380-415/50 | C162: CW | F162: 2545.14 | G162: =IFERROR(F162*(1-VLOOKUP(C162,ГОЛОВНА!K:L,2,0)), "-") -> 2545.14
A163: 12A02104 | B163: Глиб. насос SP17- 4 Rp2½ 4"1X220-230/50 | C163: WS | F163: 1728.449 | G163: =IFERROR(F163*(1-VLOOKUP(C163,ГОЛОВНА!K:L,2,0)), "-") -> 1728.449
A164: 08001K09 | B164: Глибинна помпа SP1A- 9 0.37kW 380-415V 5 | C164: CW | F164: 563.6825 | G164: =IFERROR(F164*(1-VLOOKUP(C164,ГОЛОВНА!K:L,2,0)), "-") -> 563.6825
A165: 08001K14 | B165: Глибинна помпа SP1A-14 0.37kW 380-415V 5 | C165: CW | F165: 628.0925 | G165: =IFERROR(F165*(1-VLOOKUP(C165,ГОЛОВНА!K:L,2,0)), "-") -> 628.0925
A166: 09001K06 | B166: Глибинна помпа SP2A- 6 0.37kW 380-415V 5 | C166: CW | F166: 547.96 | G166: =IFERROR(F166*(1-VLOOKUP(C166,ГОЛОВНА!K:L,2,0)), "-") -> 547.96
A167: 09001K09 | B167: Глибинна помпа SP2A- 9 0.37kW 380-415V 5 | C167: CW | F167: 576.3175 | G167: =IFERROR(F167*(1-VLOOKUP(C167,ГОЛОВНА!K:L,2,0)), "-") -> 576.3175
A168: 09001K13 | B168: Глибинна помпа SP2A-13 0.55kW 380-415V 5 | C168: CW | F168: 635.0275 | G168: =IFERROR(F168*(1-VLOOKUP(C168,ГОЛОВНА!K:L,2,0)), "-") -> 635.0275
A169: 9007513 | B169: Глибинна помпа SP2A-13, 0.55kW 1x220-240 | C169: CW | F169: 644.9455 | G169: =IFERROR(F169*(1-VLOOKUP(C169,ГОЛОВНА!K:L,2,0)), "-") -> 644.9455
A170: 09001K18 | B170: Глибинна помпа SP2A-18 0.75kW 380-415V 5 | C170: CW | F170: 699.352 | G170: =IFERROR(F170*(1-VLOOKUP(C170,ГОЛОВНА!K:L,2,0)), "-") -> 699.352
A171: 09001K23 | B171: Глибинна помпа SP2A-23 1.1kW 380-415V 50 | C171: CW | F171: 790.5615 | G171: =IFERROR(F171*(1-VLOOKUP(C171,ГОЛОВНА!K:L,2,0)), "-") -> 790.5615
A172: 09001K28 | B172: Глибинна помпа SP2A-28 1.5kW 380-415V 50 | C172: CW | F172: 887.5755 | G172: =IFERROR(F172*(1-VLOOKUP(C172,ГОЛОВНА!K:L,2,0)), "-") -> 887.5755
A173: 09001K33 | B173: Глибинна помпа SP2A-33 1,5kW 380-415V 50 | C173: CW | F173: 934.743 | G173: =IFERROR(F173*(1-VLOOKUP(C173,ГОЛОВНА!K:L,2,0)), "-") -> 934.743
A174: 09101K40 | B174: Глибинна помпа SP2A-40 2.2kW 3x380x415V | C174: CW | F174: 1736.5525 | G174: =IFERROR(F174*(1-VLOOKUP(C174,ГОЛОВНА!K:L,2,0)), "-") -> 1736.5525
A175: 09101K48 | B175: Глибинна помпа SP2A-48 2.2KW 3x380-415V | C175: CW | F175: 1947.652 | G175: =IFERROR(F175*(1-VLOOKUP(C175,ГОЛОВНА!K:L,2,0)), "-") -> 1947.652
A176: 09101K55 | B176: Глибинна помпа SP2A-55 3.0KW 3x380-415V | C176: CW | F176: 2352.8365 | G176: =IFERROR(F176*(1-VLOOKUP(C176,ГОЛОВНА!K:L,2,0)), "-") -> 2352.8365
A177: 09101K65 | B177: Глибинна помпа SP2A-65 3.0kW 3x380-415V | C177: CW | F177: 2657.9005 | G177: =IFERROR(F177*(1-VLOOKUP(C177,ГОЛОВНА!K:L,2,0)), "-") -> 2657.9005
A178: 10001K06 | B178: Глибинна помпа SP3A- 6 0.37kW 380-415V 5 | C178: CW | F178: 560.5665 | G178: =IFERROR(F178*(1-VLOOKUP(C178,ГОЛОВНА!K:L,2,0)), "-") -> 560.5665
A179: 10201906 | B179: Глибинна помпа SP3A- 6N 0.75kW 3x380-415 | C179: CW | F179: 1457.1195 | G179: =IFERROR(F179*(1-VLOOKUP(C179,ГОЛОВНА!K:L,2,0)), "-") -> 1457.1195
A180: 10221906 | B180: Глибинна помпа SP3A- 6NE 0.75kW 3x380-41 | C180: WS | F180: 1781.1069 | G180: =IFERROR(F180*(1-VLOOKUP(C180,ГОЛОВНА!K:L,2,0)), "-") -> 1781.1069
A181: 10001K09 | B181: Глибинна помпа SP3A- 9 0.55kW 380-415V 5 | C181: CW | F181: 592.61 | G181: =IFERROR(F181*(1-VLOOKUP(C181,ГОЛОВНА!K:L,2,0)), "-") -> 592.61
A182: 10201909 | B182: Глибинна помпа SP3A- 9N 0.75kW 3x380-415 | C182: CW | F182: 1499.6225 | G182: =IFERROR(F182*(1-VLOOKUP(C182,ГОЛОВНА!K:L,2,0)), "-") -> 1499.6225
A183: 10221909 | B183: Глибинна помпа SP3A- 9NE 0.75kW 3x380-41 | C183: WS | F183: 1858.0273 | G183: =IFERROR(F183*(1-VLOOKUP(C183,ГОЛОВНА!K:L,2,0)), "-") -> 1858.0273
A184: 10001K12 | B184: Глибинна помпа SP3A-12 0.75kW 380-415V 5 | C184: CW | F184: 655.3005 | G184: =IFERROR(F184*(1-VLOOKUP(C184,ГОЛОВНА!K:L,2,0)), "-") -> 655.3005
A185: 10201912 | B185: Глибинна помпа SP3A-12N 0.75kW 3x380-415 | C185: CW | F185: 1542.1065 | G185: =IFERROR(F185*(1-VLOOKUP(C185,ГОЛОВНА!K:L,2,0)), "-") -> 1542.1065
A186: 10221912 | B186: Глибинна помпа SP3A-12NE 0.75kW 3x380-41 | C186: WS | F186: 1889.7204 | G186: =IFERROR(F186*(1-VLOOKUP(C186,ГОЛОВНА!K:L,2,0)), "-") -> 1889.7204
A187: 10001K15 | B187: Глибинна помпа SP3A-15 1.1kW 380-415V 50 | C187: CW | F187: 727.605 | G187: =IFERROR(F187*(1-VLOOKUP(C187,ГОЛОВНА!K:L,2,0)), "-") -> 727.605
A188: 10201915 | B188: Глибинна помпа SP3A-15N 1.1kW 3x380-415V | C188: CW | F188: 1601.1585 | G188: =IFERROR(F188*(1-VLOOKUP(C188,ГОЛОВНА!K:L,2,0)), "-") -> 1601.1585
A189: 10221915 | B189: Глибинна помпа SP3A-15NE 1.1kW 3x380-415 | C189: WS | F189: 1968.8347 | G189: =IFERROR(F189*(1-VLOOKUP(C189,ГОЛОВНА!K:L,2,0)), "-") -> 1968.8347
A190: 10201918 | B190: Глибинна помпа SP3A-18N 1.1kW 3x380-415V | C190: CW | F190: 1648.18388 | G190: =IFERROR(F190*(1-VLOOKUP(C190,ГОЛОВНА!K:L,2,0)), "-") -> 1648.18388
A191: 10221918 | B191: Глибинна помпа SP3A-18NE 1.1kW 3x380-415 | C191: WS | F191: 2024.2899 | G191: =IFERROR(F191*(1-VLOOKUP(C191,ГОЛОВНА!K:L,2,0)), "-") -> 2024.2899
A192: 10201922 | B192: Глибинна помпа SP3A-22N 1.5kW 3x380-415V | C192: CW | F192: 1704.11 | G192: =IFERROR(F192*(1-VLOOKUP(C192,ГОЛОВНА!K:L,2,0)), "-") -> 1704.11
A193: 10221922 | B193: Глибинна помпа SP3A-22NE 1.5kW 3x380-415 | C193: WS | F193: 2101.1382 | G193: =IFERROR(F193*(1-VLOOKUP(C193,ГОЛОВНА!K:L,2,0)), "-") -> 2101.1382
A194: 10001K25 | B194: Глибинна помпа SP3A-25 1.5kW 380-415V 50 | C194: CW | F194: 871.834 | G194: =IFERROR(F194*(1-VLOOKUP(C194,ГОЛОВНА!K:L,2,0)), "-") -> 871.834
A195: 10201925 | B195: Глибинна помпа SP3A-25N 1.5kW 3x380-415V | C195: CW | F195: 1751.45325 | G195: =IFERROR(F195*(1-VLOOKUP(C195,ГОЛОВНА!K:L,2,0)), "-") -> 1751.45325
A196: 10221925 | B196: Глибинна помпа SP3A-25NE 1.5kW 3x380-415 | C196: WS | F196: 2156.614 | G196: =IFERROR(F196*(1-VLOOKUP(C196,ГОЛОВНА!K:L,2,0)), "-") -> 2156.614
A197: 10201929 | B197: Глибинна помпа SP3A-29N 2.2kW 3x380-415V | C197: CW | F197: 1830.479 | G197: =IFERROR(F197*(1-VLOOKUP(C197,ГОЛОВНА!K:L,2,0)), "-") -> 1830.479
A198: 10221929 | B198: Глибинна помпа SP3A-29NE 2.2kW 3x380-415 | C198: WS | F198: 2285.7657 | G198: =IFERROR(F198*(1-VLOOKUP(C198,ГОЛОВНА!K:L,2,0)), "-") -> 2285.7657
A199: 10101K39 | B199: Глибинна помпа SP3A-39 3.0KW 3x380-415V | C199: CW | F199: 1974.0525 | G199: =IFERROR(F199*(1-VLOOKUP(C199,ГОЛОВНА!K:L,2,0)), "-") -> 1974.0525
A200: 10201939 | B200: Глибинна помпа SP3A-39N 3.0kW 3x380-415V | C200: CW | F200: 2985.18994 | G200: =IFERROR(F200*(1-VLOOKUP(C200,ГОЛОВНА!K:L,2,0)), "-") -> 2985.18994
A201: 10101K45 | B201: Глибинна помпа SP3A-45 3.0KW 3x380-415V | C201: CW | F201: 2115.631 | G201: =IFERROR(F201*(1-VLOOKUP(C201,ГОЛОВНА!K:L,2,0)), "-") -> 2115.631
A202: 10101K52 | B202: Глибинна помпа SP3A-52 4.0KW 3x380-415V | C202: CW | F202: 2371.884 | G202: =IFERROR(F202*(1-VLOOKUP(C202,ГОЛОВНА!K:L,2,0)), "-") -> 2371.884
A203: 10101K60 | B203: Глибинна помпа SP3A-60 4.0kW 3x380-415V | C203: CW | F203: 2629.8185 | G203: =IFERROR(F203*(1-VLOOKUP(C203,ГОЛОВНА!K:L,2,0)), "-") -> 2629.8185
... 417 more rows

Sheet Sololift, Unilift AP, KP
A1: АРТИКУЛ | B1: НАЙМЕНУВАННЯ (УКР) | C1: PRICE GROUP | D1: ДОСТАВКА (ТИЖНІВ) | E1: ДОДАТКОВО | F1: ЦІНА (ЕВРО БЕЗ ПДВ) | G1: ЦІНА ЗІ ЗНИЖКОЮ | H1: НА ГОЛОВНУ
A2: Conlift, Sololift, Liftaway | G2: Дренажні та каналізаційні насоси та насосні станції
A3: 97775317 | B3: Каналізаційна установка Sololift2 C-3 | C3: DC | F3: 320.6431 | G3: =IFERROR(F3*(1-VLOOKUP(C3,ГОЛОВНА!K:L,2,0)), "-") -> 320.6431
A4: 97775316 | B4: Каналізаційна установка Sololift2 CWC-3 | C4: DC | F4: 356.2851 | G4: =IFERROR(F4*(1-VLOOKUP(C4,ГОЛОВНА!K:L,2,0)), "-") -> 356.2851
A5: 97775318 | B5: Каналізаційна установка Sololift2 D-2 | C5: DC | F5: 254.038 | G5: =IFERROR(F5*(1-VLOOKUP(C5,ГОЛОВНА!K:L,2,0)), "-") -> 254.038
A6: 97775314 | B6: Каналізаційна установка Sololift2 WC-1 | C6: DC | F6: 283.4746 | G6: =IFERROR(F6*(1-VLOOKUP(C6,ГОЛОВНА!K:L,2,0)), "-") -> 283.4746
A7: 97775315 | B7: Каналізаційна установка Sololift2 WC-3 | C7: DC | F7: 343.8814 | G7: =IFERROR(F7*(1-VLOOKUP(C7,ГОЛОВНА!K:L,2,0)), "-") -> 343.8814
A8: 97936156 | B8: Дренажна установка CONLIFT1 | C8: DC | F8: 85.2684 | G8: =IFERROR(F8*(1-VLOOKUP(C8,ГОЛОВНА!K:L,2,0)), "-") -> 85.2684
A9: 96003974 | B9: Каналізаційна установка Liftaway B 40-1 | C9: DC | F9: 765.374 | G9: =IFERROR(F9*(1-VLOOKUP(C9,ГОЛОВНА!K:L,2,0)), "-") -> 765.374
A10: 96003975 | B10: Каналізаційна установка Liftaway B 40-1- | C10: DC | F10: 794.2485 | G10: =IFERROR(F10*(1-VLOOKUP(C10,ГОЛОВНА!K:L,2,0)), "-") -> 794.2485
A11: 96003985 | B11: Каналізаційна установка Liftaway C 40-1 | C11: DC | F11: 204.748 | G11: =IFERROR(F11*(1-VLOOKUP(C11,ГОЛОВНА!K:L,2,0)), "-") -> 204.748
A13: Unilift KP,CC, KPC, AP, AP B | G13: Дренажні та каналізаційні насоси та насосні станції
A14: 98863989 | B14: Насос для брудн води KPC 300 A 1x220 50H | C14: DC | F14: 122.5392 | G14: =IFERROR(F14*(1-VLOOKUP(C14,ГОЛОВНА!K:L,2,0)), "-") -> 122.5392
A15: 98864015 | B15: Насос для брудн води KPC 600 A 1x220 50H | C15: DC | F15: 157.3068 | G15: =IFERROR(F15*(1-VLOOKUP(C15,ГОЛОВНА!K:L,2,0)), "-") -> 157.3068
A16: 96280966 | B16: Насос для брудної води Unilift CC5 - A1 | C16: DC | F16: 144.423 | G16: =IFERROR(F16*(1-VLOOKUP(C16,ГОЛОВНА!K:L,2,0)), "-") -> 144.423
A17: 96280965 | B17: Насос для брудної води Unilift CC5 - M1 | C17: DC | F17: 135.6021 | G17: =IFERROR(F17*(1-VLOOKUP(C17,ГОЛОВНА!K:L,2,0)), "-") -> 135.6021
A18: 96280968 | B18: Насос для брудної води Unilift CC7 - A1 | C18: DC | F18: 167.3136 | G18: =IFERROR(F18*(1-VLOOKUP(C18,ГОЛОВНА!K:L,2,0)), "-") -> 167.3136
A19: 96280967 | B19: Насос для брудної води Unilift CC7 - M1 | C19: DC | F19: 158.288 | G19: =IFERROR(F19*(1-VLOOKUP(C19,ГОЛОВНА!K:L,2,0)), "-") -> 158.288
A20: 96280970 | B20: Насос для брудної води Unilift CC9 - A1 | C20: DC | F20: 216.6264 | G20: =IFERROR(F20*(1-VLOOKUP(C20,ГОЛОВНА!K:L,2,0)), "-") -> 216.6264
A21: 96280969 | B21: Насос для брудної води Unilift CC9 - M1 | C21: DC | F21: 201.792 | G21: =IFERROR(F21*(1-VLOOKUP(C21,ГОЛОВНА!K:L,2,0)), "-") -> 201.792
A22: 011H1800 | B22: Насос для брудної води KP150-A-1, кабель | C22: DC | F22: 228.5304 | G22: =IFERROR(F22*(1-VLOOKUP(C22,ГОЛОВНА!K:L,2,0)), "-") -> 228.5304
A23: 011H1600 | B23: Насос для брудної води KP150-A-1, кабель | C23: DC | F23: 213.7968 | G23: =IFERROR(F23*(1-VLOOKUP(C23,ГОЛОВНА!K:L,2,0)), "-") -> 213.7968
A24: 011H1400 | B24: Насос для брудної води KP150-AV-1, кабел | C24: DC | F24: 226.0692 | G24: =IFERROR(F24*(1-VLOOKUP(C24,ГОЛОВНА!K:L,2,0)), "-") -> 226.0692
A25: 011H1900 | B25: Насос для брудної води KP150-AV-1, кабел | C25: DC | F25: 240.828 | G25: =IFERROR(F25*(1-VLOOKUP(C25,ГОЛОВНА!K:L,2,0)), "-") -> 240.828
A26: 011H6300 | B26: Насос для брудної води KP150-M-1 1x220-2 | C26: DC | F26: 210.0481 | G26: =IFERROR(F26*(1-VLOOKUP(C26,ГОЛОВНА!K:L,2,0)), "-") -> 210.0481
A27: 011H1300 | B27: Насос для брудної води KP150-M-1, кабель | C27: DC | F27: 215.0232 | G27: =IFERROR(F27*(1-VLOOKUP(C27,ГОЛОВНА!K:L,2,0)), "-") -> 215.0232
A28: 012H1800 | B28: Насос для брудної води KP250-A-1, кабель | C28: DC | F28: 270.5808 | G28: =IFERROR(F28*(1-VLOOKUP(C28,ГОЛОВНА!K:L,2,0)), "-") -> 270.5808
A29: 012H1600 | B29: Насос для брудної води KP250-A-1, кабель | C29: DC | F29: 256.83 | G29: =IFERROR(F29*(1-VLOOKUP(C29,ГОЛОВНА!K:L,2,0)), "-") -> 256.83
A30: 012H1400 | B30: Насос для брудної води KP250-AV-1, кабел | C30: DC | F30: 269.3208 | G30: =IFERROR(F30*(1-VLOOKUP(C30,ГОЛОВНА!K:L,2,0)), "-") -> 269.3208
A31: 012H1900 | B31: Насос для брудної води KP250-AV-1, кабел | C31: DC | F31: 284.2728 | G31: =IFERROR(F31*(1-VLOOKUP(C31,ГОЛОВНА!K:L,2,0)), "-") -> 284.2728
A32: 012H1300 | B32: Насос для брудної води KP250-M-1, кабель | C32: DC | F32: 255.0175 | G32: =IFERROR(F32*(1-VLOOKUP(C32,ГОЛОВНА!K:L,2,0)), "-") -> 255.0175
A33: 012M6300 | B33: Насос для брудної води KP250-M-3 3x380-4 | C33: DC | F33: 251.3323 | G33: =IFERROR(F33*(1-VLOOKUP(C33,ГОЛОВНА!K:L,2,0)), "-") -> 251.3323
A34: 012M6100 | B34: Насос для брудної води UNILIFT KP250-M-3 | C34: DC | F34: 244.3728 | G34: =IFERROR(F34*(1-VLOOKUP(C34,ГОЛОВНА!K:L,2,0)), "-") -> 244.3728
A35: 013N1800 | B35: Насос для брудної води KP350-A-1, кабель | C35: DC | F35: 350.8596 | G35: =IFERROR(F35*(1-VLOOKUP(C35,ГОЛОВНА!K:L,2,0)), "-") -> 350.8596
A36: 013N1600 | B36: Насос для брудної води KP350-A-1, кабель | C36: DC | F36: 326.9952 | G36: =IFERROR(F36*(1-VLOOKUP(C36,ГОЛОВНА!K:L,2,0)), "-") -> 326.9952
A37: 013N1400 | B37: Насос для брудної води KP350-AV-1, кабел | C37: DC | F37: 378.3612 | G37: =IFERROR(F37*(1-VLOOKUP(C37,ГОЛОВНА!K:L,2,0)), "-") -> 378.3612
A38: 013N1900 | B38: Насос для брудної води KP350-AV-1, кабел | C38: DC | F38: 402.1668 | G38: =IFERROR(F38*(1-VLOOKUP(C38,ГОЛОВНА!K:L,2,0)), "-") -> 402.1668
A39: 013N1300 | B39: Насос для брудної води KP350-M-1, кабель | C39: DC | F39: 324.364 | G39: =IFERROR(F39*(1-VLOOKUP(C39,ГОЛОВНА!K:L,2,0)), "-") -> 324.364
A40: 013M6300 | B40: Помпа для брудної води UNILIFT KP350-M-3 | C40: DC | F40: 336.7476 | G40: =IFERROR(F40*(1-VLOOKUP(C40,ГОЛОВНА!K:L,2,0)), "-") -> 336.7476
A41: 96011016 | B41: Насос для брудної води AP12.40.04.1, 1x2 | C41: CW | F41: 474.85 | G41: =IFERROR(F41*(1-VLOOKUP(C41,ГОЛОВНА!K:L,2,0)), "-") -> 474.85
A42: 96011024 | B42: Насос для брудної води AP12.40.04.3 3x40 | C42: CW | F42: 458.61 | G42: =IFERROR(F42*(1-VLOOKUP(C42,ГОЛОВНА!K:L,2,0)), "-") -> 458.61
A43: 96011018 | B43: Насос для брудної води AP12.40.04.A1, 1x | C43: CW | F43: 514.04 | G43: =IFERROR(F43*(1-VLOOKUP(C43,ГОЛОВНА!K:L,2,0)), "-") -> 514.04
A44: 96011015 | B44: Насос для брудної води AP 12.40.04.A1 1x | C44: CW | F44: 483.1371 | G44: =IFERROR(F44*(1-VLOOKUP(C44,ГОЛОВНА!K:L,2,0)), "-") -> 483.1371
A45: 96011017 | B45: Насос для брудної води AP12.40.04.A1 1x2 | C45: CW | F45: 485.65 | G45: =IFERROR(F45*(1-VLOOKUP(C45,ГОЛОВНА!K:L,2,0)), "-") -> 485.65
A46: 96023871 | B46: Насос для брудної води AP12.40.04.A3 | C46: CW | F46: 607.43 | G46: =IFERROR(F46*(1-VLOOKUP(C46,ГОЛОВНА!K:L,2,0)), "-") -> 607.43
A47: 96001720 | B47: Насос для брудної води AP12.40.06.1 1x23 | C47: CW | F47: 495.15 | G47: =IFERROR(F47*(1-VLOOKUP(C47,ГОЛОВНА!K:L,2,0)), "-") -> 495.15
A48: 96001652 | B48: Насос для брудної води AP12.40.06.3 3x40 | C48: CW | F48: 478.9 | G48: =IFERROR(F48*(1-VLOOKUP(C48,ГОЛОВНА!K:L,2,0)), "-") -> 478.9
A49: 96010979 | B49: Помпа для брудної води AP12.40.06.A1 1X2 | C49: CW | F49: 546.53 | G49: =IFERROR(F49*(1-VLOOKUP(C49,ГОЛОВНА!K:L,2,0)), "-") -> 546.53
A50: 96001735 | B50: Насос для брудної води AP12.40.06.A1 1x2 | C50: CW | F50: 511.4 | G50: =IFERROR(F50*(1-VLOOKUP(C50,ГОЛОВНА!K:L,2,0)), "-") -> 511.4
A51: 96023872 | B51: Насос для брудної води AP12.40.06.A3 3x4 | C51: CW | F51: 641.21 | G51: =IFERROR(F51*(1-VLOOKUP(C51,ГОЛОВНА!K:L,2,0)), "-") -> 641.21
A52: 96001869 | B52: Насос для брудної води AP12.40.08.1 1x23 | C52: CW | F52: 564.4068 | G52: =IFERROR(F52*(1-VLOOKUP(C52,ГОЛОВНА!K:L,2,0)), "-") -> 564.4068
A53: 96010630 | B53: Насос для бруд води UNILIFT AP12.40.08.3 | C53: CW | F53: 551.402208 | G53: =IFERROR(F53*(1-VLOOKUP(C53,ГОЛОВНА!K:L,2,0)), "-") -> 551.402208
A54: 96001791 | B54: Насос для брудної води AP12.40.08.3 3x40 | C54: CW | F54: 544.7208 | G54: =IFERROR(F54*(1-VLOOKUP(C54,ГОЛОВНА!K:L,2,0)), "-") -> 544.7208
A55: 96404181 | B55: Насос для брудної води AP 12.40.08.A1 1X | C55: CW | F55: 616.4982 | G55: =IFERROR(F55*(1-VLOOKUP(C55,ГОЛОВНА!K:L,2,0)), "-") -> 616.4982
A56: 96010980 | B56: Насос для брудної води AP12.40.08.A1 1X2 | C56: CW | F56: 616.4982 | G56: =IFERROR(F56*(1-VLOOKUP(C56,ГОЛОВНА!K:L,2,0)), "-") -> 616.4982
A57: 96001798 | B57: Насос для брудної води AP12.40.08 | C57: CW | F57: 582.7158 | G57: =IFERROR(F57*(1-VLOOKUP(C57,ГОЛОВНА!K:L,2,0)), "-") -> 582.7158
A58: 96010925 | B58: Насос дренажний UNILIFT AP12.40.08.A3 3x | C58: CW | F58: 661.4904 | G58: =IFERROR(F58*(1-VLOOKUP(C58,ГОЛОВНА!K:L,2,0)), "-") -> 661.4904
A59: 96023873 | B59: Насос для брудної води AP12.40.08.A3 3X4 | C59: CW | F59: 686.8578 | G59: =IFERROR(F59*(1-VLOOKUP(C59,ГОЛОВНА!K:L,2,0)), "-") -> 686.8578
A60: 96001958 | B60: Насос для брудної води AP12.50.11.1 1x23 | C60: CW | F60: 796.671 | G60: =IFERROR(F60*(1-VLOOKUP(C60,ГОЛОВНА!K:L,2,0)), "-") -> 796.671
A61: 96001975 | B61: Насос для брудної води AP12.50.11.3 3x40 | C61: CW | F61: 768.4884 | G61: =IFERROR(F61*(1-VLOOKUP(C61,ГОЛОВНА!K:L,2,0)), "-") -> 768.4884
A62: 96010981 | B62: Насос для брудної води AP12.50.11.A1 1x2 | C62: CW | F62: 858.5646 | G62: =IFERROR(F62*(1-VLOOKUP(C62,ГОЛОВНА!K:L,2,0)), "-") -> 858.5646
A63: 96001965 | B63: Насос для брудної води AP12.50.11.A1 1x2 | C63: CW | F63: 820.539 | G63: =IFERROR(F63*(1-VLOOKUP(C63,ГОЛОВНА!K:L,2,0)), "-") -> 820.539
A64: 96023874 | B64: Насос для брудної води AP12.50.11.A3 3x4 | C64: CW | F64: 919.0812 | G64: =IFERROR(F64*(1-VLOOKUP(C64,ГОЛОВНА!K:L,2,0)), "-") -> 919.0812
A65: 96001796 | B65: Помпа для брудної води AP35.40.06.1V | C65: CW | F65: 565.6451 | G65: =IFERROR(F65*(1-VLOOKUP(C65,ГОЛОВНА!K:L,2,0)), "-") -> 565.6451
A66: 96000169 | B66: Насос для брудної води AP 35.40.06.3V 3x | C66: CW | F66: 547.1875 | G66: =IFERROR(F66*(1-VLOOKUP(C66,ГОЛОВНА!K:L,2,0)), "-") -> 547.1875
A67: 96010982 | B67: Насос для брудної води AP35.40.06.A1, 10 | C67: CW | F67: 628.2176 | G67: =IFERROR(F67*(1-VLOOKUP(C67,ГОЛОВНА!K:L,2,0)), "-") -> 628.2176
A68: 96023875 | B68: Помпа для брудної води AP35.40.06.A3V 3x | C68: CW | F68: 693.5917 | G68: =IFERROR(F68*(1-VLOOKUP(C68,ГОЛОВНА!K:L,2,0)), "-") -> 693.5917
A69: 96001672 | B69: Помпа для брудної води AP35.40.08.1V | C69: CW | F69: 619.6789 | G69: =IFERROR(F69*(1-VLOOKUP(C69,ГОЛОВНА!K:L,2,0)), "-") -> 619.6789
A70: 96001718 | B70: Насос для брудної води AP 35.40.08.3V 3x | C70: CW | F70: 598.3476 | G70: =IFERROR(F70*(1-VLOOKUP(C70,ГОЛОВНА!K:L,2,0)), "-") -> 598.3476
A71: 96010983 | B71: Насос для брудної води AP35.40.08.A1V 10 | C71: CW | F71: 666.5542 | G71: =IFERROR(F71*(1-VLOOKUP(C71,ГОЛОВНА!K:L,2,0)), "-") -> 666.5542
A72: 96001897 | B72: Помпа для брудної води AP35.40.08.A1V | C72: CW | F72: 638.1983 | G72: =IFERROR(F72*(1-VLOOKUP(C72,ГОЛОВНА!K:L,2,0)), "-") -> 638.1983
A73: 96023876 | B73: Помпа для брудної води AP35.40.08.A3V | C73: CW | F73: 830.13 | G73: =IFERROR(F73*(1-VLOOKUP(C73,ГОЛОВНА!K:L,2,0)), "-") -> 830.13
A74: 96004563 | B74: Насос для брудної води AP35B.50.06.1V 1x | C74: CW | F74: 375.2084 | G74: =IFERROR(F74*(1-VLOOKUP(C74,ГОЛОВНА!K:L,2,0)), "-") -> 375.2084
A75: 96468190 | B75: Помпа для брудної води UNILIFT AP35B.50. | C75: CW | F75: 419.7559 | G75: =IFERROR(F75*(1-VLOOKUP(C75,ГОЛОВНА!K:L,2,0)), "-") -> 419.7559
A76: 96004565 | B76: Помпа для брудної води AP35B.50.06.3V 3x | C76: CW | F76: 412.1339 | G76: =IFERROR(F76*(1-VLOOKUP(C76,ГОЛОВНА!K:L,2,0)), "-") -> 412.1339
A77: 96468356 | B77: Насос для брудної води AP35B.50.06.A1V 1 | C77: CW | F77: 439.8409 | G77: =IFERROR(F77*(1-VLOOKUP(C77,ГОЛОВНА!K:L,2,0)), "-") -> 439.8409
A78: 96004562 | B78: Насос для брудної води AP35B.50.06.A1V 1 | C78: CW | F78: 429.2422 | G78: =IFERROR(F78*(1-VLOOKUP(C78,ГОЛОВНА!K:L,2,0)), "-") -> 429.2422
A79: 96004575 | B79: Помпа для брудної води UNILIFT AP35B.50. | C79: CW | F79: 453.3339 | G79: =IFERROR(F79*(1-VLOOKUP(C79,ГОЛОВНА!K:L,2,0)), "-") -> 453.3339
A80: 96468193 | B80: Насос для брудної води AP35B.50.08.3V | C80: CW | F80: 498.6333 | G80: =IFERROR(F80*(1-VLOOKUP(C80,ГОЛОВНА!K:L,2,0)), "-") -> 498.6333
A81: 96004577 | B81: Помпа для брудної води AP35B.50.08.3V 3x | C81: CW | F81: 490.3315 | G81: =IFERROR(F81*(1-VLOOKUP(C81,ГОЛОВНА!K:L,2,0)), "-") -> 490.3315
A82: 96468355 | B82: Насос для брудної води AP35B.50.08.A1V 1 | C82: CW | F82: 518.3269 | G82: =IFERROR(F82*(1-VLOOKUP(C82,ГОЛОВНА!K:L,2,0)), "-") -> 518.3269
A83: 96004574 | B83: Помпа для брудної води AP35B.50.08.A1V 1 | C83: CW | F83: 507.4089 | G83: =IFERROR(F83*(1-VLOOKUP(C83,ГОЛОВНА!K:L,2,0)), "-") -> 507.4089
A84: 96010595 | B84: Помпа для брудної води AP50.50.08.1V | C84: CW | F84: 812.9584 | G84: =IFERROR(F84*(1-VLOOKUP(C84,ГОЛОВНА!K:L,2,0)), "-") -> 812.9584
A85: 96010563 | B85: Помпа для брудної води AP50.50.08.3V | C85: CW | F85: 785.993 | G85: =IFERROR(F85*(1-VLOOKUP(C85,ГОЛОВНА!K:L,2,0)), "-") -> 785.993
A86: 96010984 | B86: Помпа для брудної води AP50.50.08.A1V | C86: CW | F86: 885.9339 | G86: =IFERROR(F86*(1-VLOOKUP(C86,ГОЛОВНА!K:L,2,0)), "-") -> 885.9339
A87: 96010584 | B87: Помпа для брудної води AP50.50.08.A1V | C87: CW | F87: 838.5539 | G87: =IFERROR(F87*(1-VLOOKUP(C87,ГОЛОВНА!K:L,2,0)), "-") -> 838.5539
A88: 96023877 | B88: Помпа для брудної води AP50.50.08.A3V | C88: CW | F88: 948.0017 | G88: =IFERROR(F88*(1-VLOOKUP(C88,ГОЛОВНА!K:L,2,0)), "-") -> 948.0017
A89: 96010577 | B89: Помпа для брудної води AP50.50.11.1V | C89: CW | F89: 1229.4286 | G89: =IFERROR(F89*(1-VLOOKUP(C89,ГОЛОВНА!K:L,2,0)), "-") -> 1229.4286
A90: 96010562 | B90: Помпа для брудної води AP50.50.11.3V | C90: CW | F90: 1191.0611 | G90: =IFERROR(F90*(1-VLOOKUP(C90,ГОЛОВНА!K:L,2,0)), "-") -> 1191.0611
A91: 96010985 | B91: Помпа для брудної води AP50.50.11.A1V | C91: CW | F91: 1300.4574 | G91: =IFERROR(F91*(1-VLOOKUP(C91,ГОЛОВНА!K:L,2,0)), "-") -> 1300.4574
A92: 96023878 | B92: Насос для брудної води AP50.50.11.A3V | C92: CW | F92: 1351.6072 | G92: =IFERROR(F92*(1-VLOOKUP(C92,ГОЛОВНА!K:L,2,0)), "-") -> 1351.6072
A93: 96004587 | B93: Насос для брудної води AP50B.50.08.1V 1x | C93: CW | F93: 591.1716 | G93: =IFERROR(F93*(1-VLOOKUP(C93,ГОЛОВНА!K:L,2,0)), "-") -> 591.1716
A94: 96468194 | B94: Насос брудної води UNILIFT AP50B.50.08.3 | C94: CW | F94: 591.4164 | G94: =IFERROR(F94*(1-VLOOKUP(C94,ГОЛОВНА!K:L,2,0)), "-") -> 591.4164
A95: 96004589 | B95: Помпа для брудної води AP50B.50.08.3V 3x | C95: CW | F95: 581.3082 | G95: =IFERROR(F95*(1-VLOOKUP(C95,ГОЛОВНА!K:L,2,0)), "-") -> 581.3082
A96: 96468354 | B96: Насос для брудної води AP50B.50.08.A1V 1 | C96: CW | F96: 662.4084 | G96: =IFERROR(F96*(1-VLOOKUP(C96,ГОЛОВНА!K:L,2,0)), "-") -> 662.4084
A97: 96004586 | B97: Помпа для брудної води AP50B.50.08.A1V 1 | C97: CW | F97: 644.6502 | G97: =IFERROR(F97*(1-VLOOKUP(C97,ГОЛОВНА!K:L,2,0)), "-") -> 644.6502
A98: 96004599 | B98: Насос для брудної води AP50B.50.11.1V 1x | C98: CW | F98: 730.4628 | G98: =IFERROR(F98*(1-VLOOKUP(C98,ГОЛОВНА!K:L,2,0)), "-") -> 730.4628
A99: 96468195 | B99: Помпа для брудної води UNILIFT AP50B.50. | C99: CW | F99: 697.0068 | G99: =IFERROR(F99*(1-VLOOKUP(C99,ГОЛОВНА!K:L,2,0)), "-") -> 697.0068
A100: 96004601 | B100: Помпа для брудної води AP50B.50.11.3V 3x | C100: CW | F100: 685.44 | G100: =IFERROR(F100*(1-VLOOKUP(C100,ГОЛОВНА!K:L,2,0)), "-") -> 685.44
A101: 96468352 | B101: Насос для брудн води UNILIFT AP50B.50.11 | C101: CW | F101: 804.4026 | G101: =IFERROR(F101*(1-VLOOKUP(C101,ГОЛОВНА!K:L,2,0)), "-") -> 804.4026
A102: 96004598 | B102: Насос для брудної води AP50B.50.11.A1V 1 | C102: CW | F102: 786.7974 | G102: =IFERROR(F102*(1-VLOOKUP(C102,ГОЛОВНА!K:L,2,0)), "-") -> 786.7974
A103: 96468196 | B103: Насос для брудної води AP50B.50.15.3.V | C103: CW | F103: 815.4492 | G103: =IFERROR(F103*(1-VLOOKUP(C103,ГОЛОВНА!K:L,2,0)), "-") -> 815.4492
A104: 96004609 | B104: Помпа для брудної води AP50B.50.15.3V 3x | C104: CW | F104: 805.0656 | G104: =IFERROR(F104*(1-VLOOKUP(C104,ГОЛОВНА!K:L,2,0)), "-") -> 805.0656
B106: Аксесуари
A107: 330767 | B107: Ніпель R 1 1/2 | C107: CW | F107: 30.3472 | G107: =IFERROR(F107*(1-VLOOKUP(C107,ГОЛОВНА!K:L,2,0)), "-") -> 30.3472
A108: 91070765 | B108: Труба направляюча 1 1/2 6 м | C108: WW | F108: 158.601445 | G108: =IFERROR(F108*(1-VLOOKUP(C108,ГОЛОВНА!K:L,2,0)), "-") -> 158.601445
A109: 91071763 | B109: Ланцюг KETTE-ABLAЯ 4MM 3M | C109: CW | F109: 42.4257 | G109: =IFERROR(F109*(1-VLOOKUP(C109,ГОЛОВНА!K:L,2,0)), "-") -> 42.4257
A110: 91071766 | B110: Ланцюг 6мм 6м M.SCHAKEL 1.4401 | C110: CW | F110: 121.3958 | G110: =IFERROR(F110*(1-VLOOKUP(C110,ГОЛОВНА!K:L,2,0)), "-") -> 121.3958
A111: 91072171 | B111: Двосторонній ніпель 210 R2" 100 1.4571 | C111: CW | F111: 24.8352 | G111: =IFERROR(F111*(1-VLOOKUP(C111,ГОЛОВНА!K:L,2,0)), "-") -> 24.8352
A112: 91072424 | B112: Комплект нап. труб 11/2" 2 шт 6м 1.4541 | C112: CW | F112: 571.799762 | G112: =IFERROR(F112*(1-VLOOKUP(C112,ГОЛОВНА!K:L,2,0)), "-") -> 571.799762
A113: 91076761 | B113: Зворотний клапан кульовий Rp1 1/2" | C113: WW | F113: 186.921 | G113: =IFERROR(F113*(1-VLOOKUP(C113,ГОЛОВНА!K:L,2,0)), "-") -> 186.921
A114: 96001977 | B114: Муфта Storz 1 1/2 | C114: CW | F114: 33.475 | G114: =IFERROR(F114*(1-VLOOKUP(C114,ГОЛОВНА!K:L,2,0)), "-") -> 33.475
A115: 96001979 | B115: Коліно 90 R/Rp11/2 | C115: CW | F115: 19.2507 | G115: =IFERROR(F115*(1-VLOOKUP(C115,ГОЛОВНА!K:L,2,0)), "-") -> 19.2507
A116: 96001980 | B116: Коліно оцинк 2 R /RP 90* | C116: CW | F116: 21.1768 | G116: =IFERROR(F116*(1-VLOOKUP(C116,ГОЛОВНА!K:L,2,0)), "-") -> 21.1768
A117: 96001981 | B117: Коліно оцинк 2 1/2 R /RP 90* | C117: CW | F117: 38.5117 | G117: =IFERROR(F117*(1-VLOOKUP(C117,ГОЛОВНА!K:L,2,0)), "-") -> 38.5117
A118: 96001984 | B118: Муфта STORZ 3 | C118: CW | F118: 42.3639 | G118: =IFERROR(F118*(1-VLOOKUP(C118,ГОЛОВНА!K:L,2,0)), "-") -> 42.3639
A119: 96001993 | B119: Ніпель R 2 | C119: CW | F119: 11.6081 | G119: =IFERROR(F119*(1-VLOOKUP(C119,ГОЛОВНА!K:L,2,0)), "-") -> 11.6081
A120: 96001994 | B120: Ніпель R 2 1/2 | C120: CW | F120: 28.8812 | G120: =IFERROR(F120*(1-VLOOKUP(C120,ГОЛОВНА!K:L,2,0)), "-") -> 28.8812
A121: 96001996 | B121: Флан. різьбовий Rp 2 1/2 DN 65 GW | C121: WW | F121: 42.81358 | G121: =IFERROR(F121*(1-VLOOKUP(C121,ГОЛОВНА!K:L,2,0)), "-") -> 42.81358
A122: 96001999 | B122: Набір прокладок DN80 | C122: CW | F122: 39.552 | G122: =IFERROR(F122*(1-VLOOKUP(C122,ГОЛОВНА!K:L,2,0)), "-") -> 39.552
A123: 96002002 | B123: Зворотній клапан Rp2", PN10 | C123: CW | F123: 99.2405 | G123: =IFERROR(F123*(1-VLOOKUP(C123,ГОЛОВНА!K:L,2,0)), "-") -> 99.2405
A124: 96002005 | B124: Клапан запірний Rp2'/Rp2''(латунь) | C124: CW | F124: 53.8381 | G124: =IFERROR(F124*(1-VLOOKUP(C124,ГОЛОВНА!K:L,2,0)), "-") -> 53.8381
A125: 96002006 | B125: Відсічний клапан 2 1/2 | C125: WW | F125: 110.6185 | G125: =IFERROR(F125*(1-VLOOKUP(C125,ГОЛОВНА!K:L,2,0)), "-") -> 110.6185
A126: 96002008 | B126: Кульовий зворотний клапан DN 65 PN 10 | C126: WW | F126: 133.0035 | G126: =IFERROR(F126*(1-VLOOKUP(C126,ГОЛОВНА!K:L,2,0)), "-") -> 133.0035
A127: 96002009 | B127: Зворотний клапан кульовий DN 80 PN10 (SE | C127: WW | F127: 158.97 | G127: =IFERROR(F127*(1-VLOOKUP(C127,ГОЛОВНА!K:L,2,0)), "-") -> 158.97
A128: 96002010 | B128: Засувка клинова DN 65 PN 10 | C128: WW | F128: 146.1305 | G128: =IFERROR(F128*(1-VLOOKUP(C128,ГОЛОВНА!K:L,2,0)), "-") -> 146.1305
A129: 96002011 | B129: Запірний клапан DN80 PN10/16 (SEV, M/MD) | C129: WW | F129: 179.8025 | G129: =IFERROR(F129*(1-VLOOKUP(C129,ГОЛОВНА!K:L,2,0)), "-") -> 179.8025
A130: 96002085 | B130: Кульовий зворотний клапан DN100 PN10 | C130: WW | F130: 261.027 | G130: =IFERROR(F130*(1-VLOOKUP(C130,ГОЛОВНА!K:L,2,0)), "-") -> 261.027
A131: 96003605 | B131: Монтажний комплект до фланця DN150 | C131: CW | F131: 65.2299 | G131: =IFERROR(F131*(1-VLOOKUP(C131,ГОЛОВНА!K:L,2,0)), "-") -> 65.2299
A132: 96003632 | B132: Ніпель R 1 1/2 | C132: CW | F132: 21.1253 | G132: =IFERROR(F132*(1-VLOOKUP(C132,ГОЛОВНА!K:L,2,0)), "-") -> 21.1253
A133: 96003823 | B133: Монтажний комплект DN100 | C133: CW | F133: 45.4745 | G133: =IFERROR(F133*(1-VLOOKUP(C133,ГОЛОВНА!K:L,2,0)), "-") -> 45.4745
A134: 96003826 | B134: Клапан зворотній DN80 | C134: WW | F134: 449.949 | G134: =IFERROR(F134*(1-VLOOKUP(C134,ГОЛОВНА!K:L,2,0)), "-") -> 449.949
A135: 96003827 | B135: Зворотній капан | C135: WW | F135: 456.122085 | G135: =IFERROR(F135*(1-VLOOKUP(C135,ГОЛОВНА!K:L,2,0)), "-") -> 456.122085
A136: 96003837 | B136: 8 шт. М20 х 75 мм, DN 200 | C136: CW | F136: 75.1179 | G136: =IFERROR(F136*(1-VLOOKUP(C136,ГОЛОВНА!K:L,2,0)), "-") -> 75.1179
A137: 96004422 | B137: Кульовий зворотній клапан DN300 PN10 | C137: WW | F137: 2641.7225 | G137: =IFERROR(F137*(1-VLOOKUP(C137,ГОЛОВНА!K:L,2,0)), "-") -> 2641.7225
A138: 96004423 | B138: Засувка клинова DN250 PN10 | C138: WW | F138: 772.294 | G138: =IFERROR(F138*(1-VLOOKUP(C138,ГОЛОВНА!K:L,2,0)), "-") -> 772.294
A139: 96004445 | B139: Авт. муфта підвісна 2" (без коліна) | C139: WW | F139: 146.303 | G139: =IFERROR(F139*(1-VLOOKUP(C139,ГОЛОВНА!K:L,2,0)), "-") -> 146.303
A140: 96005259 | B140: Напірний шланг з муфтою Storz L=20м 3 | C140: WW | F140: 309.511 | G140: =IFERROR(F140*(1-VLOOKUP(C140,ГОЛОВНА!K:L,2,0)), "-") -> 309.511
A141: 96005308 | B141: Зворотній клапан R 1 1/4 | C141: WW | F141: 37.9845 | G141: =IFERROR(F141*(1-VLOOKUP(C141,ГОЛОВНА!K:L,2,0)), "-") -> 37.9845
A142: 96005309 | B142: Зворотний клапан Rp 1 1/2" | C142: WW | F142: 82.309295 | G142: =IFERROR(F142*(1-VLOOKUP(C142,ГОЛОВНА!K:L,2,0)), "-") -> 82.309295
A143: 96489959 | B143: Фланець різьбовий DN40, Rp 1 1/2" | C143: CW | F143: 24.6891 | G143: =IFERROR(F143*(1-VLOOKUP(C143,ГОЛОВНА!K:L,2,0)), "-") -> 24.6891
A144: 96489973 | B144: Клапан запірний Rp/Rp 1 1/2" | C144: CW | F144: 71.4202 | G144: =IFERROR(F144*(1-VLOOKUP(C144,ГОЛОВНА!K:L,2,0)), "-") -> 71.4202
A145: 91070503 | B145: Кабельна муфта роз'ємна MS6 (4x6..16мм2) | C145: WS | F145: 371.0781 | G145: =IFERROR(F145*(1-VLOOKUP(C145,ГОЛОВНА!K:L,2,0)), "-") -> 371.0781
A146: 00ID7948 | B146: Кабель для питної води 3x4.0 мм2 | C146: WS | F146: 6.42 | G146: =IFERROR(F146*(1-VLOOKUP(C146,ГОЛОВНА!K:L,2,0)), "-") -> 6.42
A147: 00RM4098 | B147: Кабель для питної води 3x6.0мм2 | C147: WS | F147: 8.01 | G147: =IFERROR(F147*(1-VLOOKUP(C147,ГОЛОВНА!K:L,2,0)), "-") -> 8.01
A148: 956110 | B148: Клапан прийомний BVF/GG з | C148: CW | F148: 56.8869 | G148: =IFERROR(F148*(1-VLOOKUP(C148,ГОЛОВНА!K:L,2,0)), "-") -> 56.8869
A149: 957120 | B149: Клапан прийомний MV/GG з | C149: CW | F149: 119.171 | G149: =IFERROR(F149*(1-VLOOKUP(C149,ГОЛОВНА!K:L,2,0)), "-") -> 119.171
A150: 957310 | B150: Клапан прийомний MV/GBZ з | C150: CW | F150: 116.5651 | G150: =IFERROR(F150*(1-VLOOKUP(C150,ГОЛОВНА!K:L,2,0)), "-") -> 116.5651
A151: 957315 | B151: Клапан прийомний MV/GBZ з | C151: CW | F151: 188.9535 | G151: =IFERROR(F151*(1-VLOOKUP(C151,ГОЛОВНА!K:L,2,0)), "-") -> 188.9535
A152: 00ID7803 | B152: Поплавцевий вимикач REIFA-E w/3m-cable | C152: CW | F152: 28.386 | G152: =IFERROR(F152*(1-VLOOKUP(C152,ГОЛОВНА!K:L,2,0)), "-") -> 28.386
A153: 00ID7805 | B153: Поплавцевий вимикач REIFA SAS, 5 м | C153: CW | F153: 32.775 | G153: =IFERROR(F153*(1-VLOOKUP(C153,ГОЛОВНА!K:L,2,0)), "-") -> 32.775
A154: 00ID7942 | B154: Поплавцевий вимикач Reifa E 20,0 м | C154: CW | F154: 77.311 | G154: =IFERROR(F154*(1-VLOOKUP(C154,ГОЛОВНА!K:L,2,0)), "-") -> 77.311
A155: 15211 | B155: Зворотній клапан до насоса KP | C155: CW | F155: 13.905 | G155: =IFERROR(F155*(1-VLOOKUP(C155,ГОЛОВНА!K:L,2,0)), "-") -> 13.905
A156: 00ID7809 | B156: Поплавцевий вимикач з кабелем 10 м | C156: CW | F156: 47.367 | G156: =IFERROR(F156*(1-VLOOKUP(C156,ГОЛОВНА!K:L,2,0)), "-") -> 47.367
A157: 00ID8961 | B157: Запобіжний вимикач для підключення | C157: CW | F157: 153.6245 | G157: =IFERROR(F157*(1-VLOOKUP(C157,ГОЛОВНА!K:L,2,0)), "-") -> 153.6245
A158: 00ID8962 | B158: Муфта швидкого монтажу MS 1 1/4 PN40 | C158: CW | F158: 15.1822 | G158: =IFERROR(F158*(1-VLOOKUP(C158,ГОЛОВНА!K:L,2,0)), "-") -> 15.1822
A159: 00ID8963 | B159: Муфта швидкого монтажа PN20 | C159: CW | F159: 8.0237 | G159: =IFERROR(F159*(1-VLOOKUP(C159,ГОЛОВНА!K:L,2,0)), "-") -> 8.0237
A160: 00ID9052 | B160: Муфта швидкого монтажу R 1 1/4 --> STORZ | C160: CW | F160: 12.2467 | G160: =IFERROR(F160*(1-VLOOKUP(C160,ГОЛОВНА!K:L,2,0)), "-") -> 12.2467
A161: 00ID9053 | B161: Хомут для шланга, 1 1/4 | C161: CW | F161: 2.6162 | G161: =IFERROR(F161*(1-VLOOKUP(C161,ГОЛОВНА!K:L,2,0)), "-") -> 2.6162

Sheet SEG, AutoADAPT
A1: АРТИКУЛ | B1: НАЙМЕНУВАННЯ (УКР) | C1: PRICE GROUP | D1: ДОСТАВКА (ТИЖНІВ) | E1: ДОДАТКОВО | F1: ЦІНА (ЕВРО БЕЗ ПДВ) | G1: ЦІНА ЗІ ЗНИЖКОЮ | H1: НА ГОЛОВНУ
A2: SEG | G2: Каналізаційні насоси з ріжучим механізмом
A3: 96075893 | B3: Каналізаційний насос SEG.40.09.2.1.502 | C3: CW | F3: 1219.365 | G3: =IFERROR(F3*(1-VLOOKUP(C3,ГОЛОВНА!K:L,2,0)), "-") -> 1219.365
A4: 96076212 | B4: Каналізаційний насос SEG.40.09.2.1.502 ( | C4: CW | F4: 1278.2525 | G4: =IFERROR(F4*(1-VLOOKUP(C4,ГОЛОВНА!K:L,2,0)), "-") -> 1278.2525
A5: 96075897 | B5: Каналізаційний насос SEG.40.09.2.50B | C5: CW | F5: 1219.365 | G5: =IFERROR(F5*(1-VLOOKUP(C5,ГОЛОВНА!K:L,2,0)), "-") -> 1219.365
A6: 96878505 | B6: Каналізаційний насос SEG.40.09.E.2.1.502 | C6: CW | F6: 1734.065 | G6: =IFERROR(F6*(1-VLOOKUP(C6,ГОЛОВНА!K:L,2,0)), "-") -> 1734.065
A7: 96878506 | B7: Каналізаційний насос SEG.40.09.E.2.50B | C7: CW | F7: 1734.065 | G7: =IFERROR(F7*(1-VLOOKUP(C7,ГОЛОВНА!K:L,2,0)), "-") -> 1734.065
A8: 96878507 | B8: Каналізаційний насос SEG.40.09.E.Ex.2.1. | C8: CW | F8: 1893.0472 | G8: =IFERROR(F8*(1-VLOOKUP(C8,ГОЛОВНА!K:L,2,0)), "-") -> 1893.0472
A9: 96878508 | B9: Каналізаційний насос SEG.40.09.E.Ex.2.50 | C9: CW | F9: 1893.0472 | G9: =IFERROR(F9*(1-VLOOKUP(C9,ГОЛОВНА!K:L,2,0)), "-") -> 1893.0472
A10: 96075894 | B10: Каналізаційний насос SEG.40.09.EX.2.1.50 | C10: CW | F10: 1348.34 | G10: =IFERROR(F10*(1-VLOOKUP(C10,ГОЛОВНА!K:L,2,0)), "-") -> 1348.34
A11: 96076213 | B11: Каналізаційний насос SEG. 40.09.Ex.2.1.5 | C11: CW | F11: 1380.6625 | G11: =IFERROR(F11*(1-VLOOKUP(C11,ГОЛОВНА!K:L,2,0)), "-") -> 1380.6625
A12: 96075898 | B12: Каналізаційний насос SEG.40.09.EX.2.50B | C12: CW | F12: 1348.34 | G12: =IFERROR(F12*(1-VLOOKUP(C12,ГОЛОВНА!K:L,2,0)), "-") -> 1348.34
A13: 96076215 | B13: Каналізаційний насос SEG.40.09.EX.2.50B | C13: CW | F13: 1380.6625 | G13: =IFERROR(F13*(1-VLOOKUP(C13,ГОЛОВНА!K:L,2,0)), "-") -> 1380.6625
A14: 96075901 | B14: Каналізаційний насос SEG.40.12.2.1.502 | C14: CW | F14: 1219.365 | G14: =IFERROR(F14*(1-VLOOKUP(C14,ГОЛОВНА!K:L,2,0)), "-") -> 1219.365
A15: 96076216 | B15: Каналізаційний насос SEG. 40.12.2.1.502 | C15: CW | F15: 1278.2525 | G15: =IFERROR(F15*(1-VLOOKUP(C15,ГОЛОВНА!K:L,2,0)), "-") -> 1278.2525
A16: 96075905 | B16: Каналізаційний насос SEG.40.12.2.50B | C16: CW | F16: 1219.365 | G16: =IFERROR(F16*(1-VLOOKUP(C16,ГОЛОВНА!K:L,2,0)), "-") -> 1219.365
A17: 96878509 | B17: Каналізаційний насос SEG.40.12.E.2.1.502 | C17: CW | F17: 1734.065 | G17: =IFERROR(F17*(1-VLOOKUP(C17,ГОЛОВНА!K:L,2,0)), "-") -> 1734.065
A18: 96878510 | B18: Каналізаційний насос SEG.40.12.E.2.50B | C18: CW | F18: 1734.065 | G18: =IFERROR(F18*(1-VLOOKUP(C18,ГОЛОВНА!K:L,2,0)), "-") -> 1734.065
A19: 96878512 | B19: Каналізаційний насос SEG.40.12.E.Ex.2.1. | C19: CW | F19: 1893.0472 | G19: =IFERROR(F19*(1-VLOOKUP(C19,ГОЛОВНА!K:L,2,0)), "-") -> 1893.0472
A20: 96878513 | B20: Каналізаційний насос SEG.40.12.E.Ex.2.50 | C20: CW | F20: 1893.0472 | G20: =IFERROR(F20*(1-VLOOKUP(C20,ГОЛОВНА!K:L,2,0)), "-") -> 1893.0472
A21: 96075902 | B21: Каналізаційний насос SEG.40.12.EX.2.1.50 | C21: CW | F21: 1348.34 | G21: =IFERROR(F21*(1-VLOOKUP(C21,ГОЛОВНА!K:L,2,0)), "-") -> 1348.34
A22: 96076217 | B22: Каналізаційний насос SEG. 40.12.Ex.2.1.5 | C22: CW | F22: 1380.6625 | G22: =IFERROR(F22*(1-VLOOKUP(C22,ГОЛОВНА!K:L,2,0)), "-") -> 1380.6625
A23: 96075906 | B23: Каналізаційний насос SEG.40.12.EX.2.50B | C23: CW | F23: 1348.34 | G23: =IFERROR(F23*(1-VLOOKUP(C23,ГОЛОВНА!K:L,2,0)), "-") -> 1348.34
A24: 96076164 | B24: Каналізаційний насос SEG.40.12.Ex.2.50B | C24: CW | F24: 1219.365 | G24: =IFERROR(F24*(1-VLOOKUP(C24,ГОЛОВНА!K:L,2,0)), "-") -> 1219.365
A25: 96076219 | B25: Каналізаційний насос SEG.40.12.EX.2.50B | C25: CW | F25: 1380.6625 | G25: =IFERROR(F25*(1-VLOOKUP(C25,ГОЛОВНА!K:L,2,0)), "-") -> 1380.6625
A26: 98280724 | B26: Каналізаційний насос SEG.40.15.2.1.502 | C26: CW | F26: 1335.46 | G26: =IFERROR(F26*(1-VLOOKUP(C26,ГОЛОВНА!K:L,2,0)), "-") -> 1335.46
A27: 96075909 | B27: Каналізаційний насос SEG.40.15.2.50B | C27: CW | F27: 1376.76 | G27: =IFERROR(F27*(1-VLOOKUP(C27,ГОЛОВНА!K:L,2,0)), "-") -> 1376.76
A28: 98280726 | B28: Каналізаційний насос SEG.40.15.E.2.1.502 | C28: CW | F28: 1876.9732 | G28: =IFERROR(F28*(1-VLOOKUP(C28,ГОЛОВНА!K:L,2,0)), "-") -> 1876.9732
A29: 96878514 | B29: Каналізаційний насос SEG.40.15.E.2.50B | C29: CW | F29: 1876.9732 | G29: =IFERROR(F29*(1-VLOOKUP(C29,ГОЛОВНА!K:L,2,0)), "-") -> 1876.9732
A30: 96878515 | B30: Каналізаційний насос SEG.40.15.E.Ex.2.50 | C30: CW | F30: 1987.5266 | G30: =IFERROR(F30*(1-VLOOKUP(C30,ГОЛОВНА!K:L,2,0)), "-") -> 1987.5266
A31: 96075910 | B31: Каналізаційний насос SEG.40.15.EX.2.50B | C31: CW | F31: 1468.4775 | G31: =IFERROR(F31*(1-VLOOKUP(C31,ГОЛОВНА!K:L,2,0)), "-") -> 1468.4775
A32: 96076221 | B32: Каналізаційний насос SEG.40.15.EX.2.50B | C32: CW | F32: 1500.835 | G32: =IFERROR(F32*(1-VLOOKUP(C32,ГОЛОВНА!K:L,2,0)), "-") -> 1500.835
A33: 96075913 | B33: Каналізаційний насос SEG.40.26.2.50B | C33: CW | F33: 1708.84 | G33: =IFERROR(F33*(1-VLOOKUP(C33,ГОЛОВНА!K:L,2,0)), "-") -> 1708.84
A34: 96878516 | B34: Каналізаційний насос SEG.40.26.E.2.50B | C34: CW | F34: 2238.9108 | G34: =IFERROR(F34*(1-VLOOKUP(C34,ГОЛОВНА!K:L,2,0)), "-") -> 2238.9108
A35: 96878517 | B35: Каналізаційний насос SEG.40.26.E.Ex.2.50 | C35: CW | F35: 2352.3218 | G35: =IFERROR(F35*(1-VLOOKUP(C35,ГОЛОВНА!K:L,2,0)), "-") -> 2352.3218
A36: 96075914 | B36: Каналізаційний насос SEG.40.26.EX.2.50B | C36: CW | F36: 1787.555 | G36: =IFERROR(F36*(1-VLOOKUP(C36,ГОЛОВНА!K:L,2,0)), "-") -> 1787.555
A37: 96076223 | B37: Каналізаційний насос SEG.40.26.EX.2.50B | C37: CW | F37: 1819.895 | G37: =IFERROR(F37*(1-VLOOKUP(C37,ГОЛОВНА!K:L,2,0)), "-") -> 1819.895
A38: 96075915 | B38: Каналізаційний насос SEG.40.31.2.50B | C38: CW | F38: 1770.0725 | G38: =IFERROR(F38*(1-VLOOKUP(C38,ГОЛОВНА!K:L,2,0)), "-") -> 1770.0725
A39: 96878518 | B39: Каналізаційний насос SEG.40.31.E.2.50B | C39: CW | F39: 2294.5494 | G39: =IFERROR(F39*(1-VLOOKUP(C39,ГОЛОВНА!K:L,2,0)), "-") -> 2294.5494
A40: 96878519 | B40: Каналізаційний насос SEG.40.31.E.Ex.2.50 | C40: CW | F40: 2407.8852 | G40: =IFERROR(F40*(1-VLOOKUP(C40,ГОЛОВНА!K:L,2,0)), "-") -> 2407.8852
A41: 96075916 | B41: Каналізаційний насос SEG.40.31.EX.2.50B | C41: CW | F41: 1848.77 | G41: =IFERROR(F41*(1-VLOOKUP(C41,ГОЛОВНА!K:L,2,0)), "-") -> 1848.77
A42: 96076225 | B42: Каналізаційний насос SEG.40.31.EX.2.50B | C42: CW | F42: 1881.075 | G42: =IFERROR(F42*(1-VLOOKUP(C42,ГОЛОВНА!K:L,2,0)), "-") -> 1881.075
A43: 96075917 | B43: Каналізаційний насос SEG.40.40.2.50B | C43: CW | F43: 2065.0875 | G43: =IFERROR(F43*(1-VLOOKUP(C43,ГОЛОВНА!K:L,2,0)), "-") -> 2065.0875
A44: 96878520 | B44: Каналізаційний насос SEG.40.40.E.2.50B | C44: CW | F44: 2562.5152 | G44: =IFERROR(F44*(1-VLOOKUP(C44,ГОЛОВНА!K:L,2,0)), "-") -> 2562.5152
A45: 96878521 | B45: Каналізаційний насос SEG.40.40.E.Ex.2.50 | C45: CW | F45: 2687.695 | G45: =IFERROR(F45*(1-VLOOKUP(C45,ГОЛОВНА!K:L,2,0)), "-") -> 2687.695
A46: 96075918 | B46: Каналізаційний насос SEG.40.40.EX.2.50B | C46: CW | F46: 2156.84 | G46: =IFERROR(F46*(1-VLOOKUP(C46,ГОЛОВНА!K:L,2,0)), "-") -> 2156.84
A47: 96076227 | B47: Каналізаційний насос SEG.40.40.EX.2.50B | C47: CW | F47: 2189.1975 | G47: =IFERROR(F47*(1-VLOOKUP(C47,ГОЛОВНА!K:L,2,0)), "-") -> 2189.1975
A48: 99274393 | B48: Каналізаційний насос SEG.50.26.Ex.2.50B | C48: CW | F48: 1794.695 | G48: =IFERROR(F48*(1-VLOOKUP(C48,ГОЛОВНА!K:L,2,0)), "-") -> 1794.695
A49: 99274394 | B49: Каналізаційний насос SEG.50.31.Ex.2.50B | C49: CW | F49: 1858.675 | G49: =IFERROR(F49*(1-VLOOKUP(C49,ГОЛОВНА!K:L,2,0)), "-") -> 1858.675
A50: 99274395 | B50: Каналізаційний насос SEG.50.40.Ex.2.50B | C50: CW | F50: 2168.1625 | G50: =IFERROR(F50*(1-VLOOKUP(C50,ГОЛОВНА!K:L,2,0)), "-") -> 2168.1625
A51: 99274435 | B51: Каналізаційний насос SEG.50.26.E.Ex.2.50B | C51: CW | F51: 2469.8124 | G51: =IFERROR(F51*(1-VLOOKUP(C51,ГОЛОВНА!K:L,2,0)), "-") -> 2469.8124
A52: 99274436 | B52: Каналізаційний насос SEG.50.31.E.2.50B | C52: CW | F52: 2409.0038 | G52: =IFERROR(F52*(1-VLOOKUP(C52,ГОЛОВНА!K:L,2,0)), "-") -> 2409.0038
A53: 99274434 | B53: Каналізаційний насос SEG.50.26.E.2.50B | C53: CW | F53: 2349.9906 | G53: =IFERROR(F53*(1-VLOOKUP(C53,ГОЛОВНА!K:L,2,0)), "-") -> 2349.9906
A54: 99274437 | B54: Каналізаційний насос SEG.50.31.E.Ex.2.50B | C54: CW | F54: 2528.8256 | G54: =IFERROR(F54*(1-VLOOKUP(C54,ГОЛОВНА!K:L,2,0)), "-") -> 2528.8256
A55: 99274439 | B55: Каналізаційний насос SEG.50.40.E.Ex.2.50B | C55: CW | F55: 2822.1244 | G55: =IFERROR(F55*(1-VLOOKUP(C55,ГОЛОВНА!K:L,2,0)), "-") -> 2822.1244
A56: 99274389 | B56: Каналізаційний насос SEG.50.40.EX.2.50B | C56: CW | F56: 2264.99 | G56: =IFERROR(F56*(1-VLOOKUP(C56,ГОЛОВНА!K:L,2,0)), "-") -> 2264.99
A57: 99274386 | B57: Каналізаційний насос SEG.50.31.2.50B | C57: CW | F57: 1858.675 | G57: =IFERROR(F57*(1-VLOOKUP(C57,ГОЛОВНА!K:L,2,0)), "-") -> 1858.675
A58: 99274385 | B58: Каналізаційний насос SEG.50.26.EX.2.50B | C58: CW | F58: 1877.6975 | G58: =IFERROR(F58*(1-VLOOKUP(C58,ГОЛОВНА!K:L,2,0)), "-") -> 1877.6975
A59: 99274387 | B59: Каналізаційний насос SEG.50.31.EX.2.50B | C59: CW | F59: 1941.66 | G59: =IFERROR(F59*(1-VLOOKUP(C59,ГОЛОВНА!K:L,2,0)), "-") -> 1941.66
A60: 99274388 | B60: Каналізаційний насос SEG.50.40.2.50B | C60: CW | F60: 2168.1625 | G60: =IFERROR(F60*(1-VLOOKUP(C60,ГОЛОВНА!K:L,2,0)), "-") -> 2168.1625
A61: 99274384 | B61: Каналізаційний насос SEG.50.26.2.50B | C61: CW | F61: 1794.695 | G61: =IFERROR(F61*(1-VLOOKUP(C61,ГОЛОВНА!K:L,2,0)), "-") -> 1794.695
A62: 99274438 | B62: Каналізаційний насос SEG.50.40.E.2.50B | C62: CW | F62: 2689.7818 | G62: =IFERROR(F62*(1-VLOOKUP(C62,ГОЛОВНА!K:L,2,0)), "-") -> 2689.7818
B64: Аксесуари
A65: 96001977 | B65: Муфта Storz 1 1/2 | C65: CW | F65: 33.475 | G65: =IFERROR(F65*(1-VLOOKUP(C65,ГОЛОВНА!K:L,2,0)), "-") -> 33.475
A66: 96002002 | B66: Зворотній клапан Rp2", PN10 | C66: CW | F66: 99.2405 | G66: =IFERROR(F66*(1-VLOOKUP(C66,ГОЛОВНА!K:L,2,0)), "-") -> 99.2405
A67: 96489973 | B67: Клапан запірний Rp/Rp 1 1/2" | C67: CW | F67: 71.4202 | G67: =IFERROR(F67*(1-VLOOKUP(C67,ГОЛОВНА!K:L,2,0)), "-") -> 71.4202
A68: 96489973 | B68: Клапан запірний Rp/Rp 1 1/2" | C68: CW | F68: 71.4202 | G68: =IFERROR(F68*(1-VLOOKUP(C68,ГОЛОВНА!K:L,2,0)), "-") -> 71.4202
A69: 96003632 | B69: Ніпель R 1 1/2 | C69: CW | F69: 21.1253 | G69: =IFERROR(F69*(1-VLOOKUP(C69,ГОЛОВНА!K:L,2,0)), "-") -> 21.1253
A70: 96001993 | B70: Ніпель R 2 | C70: CW | F70: 11.6081 | G70: =IFERROR(F70*(1-VLOOKUP(C70,ГОЛОВНА!K:L,2,0)), "-") -> 11.6081
A71: 96001993 | B71: Ніпель R 2 | C71: CW | F71: 11.6081 | G71: =IFERROR(F71*(1-VLOOKUP(C71,ГОЛОВНА!K:L,2,0)), "-") -> 11.6081
A72: 96001980 | B72: Коліно оцинк 2 R /RP 90* | C72: CW | F72: 21.1768 | G72: =IFERROR(F72*(1-VLOOKUP(C72,ГОЛОВНА!K:L,2,0)), "-") -> 21.1768
A73: 96076063 | B73: Автоматична муфта DN40 (SEG) | C73: WW | F73: 167.0835 | G73: =IFERROR(F73*(1-VLOOKUP(C73,ГОЛОВНА!K:L,2,0)), "-") -> 167.0835
A74: 96489959 | B74: Фланець різьбовий DN40, Rp 1 1/2" | C74: CW | F74: 24.6891 | G74: =IFERROR(F74*(1-VLOOKUP(C74,ГОЛОВНА!K:L,2,0)), "-") -> 24.6891
A75: 96497465 | B75: Заміна на 98538177 6м або 98538176 4м | C75: WW | F75: 126.1205 | G75: =IFERROR(F75*(1-VLOOKUP(C75,ГОЛОВНА!K:L,2,0)), "-") -> 126.1205
A76: 96004442 | B76: Автоматична трубна муфта Rp/Rp2, cpl. | C76: WW | F76: 149.2815 | G76: =IFERROR(F76*(1-VLOOKUP(C76,ГОЛОВНА!K:L,2,0)), "-") -> 149.2815
A77: 96076196 | B77: Опори для переносного монтажу SEG (3 шт) | C77: CW | F77: 82.047843 | G77: =IFERROR(F77*(1-VLOOKUP(C77,ГОЛОВНА!K:L,2,0)), "-") -> 82.047843
A78: 96076196 | B78: Опори для переносного монтажу SEG (3 шт) | C78: CW | F78: 82.047843 | G78: =IFERROR(F78*(1-VLOOKUP(C78,ГОЛОВНА!K:L,2,0)), "-") -> 82.047843
A79: 96914019 | B79: Пульт керування CU 100.400.3.5.A | C79: CW | F79: 508.99 | G79: =IFERROR(F79*(1-VLOOKUP(C79,ГОЛОВНА!K:L,2,0)), "-") -> 508.99
A80: 96841917 | B80: Шафа керування LC108.400.3.5 DOL (RUS) | C80: CW | F80: 765.434 | G80: =IFERROR(F80*(1-VLOOKUP(C80,ГОЛОВНА!K:L,2,0)), "-") -> 765.434
A81: 96841996 | B81: Шафа керування LCD108.400.3.5 DOL (RUS) | C81: CW | F81: 969.684 | G81: =IFERROR(F81*(1-VLOOKUP(C81,ГОЛОВНА!K:L,2,0)), "-") -> 969.684
A82: 96841921 | B82: Шафа керування LC108.400.3.12 DOL (RUS) | C82: CW | F82: 850.25 | G82: =IFERROR(F82*(1-VLOOKUP(C82,ГОЛОВНА!K:L,2,0)), "-") -> 850.25
A83: 96842002 | B83: Шафа керування LCD108.400.3.12 DOL (RUS) | C83: CW | F83: 1019.787 | G83: =IFERROR(F83*(1-VLOOKUP(C83,ГОЛОВНА!K:L,2,0)), "-") -> 1019.787
A84: 96076197 | B84: Пульт керування CU 100.230.1.9.30/ | C84: CW | F84: 495.8626 | G84: =IFERROR(F84*(1-VLOOKUP(C84,ГОЛОВНА!K:L,2,0)), "-") -> 495.8626
A85: 96841910 | B85: Шафа керування LC108.230.1.12.30/150 (GB | C85: CW | F85: 1079.827 | G85: =IFERROR(F85*(1-VLOOKUP(C85,ГОЛОВНА!K:L,2,0)), "-") -> 1079.827
A86: 96841987 | B86: Шафа керування LCD108.230.1.12(30/150) | C86: CW | F86: 1198.235 | G86: =IFERROR(F86*(1-VLOOKUP(C86,ГОЛОВНА!K:L,2,0)), "-") -> 1198.235
A87: 96440300 | B87: Допоміжна шафа LC-Ex4 Zener Barrier | C87: CW | F87: 740.981 | G87: =IFERROR(F87*(1-VLOOKUP(C87,ГОЛОВНА!K:L,2,0)), "-") -> 740.981
A88: 96003332 | B88: Поплавцевий вимикач MS1+10м кабель | C88: CW | F88: 93.5154 | G88: =IFERROR(F88*(1-VLOOKUP(C88,ГОЛОВНА!K:L,2,0)), "-") -> 93.5154
A89: 62500013 | B89: Поплавцевий вимикач MS1 + 10м каб, 2 шт. | C89: CW | F89: 227.449 | G89: =IFERROR(F89*(1-VLOOKUP(C89,ГОЛОВНА!K:L,2,0)), "-") -> 227.449
A90: 62500014 | B90: Поплавцевий вимикач МS1 + 10м каб, 3 шт. | C90: CW | F90: 363.071 | G90: =IFERROR(F90*(1-VLOOKUP(C90,ГОЛОВНА!K:L,2,0)), "-") -> 363.071
A91: 62500015 | B91: Поплавцевий вимикач МS1 + 10м каб, 4шт. | C91: CW | F91: 456.988 | G91: =IFERROR(F91*(1-VLOOKUP(C91,ГОЛОВНА!K:L,2,0)), "-") -> 456.988
A92: 96003421 | B92: Поплавцевий вимикач MS1 (Ex) з кабел 10м | C92: CW | F92: 125.191 | G92: =IFERROR(F92*(1-VLOOKUP(C92,ГОЛОВНА!K:L,2,0)), "-") -> 125.191
A93: 62500016 | B93: Поплавцевий вимикач, к-т 2 шт., вибухоза | C93: CW | F93: 302.575 | G93: =IFERROR(F93*(1-VLOOKUP(C93,ГОЛОВНА!K:L,2,0)), "-") -> 302.575
A94: 62500017 | B94: Поплавцевий вимикач, к-т 3 шт., вибухоза | C94: CW | F94: 479.94 | G94: =IFERROR(F94*(1-VLOOKUP(C94,ГОЛОВНА!K:L,2,0)), "-") -> 479.94
A95: 62500018 | B95: Поплавцевий вимикач, к-т 4 шт., вибухоза | C95: CW | F95: 615.581 | G95: =IFERROR(F95*(1-VLOOKUP(C95,ГОЛОВНА!K:L,2,0)), "-") -> 615.581

Sheet Multilift
A1: АРТИКУЛ | B1: НАЙМЕНУВАННЯ (УКР) | C1: PRICE GROUP | D1: ДОСТАВКА (ТИЖНІВ) | E1: ДОДАТКОВО | F1: ЦІНА (ЕВРО БЕЗ ПДВ) | G1: ЦІНА ЗІ ЗНИЖКОЮ | H1: НА ГОЛОВНУ
A2: Multilift | G2: Компактні каналізаційні станції для встановлення у приміщенні
A3: 97901064 | B3: Каналізаційна установка M.12.1.4 1x230V | C3: CW | F3: 2597.09 | G3: =IFERROR(F3*(1-VLOOKUP(C3,ГОЛОВНА!K:L,2,0)), "-") -> 2597.09
A4: 97901076 | B4: Каналізаційна установка M.12.1.4 1x230V | C4: CW | F4: 2695.6142 | G4: =IFERROR(F4*(1-VLOOKUP(C4,ГОЛОВНА!K:L,2,0)), "-") -> 2695.6142
A5: 97901065 | B5: Каналізаційна установка M.12.3.4 3x400V | C5: CW | F5: 2597.09 | G5: =IFERROR(F5*(1-VLOOKUP(C5,ГОЛОВНА!K:L,2,0)), "-") -> 2597.09
A6: 97901066 | B6: Каналізаційна установка M.15.1.4 1x230V | C6: CW | F6: 2847.18 | G6: =IFERROR(F6*(1-VLOOKUP(C6,ГОЛОВНА!K:L,2,0)), "-") -> 2847.18
A7: 97901067 | B7: Каналізаційна установка M.15.3.4 3x400V | C7: CW | F7: 2847.18 | G7: =IFERROR(F7*(1-VLOOKUP(C7,ГОЛОВНА!K:L,2,0)), "-") -> 2847.18
A8: 97901068 | B8: Каналізаційна установка M.22.3.4 3x400V | C8: CW | F8: 3039.55 | G8: =IFERROR(F8*(1-VLOOKUP(C8,ГОЛОВНА!K:L,2,0)), "-") -> 3039.55
A9: 97901037 | B9: Каналізаційна установка MSS.11.1.2 1x230 | C9: CW | F9: 1615.97 | G9: =IFERROR(F9*(1-VLOOKUP(C9,ГОЛОВНА!K:L,2,0)), "-") -> 1615.97
A10: 97901028 | B10: Каналізаційна установка MSS.11.1.2 1x230 | C10: CW | F10: 1692.93 | G10: =IFERROR(F10*(1-VLOOKUP(C10,ГОЛОВНА!K:L,2,0)), "-") -> 1692.93
A11: 97901027 | B11: Каналізаційна установка MSS.11.3.2 3x400 | C11: CW | F11: 1615.97 | G11: =IFERROR(F11*(1-VLOOKUP(C11,ГОЛОВНА!K:L,2,0)), "-") -> 1615.97

Sheet SE, SL
A1: АРТИКУЛ | B1: НАЙМЕНУВАННЯ (УКР) | C1: PRICE GROUP | D1: ДОСТАВКА (ТИЖНІВ) | E1: ДОДАТКОВО | F1: ЦІНА (ЕВРО БЕЗ ПДВ) | G1: ЦІНА ЗІ ЗНИЖКОЮ | H1: НА ГОЛОВНУ
A2: SE/SL | G2: Каналізаційні насоси
A3: 96106562 | B3: Помпа для сточних вод SL1.50.65.09.2.1.5 | C3: CW | F3: 1062.6035 | G3: =IFERROR(F3*(1-VLOOKUP(C3,ГОЛОВНА!K:L,2,0)), "-") -> 1062.6035
A4: 96106566 | B4: Насос для стічн вод SL1.50.65.09.2.50B | C4: CW | F4: 1062.6035 | G4: =IFERROR(F4*(1-VLOOKUP(C4,ГОЛОВНА!K:L,2,0)), "-") -> 1062.6035
A5: 96106564 | B5: Помпа для сточних вод SL1.50.65.09.A.2.1 | C5: CW | F5: 1480.442 | G5: =IFERROR(F5*(1-VLOOKUP(C5,ГОЛОВНА!K:L,2,0)), "-") -> 1480.442
A6: 96106570 | B6: Помпа для сточних вод SL1.50.65.09.A.2.5 | C6: CW | F6: 1349.608 | G6: =IFERROR(F6*(1-VLOOKUP(C6,ГОЛОВНА!K:L,2,0)), "-") -> 1349.608
A7: 96878450 | B7: Каналізаційний насос SL1.50.65.09.E.2.1. | C7: CW | F7: 1636.0995 | G7: =IFERROR(F7*(1-VLOOKUP(C7,ГОЛОВНА!K:L,2,0)), "-") -> 1636.0995
A8: 96878451 | B8: Каналізаційний насос SL1.50.65.09.E.2.50 | C8: CW | F8: 1636.0995 | G8: =IFERROR(F8*(1-VLOOKUP(C8,ГОЛОВНА!K:L,2,0)), "-") -> 1636.0995
A9: 96878452 | B9: Каналізаційний насос SL1.50.65.09.E.Ex.2 | C9: CW | F9: 1801.599 | G9: =IFERROR(F9*(1-VLOOKUP(C9,ГОЛОВНА!K:L,2,0)), "-") -> 1801.599
A10: 96878453 | B10: Каналізаційний насос SL1.50.65.09.E.Ex.2 | C10: CW | F10: 1801.599 | G10: =IFERROR(F10*(1-VLOOKUP(C10,ГОЛОВНА!K:L,2,0)), "-") -> 1801.599
A11: 96106563 | B11: Помпа для сточних вод SL1.50.65.09.EX.2. | C11: CW | F11: 1195.081 | G11: =IFERROR(F11*(1-VLOOKUP(C11,ГОЛОВНА!K:L,2,0)), "-") -> 1195.081
A12: 96106568 | B12: Насос для стічн вод SE1.50.65.09.Ex.2.50 | C12: CW | F12: 1195.081 | G12: =IFERROR(F12*(1-VLOOKUP(C12,ГОЛОВНА!K:L,2,0)), "-") -> 1195.081
A13: 96104125 | B13: Помпа для сточних вод SL1.50.65.11.2.1.5 | C13: CW | F13: 1206.025 | G13: =IFERROR(F13*(1-VLOOKUP(C13,ГОЛОВНА!K:L,2,0)), "-") -> 1206.025
A14: 96104129 | B14: Помпа для сточних вод SL1.50.65.11.2.50B | C14: CW | F14: 1206.025 | G14: =IFERROR(F14*(1-VLOOKUP(C14,ГОЛОВНА!K:L,2,0)), "-") -> 1206.025
A15: 96104127 | B15: Помпа для сточних вод SL1.50.65.11.A.2.1 | C15: CW | F15: 1493.0485 | G15: =IFERROR(F15*(1-VLOOKUP(C15,ГОЛОВНА!K:L,2,0)), "-") -> 1493.0485
A16: 96104133 | B16: Помпа для сточних вод SL1.50.65.11.A.2.5 | C16: CW | F16: 1493.0485 | G16: =IFERROR(F16*(1-VLOOKUP(C16,ГОЛОВНА!K:L,2,0)), "-") -> 1493.0485
A17: 96878454 | B17: Каналізаційний насос SL1.50.65.11.E.2.1. | C17: CW | F17: 1767.1235 | G17: =IFERROR(F17*(1-VLOOKUP(C17,ГОЛОВНА!K:L,2,0)), "-") -> 1767.1235
A18: 96878455 | B18: Каналізаційний насос SL1.50.65.11.E.2.50 | C18: CW | F18: 1767.1235 | G18: =IFERROR(F18*(1-VLOOKUP(C18,ГОЛОВНА!K:L,2,0)), "-") -> 1767.1235
A19: 96878456 | B19: Каналізаційний насос SL1.50.65.11.E.Ex.2 | C19: CW | F19: 1932.604 | G19: =IFERROR(F19*(1-VLOOKUP(C19,ГОЛОВНА!K:L,2,0)), "-") -> 1932.604
A20: 96878457 | B20: Каналізаційний насос SL1.50.65.11.E.Ex.2 | C20: CW | F20: 1932.604 | G20: =IFERROR(F20*(1-VLOOKUP(C20,ГОЛОВНА!K:L,2,0)), "-") -> 1932.604
A21: 96104126 | B21: Помпа для сточних вод SL1.50.65.11.EX.2. | C21: CW | F21: 1338.4835 | G21: =IFERROR(F21*(1-VLOOKUP(C21,ГОЛОВНА!K:L,2,0)), "-") -> 1338.4835
A22: 96104131 | B22: Помпа для сточних вод SL1.50.65.11.EX.2. | C22: CW | F22: 1338.4835 | G22: =IFERROR(F22*(1-VLOOKUP(C22,ГОЛОВНА!K:L,2,0)), "-") -> 1338.4835
A23: 96104118 | B23: Насос для сточних вод SL1.50.65.15.2.50B | C23: CW | F23: 1478.7985 | G23: =IFERROR(F23*(1-VLOOKUP(C23,ГОЛОВНА!K:L,2,0)), "-") -> 1478.7985
A24: 96104122 | B24: Помпа для сточних вод SL1.50.65.15.A.2.5 | C24: CW | F24: 1765.841 | G24: =IFERROR(F24*(1-VLOOKUP(C24,ГОЛОВНА!K:L,2,0)), "-") -> 1765.841
A25: 96878458 | B25: Каналізаційний насос SL1.50.65.15.E.2.50 | C25: CW | F25: 2016.2895 | G25: =IFERROR(F25*(1-VLOOKUP(C25,ГОЛОВНА!K:L,2,0)), "-") -> 2016.2895
A26: 96878472 | B26: Каналізаційний насос SL1.50.65.15.E.Ex.2 | C26: CW | F26: 2181.7605 | G26: =IFERROR(F26*(1-VLOOKUP(C26,ГОЛОВНА!K:L,2,0)), "-") -> 2181.7605
A27: 96104120 | B27: Помпа для сточних вод SL1.50.65.15.EX.2. | C27: CW | F27: 1611.257 | G27: =IFERROR(F27*(1-VLOOKUP(C27,ГОЛОВНА!K:L,2,0)), "-") -> 1611.257
A28: 96115119 | B28: Помпа для сточних вод SLV 65.65.09.2.1.5 | C28: CW | F28: 1048.7525 | G28: =IFERROR(F28*(1-VLOOKUP(C28,ГОЛОВНА!K:L,2,0)), "-") -> 1048.7525
A29: 96115123 | B29: Помпа для сточних вод SLV 65.65.09.2.50B | C29: CW | F29: 1048.7525 | G29: =IFERROR(F29*(1-VLOOKUP(C29,ГОЛОВНА!K:L,2,0)), "-") -> 1048.7525
A30: 96115121 | B30: Помпа для сточних вод SLV 65.65.09.A.2.1 | C30: CW | F30: 1335.8235 | G30: =IFERROR(F30*(1-VLOOKUP(C30,ГОЛОВНА!K:L,2,0)), "-") -> 1335.8235
A31: 96115125 | B31: Помпа для сточних вод SLV 65.65.09.A.2.5 | C31: CW | F31: 1335.8235 | G31: =IFERROR(F31*(1-VLOOKUP(C31,ГОЛОВНА!K:L,2,0)), "-") -> 1335.8235
A32: 96878474 | B32: Насос для стічних вод SLV.65.65.09.E.2.1 | C32: CW | F32: 1623.474 | G32: =IFERROR(F32*(1-VLOOKUP(C32,ГОЛОВНА!K:L,2,0)), "-") -> 1623.474
A33: 96878475 | B33: Насос SLV65.65.09.E.2.50 | C33: CW | F33: 1623.474 | G33: =IFERROR(F33*(1-VLOOKUP(C33,ГОЛОВНА!K:L,2,0)), "-") -> 1623.474
A34: 96878476 | B34: Насос SLV65.65.09.E.EX.2 | C34: CW | F34: 1788.9925 | G34: =IFERROR(F34*(1-VLOOKUP(C34,ГОЛОВНА!K:L,2,0)), "-") -> 1788.9925
A35: 96878477 | B35: Насос SLV65.65.09.E.EX.2 | C35: CW | F35: 1788.983 | G35: =IFERROR(F35*(1-VLOOKUP(C35,ГОЛОВНА!K:L,2,0)), "-") -> 1788.983
A36: 96115120 | B36: Помпа для сточних вод SLV 65.65.09.EX.2. | C36: CW | F36: 1181.268 | G36: =IFERROR(F36*(1-VLOOKUP(C36,ГОЛОВНА!K:L,2,0)), "-") -> 1181.268
A37: 96115124 | B37: Помпа для сточних вод SLV 65.65.09.EX.2. | C37: CW | F37: 1181.268 | G37: =IFERROR(F37*(1-VLOOKUP(C37,ГОЛОВНА!K:L,2,0)), "-") -> 1181.268
A38: 96106573 | B38: Помпа для сточних вод SLV 65.65.11.2.1.5 | C38: CW | F38: 1177.3255 | G38: =IFERROR(F38*(1-VLOOKUP(C38,ГОЛОВНА!K:L,2,0)), "-") -> 1177.3255
A39: 96106577 | B39: Помпа для сточних вод SLV 65.65.11.2.50B | C39: CW | F39: 1142.014 | G39: =IFERROR(F39*(1-VLOOKUP(C39,ГОЛОВНА!K:L,2,0)), "-") -> 1142.014
A40: 96106575 | B40: Помпа для сточних вод SLV 65.65.11.A.2.1 | C40: CW | F40: 1464.349 | G40: =IFERROR(F40*(1-VLOOKUP(C40,ГОЛОВНА!K:L,2,0)), "-") -> 1464.349
A41: 96106579 | B41: Помпа для сточних вод SLV 65.65.11.A.2.5 | C41: CW | F41: 1464.349 | G41: =IFERROR(F41*(1-VLOOKUP(C41,ГОЛОВНА!K:L,2,0)), "-") -> 1464.349
A42: 96882685 | B42: Насос для стічн вод SLV.65.65.11.E.2.1.5 | C42: CW | F42: 1740.8655 | G42: =IFERROR(F42*(1-VLOOKUP(C42,ГОЛОВНА!K:L,2,0)), "-") -> 1740.8655
A43: 96882686 | B43: Насос SLV65.65.11.E.2.50 | C43: CW | F43: 1740.8655 | G43: =IFERROR(F43*(1-VLOOKUP(C43,ГОЛОВНА!K:L,2,0)), "-") -> 1740.8655
A44: 96878480 | B44: Насос SLV65.65.11.E.EX.2 | C44: CW | F44: 1906.403 | G44: =IFERROR(F44*(1-VLOOKUP(C44,ГОЛОВНА!K:L,2,0)), "-") -> 1906.403
A45: 96878481 | B45: Насос SLV65.65.11.E.EX.2 | C45: CW | F45: 1906.403 | G45: =IFERROR(F45*(1-VLOOKUP(C45,ГОЛОВНА!K:L,2,0)), "-") -> 1906.403
A46: 96106574 | B46: Помпа для сточних вод SLV 65.65.11.EX.2. | C46: CW | F46: 1309.822 | G46: =IFERROR(F46*(1-VLOOKUP(C46,ГОЛОВНА!K:L,2,0)), "-") -> 1309.822
A47: 96106578 | B47: Помпа для сточних вод SLV 65.65.11.EX.2. | C47: CW | F47: 1309.822 | G47: =IFERROR(F47*(1-VLOOKUP(C47,ГОЛОВНА!K:L,2,0)), "-") -> 1309.822
A48: 96104192 | B48: Насос для стічних вод SLV 65.65.15.2.50B | C48: CW | F48: 1450.1085 | G48: =IFERROR(F48*(1-VLOOKUP(C48,ГОЛОВНА!K:L,2,0)), "-") -> 1450.1085
A49: 96104194 | B49: Насос для стічних вод SEV SLV 65.65.15.A | C49: CW | F49: 1737.113 | G49: =IFERROR(F49*(1-VLOOKUP(C49,ГОЛОВНА!K:L,2,0)), "-") -> 1737.113
A50: 96878503 | B50: Насос SLV65.65.15.E.2.50 | C50: CW | F50: 1990.06 | G50: =IFERROR(F50*(1-VLOOKUP(C50,ГОЛОВНА!K:L,2,0)), "-") -> 1990.06
A51: 96878504 | B51: Насос SLV65.65.15.E.EX.2 | C51: CW | F51: 2155.512 | G51: =IFERROR(F51*(1-VLOOKUP(C51,ГОЛОВНА!K:L,2,0)), "-") -> 2155.512
A52: 96104193 | B52: Помпа для сточних вод SLV 65.65.15.EX.2. | C52: CW | F52: 1582.529 | G52: =IFERROR(F52*(1-VLOOKUP(C52,ГОЛОВНА!K:L,2,0)), "-") -> 1582.529
A53: 96106562 | B53: Помпа для сточних вод SL1.50.65.09.2.1.5 | C53: CW | F53: 1062.6035 | G53: =IFERROR(F53*(1-VLOOKUP(C53,ГОЛОВНА!K:L,2,0)), "-") -> 1062.6035
A54: 96106566 | B54: Насос для стічн вод SL1.50.65.09.2.50B | C54: CW | F54: 1062.6035 | G54: =IFERROR(F54*(1-VLOOKUP(C54,ГОЛОВНА!K:L,2,0)), "-") -> 1062.6035
A55: 96106564 | B55: Помпа для сточних вод SL1.50.65.09.A.2.1 | C55: CW | F55: 1480.442 | G55: =IFERROR(F55*(1-VLOOKUP(C55,ГОЛОВНА!K:L,2,0)), "-") -> 1480.442
A56: 96106570 | B56: Помпа для сточних вод SL1.50.65.09.A.2.5 | C56: CW | F56: 1349.608 | G56: =IFERROR(F56*(1-VLOOKUP(C56,ГОЛОВНА!K:L,2,0)), "-") -> 1349.608
A57: 96878450 | B57: Каналізаційний насос SL1.50.65.09.E.2.1. | C57: CW | F57: 1636.0995 | G57: =IFERROR(F57*(1-VLOOKUP(C57,ГОЛОВНА!K:L,2,0)), "-") -> 1636.0995
A58: 96047509 | B58: Помпа для сточних вод SE1.50.65.22.2.50D | C58: WW | F58: 2680.9858 | G58: =IFERROR(F58*(1-VLOOKUP(C58,ГОЛОВНА!K:L,2,0)), "-") -> 2680.9858
A59: 96047511 | B59: Помпа для сточних вод SE1.50.65.22.Ex.2. | C59: WW | F59: 2914.0605 | G59: =IFERROR(F59*(1-VLOOKUP(C59,ГОЛОВНА!K:L,2,0)), "-") -> 2914.0605
A60: 96047517 | B60: Насос для сточних вод SE1.50.65.30.2.50D | C60: WW | F60: 2900.708 | G60: =IFERROR(F60*(1-VLOOKUP(C60,ГОЛОВНА!K:L,2,0)), "-") -> 2900.708
A61: 96047519 | B61: Помпа для сточних вод SE1.50.65.30.Ex.2. | C61: WW | F61: 3162.9184 | G61: =IFERROR(F61*(1-VLOOKUP(C61,ГОЛОВНА!K:L,2,0)), "-") -> 3162.9184
A62: 96047981 | B62: Помпа для сточних вод SE1.50.80.22.2.50D | C62: WW | F62: 2726.4497 | G62: =IFERROR(F62*(1-VLOOKUP(C62,ГОЛОВНА!K:L,2,0)), "-") -> 2726.4497
A63: 96047983 | B63: Насос для стічн вод SE1.50.80.22.Ex.2.50 | C63: WW | F63: 2922.4753 | G63: =IFERROR(F63*(1-VLOOKUP(C63,ГОЛОВНА!K:L,2,0)), "-") -> 2922.4753
A64: 96047989 | B64: Насос для стічних вод SE1.50.80.30.2.50D | C64: WW | F64: 2945.2563 | G64: =IFERROR(F64*(1-VLOOKUP(C64,ГОЛОВНА!K:L,2,0)), "-") -> 2945.2563
A65: 96048005 | B65: Насос для сточних вод SE1.80.100.15.4.50 | C65: WW | F65: 2725.654 | G65: =IFERROR(F65*(1-VLOOKUP(C65,ГОЛОВНА!K:L,2,0)), "-") -> 2725.654
A66: 96048009 | B66: Помпа для сточних вод SE1.80.100.15.Ex.4 | C66: WW | F66: 2993.5542 | G66: =IFERROR(F66*(1-VLOOKUP(C66,ГОЛОВНА!K:L,2,0)), "-") -> 2993.5542
A67: 96048021 | B67: Насос для стічних вод SE1.80.100.22.4.50 | C67: WW | F67: 2945.7032 | G67: =IFERROR(F67*(1-VLOOKUP(C67,ГОЛОВНА!K:L,2,0)), "-") -> 2945.7032
A68: 96047533 | B68: Насос для стічних вод SE1.80.80.15.4.50D | C68: WW | F68: 2966.4568 | G68: =IFERROR(F68*(1-VLOOKUP(C68,ГОЛОВНА!K:L,2,0)), "-") -> 2966.4568
A69: 96047697 | B69: Насос для стічних вод SEV.65.65.22.2.50D | C69: WW | F69: 2637.2659 | G69: =IFERROR(F69*(1-VLOOKUP(C69,ГОЛОВНА!K:L,2,0)), "-") -> 2637.2659
A70: 96047701 | B70: Помпа для сточних вод SEV.65.65.22.Ex.2. | C70: WW | F70: 2888.8379 | G70: =IFERROR(F70*(1-VLOOKUP(C70,ГОЛОВНА!K:L,2,0)), "-") -> 2888.8379
A71: 96047713 | B71: Помпа для сточних вод SEV.65.65.30.2.50D | C71: WW | F71: 2856.9554 | G71: =IFERROR(F71*(1-VLOOKUP(C71,ГОЛОВНА!K:L,2,0)), "-") -> 2856.9554
A72: 96047717 | B72: Помпа для сточних вод SEV.65.65.30.Ex.2. | C72: WW | F72: 3137.6958 | G72: =IFERROR(F72*(1-VLOOKUP(C72,ГОЛОВНА!K:L,2,0)), "-") -> 3137.6958
A73: 96048169 | B73: Насос для стічних вод SEV.65.80.22.2.50D | C73: WW | F73: 2681.7161 | G73: =IFERROR(F73*(1-VLOOKUP(C73,ГОЛОВНА!K:L,2,0)), "-") -> 2681.7161
A74: 96048173 | B74: Помпа для сточних вод SEV.65.80.22.Ex.2. | C74: WW | F74: 2928.0561 | G74: =IFERROR(F74*(1-VLOOKUP(C74,ГОЛОВНА!K:L,2,0)), "-") -> 2928.0561
A75: 96048185 | B75: Насос для стічних вод SEV.65.80.30.2.50D | C75: WW | F75: 2900.9696 | G75: =IFERROR(F75*(1-VLOOKUP(C75,ГОЛОВНА!K:L,2,0)), "-") -> 2900.9696
A76: 96047745 | B76: Насос для стічних вод SEV.80.80.11.4.50D | C76: WW | F76: 2711.4949 | G76: =IFERROR(F76*(1-VLOOKUP(C76,ГОЛОВНА!K:L,2,0)), "-") -> 2711.4949
A77: 96047748 | B77: Помпа для сточних вод SEV.80.80.11.Ex.4. | C77: WW | F77: 2843.0361 | G77: =IFERROR(F77*(1-VLOOKUP(C77,ГОЛОВНА!K:L,2,0)), "-") -> 2843.0361
A78: 96047757 | B78: Помпа для сточних вод SEV80.80.13.4.50D | C78: WW | F78: 2757.5583 | G78: =IFERROR(F78*(1-VLOOKUP(C78,ГОЛОВНА!K:L,2,0)), "-") -> 2757.5583
A79: 96047760 | B79: Помпа для сточних вод SEV.80.80.13.Ex.4. | C79: WW | F79: 2889.0777 | G79: =IFERROR(F79*(1-VLOOKUP(C79,ГОЛОВНА!K:L,2,0)), "-") -> 2889.0777
A80: 96047769 | B80: Помпа для сточних вод SEV.80.80.15.4.50D | C80: WW | F80: 2793.8444 | G80: =IFERROR(F80*(1-VLOOKUP(C80,ГОЛОВНА!K:L,2,0)), "-") -> 2793.8444
A81: 96047772 | B81: Помпа для сточних вод SEV.80.80.15.Ex.4. | C81: WW | F81: 2944.8421 | G81: =IFERROR(F81*(1-VLOOKUP(C81,ГОЛОВНА!K:L,2,0)), "-") -> 2944.8421
A82: 96047781 | B82: Насос для стічних вод SEV.80.80.22.4.50D | C82: WW | F82: 2844.7147 | G82: =IFERROR(F82*(1-VLOOKUP(C82,ГОЛОВНА!K:L,2,0)), "-") -> 2844.7147
A83: 96047785 | B83: Помпа для сточних вод SEV.80.80.22.Ex.4. | C83: WW | F83: 3029.8839 | G83: =IFERROR(F83*(1-VLOOKUP(C83,ГОЛОВНА!K:L,2,0)), "-") -> 3029.8839
A84: 98624257 | B84: Насос для стічн вод SL1.50.65.22.2.50D.C | C84: CW | F84: 1879.5 | G84: =IFERROR(F84*(1-VLOOKUP(C84,ГОЛОВНА!K:L,2,0)), "-") -> 1879.5
A85: 98626085 | B85: Насос для стічн вод SL1.50.65.22.2.51D.C | C85: CW | F85: 1879.5 | G85: =IFERROR(F85*(1-VLOOKUP(C85,ГОЛОВНА!K:L,2,0)), "-") -> 1879.5
A86: 98626303 | B86: Насос для стічн вод SL1.50.65.22.A.2.50D | C86: CW | F86: 2745.4 | G86: =IFERROR(F86*(1-VLOOKUP(C86,ГОЛОВНА!K:L,2,0)), "-") -> 2745.4
A87: 98626314 | B87: Насос для стічн вод SL1.50.65.22.A.2.51D | C87: CW | F87: 2745.4 | G87: =IFERROR(F87*(1-VLOOKUP(C87,ГОЛОВНА!K:L,2,0)), "-") -> 2745.4
A88: 98626482 | B88: Насос для стічн вод SL1.50.65.22.A.EX.2. | C88: CW | F88: 2846.11 | G88: =IFERROR(F88*(1-VLOOKUP(C88,ГОЛОВНА!K:L,2,0)), "-") -> 2846.11
A89: 98626487 | B89: Насос для стічн вод SL1.50.65.22.A.EX.2. | C89: CW | F89: 2610.3854 | G89: =IFERROR(F89*(1-VLOOKUP(C89,ГОЛОВНА!K:L,2,0)), "-") -> 2610.3854
A90: 98626698 | B90: Насос для стічн вод SL1.50.65.22.EX.2.50 | C90: CW | F90: 1980.21 | G90: =IFERROR(F90*(1-VLOOKUP(C90,ГОЛОВНА!K:L,2,0)), "-") -> 1980.21
A91: 98626703 | B91: Насос для стічн вод SL1.50.65.22.EX.2.51 | C91: CW | F91: 2008.3154 | G91: =IFERROR(F91*(1-VLOOKUP(C91,ГОЛОВНА!K:L,2,0)), "-") -> 2008.3154
A92: 98624258 | B92: Насос для стічн вод SL1.50.65.30.2.50D.C | C92: CW | F92: 2154.79 | G92: =IFERROR(F92*(1-VLOOKUP(C92,ГОЛОВНА!K:L,2,0)), "-") -> 2154.79
A93: 98626086 | B93: Насос для стічн вод SL1.50.65.30.2.51D.C | C93: CW | F93: 2154.79 | G93: =IFERROR(F93*(1-VLOOKUP(C93,ГОЛОВНА!K:L,2,0)), "-") -> 2154.79
A94: 98626304 | B94: Насос для стічн вод SL1.50.65.30.A.2.50D | C94: CW | F94: 3020.68 | G94: =IFERROR(F94*(1-VLOOKUP(C94,ГОЛОВНА!K:L,2,0)), "-") -> 3020.68
A95: 98626315 | B95: Насос для стічн вод SL1.50.65.30.A.2.51D | C95: CW | F95: 3020.68 | G95: =IFERROR(F95*(1-VLOOKUP(C95,ГОЛОВНА!K:L,2,0)), "-") -> 3020.68
A96: 98626483 | B96: Насос для стічн вод SL1.50.65.30.A.EX.2. | C96: CW | F96: 3121.37 | G96: =IFERROR(F96*(1-VLOOKUP(C96,ГОЛОВНА!K:L,2,0)), "-") -> 3121.37
A97: 98626488 | B97: Насос для стічн вод SL1.50.65.30.A.EX.2. | C97: CW | F97: 3121.37 | G97: =IFERROR(F97*(1-VLOOKUP(C97,ГОЛОВНА!K:L,2,0)), "-") -> 3121.37
A98: 98626699 | B98: Насос для стічн вод SL1.50.65.30.EX.2.50 | C98: CW | F98: 2255.48 | G98: =IFERROR(F98*(1-VLOOKUP(C98,ГОЛОВНА!K:L,2,0)), "-") -> 2255.48
A99: 98626704 | B99: Насос для стічн вод SL1.50.65.30.EX.2.51 | C99: CW | F99: 2252.9416 | G99: =IFERROR(F99*(1-VLOOKUP(C99,ГОЛОВНА!K:L,2,0)), "-") -> 2252.9416
A100: 98626080 | B100: Насос для стічн вод SL1.50.65.40.2.50D.C | C100: CW | F100: 2458.04 | G100: =IFERROR(F100*(1-VLOOKUP(C100,ГОЛОВНА!K:L,2,0)), "-") -> 2458.04
A101: 98624259 | B101: Насос для стічн вод SL1.50.65.40.2.51D.C | C101: CW | F101: 2428.81 | G101: =IFERROR(F101*(1-VLOOKUP(C101,ГОЛОВНА!K:L,2,0)), "-") -> 2428.81
A102: 98626701 | B102: Насос для стічн вод SL1.50.65.40.EX.2.50 | C102: CW | F102: 2540.3742 | G102: =IFERROR(F102*(1-VLOOKUP(C102,ГОЛОВНА!K:L,2,0)), "-") -> 2540.3742
A103: 98626705 | B103: Насос для стічн вод SL1.50.65.40.EX.2.51 | C103: CW | F103: 2428.81 | G103: =IFERROR(F103*(1-VLOOKUP(C103,ГОЛОВНА!K:L,2,0)), "-") -> 2428.81
A104: 98617678 | B104: Насос для стічн вод SL1.50.80.22.2.50D.C | C104: CW | F104: 1915.19 | G104: =IFERROR(F104*(1-VLOOKUP(C104,ГОЛОВНА!K:L,2,0)), "-") -> 1915.19
A105: 98626087 | B105: Насос для стічн вод SL1.50.80.22.2.51D.C | C105: CW | F105: 1915.19 | G105: =IFERROR(F105*(1-VLOOKUP(C105,ГОЛОВНА!K:L,2,0)), "-") -> 1915.19
A106: 98617680 | B106: Насос для стічн вод SL1.50.80.22.A.2.50D | C106: CW | F106: 2781.1 | G106: =IFERROR(F106*(1-VLOOKUP(C106,ГОЛОВНА!K:L,2,0)), "-") -> 2781.1
A107: 98626317 | B107: Насос для стічн вод SL1.50.80.22.A.2.51D | C107: CW | F107: 2781.1 | G107: =IFERROR(F107*(1-VLOOKUP(C107,ГОЛОВНА!K:L,2,0)), "-") -> 2781.1
A108: 98617691 | B108: Насос для стічн вод SL1.50.80.22.A.EX.2. | C108: CW | F108: 2881.78 | G108: =IFERROR(F108*(1-VLOOKUP(C108,ГОЛОВНА!K:L,2,0)), "-") -> 2881.78
A109: 98626490 | B109: Насос для стічн вод SL1.50.80.22.A.EX.2. | C109: CW | F109: 2881.78 | G109: =IFERROR(F109*(1-VLOOKUP(C109,ГОЛОВНА!K:L,2,0)), "-") -> 2881.78
A110: 98617679 | B110: Насос для стічн вод SL1.50.80.22.EX.2.50 | C110: CW | F110: 2015.89 | G110: =IFERROR(F110*(1-VLOOKUP(C110,ГОЛОВНА!K:L,2,0)), "-") -> 2015.89
A111: 98626706 | B111: Насос для стічн вод SL1.50.80.22.EX.2.51 | C111: CW | F111: 2046.6992 | G111: =IFERROR(F111*(1-VLOOKUP(C111,ГОЛОВНА!K:L,2,0)), "-") -> 2046.6992
A112: 98626076 | B112: Насос для стічн вод SL1.50.80.30.2.50D.C | C112: CW | F112: 2189.87 | G112: =IFERROR(F112*(1-VLOOKUP(C112,ГОЛОВНА!K:L,2,0)), "-") -> 2189.87
A113: 98626088 | B113: Насос для стічн вод SL1.50.80.30.2.51D.C | C113: CW | F113: 2189.87 | G113: =IFERROR(F113*(1-VLOOKUP(C113,ГОЛОВНА!K:L,2,0)), "-") -> 2189.87
A114: 98626306 | B114: Насос для стічн вод SL1.50.80.30.A.2.50D | C114: CW | F114: 3055.77 | G114: =IFERROR(F114*(1-VLOOKUP(C114,ГОЛОВНА!K:L,2,0)), "-") -> 3055.77
A115: 98626318 | B115: Насос для стічн вод SL1.50.80.30.A.2.51D | C115: CW | F115: 3055.77 | G115: =IFERROR(F115*(1-VLOOKUP(C115,ГОЛОВНА!K:L,2,0)), "-") -> 3055.77
A116: 98626484 | B116: Насос для стічн вод SL1.50.80.30.A.EX.2. | C116: CW | F116: 3156.46 | G116: =IFERROR(F116*(1-VLOOKUP(C116,ГОЛОВНА!K:L,2,0)), "-") -> 3156.46
A117: 98626491 | B117: Насос для стічн вод SL1.50.80.30.A.EX.2. | C117: CW | F117: 2919.5666 | G117: =IFERROR(F117*(1-VLOOKUP(C117,ГОЛОВНА!K:L,2,0)), "-") -> 2919.5666
A118: 98626700 | B118: Насос для стічн вод SL1.50.80.30.EX.2.50 | C118: CW | F118: 2290.54 | G118: =IFERROR(F118*(1-VLOOKUP(C118,ГОЛОВНА!K:L,2,0)), "-") -> 2290.54
A119: 98626707 | B119: Насос для стічн вод SL1.50.80.30.EX.2.51 | C119: CW | F119: 2286.8846 | G119: =IFERROR(F119*(1-VLOOKUP(C119,ГОЛОВНА!K:L,2,0)), "-") -> 2286.8846
A120: 98626084 | B120: Насос для стічн вод SL1.50.80.40.2.50D.C | C120: CW | F120: 2530.62 | G120: =IFERROR(F120*(1-VLOOKUP(C120,ГОЛОВНА!K:L,2,0)), "-") -> 2530.62
A121: 98624260 | B121: Насос для стічн вод SL1.50.80.40.2.51D.C | C121: CW | F121: 2463.92 | G121: =IFERROR(F121*(1-VLOOKUP(C121,ГОЛОВНА!K:L,2,0)), "-") -> 2463.92
A122: 98626702 | B122: Насос для стічн вод SL1.50.80.40.EX.2.50 | C122: CW | F122: 2577.211 | G122: =IFERROR(F122*(1-VLOOKUP(C122,ГОЛОВНА!K:L,2,0)), "-") -> 2577.211
A123: 98626708 | B123: Насос для стічн вод SL1.50.80.40.EX.2.51 | C123: CW | F123: 2463.92 | G123: =IFERROR(F123*(1-VLOOKUP(C123,ГОЛОВНА!K:L,2,0)), "-") -> 2463.92
A124: 98625977 | B124: Насос для стіч вод SL1.80.100.15.4.50D.C | C124: CW | F124: 2158.524 | G124: =IFERROR(F124*(1-VLOOKUP(C124,ГОЛОВНА!K:L,2,0)), "-") -> 2158.524
A125: 98626190 | B125: Насос для стічн вод SL1.80.100.15.A.4.50 | C125: CW | F125: 2900.8782 | G125: =IFERROR(F125*(1-VLOOKUP(C125,ГОЛОВНА!K:L,2,0)), "-") -> 2900.8782
A126: 98626400 | B126: Насос для стічн вод SL1.80.100.15.A.EX.4 | C126: CW | F126: 3017.2076 | G126: =IFERROR(F126*(1-VLOOKUP(C126,ГОЛОВНА!K:L,2,0)), "-") -> 3017.2076
A127: 98626616 | B127: Насос для стічн вод SL1.80.100.15.EX.4.5 | C127: CW | F127: 2258.712 | G127: =IFERROR(F127*(1-VLOOKUP(C127,ГОЛОВНА!K:L,2,0)), "-") -> 2258.712
A128: 98624695 | B128: Насос для стічн вод SL1.80.100.22.4.50D. | C128: CW | F128: 2325.654 | G128: =IFERROR(F128*(1-VLOOKUP(C128,ГОЛОВНА!K:L,2,0)), "-") -> 2325.654
A129: 98626058 | B129: Насос для стічн. вод SL1.80.100.22.4.51 | C129: CW | F129: 2325.654 | G129: =IFERROR(F129*(1-VLOOKUP(C129,ГОЛОВНА!K:L,2,0)), "-") -> 2325.654
A130: 98626620 | B130: Насос для стічн вод SL1.80.100.22.EX.4.5 | C130: CW | F130: 2425.842 | G130: =IFERROR(F130*(1-VLOOKUP(C130,ГОЛОВНА!K:L,2,0)), "-") -> 2425.842
A131: 98626684 | B131: Насос для стічн вод SL1.80.100.22.EX.4.5 | C131: CW | F131: 2425.842 | G131: =IFERROR(F131*(1-VLOOKUP(C131,ГОЛОВНА!K:L,2,0)), "-") -> 2425.842
A132: 98625966 | B132: Насос для стічн вод SL1.80.100.30.4.50D. | C132: CW | F132: 3148.578 | G132: =IFERROR(F132*(1-VLOOKUP(C132,ГОЛОВНА!K:L,2,0)), "-") -> 3148.578
A133: 98626050 | B133: Насос для стічн вод SL1.80.100.30.4.51D. | C133: CW | F133: 3148.578 | G133: =IFERROR(F133*(1-VLOOKUP(C133,ГОЛОВНА!K:L,2,0)), "-") -> 3148.578
A134: 98624693 | B134: Насос для стічн вод SL1.80.80.15.4.50D.C | C134: CW | F134: 2151.468 | G134: =IFERROR(F134*(1-VLOOKUP(C134,ГОЛОВНА!K:L,2,0)), "-") -> 2151.468
A135: 98625875 | B135: Насос для стічн вод SL1.80.80.15.4.50E.C | C135: CW | F135: 2151.468 | G135: =IFERROR(F135*(1-VLOOKUP(C135,ГОЛОВНА!K:L,2,0)), "-") -> 2151.468
A136: 98626189 | B136: Насос для стічн вод SL1.80.80.15.A.4.50D | C136: CW | F136: 2892.6854 | G136: =IFERROR(F136*(1-VLOOKUP(C136,ГОЛОВНА!K:L,2,0)), "-") -> 2892.6854
A137: 98626399 | B137: Насос для стічн вод SL1.80.80.15.A.EX.4. | C137: CW | F137: 3009.0148 | G137: =IFERROR(F137*(1-VLOOKUP(C137,ГОЛОВНА!K:L,2,0)), "-") -> 3009.0148
A138: 98626615 | B138: Насос для стічн вод SL1.80.80.15.EX.4.50 | C138: CW | F138: 2251.656 | G138: =IFERROR(F138*(1-VLOOKUP(C138,ГОЛОВНА!K:L,2,0)), "-") -> 2251.656
A139: 98624251 | B139: Насос для стічн. водSL1.80.80.22.4.50D.C | C139: CW | F139: 2314.404 | G139: =IFERROR(F139*(1-VLOOKUP(C139,ГОЛОВНА!K:L,2,0)), "-") -> 2314.404
A140: 98626057 | B140: Насос для стічн вод SL1.80.80.22.4.51D.C | C140: CW | F140: 2314.404 | G140: =IFERROR(F140*(1-VLOOKUP(C140,ГОЛОВНА!K:L,2,0)), "-") -> 2314.404
A141: 98626619 | B141: Насос для стічн вод SL1.80.80.22.EX.4.50 | C141: CW | F141: 2414.592 | G141: =IFERROR(F141*(1-VLOOKUP(C141,ГОЛОВНА!K:L,2,0)), "-") -> 2414.592
A142: 98626683 | B142: Насос для стічн вод SL1.80.80.22.EX.4.51 | C142: CW | F142: 2414.592 | G142: =IFERROR(F142*(1-VLOOKUP(C142,ГОЛОВНА!K:L,2,0)), "-") -> 2414.592
A143: 98624669 | B143: Насос для стічн вод SL1.80.80.30.4.50D.C | C143: CW | F143: 3128.922 | G143: =IFERROR(F143*(1-VLOOKUP(C143,ГОЛОВНА!K:L,2,0)), "-") -> 3128.922
A144: 98626049 | B144: Насос для стічн вод SL1.80.80.30.4.51D.C | C144: CW | F144: 3128.922 | G144: =IFERROR(F144*(1-VLOOKUP(C144,ГОЛОВНА!K:L,2,0)), "-") -> 3128.922
A145: 98625967 | B145: Насос для стічн вод SLV.100.100.30.4.50D | C145: CW | F145: 2651.74 | G145: =IFERROR(F145*(1-VLOOKUP(C145,ГОЛОВНА!K:L,2,0)), "-") -> 2651.74
A146: 98626809 | B146: Насос для стічн вод SLV.100.100.30.4.50D | C146: CW | F146: 2805.39 | G146: =IFERROR(F146*(1-VLOOKUP(C146,ГОЛОВНА!K:L,2,0)), "-") -> 2805.39
A147: 98626051 | B147: Насос для стічн вод SLV.100.100.30.4.51D | C147: CW | F147: 2651.74 | G147: =IFERROR(F147*(1-VLOOKUP(C147,ГОЛОВНА!K:L,2,0)), "-") -> 2651.74
A148: 98626869 | B148: Насос для стічн вод SLV.100.100.30.4.51D | C148: CW | F148: 2882.97792 | G148: =IFERROR(F148*(1-VLOOKUP(C148,ГОЛОВНА!K:L,2,0)), "-") -> 2882.97792
A149: 98626610 | B149: Насос для стічн вод SLV.100.100.30.EX.4. | C149: CW | F149: 2844.415 | G149: =IFERROR(F149*(1-VLOOKUP(C149,ГОЛОВНА!K:L,2,0)), "-") -> 2844.415
A150: 98627025 | B150: Насос для стічн вод SLV.100.100.30.EX.4. | C150: CW | F150: 3004.72 | G150: =IFERROR(F150*(1-VLOOKUP(C150,ГОЛОВНА!K:L,2,0)), "-") -> 3004.72
A151: 98626675 | B151: Насос для стічн вод SLV.100.100.30.EX.4. | C151: CW | F151: 2844.415 | G151: =IFERROR(F151*(1-VLOOKUP(C151,ГОЛОВНА!K:L,2,0)), "-") -> 2844.415
A152: 98627068 | B152: Насос для стічн вод SLV.100.100.30.EX.4. | C152: CW | F152: 3083.80032 | G152: =IFERROR(F152*(1-VLOOKUP(C152,ГОЛОВНА!K:L,2,0)), "-") -> 3083.80032
A153: 98626015 | B153: Насос для стічн вод SLV.100.100.40.4.50D | C153: CW | F153: 2842.105 | G153: =IFERROR(F153*(1-VLOOKUP(C153,ГОЛОВНА!K:L,2,0)), "-") -> 2842.105
A154: 98626842 | B154: Насос для стічн вод SLV.100.100.40.4.50D | C154: CW | F154: 3081.39264 | G154: =IFERROR(F154*(1-VLOOKUP(C154,ГОЛОВНА!K:L,2,0)), "-") -> 3081.39264
A155: 98626056 | B155: Насос для стічн вод SLV.100.100.40.4.51D | C155: CW | F155: 2842.105 | G155: =IFERROR(F155*(1-VLOOKUP(C155,ГОЛОВНА!K:L,2,0)), "-") -> 2842.105
A156: 98626872 | B156: Насос для стічн вод SLV.100.100.40.4.51D | C156: CW | F156: 3073.725 | G156: =IFERROR(F156*(1-VLOOKUP(C156,ГОЛОВНА!K:L,2,0)), "-") -> 3073.725
A157: 98624199 | B157: Насос для стічн вод SLV.65.65.22.2.50D.C | C157: CW | F157: 2037.0388 | G157: =IFERROR(F157*(1-VLOOKUP(C157,ГОЛОВНА!K:L,2,0)), "-") -> 2037.0388
A158: 98626803 | B158: Насос для стічн вод SLV.65.65.22.2.50D.C | C158: CW | F158: 2135.3 | G158: =IFERROR(F158*(1-VLOOKUP(C158,ГОЛОВНА!K:L,2,0)), "-") -> 2135.3
A159: 98626044 | B159: Насос для стічн вод SLV.65.65.22.2.51D.C | C159: CW | F159: 2037.0388 | G159: =IFERROR(F159*(1-VLOOKUP(C159,ГОЛОВНА!K:L,2,0)), "-") -> 2037.0388
A160: 98626863 | B160: Насос для стічн вод SLV.65.65.22.2.51D.C | C160: CW | F160: 2195.32992 | G160: =IFERROR(F160*(1-VLOOKUP(C160,ГОЛОВНА!K:L,2,0)), "-") -> 2195.32992
A161: 98626169 | B161: Насос для стічн вод SLV.65.65.22.A.2.50D | C161: CW | F161: 2883.174 | G161: =IFERROR(F161*(1-VLOOKUP(C161,ГОЛОВНА!K:L,2,0)), "-") -> 2883.174
A162: 98626917 | B162: Насос для стічн вод SLV.65.65.22.A.2.50D | C162: CW | F162: 3001.23 | G162: =IFERROR(F162*(1-VLOOKUP(C162,ГОЛОВНА!K:L,2,0)), "-") -> 3001.23
A163: 98626267 | B163: Насос для стічн вод SLV.65.65.22.A.2.51D | C163: CW | F163: 2883.174 | G163: =IFERROR(F163*(1-VLOOKUP(C163,ГОЛОВНА!K:L,2,0)), "-") -> 2883.174
A164: 98626977 | B164: Насос для стічн вод SLV.65.65.22.A.2.51D | C164: CW | F164: 2673.3696 | G164: =IFERROR(F164*(1-VLOOKUP(C164,ГОЛОВНА!K:L,2,0)), "-") -> 2673.3696
A165: 98626390 | B165: Насос для стічн вод SLV.65.65.22.A.EX.2. | C165: CW | F165: 3000.06 | G165: =IFERROR(F165*(1-VLOOKUP(C165,ГОЛОВНА!K:L,2,0)), "-") -> 3000.06
A166: 98626451 | B166: Насос для стічн вод SLV.65.65.22.A.EX.2. | C166: CW | F166: 3000.06 | G166: =IFERROR(F166*(1-VLOOKUP(C166,ГОЛОВНА!K:L,2,0)), "-") -> 3000.06
A167: 98626606 | B167: Насос для стічн вод SLV.65.65.22.EX.2.50 | C167: CW | F167: 2134.6984 | G167: =IFERROR(F167*(1-VLOOKUP(C167,ГОЛОВНА!K:L,2,0)), "-") -> 2134.6984
A168: 98627023 | B168: Насос для стічн вод SLV.65.65.22.EX.2.50 | C168: CW | F168: 2236.01 | G168: =IFERROR(F168*(1-VLOOKUP(C168,ГОЛОВНА!K:L,2,0)), "-") -> 2236.01
A169: 98626667 | B169: Насос для стічн вод SLV.65.65.22.EX.2.51 | C169: CW | F169: 2176.71686 | G169: =IFERROR(F169*(1-VLOOKUP(C169,ГОЛОВНА!K:L,2,0)), "-") -> 2176.71686
A170: 98627062 | B170: Насос для стічн вод SLV.65.65.22.EX.2.51 | C170: CW | F170: 2296.85376 | G170: =IFERROR(F170*(1-VLOOKUP(C170,ГОЛОВНА!K:L,2,0)), "-") -> 2296.85376
A171: 98624165 | B171: Насос для стічн вод SLV.65.65.30.2.50D.C | C171: CW | F171: 2262.8645 | G171: =IFERROR(F171*(1-VLOOKUP(C171,ГОЛОВНА!K:L,2,0)), "-") -> 2262.8645
A172: 98626793 | B172: Насос для стічн вод SLV.65.65.30.2.50D.C | C172: CW | F172: 2212.21 | G172: =IFERROR(F172*(1-VLOOKUP(C172,ГОЛОВНА!K:L,2,0)), "-") -> 2212.21
A173: 98626037 | B173: Насос для стічн вод SLV.65.65.30.2.51D.C | C173: CW | F173: 2262.8645 | G173: =IFERROR(F173*(1-VLOOKUP(C173,ГОЛОВНА!K:L,2,0)), "-") -> 2262.8645
A174: 98626853 | B174: Насос для стічн вод SLV.65.65.30.2.51D.C | C174: CW | F174: 2274.4368 | G174: =IFERROR(F174*(1-VLOOKUP(C174,ГОЛОВНА!K:L,2,0)), "-") -> 2274.4368
A175: 98626159 | B175: Насос для стічн вод SLV.65.65.30.A.2.50D | C175: CW | F175: 2974.251 | G175: =IFERROR(F175*(1-VLOOKUP(C175,ГОЛОВНА!K:L,2,0)), "-") -> 2974.251
A176: 98626257 | B176: Насос для стічн вод SLV.65.65.30.A.2.51D | C176: CW | F176: 2974.251 | G176: =IFERROR(F176*(1-VLOOKUP(C176,ГОЛОВНА!K:L,2,0)), "-") -> 2974.251
A177: 98626604 | B177: Насос для стічн вод SLV.65.65.30.EX.2.50 | C177: CW | F177: 2360.5338 | G177: =IFERROR(F177*(1-VLOOKUP(C177,ГОЛОВНА!K:L,2,0)), "-") -> 2360.5338
A178: 98627021 | B178: Насос для стічн вод SLV.65.65.30.EX.2.50 | C178: CW | F178: 2312.93 | G178: =IFERROR(F178*(1-VLOOKUP(C178,ГОЛОВНА!K:L,2,0)), "-") -> 2312.93
A179: 98626657 | B179: Насос для стічн вод SLV.65.65.30.EX.2.51 | C179: CW | F179: 2360.5338 | G179: =IFERROR(F179*(1-VLOOKUP(C179,ГОЛОВНА!K:L,2,0)), "-") -> 2360.5338
A180: 98627052 | B180: Насос для стічн вод SLV.65.65.30.EX.2.51 | C180: CW | F180: 2375.96064 | G180: =IFERROR(F180*(1-VLOOKUP(C180,ГОЛОВНА!K:L,2,0)), "-") -> 2375.96064
A181: 98625992 | B181: Насос для стічн вод SLV.65.65.40.2.50D.C | C181: CW | F181: 2542.1954 | G181: =IFERROR(F181*(1-VLOOKUP(C181,ГОЛОВНА!K:L,2,0)), "-") -> 2542.1954
A182: 98626825 | B182: Насос для стічн вод SLV.65.65.40.2.50D.C | C182: CW | F182: 2581.33 | G182: =IFERROR(F182*(1-VLOOKUP(C182,ГОЛОВНА!K:L,2,0)), "-") -> 2581.33
A183: 98624254 | B183: Насос для стічн вод SLV.65.65.40.2.51D.C | C183: CW | F183: 2489.1461 | G183: =IFERROR(F183*(1-VLOOKUP(C183,ГОЛОВНА!K:L,2,0)), "-") -> 2489.1461
A184: 98626855 | B184: Насос для стічн вод SLV.65.65.40.2.51D.C | C184: CW | F184: 2566.27 | G184: =IFERROR(F184*(1-VLOOKUP(C184,ГОЛОВНА!K:L,2,0)), "-") -> 2566.27
A185: 98626628 | B185: Насос для стічн вод SLV.65.65.40.EX.2.50 | C185: CW | F185: 2540.410115 | G185: =IFERROR(F185*(1-VLOOKUP(C185,ГОЛОВНА!K:L,2,0)), "-") -> 2540.410115
A186: 98627035 | B186: Насос для стічн вод SLV.65.65.40.EX.2.50 | C186: CW | F186: 2639.2368 | G186: =IFERROR(F186*(1-VLOOKUP(C186,ГОЛОВНА!K:L,2,0)), "-") -> 2639.2368
A187: 98626659 | B187: Насос для стічн вод SLV.65.65.40.EX.2.51 | C187: CW | F187: 2489.1461 | G187: =IFERROR(F187*(1-VLOOKUP(C187,ГОЛОВНА!K:L,2,0)), "-") -> 2489.1461
A188: 98625961 | B188: Насос для стічн вод SLV.65.80.22.2.50D.C | C188: CW | F188: 2049.2511 | G188: =IFERROR(F188*(1-VLOOKUP(C188,ГОЛОВНА!K:L,2,0)), "-") -> 2049.2511
A189: 98626804 | B189: Насос для стічн вод SLV.65.80.22.2.50D.C | C189: CW | F189: 2147.91 | G189: =IFERROR(F189*(1-VLOOKUP(C189,ГОЛОВНА!K:L,2,0)), "-") -> 2147.91
A190: 98626045 | B190: Насос для стічн вод SLV.65.80.22.2.51D.C | C190: CW | F190: 2049.2511 | G190: =IFERROR(F190*(1-VLOOKUP(C190,ГОЛОВНА!K:L,2,0)), "-") -> 2049.2511
A191: 98626864 | B191: Насос для стічн вод SLV.65.80.22.2.51D.C | C191: CW | F191: 2208.24384 | G191: =IFERROR(F191*(1-VLOOKUP(C191,ГОЛОВНА!K:L,2,0)), "-") -> 2208.24384
A192: 98626170 | B192: Насос для стічн вод SLV.65.80.22.A.2.50D | C192: CW | F192: 2898.042 | G192: =IFERROR(F192*(1-VLOOKUP(C192,ГОЛОВНА!K:L,2,0)), "-") -> 2898.042
A193: 98626918 | B193: Насос для стічн вод SLV.65.80.22.A.2.50D | C193: CW | F193: 3013.85 | G193: =IFERROR(F193*(1-VLOOKUP(C193,ГОЛОВНА!K:L,2,0)), "-") -> 3013.85
A194: 98626268 | B194: Насос для стічн вод SLV.65.80.22.A.2.51D | C194: CW | F194: 2898.042 | G194: =IFERROR(F194*(1-VLOOKUP(C194,ГОЛОВНА!K:L,2,0)), "-") -> 2898.042
A195: 98626978 | B195: Насос для стічн вод SLV.65.80.22.A.2.51D | C195: CW | F195: 2686.9632 | G195: =IFERROR(F195*(1-VLOOKUP(C195,ГОЛОВНА!K:L,2,0)), "-") -> 2686.9632
A196: 98626607 | B196: Насос для стічн вод SLV.65.80.22.EX.2.50 | C196: CW | F196: 2146.9301 | G196: =IFERROR(F196*(1-VLOOKUP(C196,ГОЛОВНА!K:L,2,0)), "-") -> 2146.9301
A197: 98627024 | B197: Насос для стічн вод SLV.65.80.22.EX.2.50 | C197: CW | F197: 2248.61 | G197: =IFERROR(F197*(1-VLOOKUP(C197,ГОЛОВНА!K:L,2,0)), "-") -> 2248.61
A198: 98626668 | B198: Насос для стічн вод SLV.65.80.22.EX.2.51 | C198: CW | F198: 2189.147216 | G198: =IFERROR(F198*(1-VLOOKUP(C198,ГОЛОВНА!K:L,2,0)), "-") -> 2189.147216
A199: 98627063 | B199: Насос для стічн вод SLV.65.80.22.EX.2.51 | C199: CW | F199: 2309.76768 | G199: =IFERROR(F199*(1-VLOOKUP(C199,ГОЛОВНА!K:L,2,0)), "-") -> 2309.76768
A200: 98625942 | B200: Насос для стіч. вод SLV.65.80.30.2.50D.C | C200: CW | F200: 2276.0371 | G200: =IFERROR(F200*(1-VLOOKUP(C200,ГОЛОВНА!K:L,2,0)), "-") -> 2276.0371
... 168 more rows

Sheet DP, EF
A1: АРТИКУЛ | B1: НАЙМЕНУВАННЯ (УКР) | C1: PRICE GROUP | D1: ДОСТАВКА (ТИЖНІВ) | E1: ДОДАТКОВО | F1: ЦІНА (ЕВРО БЕЗ ПДВ) | G1: ЦІНА ЗІ ЗНИЖКОЮ | H1: НА ГОЛОВНУ
A2: DP | G2: Дренажні насоси
A3: 96104200 | B3: Помпа для сточних вод DP10.50.09.2.1.502 | C3: CW | F3: 1213.4065 | G3: =IFERROR(F3*(1-VLOOKUP(C3,ГОЛОВНА!K:L,2,0)), "-") -> 1213.4065
A4: 96104204 | B4: Помпа для сточних вод DP10.50.09.2.50B | C4: CW | F4: 1213.4065 | G4: =IFERROR(F4*(1-VLOOKUP(C4,ГОЛОВНА!K:L,2,0)), "-") -> 1213.4065
A5: 96104202 | B5: Насос для дрен вод DP10.50.09.A.2.1.502 | C5: CW | F5: 1492.222 | G5: =IFERROR(F5*(1-VLOOKUP(C5,ГОЛОВНА!K:L,2,0)), "-") -> 1492.222
A6: 96104206 | B6: Помпа для сточних вод DP10.50.09.A.2.50B | C6: CW | F6: 1492.222 | G6: =IFERROR(F6*(1-VLOOKUP(C6,ГОЛОВНА!K:L,2,0)), "-") -> 1492.222
A7: 96877476 | B7: Насос для стічних вод DP10.50.09.E.2.1.5 | C7: CW | F7: 1754.8115 | G7: =IFERROR(F7*(1-VLOOKUP(C7,ГОЛОВНА!K:L,2,0)), "-") -> 1754.8115
A8: 96877478 | B8: Насос для стічних вод DP10.50.09.E.2.50B | C8: CW | F8: 1754.8115 | G8: =IFERROR(F8*(1-VLOOKUP(C8,ГОЛОВНА!K:L,2,0)), "-") -> 1754.8115
A9: 96877479 | B9: Насос для стічних вод DP10.50.09.E.EX.2. | C9: CW | F9: 1915.5895 | G9: =IFERROR(F9*(1-VLOOKUP(C9,ГОЛОВНА!K:L,2,0)), "-") -> 1915.5895
A10: 96877502 | B10: Насос для стічних вод DP10.50.09.E.EX.2. | C10: CW | F10: 1915.5895 | G10: =IFERROR(F10*(1-VLOOKUP(C10,ГОЛОВНА!K:L,2,0)), "-") -> 1915.5895
A11: 96104201 | B11: Помпа для сточних вод DP10.50.09.Ex.2.1. | C11: CW | F11: 1342.0745 | G11: =IFERROR(F11*(1-VLOOKUP(C11,ГОЛОВНА!K:L,2,0)), "-") -> 1342.0745
A12: 96104205 | B12: Помпа занурювальна DP10. 50.09.Ex.2.50B | C12: CW | F12: 1342.0745 | G12: =IFERROR(F12*(1-VLOOKUP(C12,ГОЛОВНА!K:L,2,0)), "-") -> 1342.0745
A13: 96104208 | B13: Насос для стічних вод DP10.50.15.2.50B | C13: CW | F13: 1380.768 | G13: =IFERROR(F13*(1-VLOOKUP(C13,ГОЛОВНА!K:L,2,0)), "-") -> 1380.768
A14: 96104210 | B14: Насос для брудної води DP10.50.15.A.2.50 | C14: CW | F14: 1659.5835 | G14: =IFERROR(F14*(1-VLOOKUP(C14,ГОЛОВНА!K:L,2,0)), "-") -> 1659.5835
A15: 96877503 | B15: Насос для стічних вод DP10.50.15.E.2.50B | C15: CW | F15: 1907.7425 | G15: =IFERROR(F15*(1-VLOOKUP(C15,ГОЛОВНА!K:L,2,0)), "-") -> 1907.7425
A16: 96877504 | B16: Насос для стічних вод DP10.50.15.E.Ex | C16: CW | F16: 2068.4825 | G16: =IFERROR(F16*(1-VLOOKUP(C16,ГОЛОВНА!K:L,2,0)), "-") -> 2068.4825
A17: 96104209 | B17: Дренажний насос DP10.50.15.Ex.2.50B | C17: CW | F17: 1509.436 | G17: =IFERROR(F17*(1-VLOOKUP(C17,ГОЛОВНА!K:L,2,0)), "-") -> 1509.436
A18: 96106542 | B18: Насос для стічних вод DP10.65.26.2.50B | C18: CW | F18: 1642.493 | G18: =IFERROR(F18*(1-VLOOKUP(C18,ГОЛОВНА!K:L,2,0)), "-") -> 1642.493
A19: 96106544 | B19: Помпа для сточних вод DP10.65.26.A.2.50B | C19: CW | F19: 1921.3085 | G19: =IFERROR(F19*(1-VLOOKUP(C19,ГОЛОВНА!K:L,2,0)), "-") -> 1921.3085
A20: 96877506 | B20: Насос для стiчних вод DP10.65.26.E.2.50B | C20: CW | F20: 2209.073 | G20: =IFERROR(F20*(1-VLOOKUP(C20,ГОЛОВНА!K:L,2,0)), "-") -> 2209.073
A21: 96877507 | B21: Насос для стiчних вод DP10.65.26.E.Ex | C21: CW | F21: 2369.8225 | G21: =IFERROR(F21*(1-VLOOKUP(C21,ГОЛОВНА!K:L,2,0)), "-") -> 2369.8225
A22: 96106543 | B22: Помпа для сточних вод DP10.65.26.Ex.2.50 | C22: CW | F22: 1771.161 | G22: =IFERROR(F22*(1-VLOOKUP(C22,ГОЛОВНА!K:L,2,0)), "-") -> 1771.161
A23: EF | G23: Дренажні насоси
A24: 96106546 | B24: Помпа для сточних вод EF30.50.06.2.1.502 | C24: CW | F24: 887.0435 | G24: =IFERROR(F24*(1-VLOOKUP(C24,ГОЛОВНА!K:L,2,0)), "-") -> 887.0435
A25: 96106550 | B25: Помпа для сточних вод EF30.50.06.2.50B | C25: CW | F25: 887.0435 | G25: =IFERROR(F25*(1-VLOOKUP(C25,ГОЛОВНА!K:L,2,0)), "-") -> 887.0435
A26: 96106548 | B26: Помпа для сточних вод EF30.50.06.A.2.1.5 | C26: CW | F26: 1165.859 | G26: =IFERROR(F26*(1-VLOOKUP(C26,ГОЛОВНА!K:L,2,0)), "-") -> 1165.859
A27: 96106552 | B27: Помпа для сточних вод EF30.50.06.A.2.50B | C27: CW | F27: 1165.859 | G27: =IFERROR(F27*(1-VLOOKUP(C27,ГОЛОВНА!K:L,2,0)), "-") -> 1165.859
A28: 96877508 | B28: Насос для стічних вод EF30.50.06.E.2.1.5 | C28: CW | F28: 1428.1635 | G28: =IFERROR(F28*(1-VLOOKUP(C28,ГОЛОВНА!K:L,2,0)), "-") -> 1428.1635
A29: 96877510 | B29: Насос для стічних вод EF30.50.06.E.2.50B | C29: CW | F29: 1428.1635 | G29: =IFERROR(F29*(1-VLOOKUP(C29,ГОЛОВНА!K:L,2,0)), "-") -> 1428.1635
A30: 96877512 | B30: Насос для стічних вод EF30.50.06.E.EX.2. | C30: CW | F30: 1585.778 | G30: =IFERROR(F30*(1-VLOOKUP(C30,ГОЛОВНА!K:L,2,0)), "-") -> 1585.778
A31: 96877514 | B31: Насос для стічних вод EF30.50.06.E.EX.2. | C31: CW | F31: 1585.778 | G31: =IFERROR(F31*(1-VLOOKUP(C31,ГОЛОВНА!K:L,2,0)), "-") -> 1585.778
A32: 96106547 | B32: Помпа для сточних вод EF30.50.06.Ex.2.1. | C32: CW | F32: 1015.7115 | G32: =IFERROR(F32*(1-VLOOKUP(C32,ГОЛОВНА!K:L,2,0)), "-") -> 1015.7115
A33: 96106551 | B33: Помпа для сточних вод EF30.50.06.Ex.2.50 | C33: CW | F33: 1015.7115 | G33: =IFERROR(F33*(1-VLOOKUP(C33,ГОЛОВНА!K:L,2,0)), "-") -> 1015.7115
A34: 96115111 | B34: Помпа для сточних вод EF30.50.09.2.1.502 | C34: CW | F34: 951.8145 | G34: =IFERROR(F34*(1-VLOOKUP(C34,ГОЛОВНА!K:L,2,0)), "-") -> 951.8145
A35: 96115115 | B35: Насос для сточних вод EF30.50.09.2.50B | C35: CW | F35: 951.8145 | G35: =IFERROR(F35*(1-VLOOKUP(C35,ГОЛОВНА!K:L,2,0)), "-") -> 951.8145
A36: 96115113 | B36: Помпа для сточних вод EF30.50.09.A.2.1.5 | C36: CW | F36: 1230.592 | G36: =IFERROR(F36*(1-VLOOKUP(C36,ГОЛОВНА!K:L,2,0)), "-") -> 1230.592
A37: 96115117 | B37: Помпа для сточних вод EF30.50.09.A.2.50B | C37: CW | F37: 1230.592 | G37: =IFERROR(F37*(1-VLOOKUP(C37,ГОЛОВНА!K:L,2,0)), "-") -> 1230.592
A38: 96877515 | B38: Насос для стічних вод EF30.50.09.E.2.1.5 | C38: CW | F38: 1486.161 | G38: =IFERROR(F38*(1-VLOOKUP(C38,ГОЛОВНА!K:L,2,0)), "-") -> 1486.161
A39: 96877516 | B39: Насос для стічних вод EF30.50.09.E.2.50B | C39: CW | F39: 1486.161 | G39: =IFERROR(F39*(1-VLOOKUP(C39,ГОЛОВНА!K:L,2,0)), "-") -> 1486.161
A40: 96877518 | B40: Насос для стічних вод EF30.50.09.E.EX.2. | C40: CW | F40: 1643.7375 | G40: =IFERROR(F40*(1-VLOOKUP(C40,ГОЛОВНА!K:L,2,0)), "-") -> 1643.7375
A41: 96877532 | B41: Насос для стічних вод EF30.50.09.E.EX.2. | C41: CW | F41: 1643.7375 | G41: =IFERROR(F41*(1-VLOOKUP(C41,ГОЛОВНА!K:L,2,0)), "-") -> 1643.7375
A42: 96115112 | B42: Помпа для сточних вод EF30.50.09.Ex.2.1. | C42: CW | F42: 1080.473 | G42: =IFERROR(F42*(1-VLOOKUP(C42,ГОЛОВНА!K:L,2,0)), "-") -> 1080.473
A43: 96115114 | B43: Помпа для сточних вод EF30.50.09.Ex.2.1. | C43: CW | F43: 951.8145 | G43: =IFERROR(F43*(1-VLOOKUP(C43,ГОЛОВНА!K:L,2,0)), "-") -> 951.8145
A44: 96115116 | B44: Помпа для сточних вод EF30.50.09.Ex.2.50 | C44: CW | F44: 1080.473 | G44: =IFERROR(F44*(1-VLOOKUP(C44,ГОЛОВНА!K:L,2,0)), "-") -> 1080.473
A45: 96115118 | B45: Помпа для сточних вод EF30.50.09.Ex.2.50 | C45: CW | F45: 951.8145 | G45: =IFERROR(F45*(1-VLOOKUP(C45,ГОЛОВНА!K:L,2,0)), "-") -> 951.8145
A46: 96106554 | B46: Помпа для сточних вод EF30.50.11.2.1.502 | C46: CW | F46: 1018.1055 | G46: =IFERROR(F46*(1-VLOOKUP(C46,ГОЛОВНА!K:L,2,0)), "-") -> 1018.1055
A47: 96106558 | B47: Помпа для сточних вод EF30.50.11.2.50B | C47: CW | F47: 1018.1055 | G47: =IFERROR(F47*(1-VLOOKUP(C47,ГОЛОВНА!K:L,2,0)), "-") -> 1018.1055
A48: 96106556 | B48: Помпа для сточних вод EF30.50.11.A.2.1.5 | C48: CW | F48: 1296.9305 | G48: =IFERROR(F48*(1-VLOOKUP(C48,ГОЛОВНА!K:L,2,0)), "-") -> 1296.9305
A49: 96106560 | B49: Помпа для сточних вод EF30.50.11.A.2.50B | C49: CW | F49: 1296.9305 | G49: =IFERROR(F49*(1-VLOOKUP(C49,ГОЛОВНА!K:L,2,0)), "-") -> 1296.9305
A50: 96875101 | B50: Насос для стічних вод EF30.50.11.E.2.1.5 | C50: CW | F50: 1545.5455 | G50: =IFERROR(F50*(1-VLOOKUP(C50,ГОЛОВНА!K:L,2,0)), "-") -> 1545.5455
A51: 96878445 | B51: Насос для стічних вод EF30.50.11.E.2.50B | C51: CW | F51: 1545.5455 | G51: =IFERROR(F51*(1-VLOOKUP(C51,ГОЛОВНА!K:L,2,0)), "-") -> 1545.5455
A52: 96878446 | B52: Насос для стічних вод EF30.50.11.E.EX.2. | C52: CW | F52: 1703.16 | G52: =IFERROR(F52*(1-VLOOKUP(C52,ГОЛОВНА!K:L,2,0)), "-") -> 1703.16
A53: 96106555 | B53: Помпа для сточних вод EF30.50.11.Ex.2.1. | C53: CW | F53: 1146.7925 | G53: =IFERROR(F53*(1-VLOOKUP(C53,ГОЛОВНА!K:L,2,0)), "-") -> 1146.7925
A54: 96106559 | B54: Помпа для сточних вод EF30.50.11.Ex.2.50 | C54: CW | F54: 1146.7925 | G54: =IFERROR(F54*(1-VLOOKUP(C54,ГОЛОВНА!K:L,2,0)), "-") -> 1146.7925
A55: 96104196 | B55: Помпа для сточних вод EF30.50.15.2.50B | C55: CW | F55: 1104.622 | G55: =IFERROR(F55*(1-VLOOKUP(C55,ГОЛОВНА!K:L,2,0)), "-") -> 1104.622
A56: 96104198 | B56: Помпа для сточних вод EF30.50.15.A.2.50B | C56: CW | F56: 1383.4565 | G56: =IFERROR(F56*(1-VLOOKUP(C56,ГОЛОВНА!K:L,2,0)), "-") -> 1383.4565
A57: 96878448 | B57: Насос для стічних вод EF30.50.15.E.2.50B | C57: CW | F57: 1623.0275 | G57: =IFERROR(F57*(1-VLOOKUP(C57,ГОЛОВНА!K:L,2,0)), "-") -> 1623.0275
A58: 96878449 | B58: Насос для стічних вод EF30.50.15.E.EX.2. | C58: CW | F58: 1780.5945 | G58: =IFERROR(F58*(1-VLOOKUP(C58,ГОЛОВНА!K:L,2,0)), "-") -> 1780.5945
A59: 96104197 | B59: Помпа для сточних вод EF30.50.15.Ex.2.50 | C59: CW | F59: 1233.271 | G59: =IFERROR(F59*(1-VLOOKUP(C59,ГОЛОВНА!K:L,2,0)), "-") -> 1233.271

Sheet PUST
A1: АРТИКУЛ | B1: НАЙМЕНУВАННЯ (УКР) | C1: PRICE GROUP | D1: ДОСТАВКА (ТИЖНІВ) | E1: ДОДАТКОВО | F1: ЦІНА (ЕВРО БЕЗ ПДВ) | G1: ЦІНА ЗІ ЗНИЖКОЮ | H1: НА ГОЛОВНУ
A2: PUST | G2: Комплектні каналізаційні станції
A3: 96235311 | B3: Колодязь PUST10.20.S.S.PE.AP50 | C3: WW | F3: 1798.784 | G3: =IFERROR(F3*(1-VLOOKUP(C3,ГОЛОВНА!K:L,2,0)), "-") -> 1798.784
A4: 96235288 | B4: Колодязь PUST04.20.S.S.PE.KP | C4: WW | F4: 769.8675 | G4: =IFERROR(F4*(1-VLOOKUP(C4,ГОЛОВНА!K:L,2,0)), "-") -> 769.8675
A5: 96235293 | B5: Колодязь PUST06.20.S.A.SS.APB | C5: WW | F5: 1957.0815 | G5: =IFERROR(F5*(1-VLOOKUP(C5,ГОЛОВНА!K:L,2,0)), "-") -> 1957.0815
A6: 96235289 | B6: Колодязь PUST06.20.S.A.SS.SEG | C6: WW | F6: 1957.0815 | G6: =IFERROR(F6*(1-VLOOKUP(C6,ГОЛОВНА!K:L,2,0)), "-") -> 1957.0815
A7: 96235297 | B7: Колодязь PUST06.20.S.S.PE.AP35 | C7: WW | F7: 1256.0415 | G7: =IFERROR(F7*(1-VLOOKUP(C7,ГОЛОВНА!K:L,2,0)), "-") -> 1256.0415
A8: 96235295 | B8: Колодязь PUST06.20.S.S.PE.AP50 | C8: WW | F8: 1256.0415 | G8: =IFERROR(F8*(1-VLOOKUP(C8,ГОЛОВНА!K:L,2,0)), "-") -> 1256.0415
A9: 96235299 | B9: Колодязь PUST06.20.S.S.PE.DPEF | C9: WW | F9: 1256.0415 | G9: =IFERROR(F9*(1-VLOOKUP(C9,ГОЛОВНА!K:L,2,0)), "-") -> 1256.0415
A10: 96235291 | B10: Колодязь PUST06.20.S.W.SS.SEG | C10: WW | F10: 2211.7145 | G10: =IFERROR(F10*(1-VLOOKUP(C10,ГОЛОВНА!K:L,2,0)), "-") -> 2211.7145
A11: 96235294 | B11: Колодязь PUST06.25.S.A.SS.APB | C11: WW | F11: 2333.8675 | G11: =IFERROR(F11*(1-VLOOKUP(C11,ГОЛОВНА!K:L,2,0)), "-") -> 2333.8675
A12: 96235290 | B12: Колодязь PUST06.25.S.A.SS.SEG | C12: WW | F12: 2333.8675 | G12: =IFERROR(F12*(1-VLOOKUP(C12,ГОЛОВНА!K:L,2,0)), "-") -> 2333.8675
A13: 96235298 | B13: Колодязь PUST06.25.S.S.PE.AP35 | C13: WW | F13: 1395.6975 | G13: =IFERROR(F13*(1-VLOOKUP(C13,ГОЛОВНА!K:L,2,0)), "-") -> 1395.6975
A14: 96235300 | B14: Колодязь PUST06.25.S.S.PE.DPEF | C14: WW | F14: 1395.6975 | G14: =IFERROR(F14*(1-VLOOKUP(C14,ГОЛОВНА!K:L,2,0)), "-") -> 1395.6975
A15: 96235292 | B15: Колодязь PUST06.25.S.W.SS.SEG | C15: WW | F15: 2398.0375 | G15: =IFERROR(F15*(1-VLOOKUP(C15,ГОЛОВНА!K:L,2,0)), "-") -> 2398.0375
A16: 96235276 | B16: Колодязь PUST08.15.S.A.SS.APB | C16: WW | F16: 1951.803 | G16: =IFERROR(F16*(1-VLOOKUP(C16,ГОЛОВНА!K:L,2,0)), "-") -> 1951.803
A17: 96235270 | B17: Колодязь PUST08.15.S.A.SS.SEG | C17: WW | F17: 1951.803 | G17: =IFERROR(F17*(1-VLOOKUP(C17,ГОЛОВНА!K:L,2,0)), "-") -> 1951.803
A18: 97940042 | B18: Насосна станція PUST08.15.S.A.SS.SEG | C18: WW | F18: 1797.611 | G18: =IFERROR(F18*(1-VLOOKUP(C18,ГОЛОВНА!K:L,2,0)), "-") -> 1797.611
A19: 96235282 | B19: Колодязь PUST08.15.S.S.PE.AP35 | C19: WW | F19: 1243.9435 | G19: =IFERROR(F19*(1-VLOOKUP(C19,ГОЛОВНА!K:L,2,0)), "-") -> 1243.9435
A20: 96235279 | B20: Колодязь PUST08.15.S.S.PE.AP50 | C20: WW | F20: 1243.9435 | G20: =IFERROR(F20*(1-VLOOKUP(C20,ГОЛОВНА!K:L,2,0)), "-") -> 1243.9435
A21: 96235285 | B21: Колодязь PUST08.15.S.S.PE.DPEF | C21: WW | F21: 1243.9435 | G21: =IFERROR(F21*(1-VLOOKUP(C21,ГОЛОВНА!K:L,2,0)), "-") -> 1243.9435
A22: 96235273 | B22: Колодязь PUST08.15.S.W.SS.SEG | C22: WW | F22: 2247.8705 | G22: =IFERROR(F22*(1-VLOOKUP(C22,ГОЛОВНА!K:L,2,0)), "-") -> 2247.8705
A23: 96235277 | B23: Колодязь PUST08.20.S.A.SS.APB | C23: WW | F23: 2045.3555 | G23: =IFERROR(F23*(1-VLOOKUP(C23,ГОЛОВНА!K:L,2,0)), "-") -> 2045.3555
A24: 96235271 | B24: Колодязь PUST08.20.S.A.SS.SEG | C24: WW | F24: 2045.3555 | G24: =IFERROR(F24*(1-VLOOKUP(C24,ГОЛОВНА!K:L,2,0)), "-") -> 2045.3555
A25: 97940043 | B25: Насосна станція PUST08.20.S.A.SS.SEG | C25: WW | F25: 1891.1865 | G25: =IFERROR(F25*(1-VLOOKUP(C25,ГОЛОВНА!K:L,2,0)), "-") -> 1891.1865
A26: 96235283 | B26: Колодязь PUST08.20.S.S.PE.AP35 | C26: WW | F26: 1341.3025 | G26: =IFERROR(F26*(1-VLOOKUP(C26,ГОЛОВНА!K:L,2,0)), "-") -> 1341.3025
A27: 96235280 | B27: Колодязь PUST08.20.S.S.PE.AP50 | C27: WW | F27: 1341.3025 | G27: =IFERROR(F27*(1-VLOOKUP(C27,ГОЛОВНА!K:L,2,0)), "-") -> 1341.3025
A28: 96235286 | B28: Колодязь PUST08.20.S.S.PE.DPEF | C28: WW | F28: 1341.3025 | G28: =IFERROR(F28*(1-VLOOKUP(C28,ГОЛОВНА!K:L,2,0)), "-") -> 1341.3025
A29: 96235274 | B29: Колодязь PUST08.20.S.W.SS.SEG | C29: WW | F29: 2456.0665 | G29: =IFERROR(F29*(1-VLOOKUP(C29,ГОЛОВНА!K:L,2,0)), "-") -> 2456.0665
A30: 96235278 | B30: Колодязь PUST08.25.S.A.SS.APB | C30: WW | F30: 2442.5195 | G30: =IFERROR(F30*(1-VLOOKUP(C30,ГОЛОВНА!K:L,2,0)), "-") -> 2442.5195
A31: 96235272 | B31: Колодязь PUST08.25.S.A.SS.SEG | C31: WW | F31: 2442.5195 | G31: =IFERROR(F31*(1-VLOOKUP(C31,ГОЛОВНА!K:L,2,0)), "-") -> 2442.5195
A32: 97940044 | B32: Насосна станція PUST08.25.S.A.SS.SEG | C32: WW | F32: 2253.839 | G32: =IFERROR(F32*(1-VLOOKUP(C32,ГОЛОВНА!K:L,2,0)), "-") -> 2253.839
A33: 96235284 | B33: Колодязь PUST08.25.S.S.PE.AP35 | C33: WW | F33: 1500.6465 | G33: =IFERROR(F33*(1-VLOOKUP(C33,ГОЛОВНА!K:L,2,0)), "-") -> 1500.6465
A34: 96235281 | B34: Колодязь PUST08.25.S.S.PE.AP50 | C34: WW | F34: 1500.6465 | G34: =IFERROR(F34*(1-VLOOKUP(C34,ГОЛОВНА!K:L,2,0)), "-") -> 1500.6465
A35: 96235287 | B35: Колодязь PUST08.25.S.S.PE.DPEF | C35: WW | F35: 1500.6465 | G35: =IFERROR(F35*(1-VLOOKUP(C35,ГОЛОВНА!K:L,2,0)), "-") -> 1500.6465
A36: 96235275 | B36: Колодязь PUST08.25.S.W.SS.SEG | C36: WW | F36: 2668.8165 | G36: =IFERROR(F36*(1-VLOOKUP(C36,ГОЛОВНА!K:L,2,0)), "-") -> 2668.8165
A37: 96235330 | B37: Колодязь PUST10.20.D.S.PE.AP35 | C37: WW | F37: 2311.1205 | G37: =IFERROR(F37*(1-VLOOKUP(C37,ГОЛОВНА!K:L,2,0)), "-") -> 2311.1205
A38: 96235328 | B38: Колодязь PUST10.20.D.S.PE.AP50 | C38: WW | F38: 2311.1205 | G38: =IFERROR(F38*(1-VLOOKUP(C38,ГОЛОВНА!K:L,2,0)), "-") -> 2311.1205
A39: 96235332 | B39: Колодязь PUST10.20.D.S.PE.DPEF | C39: WW | F39: 2311.1205 | G39: =IFERROR(F39*(1-VLOOKUP(C39,ГОЛОВНА!K:L,2,0)), "-") -> 2311.1205
A40: 96235308 | B40: Колодязь PUST10.20.S.A.SS.APB | C40: WW | F40: 2515.7745 | G40: =IFERROR(F40*(1-VLOOKUP(C40,ГОЛОВНА!K:L,2,0)), "-") -> 2515.7745
A41: 96235302 | B41: Колодязь PUST10.20.S.A.SS.SEG | C41: WW | F41: 2515.7745 | G41: =IFERROR(F41*(1-VLOOKUP(C41,ГОЛОВНА!K:L,2,0)), "-") -> 2515.7745
A42: 96235314 | B42: Колодязь PUST10.20.S.S.PE.AP35 | C42: WW | F42: 1798.784 | G42: =IFERROR(F42*(1-VLOOKUP(C42,ГОЛОВНА!K:L,2,0)), "-") -> 1798.784
A43: 96235317 | B43: Колодязь PUST10.20.S.S.PE.DPEF | C43: WW | F43: 1798.784 | G43: =IFERROR(F43*(1-VLOOKUP(C43,ГОЛОВНА!K:L,2,0)), "-") -> 1798.784
A44: 96235331 | B44: Колодязь PUST10.25.D.S.PE.AP35 | C44: WW | F44: 2668.8395 | G44: =IFERROR(F44*(1-VLOOKUP(C44,ГОЛОВНА!K:L,2,0)), "-") -> 2668.8395
A45: 96235329 | B45: Колодязь PUST10.25.D.S.PE.AP50 | C45: WW | F45: 2668.8395 | G45: =IFERROR(F45*(1-VLOOKUP(C45,ГОЛОВНА!K:L,2,0)), "-") -> 2668.8395
A46: 96235333 | B46: Колодязь PUST10.25.D.S.PE.DPEF | C46: WW | F46: 2668.8395 | G46: =IFERROR(F46*(1-VLOOKUP(C46,ГОЛОВНА!K:L,2,0)), "-") -> 2668.8395
A47: 96235315 | B47: Колодязь PUST10.25.S.S.PE.AP35 | C47: WW | F47: 1987.2115 | G47: =IFERROR(F47*(1-VLOOKUP(C47,ГОЛОВНА!K:L,2,0)), "-") -> 1987.2115
A48: 96235312 | B48: Колодязь PUST10.25.S.S.PE.AP50 | C48: WW | F48: 1987.2115 | G48: =IFERROR(F48*(1-VLOOKUP(C48,ГОЛОВНА!K:L,2,0)), "-") -> 1987.2115
A49: 96235318 | B49: Колодязь PUST10.25.S.S.PE.DPEF | C49: WW | F49: 1987.2115 | G49: =IFERROR(F49*(1-VLOOKUP(C49,ГОЛОВНА!K:L,2,0)), "-") -> 1987.2115
A50: 96571529 | B50: Захисний кожух до трубопроводу PUST | C50: WW | F50: 102.3399 | G50: =IFERROR(F50*(1-VLOOKUP(C50,ГОЛОВНА!K:L,2,0)), "-") -> 102.3399
A51: 96235228 | B51: Попл. вимикачі до PUST (2 шт.) для LC108 | C51: WW | F51: 235.4165 | G51: =IFERROR(F51*(1-VLOOKUP(C51,ГОЛОВНА!K:L,2,0)), "-") -> 235.4165

Sheet TP (E), TPD (E)
A1: АРТИКУЛ | B1: НАЙМЕНУВАННЯ (УКР) | C1: PRICE GROUP | D1: ДОСТАВКА (ТИЖНІВ) | E1: ДОДАТКОВО | F1: ЦІНА (ЕВРО БЕЗ ПДВ) | G1: ЦІНА ЗІ ЗНИЖКОЮ | H1: НА ГОЛОВНУ
A2: TP, TPD ( E) | G2: Ін-лайн насоси для систем опалення та кондиціонування
A3: 96086673 | B3: Насос з сух.рот.TP 32-200/2-A-F-A-BQQE 400Y 50HZ | C3: CB | F3: 830.8325 | G3: =IFERROR(F3*(1-VLOOKUP(C3,ГОЛОВНА!K:L,2,0)), "-") -> 830.8325
A4: 96086674 | B4: Насос з сух.рот.TP 32-250/2-A-F-A-BQQE 400Y 50HZ | C4: CB | F4: 926.5935 | G4: =IFERROR(F4*(1-VLOOKUP(C4,ГОЛОВНА!K:L,2,0)), "-") -> 926.5935
A5: 96086675 | B5: Насос з сух.рот.TP 32-320/2-A-F-A-BQQE 400Y 50HZ | C5: CB | F5: 1001.062 | G5: =IFERROR(F5*(1-VLOOKUP(C5,ГОЛОВНА!K:L,2,0)), "-") -> 1001.062
A6: 96086697 | B6: Насос з сух.рот.TPD 32-200/2-A-F-A-BAQE 400Y 50HZ | C6: CB | F6: 1729.544 | G6: =IFERROR(F6*(1-VLOOKUP(C6,ГОЛОВНА!K:L,2,0)), "-") -> 1729.544
A7: 96086698 | B7: Насос з сух.рот.TPD 32-250/2-A-F-A-BAQE 400Y 50HZ | C7: CB | F7: 1928.968 | G7: =IFERROR(F7*(1-VLOOKUP(C7,ГОЛОВНА!K:L,2,0)), "-") -> 1928.968
A8: 96086699 | B8: Насос з сух.рот.TPD 32-320/2-A-F-A-BAQE 400Y 50HZ | C8: CB | F8: за запитом | G8: =IFERROR(F8*(1-VLOOKUP(C8,ГОЛОВНА!K:L,2,0)), "-") -> -
A9: 96086702 | B9: Насос з сух.рот.TPD 32-580/2-A-F-A-BAQE 400Y 50HZ | C9: CB | F9: за запитом | G9: =IFERROR(F9*(1-VLOOKUP(C9,ГОЛОВНА!K:L,2,0)), "-") -> -
A10: 96086739 | B10: Насос з сух.рот.TP 32-80/4-A-F-A-BQQE 400Y 50HZ | C10: CB | F10: 798.4475 | G10: =IFERROR(F10*(1-VLOOKUP(C10,ГОЛОВНА!K:L,2,0)), "-") -> 798.4475
A11: 96086741 | B11: Насос з сух.рот.TP 32-120/4-A-F-A-BQQE 400Y 50HZ | C11: CB | F11: 839.2645 | G11: =IFERROR(F11*(1-VLOOKUP(C11,ГОЛОВНА!K:L,2,0)), "-") -> 839.2645
A12: 96086751 | B12: Насос з сух.рот.TPD 32-80/4-A-F-A-BAQE 400Y 50HZ | C12: CB | F12: 1662.468 | G12: =IFERROR(F12*(1-VLOOKUP(C12,ГОЛОВНА!K:L,2,0)), "-") -> 1662.468
A13: 96086752 | B13: Насос з сух.рот.TPD 32-100/4-A-F-A-BAQE 400Y 50HZ | C13: CB | F13: 1695.268 | G13: =IFERROR(F13*(1-VLOOKUP(C13,ГОЛОВНА!K:L,2,0)), "-") -> 1695.268
A14: 96086753 | B14: Насос з сух.рот.TPD 32-120/4-A-F-A-BAQE 400Y 50HZ | C14: CB | F14: 1751.848 | G14: =IFERROR(F14*(1-VLOOKUP(C14,ГОЛОВНА!K:L,2,0)), "-") -> 1751.848
A15: 96086757 | B15: Насос з сух.рот.TPD 32-80/4-A-F-A-BQQE 400Y 50HZ | C15: CB | F15: 1662.468 | G15: =IFERROR(F15*(1-VLOOKUP(C15,ГОЛОВНА!K:L,2,0)), "-") -> 1662.468
A16: 96086758 | B16: Насос з сух.рот.TPD 32-100/4-A-F-A-BQQE 400Y 50HZ | C16: CB | F16: 1657.9845 | G16: =IFERROR(F16*(1-VLOOKUP(C16,ГОЛОВНА!K:L,2,0)), "-") -> 1657.9845
A17: 96086777 | B17: Насос з сух.рот.TP 32-320/2-A-F-A-BQQE 400D 50HZ | C17: CB | F17: 1001.062 | G17: =IFERROR(F17*(1-VLOOKUP(C17,ГОЛОВНА!K:L,2,0)), "-") -> 1001.062
A18: 96086778 | B18: Насос з сух.рот.TP 32-380/2-A-F-A-BQQE 400D 50HZ | C18: CB | F18: 1086.2575 | G18: =IFERROR(F18*(1-VLOOKUP(C18,ГОЛОВНА!K:L,2,0)), "-") -> 1086.2575
A19: 96086779 | B19: Насос з сух.рот.TP 32-460/2-A-F-A-BQQE 400D 50HZ | C19: CB | F19: 1118.294 | G19: =IFERROR(F19*(1-VLOOKUP(C19,ГОЛОВНА!K:L,2,0)), "-") -> 1118.294
A20: 96086793 | B20: Насос з сух.рот.TPD 32-320/2-A-F-A-BAQE 400D 50HZ | C20: CB | F20: за запитом | G20: =IFERROR(F20*(1-VLOOKUP(C20,ГОЛОВНА!K:L,2,0)), "-") -> -
A21: 96086794 | B21: Насос з сух.рот.TPD 32-380/2-A-F-A-BAQE 400D 50HZ | C21: CB | F21: за запитом | G21: =IFERROR(F21*(1-VLOOKUP(C21,ГОЛОВНА!K:L,2,0)), "-") -> -
A22: 96086795 | B22: Насос з сух.рот.TPD 32-460/2-A-F-A-BAQE 400D 50HZ | C22: CB | F22: за запитом | G22: =IFERROR(F22*(1-VLOOKUP(C22,ГОЛОВНА!K:L,2,0)), "-") -> -
A23: 96086796 | B23: Насос з сух.рот.TPD 32-580/2-A-F-A-BAQE 400D 50HZ | C23: CB | F23: за запитом | G23: =IFERROR(F23*(1-VLOOKUP(C23,ГОЛОВНА!K:L,2,0)), "-") -> -
A24: 96086805 | B24: Насос з сух.рот.TPD 32-320/2-A-F-B-BAQE 400D 50HZ | C24: CB | F24: за запитом | G24: =IFERROR(F24*(1-VLOOKUP(C24,ГОЛОВНА!K:L,2,0)), "-") -> -
A25: 96086848 | B25: Насос з сух.рот.TPD 40-300/2-A-F-A-BAQE 400Y 50HZ | C25: CB | F25: за запитом | G25: =IFERROR(F25*(1-VLOOKUP(C25,ГОЛОВНА!K:L,2,0)), "-") -> -
A26: 96086858 | B26: Насос з сух.рот.TPD 40-300/2-A-F-A-BQQE 400Y 50HZ | C26: CB | F26: за запитом | G26: =IFERROR(F26*(1-VLOOKUP(C26,ГОЛОВНА!K:L,2,0)), "-") -> -
A27: 96086883 | B27: Насос з сух.рот.TP 40-100/4-A-F-A-BQQE 400Y 50HZ | C27: CB | F27: 915.858 | G27: =IFERROR(F27*(1-VLOOKUP(C27,ГОЛОВНА!K:L,2,0)), "-") -> 915.858
A28: 96086895 | B28: Насос з сух.рот.TPD 40-100/4-A-F-A-BAQE 400Y 50HZ | C28: CB | F28: 1907.156 | G28: =IFERROR(F28*(1-VLOOKUP(C28,ГОЛОВНА!K:L,2,0)), "-") -> 1907.156
A29: 96086904 | B29: Насос з сух.рот.TPD 40-100/4-A-F-B-BAQE 400Y 50HZ | C29: CB | F29: за запитом | G29: =IFERROR(F29*(1-VLOOKUP(C29,ГОЛОВНА!K:L,2,0)), "-") -> -
A30: 96086924 | B30: Насос з сух.рот.TP 40-300/2-A-F-A-BQQE 400D 50HZ | C30: CB | F30: 1128.8595 | G30: =IFERROR(F30*(1-VLOOKUP(C30,ГОЛОВНА!K:L,2,0)), "-") -> 1128.8595
A31: 96086925 | B31: Насос з сух.рот.TP 40-360/2-A-F-A-BQQE 400D 50HZ | C31: CB | F31: 1272.365 | G31: =IFERROR(F31*(1-VLOOKUP(C31,ГОЛОВНА!K:L,2,0)), "-") -> 1272.365
A32: 96086943 | B32: Насос з сух.рот.TPD 40-240/2-A-F-A-BAQE 400D 50HZ | C32: CB | F32: за запитом | G32: =IFERROR(F32*(1-VLOOKUP(C32,ГОЛОВНА!K:L,2,0)), "-") -> -
A33: 96086944 | B33: Насос з сух.рот.TPD 40-300/2-A-F-A-BAQE 400D 50HZ | C33: CB | F33: за запитом | G33: =IFERROR(F33*(1-VLOOKUP(C33,ГОЛОВНА!K:L,2,0)), "-") -> -
A34: 96086945 | B34: Насос з сух.рот.TPD 40-360/2-A-F-A-BAQE 400D 50HZ | C34: CB | F34: за запитом | G34: =IFERROR(F34*(1-VLOOKUP(C34,ГОЛОВНА!K:L,2,0)), "-") -> -
A35: 96086995 | B35: Насос з сух.рот.TP 50-160/2-A-F-A-BQQE 400Y 50HZ | C35: CB | F35: 926.262 | G35: =IFERROR(F35*(1-VLOOKUP(C35,ГОЛОВНА!K:L,2,0)), "-") -> 926.262
A36: 96086996 | B36: Насос з сух.рот.TP 50-190/2-A-F-A-BQQE 400Y 50HZ | C36: CB | F36: 1022.363 | G36: =IFERROR(F36*(1-VLOOKUP(C36,ГОЛОВНА!K:L,2,0)), "-") -> 1022.363
A37: 96086997 | B37: Насос з сух.рот.TP 50-240/2-A-F-A-BQQE 400Y 50HZ | C37: CB | F37: 1069.0365 | G37: =IFERROR(F37*(1-VLOOKUP(C37,ГОЛОВНА!K:L,2,0)), "-") -> 1069.0365
A38: 96087039 | B38: Насос з сух.рот.TPD 50-160/2-A-F-A-BAQE 400Y 50HZ | C38: CB | F38: 1965.54 | G38: =IFERROR(F38*(1-VLOOKUP(C38,ГОЛОВНА!K:L,2,0)), "-") -> 1965.54
A39: 96087040 | B39: Насос з сух.рот.TPD 50-190/2-A-F-A-BAQE 400Y 50HZ | C39: CB | F39: за запитом | G39: =IFERROR(F39*(1-VLOOKUP(C39,ГОЛОВНА!K:L,2,0)), "-") -> -
A40: 96087041 | B40: Насос з сух.рот.TPD 50-240/2-A-F-A-BAQE 400Y 50HZ | C40: CB | F40: за запитом | G40: =IFERROR(F40*(1-VLOOKUP(C40,ГОЛОВНА!K:L,2,0)), "-") -> -
A41: 96087062 | B41: Насос з сух.рот.TPD 50-190/2-A-F-A-BQQE 400Y 50HZ | C41: CB | F41: за запитом | G41: =IFERROR(F41*(1-VLOOKUP(C41,ГОЛОВНА!K:L,2,0)), "-") -> -
A42: 96087063 | B42: Насос з сух.рот.TPD 50-240/2-A-F-A-BQQE 400Y 50HZ | C42: CB | F42: за запитом | G42: =IFERROR(F42*(1-VLOOKUP(C42,ГОЛОВНА!K:L,2,0)), "-") -> -
A43: 96087117 | B43: Насос з сух.рот.TP 50-90/4-A-F-A-BQQE 400Y 50HZ | C43: CB | F43: 983.8495 | G43: =IFERROR(F43*(1-VLOOKUP(C43,ГОЛОВНА!K:L,2,0)), "-") -> 983.8495
A44: 96087121 | B44: Насос з сух.рот.TP 50-190/4-A-F-A-BQQE 400Y 50HZ | C44: CB | F44: 1171.453 | G44: =IFERROR(F44*(1-VLOOKUP(C44,ГОЛОВНА!K:L,2,0)), "-") -> 1171.453
A45: 96087141 | B45: Насос з сух.рот.TPD 50-90/4-A-F-A-BAQE 400Y 50HZ | C45: CB | F45: за запитом | G45: =IFERROR(F45*(1-VLOOKUP(C45,ГОЛОВНА!K:L,2,0)), "-") -> -
A46: 96087157 | B46: Насос з сух.рот.TPD 50-190/4-A-F-A-BQQE 400Y 50HZ | C46: CB | F46: за запитом | G46: =IFERROR(F46*(1-VLOOKUP(C46,ГОЛОВНА!K:L,2,0)), "-") -> -
A47: 96087159 | B47: Насос з сух.рот.TPD 50-90/4-A-F-B-BAQE 400Y 50HZ | C47: CB | F47: за запитом | G47: =IFERROR(F47*(1-VLOOKUP(C47,ГОЛОВНА!K:L,2,0)), "-") -> -
A48: 96087195 | B48: Насос з сух.рот.TP 50-240/2-A-F-A-BQQE 400D 50HZ | C48: CB | F48: 1069.0365 | G48: =IFERROR(F48*(1-VLOOKUP(C48,ГОЛОВНА!K:L,2,0)), "-") -> 1069.0365
A49: 96087196 | B49: Насос з сух.рот.TP 50-290/2-A-F-A-BQQE 400D 50HZ | C49: CB | F49: 1139.425 | G49: =IFERROR(F49*(1-VLOOKUP(C49,ГОЛОВНА!K:L,2,0)), "-") -> 1139.425
A50: 96087197 | B50: Насос з сух.рот.TP 50-360/2-A-F-A-BQQE 400D 50HZ | C50: CB | F50: 1309.8245 | G50: =IFERROR(F50*(1-VLOOKUP(C50,ГОЛОВНА!K:L,2,0)), "-") -> 1309.8245
A51: 96087198 | B51: Насос з сух.рот.TP 50-430/2-A-F-A-BQQE 400D 50HZ | C51: CB | F51: 1733.5835 | G51: =IFERROR(F51*(1-VLOOKUP(C51,ГОЛОВНА!K:L,2,0)), "-") -> 1733.5835
A52: 96087231 | B52: Насос з сух.рот.TPD 50-240/2-A-F-A-BAQE 400D 50HZ | C52: CB | F52: за запитом | G52: =IFERROR(F52*(1-VLOOKUP(C52,ГОЛОВНА!K:L,2,0)), "-") -> -
A53: 96087232 | B53: Насос з сух.рот.TPD 50-290/2-A-F-A-BAQE 400D 50HZ | C53: CB | F53: за запитом | G53: =IFERROR(F53*(1-VLOOKUP(C53,ГОЛОВНА!K:L,2,0)), "-") -> -
A54: 96087233 | B54: Насос з сух.рот.TPD 50-360/2-A-F-A-BAQE 400D 50HZ | C54: CB | F54: за запитом | G54: =IFERROR(F54*(1-VLOOKUP(C54,ГОЛОВНА!K:L,2,0)), "-") -> -
A55: 96087277 | B55: Насос з сух.рот.TPD 50-290/2-A-F-B-BQQE 400D 50HZ | C55: CB | F55: за запитом | G55: =IFERROR(F55*(1-VLOOKUP(C55,ГОЛОВНА!K:L,2,0)), "-") -> -
A56: 96087297 | B56: Насос з сух.рот.TPD 50-190/4-A-F-A-BAQE 400D 50HZ | C56: CB | F56: за запитом | G56: =IFERROR(F56*(1-VLOOKUP(C56,ГОЛОВНА!K:L,2,0)), "-") -> -
A57: 96087298 | B57: Насос з сух.рот.TPD 50-230/4-A-F-A-BAQE 400D 50HZ | C57: CB | F57: за запитом | G57: =IFERROR(F57*(1-VLOOKUP(C57,ГОЛОВНА!K:L,2,0)), "-") -> -
A58: 96087442 | B58: Насос з сух.рот.TP 65-110/4-A-F-A-BQQE 400Y 50HZ | C58: CB | F58: 1149.999 | G58: =IFERROR(F58*(1-VLOOKUP(C58,ГОЛОВНА!K:L,2,0)), "-") -> 1149.999
A59: 96087443 | B59: Насос з сух.рот.TP 65-130/4-A-F-A-BQQE 400Y 50HZ | C59: CB | F59: 1214.0635 | G59: =IFERROR(F59*(1-VLOOKUP(C59,ГОЛОВНА!K:L,2,0)), "-") -> 1214.0635
A60: 96087444 | B60: Насос з сух.рот.TP 65-150/4-A-F-A-BQQE 400Y 50HZ | C60: CB | F60: 1316.463 | G60: =IFERROR(F60*(1-VLOOKUP(C60,ГОЛОВНА!K:L,2,0)), "-") -> 1316.463
A61: 96087465 | B61: Насос з сух.рот.TPD 65-90/4-A-F-A-BAQE 400Y 50HZ | C61: CB | F61: за запитом | G61: =IFERROR(F61*(1-VLOOKUP(C61,ГОЛОВНА!K:L,2,0)), "-") -> -
A62: 96087466 | B62: Насос з сух.рот.TPD 65-110/4-A-F-A-BAQE 400Y 50HZ | C62: CB | F62: за запитом | G62: =IFERROR(F62*(1-VLOOKUP(C62,ГОЛОВНА!K:L,2,0)), "-") -> -
A63: 96087467 | B63: Насос з сух.рот.TPD 65-130/4-A-F-A-BAQE 400Y 50HZ | C63: CB | F63: за запитом | G63: =IFERROR(F63*(1-VLOOKUP(C63,ГОЛОВНА!K:L,2,0)), "-") -> -
A64: 96087468 | B64: Насос з сух.рот.TPD 65-150/4-A-F-A-BAQE 400Y 50HZ | C64: CB | F64: за запитом | G64: =IFERROR(F64*(1-VLOOKUP(C64,ГОЛОВНА!K:L,2,0)), "-") -> -
A65: 96087477 | B65: Насос з сух.рот.TPD 65-90/4-A-F-A-BQQE 400Y 50HZ | C65: CB | F65: за запитом | G65: =IFERROR(F65*(1-VLOOKUP(C65,ГОЛОВНА!K:L,2,0)), "-") -> -
A66: 96087479 | B66: Насос з сух.рот.TPD 65-130/4-A-F-A-BQQE 400Y 50HZ | C66: CB | F66: за запитом | G66: =IFERROR(F66*(1-VLOOKUP(C66,ГОЛОВНА!K:L,2,0)), "-") -> -
A67: 96087524 | B67: Насос з сух.рот.TP 65-340/2-A-F-A-BQQE 400D 50HZ | C67: CB | F67: 1767.66 | G67: =IFERROR(F67*(1-VLOOKUP(C67,ГОЛОВНА!K:L,2,0)), "-") -> 1767.66
A68: 96087525 | B68: Насос з сух.рот.TP 65-410/2-A-F-A-BQQE 400D 50HZ | C68: CB | F68: 1853.0255 | G68: =IFERROR(F68*(1-VLOOKUP(C68,ГОЛОВНА!K:L,2,0)), "-") -> 1853.0255
A69: 96087526 | B69: Насос з сух.рот.TP 65-460/2-A-F-A-BQQE 400D 50HZ | C69: CB | F69: за запитом | G69: =IFERROR(F69*(1-VLOOKUP(C69,ГОЛОВНА!K:L,2,0)), "-") -> -
A70: 96087627 | B70: Насос з сух.рот.TP 65-150/4-A-F-A-BQQE 400D 50HZ | C70: CB | F70: 1316.463 | G70: =IFERROR(F70*(1-VLOOKUP(C70,ГОЛОВНА!K:L,2,0)), "-") -> 1316.463
A71: 96087628 | B71: Насос з сух.рот.TP 65-170/4-A-F-A-BQQE 400D 50HZ | C71: CB | F71: 1371.6535 | G71: =IFERROR(F71*(1-VLOOKUP(C71,ГОЛОВНА!K:L,2,0)), "-") -> 1371.6535
A72: 96087629 | B72: Насос з сух.рот.TP 65-240/4-A-F-A-BQQE 400D 50HZ | C72: CB | F72: 1578.0165 | G72: =IFERROR(F72*(1-VLOOKUP(C72,ГОЛОВНА!K:L,2,0)), "-") -> 1578.0165
A73: 96087639 | B73: Насос з сух.рот.TPD 65-150/4-A-F-A-BAQE 400D 50HZ | C73: CB | F73: за запитом | G73: =IFERROR(F73*(1-VLOOKUP(C73,ГОЛОВНА!K:L,2,0)), "-") -> -
A74: 96087640 | B74: Насос з сух.рот.TPD 65-170/4-A-F-A-BAQE 400D 50HZ | C74: CB | F74: за запитом | G74: =IFERROR(F74*(1-VLOOKUP(C74,ГОЛОВНА!K:L,2,0)), "-") -> -
A75: 96096283 | B75: Насос з сух.рот.TPE 32-380/2-A-F-A-BAQE 3X400 50HZ | C75: CB | F75: за запитом | G75: =IFERROR(F75*(1-VLOOKUP(C75,ГОЛОВНА!K:L,2,0)), "-") -> -
A76: 96096284 | B76: Насос з сух.рот.TPE 32-460/2-A-F-A-BAQE 3X400 50HZ | C76: CB | F76: за запитом | G76: =IFERROR(F76*(1-VLOOKUP(C76,ГОЛОВНА!K:L,2,0)), "-") -> -
A77: 96096293 | B77: Насос з сух.рот.TPE 32-380/2-A-F-A-BQQE 3X400 50HZ | C77: CB | F77: за запитом | G77: =IFERROR(F77*(1-VLOOKUP(C77,ГОЛОВНА!K:L,2,0)), "-") -> -
A78: 96096294 | B78: Насос з сух.рот.TPE 32-460/2-A-F-A-BQQE 3X400 50HZ | C78: CB | F78: за запитом | G78: =IFERROR(F78*(1-VLOOKUP(C78,ГОЛОВНА!K:L,2,0)), "-") -> -
A79: 96096298 | B79: Насос з сух.рот.TPE 32-380/2-A-F-B-BAQE 3X400 50HZ | C79: CB | F79: за запитом | G79: =IFERROR(F79*(1-VLOOKUP(C79,ГОЛОВНА!K:L,2,0)), "-") -> -
A80: 96096299 | B80: Насос з сух.рот.TPE 32-460/2-A-F-B-BAQE 3X400 50HZ | C80: CB | F80: за запитом | G80: =IFERROR(F80*(1-VLOOKUP(C80,ГОЛОВНА!K:L,2,0)), "-") -> -
A81: 96096308 | B81: Насос з сух.рот.TPE 32-380/2-A-F-B-BQQE 3X400 50HZ | C81: CB | F81: за запитом | G81: =IFERROR(F81*(1-VLOOKUP(C81,ГОЛОВНА!K:L,2,0)), "-") -> -
A82: 96096309 | B82: Насос з сух.рот.TPE 32-460/2-A-F-B-BQQE 3X400 50HZ | C82: CB | F82: за запитом | G82: =IFERROR(F82*(1-VLOOKUP(C82,ГОЛОВНА!K:L,2,0)), "-") -> -
A83: 96096415 | B83: Насос з сух.рот.TPE 50-290/2-A-F-A-BAQE 3X400 50HZ | C83: CB | F83: за запитом | G83: =IFERROR(F83*(1-VLOOKUP(C83,ГОЛОВНА!K:L,2,0)), "-") -> -
A84: 96096416 | B84: Насос з сух.рот.TPE 50-360/2-A-F-A-BAQE 3X400 50HZ | C84: CB | F84: за запитом | G84: =IFERROR(F84*(1-VLOOKUP(C84,ГОЛОВНА!K:L,2,0)), "-") -> -
A85: 96096435 | B85: Насос з сух.рот.TPE 50-290/2-A-F-A-BQQE 3X400 50HZ | C85: CB | F85: за запитом | G85: =IFERROR(F85*(1-VLOOKUP(C85,ГОЛОВНА!K:L,2,0)), "-") -> -
A86: 96096436 | B86: Насос з сух.рот.TPE 50-360/2-A-F-A-BQQE 3X400 50HZ | C86: CB | F86: за запитом | G86: =IFERROR(F86*(1-VLOOKUP(C86,ГОЛОВНА!K:L,2,0)), "-") -> -
A87: 96096445 | B87: Насос з сух.рот.TPE 50-290/2-A-F-B-BAQE 3X400 50HZ | C87: CB | F87: за запитом | G87: =IFERROR(F87*(1-VLOOKUP(C87,ГОЛОВНА!K:L,2,0)), "-") -> -
A88: 96096465 | B88: Насос з сух.рот.TPE 50-290/2-A-F-B-BQQE 3X400 50HZ | C88: CB | F88: за запитом | G88: =IFERROR(F88*(1-VLOOKUP(C88,ГОЛОВНА!K:L,2,0)), "-") -> -
A89: 96108450 | B89: Насос з сух.рот.TP 80-330/2-A-F-A-BAQE 400Y 50HZ | C89: CB | F89: за запитом | G89: =IFERROR(F89*(1-VLOOKUP(C89,ГОЛОВНА!K:L,2,0)), "-") -> -
A90: 96108451 | B90: Насос з сух.рот.TP 80-400/2-A-F-A-BAQE 400Y 50HZ | C90: CB | F90: за запитом | G90: =IFERROR(F90*(1-VLOOKUP(C90,ГОЛОВНА!K:L,2,0)), "-") -> -
A91: 96108465 | B91: Насос з сух.рот.TP 80-140/2-A-F-A-BQQE 400Y 50HZ | C91: CB | F91: 1128.8595 | G91: =IFERROR(F91*(1-VLOOKUP(C91,ГОЛОВНА!K:L,2,0)), "-") -> 1128.8595
A92: 96108471 | B92: Насос з сух.рот.TP 80-400/2-A-F-A-BQQE 400Y 50HZ | C92: CB | F92: за запитом | G92: =IFERROR(F92*(1-VLOOKUP(C92,ГОЛОВНА!K:L,2,0)), "-") -> -
A93: 96108515 | B93: Насос з сух.рот.TPD 80-140/2-A-F-A-BAQE 400Y 50HZ | C93: CB | F93: за запитом | G93: =IFERROR(F93*(1-VLOOKUP(C93,ГОЛОВНА!K:L,2,0)), "-") -> -
A94: 96108535 | B94: Насос з сух.рот.TPD 80-140/2-A-F-A-BQQE 400Y 50HZ | C94: CB | F94: за запитом | G94: =IFERROR(F94*(1-VLOOKUP(C94,ГОЛОВНА!K:L,2,0)), "-") -> -
A95: 96108536 | B95: Насос з сух.рот.TPD 80-180/2-A-F-A-BQQE 400Y 50HZ | C95: CB | F95: за запитом | G95: =IFERROR(F95*(1-VLOOKUP(C95,ГОЛОВНА!K:L,2,0)), "-") -> -
A96: 96108585 | B96: Насос з сух.рот.TP 80-70/4-A-F-A-BAQE 400Y 50HZ | C96: CB | F96: 1171.453 | G96: =IFERROR(F96*(1-VLOOKUP(C96,ГОЛОВНА!K:L,2,0)), "-") -> 1171.453
A97: 96108586 | B97: Насос з сух.рот.TP 80-90/4-A-F-A-BAQE 400Y 50HZ | C97: CB | F97: 1235.356 | G97: =IFERROR(F97*(1-VLOOKUP(C97,ГОЛОВНА!K:L,2,0)), "-") -> 1235.356
A98: 96108601 | B98: Насос з сух.рот.TP 80-70/4-A-F-A-BQQE 400Y 50HZ | C98: CB | F98: 1171.453 | G98: =IFERROR(F98*(1-VLOOKUP(C98,ГОЛОВНА!K:L,2,0)), "-") -> 1171.453
A99: 96108602 | B99: Насос з сух.рот.TP 80-90/4-A-F-A-BQQE 400Y 50HZ | C99: CB | F99: 1235.356 | G99: =IFERROR(F99*(1-VLOOKUP(C99,ГОЛОВНА!K:L,2,0)), "-") -> 1235.356
A100: 96108603 | B100: Насос з сух.рот.TP 80-110/4-A-F-A-BQQE 400Y 50HZ | C100: CB | F100: 1341.674 | G100: =IFERROR(F100*(1-VLOOKUP(C100,ГОЛОВНА!K:L,2,0)), "-") -> 1341.674
A101: 96108604 | B101: Насос з сух.рот.TP 80-150/4-A-F-A-BQQE 400Y 50HZ | C101: CB | F101: 1405.747 | G101: =IFERROR(F101*(1-VLOOKUP(C101,ГОЛОВНА!K:L,2,0)), "-") -> 1405.747
A102: 96108617 | B102: Насос з сух.рот.TP 80-70/4-A-F-B-BAQE 400Y 50HZ | C102: CB | F102: 1491.801 | G102: =IFERROR(F102*(1-VLOOKUP(C102,ГОЛОВНА!K:L,2,0)), "-") -> 1491.801
A103: 96108618 | B103: Насос з сух.рот.TP 80-90/4-A-F-B-BAQE 400Y 50HZ | C103: CB | F103: 1555.6955 | G103: =IFERROR(F103*(1-VLOOKUP(C103,ГОЛОВНА!K:L,2,0)), "-") -> 1555.6955
A104: 96108641 | B104: Насос з сух.рот.TPD 80-70/4-A-F-A-BAQE 400Y 50HZ | C104: CB | F104: за запитом | G104: =IFERROR(F104*(1-VLOOKUP(C104,ГОЛОВНА!K:L,2,0)), "-") -> -
A105: 96108642 | B105: Насос з сух.рот.TPD 80-90/4-A-F-A-BAQE 400Y 50HZ | C105: CB | F105: за запитом | G105: =IFERROR(F105*(1-VLOOKUP(C105,ГОЛОВНА!K:L,2,0)), "-") -> -
A106: 96108643 | B106: Насос з сух.рот.TPD 80-110/4-A-F-A-BAQE 400Y 50HZ | C106: CB | F106: за запитом | G106: =IFERROR(F106*(1-VLOOKUP(C106,ГОЛОВНА!K:L,2,0)), "-") -> -
A107: 96108658 | B107: Насос з сух.рот.TPD 80-90/4-A-F-A-BQQE 400Y 50HZ | C107: CB | F107: за запитом | G107: =IFERROR(F107*(1-VLOOKUP(C107,ГОЛОВНА!K:L,2,0)), "-") -> -
A108: 96108702 | B108: Насос з сух.рот.TP 80-330/2-A-F-A-BAQE 400D 50HZ | C108: CB | F108: за запитом | G108: =IFERROR(F108*(1-VLOOKUP(C108,ГОЛОВНА!K:L,2,0)), "-") -> -
A109: 96108703 | B109: Насос з сух.рот.TP 80-400/2-A-F-A-BAQE 400D 50HZ | C109: CB | F109: за запитом | G109: =IFERROR(F109*(1-VLOOKUP(C109,ГОЛОВНА!K:L,2,0)), "-") -> -
A110: 96108718 | B110: Насос з сух.рот.TP 80-180/2-A-F-A-BQQE 400D 50HZ | C110: CB | F110: 1235.356 | G110: =IFERROR(F110*(1-VLOOKUP(C110,ГОЛОВНА!K:L,2,0)), "-") -> 1235.356
A111: 96108719 | B111: Насос з сух.рот.TP 80-210/2-A-F-A-BQQE 400D 50HZ | C111: CB | F111: 1386.1545 | G111: =IFERROR(F111*(1-VLOOKUP(C111,ГОЛОВНА!K:L,2,0)), "-") -> 1386.1545
A112: 96108720 | B112: Насос з сух.рот.TP 80-240/2-A-F-A-BQQE 400D 50HZ | C112: CB | F112: 1457.2584 | G112: =IFERROR(F112*(1-VLOOKUP(C112,ГОЛОВНА!K:L,2,0)), "-") -> 1457.2584
A113: 96108721 | B113: Насос з сух.рот.TP 80-250/2-A-F-A-BQQE 400D 50HZ | C113: CB | F113: 1895.6275 | G113: =IFERROR(F113*(1-VLOOKUP(C113,ГОЛОВНА!K:L,2,0)), "-") -> 1895.6275
A114: 96108722 | B114: Насос з сух.рот.TP 80-330/2-A-F-A-BQQE 400D 50HZ | C114: CB | F114: за запитом | G114: =IFERROR(F114*(1-VLOOKUP(C114,ГОЛОВНА!K:L,2,0)), "-") -> -
A115: 96108723 | B115: Насос з сух.рот.TP 80-400/2-A-F-A-BQQE 400D 50HZ | C115: CB | F115: за запитом | G115: =IFERROR(F115*(1-VLOOKUP(C115,ГОЛОВНА!K:L,2,0)), "-") -> -
A116: 96108724 | B116: Насос з сух.рот.TP 80-520/2-A-F-A-BQQE 400D 50HZ | C116: CB | F116: за запитом | G116: =IFERROR(F116*(1-VLOOKUP(C116,ГОЛОВНА!K:L,2,0)), "-") -> -
A117: 96108742 | B117: Насос з сух.рот.TP 80-330/2-A-F-B-BAQE 400D 50HZ | C117: CB | F117: за запитом | G117: =IFERROR(F117*(1-VLOOKUP(C117,ГОЛОВНА!K:L,2,0)), "-") -> -
A118: 96108743 | B118: Насос з сух.рот.TP 80-400/2-A-F-B-BAQE 400D 50HZ | C118: CB | F118: за запитом | G118: =IFERROR(F118*(1-VLOOKUP(C118,ГОЛОВНА!K:L,2,0)), "-") -> -
A119: 96108767 | B119: Насос з сух.рот.TPD 80-140/2-A-F-A-BAQE 400D 50HZ | C119: CB | F119: за запитом | G119: =IFERROR(F119*(1-VLOOKUP(C119,ГОЛОВНА!K:L,2,0)), "-") -> -
A120: 96108768 | B120: Насос з сух.рот.TPD 80-180/2-A-F-A-BAQE 400D 50HZ | C120: CB | F120: за запитом | G120: =IFERROR(F120*(1-VLOOKUP(C120,ГОЛОВНА!K:L,2,0)), "-") -> -
A121: 96108769 | B121: Насос з сух.рот.TPD 80-210/2-A-F-A-BAQE 400D 50HZ | C121: CB | F121: за запитом | G121: =IFERROR(F121*(1-VLOOKUP(C121,ГОЛОВНА!K:L,2,0)), "-") -> -
A122: 96108788 | B122: Насос з сух.рот.TPD 80-180/2-A-F-A-BQQE 400D 50HZ | C122: CB | F122: за запитом | G122: =IFERROR(F122*(1-VLOOKUP(C122,ГОЛОВНА!K:L,2,0)), "-") -> -
A123: 96108789 | B123: Насос з сух.рот.TPD 80-210/2-A-F-A-BQQE 400D 50HZ | C123: CB | F123: за запитом | G123: =IFERROR(F123*(1-VLOOKUP(C123,ГОЛОВНА!K:L,2,0)), "-") -> -
A124: 96108790 | B124: Насос з сух.рот.TPD 80-240/2-A-F-A-BQQE 400D 50HZ | C124: CB | F124: за запитом | G124: =IFERROR(F124*(1-VLOOKUP(C124,ГОЛОВНА!K:L,2,0)), "-") -> -
A125: 96108842 | B125: Насос з сух.рот.TP 80-340/4-A-F-A-BAQE 400D 50HZ | C125: CB | F125: за запитом | G125: =IFERROR(F125*(1-VLOOKUP(C125,ГОЛОВНА!K:L,2,0)), "-") -> -
A126: 96108849 | B126: Насос з сух.рот.TP 80-110/4-A-F-A-BQQE 400D 50HZ | C126: CB | F126: 1342.796 | G126: =IFERROR(F126*(1-VLOOKUP(C126,ГОЛОВНА!K:L,2,0)), "-") -> 1342.796
A127: 96108850 | B127: Насос з сух.рот.TP 80-150/4-A-F-A-BQQE 400D 50HZ | C127: CB | F127: 1405.747 | G127: =IFERROR(F127*(1-VLOOKUP(C127,ГОЛОВНА!K:L,2,0)), "-") -> 1405.747
A128: 96108851 | B128: Насос з сух.рот.TP 80-170/4-A-F-A-BQQE 400D 50HZ | C128: CB | F128: 1767.66 | G128: =IFERROR(F128*(1-VLOOKUP(C128,ГОЛОВНА!K:L,2,0)), "-") -> 1767.66
A129: 96108852 | B129: Насос з сух.рот.TP 80-240/4-A-F-A-BQQE 400D 50HZ | C129: CB | F129: за запитом | G129: =IFERROR(F129*(1-VLOOKUP(C129,ГОЛОВНА!K:L,2,0)), "-") -> -
A130: 96108853 | B130: Насос з сух.рот.TP 80-270/4-A-F-A-BQQE 400D 50HZ | C130: CB | F130: за запитом | G130: =IFERROR(F130*(1-VLOOKUP(C130,ГОЛОВНА!K:L,2,0)), "-") -> -
A131: 96108865 | B131: Насос з сух.рот.TP 80-270/4-A-F-B-BAQE 400D 50HZ | C131: CB | F131: за запитом | G131: =IFERROR(F131*(1-VLOOKUP(C131,ГОЛОВНА!K:L,2,0)), "-") -> -
A132: 96108879 | B132: Насос з сух.рот.TPD 80-110/4-A-F-A-BAQE 400D 50HZ | C132: CB | F132: за запитом | G132: =IFERROR(F132*(1-VLOOKUP(C132,ГОЛОВНА!K:L,2,0)), "-") -> -
A133: 96108880 | B133: Насос з сух.рот.TPD 80-150/4-A-F-A-BAQE 400D 50HZ | C133: CB | F133: за запитом | G133: =IFERROR(F133*(1-VLOOKUP(C133,ГОЛОВНА!K:L,2,0)), "-") -> -
A134: 96108891 | B134: Насос з сух.рот.TPD 80-110/4-A-F-A-BQQE 400D 50HZ | C134: CB | F134: за запитом | G134: =IFERROR(F134*(1-VLOOKUP(C134,ГОЛОВНА!K:L,2,0)), "-") -> -
A135: 96108892 | B135: Насос з сух.рот.TPD 80-150/4-A-F-A-BQQE 400D 50HZ | C135: CB | F135: за запитом | G135: =IFERROR(F135*(1-VLOOKUP(C135,ГОЛОВНА!K:L,2,0)), "-") -> -
A136: 96109035 | B136: Насос з сух.рот.TP 100-110/4-A-F-A-BAQE 400Y 50HZ | C136: CB | F136: 1833.773 | G136: =IFERROR(F136*(1-VLOOKUP(C136,ГОЛОВНА!K:L,2,0)), "-") -> 1833.773
A137: 96109054 | B137: Насос з сух.рот.TP 100-90/4-A-F-A-BQQE 400Y 50HZ | C137: CB | F137: 1721.794 | G137: =IFERROR(F137*(1-VLOOKUP(C137,ГОЛОВНА!K:L,2,0)), "-") -> 1721.794
A138: 96109124 | B138: Насос з сух.рот.TPD 100-90/4-A-F-A-BQQE 400Y 50HZ | C138: CB | F138: за запитом | G138: =IFERROR(F138*(1-VLOOKUP(C138,ГОЛОВНА!K:L,2,0)), "-") -> -
A139: 96109189 | B139: Насос з сух.рот.TP 100-160/2-A-F-A-BQQE 400D 50HZ | C139: CB | F139: 1314.5845 | G139: =IFERROR(F139*(1-VLOOKUP(C139,ГОЛОВНА!K:L,2,0)), "-") -> 1314.5845
A140: 96109190 | B140: Насос з сух.рот.TP 100-200/2-A-F-A-BQQE 400D 50HZ | C140: CB | F140: 1653.505 | G140: =IFERROR(F140*(1-VLOOKUP(C140,ГОЛОВНА!K:L,2,0)), "-") -> 1653.505
A141: 96109191 | B141: Насос з сух.рот.TP 100-240/2-A-F-A-BQQE 400D 50HZ | C141: CB | F141: 1721.8365 | G141: =IFERROR(F141*(1-VLOOKUP(C141,ГОЛОВНА!K:L,2,0)), "-") -> 1721.8365
A142: 96109192 | B142: Насос з сух.рот.TP 100-250/2-A-F-A-BQQE 400D 50HZ | C142: CB | F142: за запитом | G142: =IFERROR(F142*(1-VLOOKUP(C142,ГОЛОВНА!K:L,2,0)), "-") -> -
A143: 96109193 | B143: Насос з сух.рот.TP 100-310/2-A-F-A-BQQE 400D 50HZ | C143: CB | F143: за запитом | G143: =IFERROR(F143*(1-VLOOKUP(C143,ГОЛОВНА!K:L,2,0)), "-") -> -
A144: 96109195 | B144: Насос з сух.рот.TP 100-390/2-A-F-A-BQQE 400D 50HZ | C144: CB | F144: за запитом | G144: =IFERROR(F144*(1-VLOOKUP(C144,ГОЛОВНА!K:L,2,0)), "-") -> -
A145: 96109229 | B145: Насос з сух.рот.TPD 100-160/2-A-F-A-BAQE 400D 50HZ | C145: CB | F145: за запитом | G145: =IFERROR(F145*(1-VLOOKUP(C145,ГОЛОВНА!K:L,2,0)), "-") -> -
A146: 96109286 | B146: Насос з сух.рот.TP 100-110/4-A-F-A-BAQE 400D 50HZ | C146: CB | F146: 1833.773 | G146: =IFERROR(F146*(1-VLOOKUP(C146,ГОЛОВНА!K:L,2,0)), "-") -> 1833.773
A147: 96109303 | B147: Насос з сух.рот.TP 100-90/4-A-F-A-BQQE 400D 50HZ | C147: CB | F147: 1721.8365 | G147: =IFERROR(F147*(1-VLOOKUP(C147,ГОЛОВНА!K:L,2,0)), "-") -> 1721.8365
A148: 96109304 | B148: Насос з сух.рот.TP 100-110/4-A-F-A-BQQE 400D 50HZ | C148: CB | F148: 1833.773 | G148: =IFERROR(F148*(1-VLOOKUP(C148,ГОЛОВНА!K:L,2,0)), "-") -> 1833.773
A149: 96109305 | B149: Насос з сух.рот.TP 100-130/4-A-F-A-BQQE 400D 50HZ | C149: CB | F149: за запитом | G149: =IFERROR(F149*(1-VLOOKUP(C149,ГОЛОВНА!K:L,2,0)), "-") -> -
A150: 96109306 | B150: Насос з сух.рот.TP 100-170/4-A-F-A-BQQE 400D 50HZ | C150: CB | F150: за запитом | G150: =IFERROR(F150*(1-VLOOKUP(C150,ГОЛОВНА!K:L,2,0)), "-") -> -
A151: 96109307 | B151: Насос з сух.рот.TP 100-200/4-A-F-A-BQQE 400D 50HZ | C151: CB | F151: за запитом | G151: =IFERROR(F151*(1-VLOOKUP(C151,ГОЛОВНА!K:L,2,0)), "-") -> -
A152: 96109367 | B152: Насос з сух.рот.TPD 100-110/4-A-F-A-BQQE 400D 50HZ | C152: CB | F152: за запитом | G152: =IFERROR(F152*(1-VLOOKUP(C152,ГОЛОВНА!K:L,2,0)), "-") -> -
A153: 96109368 | B153: Насос з сух.рот.TPD 100-130/4-A-F-A-BQQE 400D 50HZ | C153: CB | F153: за запитом | G153: =IFERROR(F153*(1-VLOOKUP(C153,ГОЛОВНА!K:L,2,0)), "-") -> -
A154: 96109369 | B154: Насос з сух.рот.TPD 100-170/4-A-F-A-BQQE 400D 50HZ | C154: CB | F154: за запитом | G154: =IFERROR(F154*(1-VLOOKUP(C154,ГОЛОВНА!K:L,2,0)), "-") -> -
A155: 96109370 | B155: Насос з сух.рот.TPD 100-200/4-A-F-A-BQQE 400D 50HZ | C155: CB | F155: за запитом | G155: =IFERROR(F155*(1-VLOOKUP(C155,ГОЛОВНА!K:L,2,0)), "-") -> -
A156: 96109540 | B156: Насос з сух.рот.TP 125-130/4-A-F-A-BQQE 400D 50HZ | C156: CB | F156: за запитом | G156: =IFERROR(F156*(1-VLOOKUP(C156,ГОЛОВНА!K:L,2,0)), "-") -> -
A157: 96109541 | B157: Насос з сух.рот.TP 125-160/4-A-F-A-BQQE 400D 50HZ | C157: CB | F157: за запитом | G157: =IFERROR(F157*(1-VLOOKUP(C157,ГОЛОВНА!K:L,2,0)), "-") -> -
A158: 96109596 | B158: Насос з сух.рот.TPD 125-130/4-A-F-A-BQQE 400D 50HZ | C158: CB | F158: за запитом | G158: =IFERROR(F158*(1-VLOOKUP(C158,ГОЛОВНА!K:L,2,0)), "-") -> -
A159: 96109871 | B159: Насос з сух.рот.TP 150-200/4-A-F-A-BQQE 400D 50HZ | C159: CB | F159: за запитом | G159: =IFERROR(F159*(1-VLOOKUP(C159,ГОЛОВНА!K:L,2,0)), "-") -> -
A160: 96110042 | B160: Насос з сух.рот.TPE 80-180/2-A-F-A-BAQE 3X400 50HZ | C160: CB | F160: за запитом | G160: =IFERROR(F160*(1-VLOOKUP(C160,ГОЛОВНА!K:L,2,0)), "-") -> -
A161: 96110170 | B161: Насос з сух.рот.TPE 80-150/4-A-F-A-BAQE 3X400 50HZ | C161: CB | F161: за запитом | G161: =IFERROR(F161*(1-VLOOKUP(C161,ГОЛОВНА!K:L,2,0)), "-") -> -
A162: 96110279 | B162: Насос з сух.рот.TPE 100-160/2-A-F-A-BAQE 3X400 50HZ | C162: CB | F162: за запитом | G162: =IFERROR(F162*(1-VLOOKUP(C162,ГОЛОВНА!K:L,2,0)), "-") -> -
A163: 96110377 | B163: Насос з сух.рот.TPE 100-70/4-A-F-A-BAQE 3X400 50HZ | C163: CB | F163: за запитом | G163: =IFERROR(F163*(1-VLOOKUP(C163,ГОЛОВНА!K:L,2,0)), "-") -> -
A164: 96384279 | B164: Насос з сух.рот.TPD 50-190/2-A-F-A-BAQE 1X230 50HZ | C164: CB | F164: за запитом | G164: =IFERROR(F164*(1-VLOOKUP(C164,ГОЛОВНА!K:L,2,0)), "-") -> -
A165: 96384280 | B165: Насос з сух.рот.TPD 50-190/2-A-F-A-BQQE 1X230 50HZ | C165: CB | F165: за запитом | G165: =IFERROR(F165*(1-VLOOKUP(C165,ГОЛОВНА!K:L,2,0)), "-") -> -
A166: 96384306 | B166: Насос з сух.рот.TP 80-90/4-A-F-A-BAQE 1X230 50HZ | C166: CB | F166: 1339.294 | G166: =IFERROR(F166*(1-VLOOKUP(C166,ГОЛОВНА!K:L,2,0)), "-") -> 1339.294
A167: 97851333 | B167: TP 80-120/2-A-F-A-BQQE 400Y 50HZ | C167: CB | F167: 1293.343 | G167: =IFERROR(F167*(1-VLOOKUP(C167,ГОЛОВНА!K:L,2,0)), "-") -> 1293.343
A168: 97851334 | B168: TP 40-120/2-A-F-A-BQQE 400Y 50HZ | C168: CB | F168: 685.2445 | G168: =IFERROR(F168*(1-VLOOKUP(C168,ГОЛОВНА!K:L,2,0)), "-") -> 685.2445
A169: 97897469 | B169: TP 32-150/2-A-F-A-BQQE 400Y 50HZ | C169: CB | F169: 606.9 | G169: =IFERROR(F169*(1-VLOOKUP(C169,ГОЛОВНА!K:L,2,0)), "-") -> 606.9
A170: 98066916 | B170: TP 40-230/2-A-F-A-BQQE 400Y 50HZ | C170: CB | F170: 852.057 | G170: =IFERROR(F170*(1-VLOOKUP(C170,ГОЛОВНА!K:L,2,0)), "-") -> 852.057
A171: 98076621 | B171: Насос з сух.рот.TPE 25-90/2-A-O-A-BQQE 1X230 50HZ | C171: CB | F171: 1069.7936 | G171: =IFERROR(F171*(1-VLOOKUP(C171,ГОЛОВНА!K:L,2,0)), "-") -> 1069.7936
A172: 98083077 | B172: Насос з сух.рот.TPD 40-120/2-A-F-A-BQQE 400Y 50HZ | C172: CB | F172: 1396.248 | G172: =IFERROR(F172*(1-VLOOKUP(C172,ГОЛОВНА!K:L,2,0)), "-") -> 1396.248
A173: 98112498 | B173: Насос з сух.рот.TPE 32-80/2-A-O-A-BQQE 1X230 50HZ | C173: CB | F173: 1060.9957 | G173: =IFERROR(F173*(1-VLOOKUP(C173,ГОЛОВНА!K:L,2,0)), "-") -> 1060.9957
A174: 98112501 | B174: Насос з сух.рот.TPE 32-90/2-A-O-A-BQQE 1X230 50HZ | C174: CB | F174: 1126.267 | G174: =IFERROR(F174*(1-VLOOKUP(C174,ГОЛОВНА!K:L,2,0)), "-") -> 1126.267
A175: 98112523 | B175: Насос з сух.рот.TPE 32-250/2-A-F-B-BAQE 3X400 50HZ | C175: CB | F175: за запитом | G175: =IFERROR(F175*(1-VLOOKUP(C175,ГОЛОВНА!K:L,2,0)), "-") -> -
A176: 98112534 | B176: Насос з сух.рот.TPE 32-250/2-A-F-A-BAQE 3X400 50HZ | C176: CB | F176: за запитом | G176: =IFERROR(F176*(1-VLOOKUP(C176,ГОЛОВНА!K:L,2,0)), "-") -> -
A177: 98112536 | B177: Насос з сух.рот.TPE 32-250/2-A-F-A-BQQE 3X400 50HZ | C177: CB | F177: за запитом | G177: =IFERROR(F177*(1-VLOOKUP(C177,ГОЛОВНА!K:L,2,0)), "-") -> -
A178: 98112538 | B178: Насос з сух.рот.TPE 32-250/2-S-A-F-A-BAQE 3X400 50HZ | C178: CB | F178: за запитом | G178: =IFERROR(F178*(1-VLOOKUP(C178,ГОЛОВНА!K:L,2,0)), "-") -> -
A179: 98112539 | B179: Насос з сух.рот.TPE 32-250/2-S-A-F-A-BQQE 3X400 50HZ | C179: CB | F179: за запитом | G179: =IFERROR(F179*(1-VLOOKUP(C179,ГОЛОВНА!K:L,2,0)), "-") -> -
A180: 98112549 | B180: Насос з сух.рот.TPED 32-320/2-A-F-A-BAQE 3X400 50HZ | C180: CB | F180: за запитом | G180: =IFERROR(F180*(1-VLOOKUP(C180,ГОЛОВНА!K:L,2,0)), "-") -> -
A181: 98112556 | B181: Насос з сух.рот.TPE 32-320/2-A-F-A-BAQE 3X400 50HZ | C181: CB | F181: за запитом | G181: =IFERROR(F181*(1-VLOOKUP(C181,ГОЛОВНА!K:L,2,0)), "-") -> -
A182: 98112558 | B182: Насос з сух.рот.TPE 32-320/2-A-F-A-BQQE 3X400 50HZ | C182: CB | F182: за запитом | G182: =IFERROR(F182*(1-VLOOKUP(C182,ГОЛОВНА!K:L,2,0)), "-") -> -
A183: 98112560 | B183: Насос з сух.рот.TPE 32-320/2-S-A-F-A-BQQE 3X400 50HZ | C183: CB | F183: за запитом | G183: =IFERROR(F183*(1-VLOOKUP(C183,ГОЛОВНА!K:L,2,0)), "-") -> -
A184: 98112562 | B184: Насос з сух.рот.TPE 32-320/2-S-A-F-A-BAQE 3X400 50HZ | C184: CB | F184: за запитом | G184: =IFERROR(F184*(1-VLOOKUP(C184,ГОЛОВНА!K:L,2,0)), "-") -> -
A185: 98119685 | B185: TP 40-60/4-A-F-A-BQQE 400Y 50HZ | C185: CB | F185: 661.572 | G185: =IFERROR(F185*(1-VLOOKUP(C185,ГОЛОВНА!K:L,2,0)), "-") -> 661.572
A186: 98122409 | B186: TP 40-60/2-A-F-A-BQQE 400Y 50HZ | C186: CB | F186: 555.254 | G186: =IFERROR(F186*(1-VLOOKUP(C186,ГОЛОВНА!K:L,2,0)), "-") -> 555.254
A187: 98133646 | B187: TP 40-270/2-A-F-A-BQQE 400Y 50HZ | C187: CB | F187: 925.786 | G187: =IFERROR(F187*(1-VLOOKUP(C187,ГОЛОВНА!K:L,2,0)), "-") -> 925.786
A188: 98133648 | B188: TP 50-180/2-A-F-A-BQQE 400Y 50HZ | C188: CB | F188: 929.9425 | G188: =IFERROR(F188*(1-VLOOKUP(C188,ГОЛОВНА!K:L,2,0)), "-") -> 929.9425
A189: 98133671 | B189: TP 40-180/2-A-F-A-BQQE 400Y 50HZ | C189: CB | F189: 802.57 | G189: =IFERROR(F189*(1-VLOOKUP(C189,ГОЛОВНА!K:L,2,0)), "-") -> 802.57
A190: 98173086 | B190: Насос з сух.рот.TPD 40-190/2-A-F-A-BQQE 400Y 50HZ | C190: CB | F190: 1685.376 | G190: =IFERROR(F190*(1-VLOOKUP(C190,ГОЛОВНА!K:L,2,0)), "-") -> 1685.376
A191: 98179119 | B191: TP 50-180/2-A-F-A-BQQE 1X230 50HZ | C191: CB | F191: 1029.384 | G191: =IFERROR(F191*(1-VLOOKUP(C191,ГОЛОВНА!K:L,2,0)), "-") -> 1029.384
A192: 98182027 | B192: TP 50-60/2-A-F-A-BQQE 400Y 50HZ | C192: CB | F192: 684.675 | G192: =IFERROR(F192*(1-VLOOKUP(C192,ГОЛОВНА!K:L,2,0)), "-") -> 684.675
A193: 98182511 | B193: TP 80-60/4-A-F-A-BQQE 400Y 50HZ | C193: CB | F193: 1254.549 | G193: =IFERROR(F193*(1-VLOOKUP(C193,ГОЛОВНА!K:L,2,0)), "-") -> 1254.549
A194: 98278909 | B194: TP 32-230/2-A-F-A-BQQE 400Y 50HZ | C194: CB | F194: 753.9075 | G194: =IFERROR(F194*(1-VLOOKUP(C194,ГОЛОВНА!K:L,2,0)), "-") -> 753.9075
A195: 98279255 | B195: TP 50-120/2-A-F-A-BQQE 400Y 50HZ | C195: CB | F195: 828.9965 | G195: =IFERROR(F195*(1-VLOOKUP(C195,ГОЛОВНА!K:L,2,0)), "-") -> 828.9965
A196: 98281476 | B196: Насос з сух.рот.TP 25-50/2-A-O-A-BQQE 400Y 50HZ | C196: CB | F196: 318.648 | G196: =IFERROR(F196*(1-VLOOKUP(C196,ГОЛОВНА!K:L,2,0)), "-") -> 318.648
A197: 98282096 | B197: Насос з сух.рот.TP 25-80/2-A-O-A-BQQE 400Y 50HZ | C197: CB | F197: 388.854 | G197: =IFERROR(F197*(1-VLOOKUP(C197,ГОЛОВНА!K:L,2,0)), "-") -> 388.854
A198: 98282120 | B198: Насос з сух.рот.TP 32-50/2-A-O-A-BQQE 400Y 50HZ | C198: CB | F198: 383.3925 | G198: =IFERROR(F198*(1-VLOOKUP(C198,ГОЛОВНА!K:L,2,0)), "-") -> 383.3925
A199: 98282133 | B199: Насос з сух.рот.TP 25-90/2-A-O-A-BQQE 400Y 50HZ | C199: CB | F199: 418.656 | G199: =IFERROR(F199*(1-VLOOKUP(C199,ГОЛОВНА!K:L,2,0)), "-") -> 418.656
A200: 98282166 | B200: Насос з сух.рот.TP 32-80/2-A-O-A-BQQE 400Y 50HZ | C200: CB | F200: 407.2435 | G200: =IFERROR(F200*(1-VLOOKUP(C200,ГОЛОВНА!K:L,2,0)), "-") -> 407.2435
... 299 more rows

Sheet NB (E), NK (E)
A1: АРТИКУЛ | B1: НАЙМЕНУВАННЯ (УКР) | C1: PRICE GROUP | D1: ДОСТАВКА (ТИЖНІВ) | E1: ДОДАТКОВО | F1: ЦІНА (ЕВРО БЕЗ ПДВ) | G1: ЦІНА ЗІ ЗНИЖКОЮ | H1: НА ГОЛОВНУ
A2: NB (E), NK (E) | G2: Насоси для водопостачання, пожежогасіння та промисловості
A4: Дані продукти за запитом, зверніться до Вашого торгового представника

Sheet LS
A1: АРТИКУЛ | B1: НАЙМЕНУВАННЯ (УКР) | C1: PRICE GROUP | D1: ДОСТАВКА (ТИЖНІВ) | E1: ДОДАТКОВО | F1: ЦІНА (ЕВРО БЕЗ ПДВ) | G1: ЦІНА ЗІ ЗНИЖКОЮ | H1: НА ГОЛОВНУ
A2: HS | G2: Насоси для систем водопостачання
A4: Дані продукти за запитом, зверніться до Вашого торгового представника

Sheet MTB
A1: АРТИКУЛ | B1: НАЙМЕНУВАННЯ (УКР) | C1: PRICE GROUP | D1: ДОСТАВКА (ТИЖНІВ) | E1: ДОДАТКОВО | F1: ЦІНА (ЕВРО БЕЗ ПДВ) | G1: ЦІНА ЗІ ЗНИЖКОЮ | H1: НА ГОЛОВНУ
A2: MTB | G2: Насоси для водопостачання, пожежогасіння та промисловості
A4: Дані продукти за запитом, зверніться до Вашого торгового представника

Sheet MTR
A1: АРТИКУЛ | B1: НАЙМЕНУВАННЯ (УКР) | C1: PRICE GROUP | D1: ДОСТАВКА (ТИЖНІВ) | E1: ДОДАТКОВО | F1: ЦІНА (ЕВРО БЕЗ ПДВ) | G1: ЦІНА ЗІ ЗНИЖКОЮ | H1: НА ГОЛОВНУ
A2: MTR | G2: Напівзанурені насоси
A4: Дані продукти за запитом, зверніться до Вашого торгового представника

Sheet CM (E), CMB (E)
A1: АРТИКУЛ | B1: НАЙМЕНУВАННЯ (УКР) | C1: PRICE GROUP | D1: ДОСТАВКА (ТИЖНІВ) | E1: ДОДАТКОВО | F1: ЦІНА (ЕВРО БЕЗ ПДВ) | G1: ЦІНА ЗІ ЗНИЖКОЮ | H1: НА ГОЛОВНУ
A2: CM, CMB, CMBE | G2: Самовсмоктуючі насоси для систем водопостачання
A3: 98478334 | B3: Горизонт насос CM3-3 O-R-I-E-AVBE C-A-A- | C3: GI | F3: 368.38 | G3: =IFERROR(F3*(1-VLOOKUP(C3,ГОЛОВНА!K:L,2,0)), "-") -> 368.38
A4: 98478335 | B4: Горизонт насос CM3-4 O-R-I-E-AVBE C-A-A- | C4: GI | F4: 391.95 | G4: =IFERROR(F4*(1-VLOOKUP(C4,ГОЛОВНА!K:L,2,0)), "-") -> 391.95
A5: 98478336 | B5: Горизонт насос CM3-5 O-R-I-E-AVBE C-A-A- | C5: GI | F5: 423.24 | G5: =IFERROR(F5*(1-VLOOKUP(C5,ГОЛОВНА!K:L,2,0)), "-") -> 423.24
A6: 98478337 | B6: Горизонт насос CM3-6 O-R-I-E-AVBE C-A-A- | C6: GI | F6: 470.36 | G6: =IFERROR(F6*(1-VLOOKUP(C6,ГОЛОВНА!K:L,2,0)), "-") -> 470.36
A7: 98478414 | B7: Горизонт насос CM5-3 O-R-I-E-AVBE C-A-A- | C7: GI | F7: 392.89 | G7: =IFERROR(F7*(1-VLOOKUP(C7,ГОЛОВНА!K:L,2,0)), "-") -> 392.89
A8: 98478415 | B8: Горизонт насос CM5-4 O-R-I-E-AVBE C-A-A- | C8: GI | F8: 494.54 | G8: =IFERROR(F8*(1-VLOOKUP(C8,ГОЛОВНА!K:L,2,0)), "-") -> 494.54
A9: 98482188 | B9: Горизонт насос CM5-5 O-R-I-E-AQQE C-A-A- | C9: GI | F9: 527.42 | G9: =IFERROR(F9*(1-VLOOKUP(C9,ГОЛОВНА!K:L,2,0)), "-") -> 527.42
A10: 98478416 | B10: Горизонт насос CM5-5 O-R-I-E-AVBE C-A-A- | C10: GI | F10: 547.45 | G10: =IFERROR(F10*(1-VLOOKUP(C10,ГОЛОВНА!K:L,2,0)), "-") -> 547.45
A11: 98478417 | B11: Горизонт насос CM5-6 O-R-I-E-AVBE C-A-A- | C11: GI | F11: 676.93 | G11: =IFERROR(F11*(1-VLOOKUP(C11,ГОЛОВНА!K:L,2,0)), "-") -> 676.93
A12: 98478418 | B12: Горизонт насос CM5-7 O-R-I-E-AVBE C-A-A- | C12: GI | F12: 786.24 | G12: =IFERROR(F12*(1-VLOOKUP(C12,ГОЛОВНА!K:L,2,0)), "-") -> 786.24
A13: 97530001 | B13: Насосна установка CMB1-27 A-C-A-C-C-A | C13: DC | F13: 381.762 | G13: =IFERROR(F13*(1-VLOOKUP(C13,ГОЛОВНА!K:L,2,0)), "-") -> 381.762
A14: 97766979 | B14: Насосна установка CMB5-46 A-C-A-C-P-B 1x | C14: DC | F14: 691.3248 | G14: =IFERROR(F14*(1-VLOOKUP(C14,ГОЛОВНА!K:L,2,0)), "-") -> 691.3248
A15: 98374717 | B15: Горизонт. насос CMBE3-62 I-U-C-G-D-A 1x | C15: DC | F15: 1225.7958 | G15: =IFERROR(F15*(1-VLOOKUP(C15,ГОЛОВНА!K:L,2,0)), "-") -> 1225.7958
A16: 98374704 | B16: Горизонт насос CMBE5-62 I-U-C-C-D-B 1x20 | C16: DC | F16: 1785.6 | G16: =IFERROR(F16*(1-VLOOKUP(C16,ГОЛОВНА!K:L,2,0)), "-") -> 1785.6
A17: 98374696 | B17: Насосна установка CMBE5-62 I-U-C-D-D-B 1 | C17: DC | F17: 1785.61 | G17: =IFERROR(F17*(1-VLOOKUP(C17,ГОЛОВНА!K:L,2,0)), "-") -> 1785.61
A18: 98507632 | B18: Горизонт насос CMB-SP 5-47 I-C-A-C-C-A | C18: DC | F18: 746.33643 | G18: =IFERROR(F18*(1-VLOOKUP(C18,ГОЛОВНА!K:L,2,0)), "-") -> 746.33643
A19: 98507587 | B19: Горизонт насос CMB-SP SET 3-37 I-C-A-C-A | C19: DC | F19: 420.56793 | G19: =IFERROR(F19*(1-VLOOKUP(C19,ГОЛОВНА!K:L,2,0)), "-") -> 420.56793
A20: 98507638 | B20: Горизонт насос CMB-SP SET 3-37 I-C-A-C-C | C20: DC | F20: 487.79253 | G20: =IFERROR(F20*(1-VLOOKUP(C20,ГОЛОВНА!K:L,2,0)), "-") -> 487.79253
A21: 98507588 | B21: Горизонт насос CMB-SP SET 3-47 I-C-A-C-B | C21: DC | F21: 465.39495 | G21: =IFERROR(F21*(1-VLOOKUP(C21,ГОЛОВНА!K:L,2,0)), "-") -> 465.39495
A22: 98507639 | B22: Горизонт насос CMB-SP SET 3-47 I-C-A-C-C | C22: DC | F22: 511.92648 | G22: =IFERROR(F22*(1-VLOOKUP(C22,ГОЛОВНА!K:L,2,0)), "-") -> 511.92648
A23: 98507589 | B23: Горизонт насос CMB-SP SET 3-56 I-C-A-C-B | C23: DC | F23: 499.86747 | G23: =IFERROR(F23*(1-VLOOKUP(C23,ГОЛОВНА!K:L,2,0)), "-") -> 499.86747
A24: 98507640 | B24: Горизонт насос CMB-SP SET 3-56 I-C-A-C-C | C24: DC | F24: 548.19 | G24: =IFERROR(F24*(1-VLOOKUP(C24,ГОЛОВНА!K:L,2,0)), "-") -> 548.19
A26: CM (E) | G26: Насоси для систем водопостачання
A27: 97516576 | B27: Горизонт насос CM10-1 A-R-A-E-AQQE C-A-A | C27: DC | F27: 340.955 | G27: =IFERROR(F27*(1-VLOOKUP(C27,ГОЛОВНА!K:L,2,0)), "-") -> 340.955
A28: 97516577 | B28: Горизонт насос CM10-1 A-R-A-E-AQQE F-A-A | C28: DC | F28: 343.38 | G28: =IFERROR(F28*(1-VLOOKUP(C28,ГОЛОВНА!K:L,2,0)), "-") -> 343.38
A29: 96806942 | B29: Гориз. насос CM10-1 A-R-A-E-AVBE C-A-A-N | C29: DC | F29: 339.58 | G29: =IFERROR(F29*(1-VLOOKUP(C29,ГОЛОВНА!K:L,2,0)), "-") -> 339.58
A30: 97516621 | B30: Горизонт. насос CM10-1 A-R-A-V-AQQV C-A | C30: DC | F30: 348.327 | G30: =IFERROR(F30*(1-VLOOKUP(C30,ГОЛОВНА!K:L,2,0)), "-") -> 348.327
A31: 97516622 | B31: Гориз насос CM10-1 A-R-A-V-AQQV F-A-A-N | C31: DC | F31: 333.564 | G31: =IFERROR(F31*(1-VLOOKUP(C31,ГОЛОВНА!K:L,2,0)), "-") -> 333.564
A32: 97516660 | B32: Гориз насос CM10-1 A-R-G-E-AQQE C-A-A-N | C32: GI | F32: 584.6486 | G32: =IFERROR(F32*(1-VLOOKUP(C32,ГОЛОВНА!K:L,2,0)), "-") -> 584.6486
A33: 96943183 | B33: Горизонт. насос CM10-1 A-R-G-E-AQQE F-A | C33: GI | F33: 569.3634 | G33: =IFERROR(F33*(1-VLOOKUP(C33,ГОЛОВНА!K:L,2,0)), "-") -> 569.3634
A34: 97516720 | B34: Горизонт. насос CM10-1 A-R-G-V-AQQV C-A | C34: GI | F34: 603.683 | G34: =IFERROR(F34*(1-VLOOKUP(C34,ГОЛОВНА!K:L,2,0)), "-") -> 603.683
A35: 96806982 | B35: Горизонт. насос CM10-1 A-R-G-V-AQQV F-A | C35: GI | F35: 588.3875 | G35: =IFERROR(F35*(1-VLOOKUP(C35,ГОЛОВНА!K:L,2,0)), "-") -> 588.3875
A36: 97515062 | B36: Горизонт. насос CM10-1 A-R-I-E-AQQE C-A | C36: GI | F36: 488.7968 | G36: =IFERROR(F36*(1-VLOOKUP(C36,ГОЛОВНА!K:L,2,0)), "-") -> 488.7968
A37: 97515133 | B37: Горизонт. насос CM10-1 A-R-I-E-AQQE F-A | C37: GI | F37: 473.5013 | G37: =IFERROR(F37*(1-VLOOKUP(C37,ГОЛОВНА!K:L,2,0)), "-") -> 473.5013
A38: 97516403 | B38: Горизонт. насос CM10-1 A-R-I-V-AQQV C-A | C38: GI | F38: 507.8209 | G38: =IFERROR(F38*(1-VLOOKUP(C38,ГОЛОВНА!K:L,2,0)), "-") -> 507.8209
A39: 97516404 | B39: Горизонт. насос CM10-1 A-R-I-V-AQQV F-A | C39: GI | F39: 492.5151 | G39: =IFERROR(F39*(1-VLOOKUP(C39,ГОЛОВНА!K:L,2,0)), "-") -> 492.5151
A40: 96943216 | B40: Горизонт насос CM10-1 T-R-G-E-AQQE G-A-A | C40: GI | F40: 724.8468 | G40: =IFERROR(F40*(1-VLOOKUP(C40,ГОЛОВНА!K:L,2,0)), "-") -> 724.8468
A41: 96943344 | B41: Гориз. насос CM10-2 A-R-A-E-AQQE C-A-A-N | C41: DC | F41: 527.27 | G41: =IFERROR(F41*(1-VLOOKUP(C41,ГОЛОВНА!K:L,2,0)), "-") -> 527.27
A42: 96943345 | B42: Гориз насос CM10-2 A-R-A-E-AQQE F-A-A-N | C42: DC | F42: 374.8224 | G42: =IFERROR(F42*(1-VLOOKUP(C42,ГОЛОВНА!K:L,2,0)), "-") -> 374.8224
A43: 97516623 | B43: Горизонт. насос CM10-2 A-R-A-V-AQQV C-A | C43: DC | F43: 508.2975 | G43: =IFERROR(F43*(1-VLOOKUP(C43,ГОЛОВНА!K:L,2,0)), "-") -> 508.2975
A44: 96943347 | B44: Горизонт. насос CM10-2 A-R-A-V-AQQV F-A | C44: DC | F44: 382.442 | G44: =IFERROR(F44*(1-VLOOKUP(C44,ГОЛОВНА!K:L,2,0)), "-") -> 382.442
A45: 96943217 | B45: Горизонт. насос CM10-2 A-R-G-E-AQQE C-A | C45: GI | F45: 806.7578 | G45: =IFERROR(F45*(1-VLOOKUP(C45,ГОЛОВНА!K:L,2,0)), "-") -> 806.7578
A46: 96943219 | B46: Горизонт. насос CM10-2 A-R-G-E-AQQE F-A | C46: GI | F46: 660.3848 | G46: =IFERROR(F46*(1-VLOOKUP(C46,ГОЛОВНА!K:L,2,0)), "-") -> 660.3848
A47: 96943232 | B47: Горизонт. насос CM10-2 A-R-G-V-AQQV C-A | C47: GI | F47: 825.7819 | G47: =IFERROR(F47*(1-VLOOKUP(C47,ГОЛОВНА!K:L,2,0)), "-") -> 825.7819
A48: 96806983 | B48: Горизонт. насос CM10-2 A-R-G-V-AQQV F-A | C48: GI | F48: 678.7882 | G48: =IFERROR(F48*(1-VLOOKUP(C48,ГОЛОВНА!K:L,2,0)), "-") -> 678.7882
A49: 96946004 | B49: Гориз насос CM10-2 A-R-I-E-AQQE C-A-A-N | C49: GI | F49: 658.1288 | G49: =IFERROR(F49*(1-VLOOKUP(C49,ГОЛОВНА!K:L,2,0)), "-") -> 658.1288
A50: 96945992 | B50: Гориз насос CM10-2 A-R-I-E-AQQE F-A-A-N | C50: GI | F50: 513.7608 | G50: =IFERROR(F50*(1-VLOOKUP(C50,ГОЛОВНА!K:L,2,0)), "-") -> 513.7608
A51: 96946007 | B51: Горизонт. насос CM10-2 A-R-I-E-AQQE G-A | C51: GI | F51: 611.1504 | G51: =IFERROR(F51*(1-VLOOKUP(C51,ГОЛОВНА!K:L,2,0)), "-") -> 611.1504
A52: 96945999 | B52: Горизонт. насос CM10-2 A-R-I-V-AQQV C-A | C52: GI | F52: 677.1632 | G52: =IFERROR(F52*(1-VLOOKUP(C52,ГОЛОВНА!K:L,2,0)), "-") -> 677.1632
A53: 96945995 | B53: Горизонт. насос CM10-2 A-R-I-V-AQQV F-A | C53: GI | F53: 532.2744 | G53: =IFERROR(F53*(1-VLOOKUP(C53,ГОЛОВНА!K:L,2,0)), "-") -> 532.2744
A54: 96946029 | B54: Горизонт. насос CM10-2 A-R-I-V-AQQV G-A | C54: GI | F54: 629.664 | G54: =IFERROR(F54*(1-VLOOKUP(C54,ГОЛОВНА!K:L,2,0)), "-") -> 629.664
A55: 97516578 | B55: Гориз. насос CM10-3 A-R-A-E-AQQE C-A-A-N | C55: DC | F55: 720.26 | G55: =IFERROR(F55*(1-VLOOKUP(C55,ГОЛОВНА!K:L,2,0)), "-") -> 720.26
A56: 96943353 | B56: Гориз насос CM10-3 A-R-A-E-AQQE F-A-A-N | C56: DC | F56: 554.79 | G56: =IFERROR(F56*(1-VLOOKUP(C56,ГОЛОВНА!K:L,2,0)), "-") -> 554.79
A57: 96806943 | B57: Гориз насос CM10-3 A-R-A-E-AVBE C-A-A-N | C57: DC | F57: 665.9025 | G57: =IFERROR(F57*(1-VLOOKUP(C57,ГОЛОВНА!K:L,2,0)), "-") -> 665.9025
A58: 96943355 | B58: Горизонт. насос CM10-3 A-R-A-V-AQQV C-A | C58: DC | F58: 691.619 | G58: =IFERROR(F58*(1-VLOOKUP(C58,ГОЛОВНА!K:L,2,0)), "-") -> 691.619
A59: 96943357 | B59: Гориз. насос CM10-3 A-R-A-V-AQQV F-A-A-N | C59: DC | F59: 562.3368 | G59: =IFERROR(F59*(1-VLOOKUP(C59,ГОЛОВНА!K:L,2,0)), "-") -> 562.3368
A60: 96943250 | B60: Горизонт. насос CM10-3 A-R-G-E-AQQE C-A | C60: GI | F60: 986.1735 | G60: =IFERROR(F60*(1-VLOOKUP(C60,ГОЛОВНА!K:L,2,0)), "-") -> 986.1735
A61: 96943251 | B61: Горизонт насос CM10-3 A-R-G-E-AQQE F-A-A | C61: GI | F61: 827.7689 | G61: =IFERROR(F61*(1-VLOOKUP(C61,ГОЛОВНА!K:L,2,0)), "-") -> 827.7689
A62: 96806981 | B62: Горизонт. насос CM10-3 A-R-G-V-AQQV C-A | C62: GI | F62: 1005.1873 | G62: =IFERROR(F62*(1-VLOOKUP(C62,ГОЛОВНА!K:L,2,0)), "-") -> 1005.1873
A63: 96806984 | B63: Горизонт. насос CM10-3 A-R-G-V-AQQV F-A | C63: GI | F63: 846.1723 | G63: =IFERROR(F63*(1-VLOOKUP(C63,ГОЛОВНА!K:L,2,0)), "-") -> 846.1723
A64: 96946005 | B64: Горизонт. насос CM10-3 A-R-I-E-AQQE C-A | C64: GI | F64: 803.9665 | G64: =IFERROR(F64*(1-VLOOKUP(C64,ГОЛОВНА!K:L,2,0)), "-") -> 803.9665
A65: 96945996 | B65: Гориз насос CM10-3 A-R-I-E-AQQE F-A-A-N | C65: GI | F65: 648.2112 | G65: =IFERROR(F65*(1-VLOOKUP(C65,ГОЛОВНА!K:L,2,0)), "-") -> 648.2112
A66: 98555480 | B66: Горизонт насос CM10-3 A-R-I-E-AQQV F-A-A | C66: GI | F66: 655.928 | G66: =IFERROR(F66*(1-VLOOKUP(C66,ГОЛОВНА!K:L,2,0)), "-") -> 655.928
A67: 96946000 | B67: Горизонт. насос CM10-3 A-R-I-V-AQQV C-A | C67: GI | F67: 822.9803 | G67: =IFERROR(F67*(1-VLOOKUP(C67,ГОЛОВНА!K:L,2,0)), "-") -> 822.9803
A68: 96945993 | B68: Горизонт. насос CM10-3 A-R-I-V-AQQV F-A | C68: GI | F68: 666.7248 | G68: =IFERROR(F68*(1-VLOOKUP(C68,ГОЛОВНА!K:L,2,0)), "-") -> 666.7248
A69: 96943360 | B69: Гориз насос CM10-4 A-R-A-E-AQQE F-A-A-N | C69: DC | F69: 730.6732 | G69: =IFERROR(F69*(1-VLOOKUP(C69,ГОЛОВНА!K:L,2,0)), "-") -> 730.6732
A70: 96935485 | B70: Горизонт. насос CM10-4 A-R-A-E-AVBE F-A | C70: DC | F70: 711.55 | G70: =IFERROR(F70*(1-VLOOKUP(C70,ГОЛОВНА!K:L,2,0)), "-") -> 711.55
A71: 96943374 | B71: Горизонт. насос CM10-4 A-R-A-V-AQQV F-A | C71: DC | F71: 738.2928 | G71: =IFERROR(F71*(1-VLOOKUP(C71,ГОЛОВНА!K:L,2,0)), "-") -> 738.2928
A72: 96943261 | B72: Гориз. насос CM10-4 A-R-G-E-AQQE F-A-A-N | C72: GI | F72: 1089.0571 | G72: =IFERROR(F72*(1-VLOOKUP(C72,ГОЛОВНА!K:L,2,0)), "-") -> 1089.0571
A73: 96806985 | B73: Горизонт. насос CM10-4 A-R-G-V-AQQV F-A | C73: GI | F73: 1107.4605 | G73: =IFERROR(F73*(1-VLOOKUP(C73,ГОЛОВНА!K:L,2,0)), "-") -> 1107.4605
A74: 96945979 | B74: Горизонт. насос CM10-4 A-R-I-E-AQQE F-A | C74: GI | F74: 885.5448 | G74: =IFERROR(F74*(1-VLOOKUP(C74,ГОЛОВНА!K:L,2,0)), "-") -> 885.5448
A75: 96945980 | B75: Горизонт. насос CM10-4 A-R-I-V-AQQV F-A | C75: GI | F75: 904.0584 | G75: =IFERROR(F75*(1-VLOOKUP(C75,ГОЛОВНА!K:L,2,0)), "-") -> 904.0584
A76: 97509520 | B76: Горизонт насос CM10-5 A-R-A-E-AQQE F-A-A | C76: DC | F76: 860.43 | G76: =IFERROR(F76*(1-VLOOKUP(C76,ГОЛОВНА!K:L,2,0)), "-") -> 860.43
A77: 97516624 | B77: Горизонт. насос CM10-5 A-R-A-V-AQQV F-A | C77: DC | F77: 868.0496 | G77: =IFERROR(F77*(1-VLOOKUP(C77,ГОЛОВНА!K:L,2,0)), "-") -> 868.0496
A78: 96943269 | B78: Горизонт. насос CM10-5 A-R-G-E-AQQE F-A | C78: GI | F78: 1147.7576 | G78: =IFERROR(F78*(1-VLOOKUP(C78,ГОЛОВНА!K:L,2,0)), "-") -> 1147.7576
A79: 96943270 | B79: Горизонт. насос CM10-5 A-R-G-V-AQQV F-A | C79: GI | F79: 1166.161 | G79: =IFERROR(F79*(1-VLOOKUP(C79,ГОЛОВНА!K:L,2,0)), "-") -> 1166.161
A80: 96945994 | B80: Горизонт. насос CM10-5 A-R-I-E-AQQE F-A | C80: GI | F80: 958.0032 | G80: =IFERROR(F80*(1-VLOOKUP(C80,ГОЛОВНА!K:L,2,0)), "-") -> 958.0032
A81: 96945978 | B81: Горизонт. насос CM10-5 A-R-I-V-AQQV F-A | C81: GI | F81: 976.5168 | G81: =IFERROR(F81*(1-VLOOKUP(C81,ГОЛОВНА!K:L,2,0)), "-") -> 976.5168
A82: 97515303 | B82: Горизонт. насос CM10-6 A-R-G-E-AQQE F-A | C82: GI | F82: 1231.2743 | G82: =IFERROR(F82*(1-VLOOKUP(C82,ГОЛОВНА!K:L,2,0)), "-") -> 1231.2743
A83: 97516721 | B83: Горизонт. насос CM10-6 A-R-G-V-AQQV F-A | C83: GI | F83: 1249.6777 | G83: =IFERROR(F83*(1-VLOOKUP(C83,ГОЛОВНА!K:L,2,0)), "-") -> 1249.6777
A84: 97644355 | B84: Горизонт насос CM10-6 A-R-I-E-AQQE F-A-A | C84: GI | F84: 976.164 | G84: =IFERROR(F84*(1-VLOOKUP(C84,ГОЛОВНА!K:L,2,0)), "-") -> 976.164
A85: 97574708 | B85: Горизонт. насос CM10-6 A-R-I-E-AVBE F-A | C85: GI | F85: 957.6504 | G85: =IFERROR(F85*(1-VLOOKUP(C85,ГОЛОВНА!K:L,2,0)), "-") -> 957.6504
A86: 96935489 | B86: Гориз. насос CM10-7 A-R-G-E-AQQE F-A-A-N | C86: GI | F86: 1331.5578 | G86: =IFERROR(F86*(1-VLOOKUP(C86,ГОЛОВНА!K:L,2,0)), "-") -> 1331.5578
A87: 97951015 | B87: Горизонт насос CM10-7 A-R-G-K-AQQK F-A-A | C87: GI | F87: 2205.7861 | G87: =IFERROR(F87*(1-VLOOKUP(C87,ГОЛОВНА!K:L,2,0)), "-") -> 2205.7861
A88: 97516722 | B88: Горизонт. насос CM10-7 A-R-G-V-AQQV F-A | C88: GI | F88: 1349.9612 | G88: =IFERROR(F88*(1-VLOOKUP(C88,ГОЛОВНА!K:L,2,0)), "-") -> 1349.9612
A89: 97574709 | B89: Гориз.насос CM10-7 A-R-I-E-AQQE F-A-A-N | C89: GI | F89: 1054.8552 | G89: =IFERROR(F89*(1-VLOOKUP(C89,ГОЛОВНА!K:L,2,0)), "-") -> 1054.8552
A90: 96935490 | B90: Гориз. насос CM10-8 A-R-G-E-AQQE F-A-A-N | C90: GI | F90: 1586.8173 | G90: =IFERROR(F90*(1-VLOOKUP(C90,ГОЛОВНА!K:L,2,0)), "-") -> 1586.8173
A91: 96806987 | B91: Горизонт. насос CM10-8 A-R-G-V-AQQV F-A | C91: GI | F91: 1605.2207 | G91: =IFERROR(F91*(1-VLOOKUP(C91,ГОЛОВНА!K:L,2,0)), "-") -> 1605.2207
A92: 97574710 | B92: Горизонт. насос CM10-8 A-R-I-E-AQQE F-A | C92: GI | F92: 1257.1608 | G92: =IFERROR(F92*(1-VLOOKUP(C92,ГОЛОВНА!K:L,2,0)), "-") -> 1257.1608
A93: 97515026 | B93: Горизонт насос CM1-10 A-R-G-E-AQQE C-A-A | C93: GI | F93: 638.9193 | G93: =IFERROR(F93*(1-VLOOKUP(C93,ГОЛОВНА!K:L,2,0)), "-") -> 638.9193
A94: 97515125 | B94: Горизонт насос CM1-10 A-R-G-E-AQQE F-A-A | C94: GI | F94: 622.8495 | G94: =IFERROR(F94*(1-VLOOKUP(C94,ГОЛОВНА!K:L,2,0)), "-") -> 622.8495
A95: 97516686 | B95: Горизонт насос CM1-10 A-R-G-V-AQQV C-A-A | C95: GI | F95: 648.2408 | G95: =IFERROR(F95*(1-VLOOKUP(C95,ГОЛОВНА!K:L,2,0)), "-") -> 648.2408
A96: 97516687 | B96: Горизонт насос CM1-10 A-R-G-V-AQQV F-A-A | C96: GI | F96: 632.1614 | G96: =IFERROR(F96*(1-VLOOKUP(C96,ГОЛОВНА!K:L,2,0)), "-") -> 632.1614
A97: 97644334 | B97: Гориз. насос CM1-10 A-R-I-E-AQQE | C97: GI | F97: 505.9463 | G97: =IFERROR(F97*(1-VLOOKUP(C97,ГОЛОВНА!K:L,2,0)), "-") -> 505.9463
A98: 97627483 | B98: Горизонт насос CM1-10 A-R-I-E-AQQE F-A-A | C98: GI | F98: 490.1 | G98: =IFERROR(F98*(1-VLOOKUP(C98,ГОЛОВНА!K:L,2,0)), "-") -> 490.1
A99: 97821360 | B99: Горизонт насос CM1-10 A-R-I-E-AVBE C-A-A | C99: GI | F99: 496.6248 | G99: =IFERROR(F99*(1-VLOOKUP(C99,ГОЛОВНА!K:L,2,0)), "-") -> 496.6248
A100: 96935421 | B100: Горизонт насос CM1-11 A-R-G-E-AQQE C-A-A | C100: GI | F100: 692.5102 | G100: =IFERROR(F100*(1-VLOOKUP(C100,ГОЛОВНА!K:L,2,0)), "-") -> 692.5102
A101: 96935422 | B101: Горизонт насос CM1-11 A-R-G-E-AQQE F-A-A | C101: GI | F101: 669.0372 | G101: =IFERROR(F101*(1-VLOOKUP(C101,ГОЛОВНА!K:L,2,0)), "-") -> 669.0372
A102: 97516688 | B102: Горизонт насос CM1-11 A-R-G-V-AQQV C-A-A | C102: GI | F102: 701.842 | G102: =IFERROR(F102*(1-VLOOKUP(C102,ГОЛОВНА!K:L,2,0)), "-") -> 701.842
A103: 97516689 | B103: Горизонт насос CM1-11 A-R-G-V-AQQV F-A-A | C103: GI | F103: 678.3491 | G103: =IFERROR(F103*(1-VLOOKUP(C103,ГОЛОВНА!K:L,2,0)), "-") -> 678.3491
A104: 97644335 | B104: Горизонт насос CM1-11 A-R-I-E-AQQE C-A-A | C104: GI | F104: 550.3908 | G104: =IFERROR(F104*(1-VLOOKUP(C104,ГОЛОВНА!K:L,2,0)), "-") -> 550.3908
A105: 97574670 | B105: Горизонт насос CM1-11 A-R-I-E-AQQE F-A-A | C105: GI | F105: 527.1617 | G105: =IFERROR(F105*(1-VLOOKUP(C105,ГОЛОВНА!K:L,2,0)), "-") -> 527.1617
A106: 96935423 | B106: Горизонт насос CM1-12 A-R-G-E-AQQE C-A-A | C106: GI | F106: 743.0008 | G106: =IFERROR(F106*(1-VLOOKUP(C106,ГОЛОВНА!K:L,2,0)), "-") -> 743.0008
A107: 96935424 | B107: Горизонт насос CM1-12 A-R-G-E-AQQE F-A-A | C107: GI | F107: 719.4499 | G107: =IFERROR(F107*(1-VLOOKUP(C107,ГОЛОВНА!K:L,2,0)), "-") -> 719.4499
A108: 97516690 | B108: Горизонт насос CM1-12 A-R-G-V-AQQV C-A-A | C108: GI | F108: 752.3223 | G108: =IFERROR(F108*(1-VLOOKUP(C108,ГОЛОВНА!K:L,2,0)), "-") -> 752.3223
A109: 96806839 | B109: Горизонт насос CM1-12 A-R-G-V-AQQV F-A-A | C109: GI | F109: 728.7618 | G109: =IFERROR(F109*(1-VLOOKUP(C109,ГОЛОВНА!K:L,2,0)), "-") -> 728.7618
A110: 97644336 | B110: Горизонт насос CM1-12 A-R-I-E-AQQE C-A-A | C110: GI | F110: 589.5308 | G110: =IFERROR(F110*(1-VLOOKUP(C110,ГОЛОВНА!K:L,2,0)), "-") -> 589.5308
A111: 96935425 | B111: Горизонт насос CM1-13 A-R-G-E-AQQE C-A-A | C111: GI | F111: 776.4758 | G111: =IFERROR(F111*(1-VLOOKUP(C111,ГОЛОВНА!K:L,2,0)), "-") -> 776.4758
A112: 96935426 | B112: Горизонт насос CM1-13 A-R-G-E-AQQE F-A-A | C112: GI | F112: 752.8612 | G112: =IFERROR(F112*(1-VLOOKUP(C112,ГОЛОВНА!K:L,2,0)), "-") -> 752.8612
A113: 97516691 | B113: Горизонт насос CM1-13 A-R-G-V-AQQV C-A-A | C113: GI | F113: 785.7973 | G113: =IFERROR(F113*(1-VLOOKUP(C113,ГОЛОВНА!K:L,2,0)), "-") -> 785.7973
A114: 97516692 | B114: Горизонт насос CM1-13 A-R-G-V-AQQV F-A-A | C114: GI | F114: 762.1731 | G114: =IFERROR(F114*(1-VLOOKUP(C114,ГОЛОВНА!K:L,2,0)), "-") -> 762.1731
A115: 97574681 | B115: Горизонт насос CM1-13 A-R-I-E-AQQE F-A-A | C115: GI | F115: 593.0886 | G115: =IFERROR(F115*(1-VLOOKUP(C115,ГОЛОВНА!K:L,2,0)), "-") -> 593.0886
A116: 96935427 | B116: Горизонт насос CM1-14 A-R-G-E-AQQE C-A-A | C116: GI | F116: 1027.425 | G116: =IFERROR(F116*(1-VLOOKUP(C116,ГОЛОВНА!K:L,2,0)), "-") -> 1027.425
A117: 96935428 | B117: Горизонт насос CM1-14 A-R-G-E-AQQE F-A-A | C117: GI | F117: 878.4789 | G117: =IFERROR(F117*(1-VLOOKUP(C117,ГОЛОВНА!K:L,2,0)), "-") -> 878.4789
A118: 97516693 | B118: Горизонт насос CM1-14 A-R-G-V-AQQV C-A-A | C118: GI | F118: 1036.7465 | G118: =IFERROR(F118*(1-VLOOKUP(C118,ГОЛОВНА!K:L,2,0)), "-") -> 1036.7465
A119: 96806783 | B119: Горизонт насос CM1-14 A-R-G-V-AQQV F-A-A | C119: GI | F119: 887.7908 | G119: =IFERROR(F119*(1-VLOOKUP(C119,ГОЛОВНА!K:L,2,0)), "-") -> 887.7908
A120: 97644337 | B120: Горизонт насос CM1-14 A-R-I-E-AQQE C-A-A | C120: GI | F120: 840.3049 | G120: =IFERROR(F120*(1-VLOOKUP(C120,ГОЛОВНА!K:L,2,0)), "-") -> 840.3049
A121: 97516557 | B121: Гориз насос CM1-2 A-R-A-E-AQQE C-A-A-N | C121: DC | F121: 205.2855 | G121: =IFERROR(F121*(1-VLOOKUP(C121,ГОЛОВНА!K:L,2,0)), "-") -> 205.2855
A122: 97516558 | B122: Горизонт насос CM1-2 A-R-A-E-AQQE F-A-A- | C122: DC | F122: 208.34 | G122: =IFERROR(F122*(1-VLOOKUP(C122,ГОЛОВНА!K:L,2,0)), "-") -> 208.34
A123: 96935383 | B123: Горизонт насос CM1-2 A-R-A-E-AVBE C-A-A- | C123: DC | F123: 196.1085 | G123: =IFERROR(F123*(1-VLOOKUP(C123,ГОЛОВНА!K:L,2,0)), "-") -> 196.1085
A124: 97516586 | B124: Горизонт насос CM1-2 A-R-A-V-AQQV C-A-A- | C124: DC | F124: 208.8955 | G124: =IFERROR(F124*(1-VLOOKUP(C124,ГОЛОВНА!K:L,2,0)), "-") -> 208.8955
A125: 97516587 | B125: Горизонт насос CM1-2 A-R-A-V-AQQV F-A-A- | C125: DC | F125: 201.5235 | G125: =IFERROR(F125*(1-VLOOKUP(C125,ГОЛОВНА!K:L,2,0)), "-") -> 201.5235
A126: 97516635 | B126: Горизонт насос CM1-2 A-R-G-E-AQQE C-A-A- | C126: GI | F126: 409.1778 | G126: =IFERROR(F126*(1-VLOOKUP(C126,ГОЛОВНА!K:L,2,0)), "-") -> 409.1778
A127: 97509582 | B127: Горизонт насос CM1-2 A-R-G-E-AQQE F-A-A- | C127: GI | F127: 401.6794 | G127: =IFERROR(F127*(1-VLOOKUP(C127,ГОЛОВНА!K:L,2,0)), "-") -> 401.6794
A128: 97516670 | B128: Горизонт насос CM1-2 A-R-G-V-AQQV C-A-A- | C128: GI | F128: 418.4993 | G128: =IFERROR(F128*(1-VLOOKUP(C128,ГОЛОВНА!K:L,2,0)), "-") -> 418.4993
A129: 97516671 | B129: Горизонт насос CM1-2 A-R-G-V-AQQV F-A-A- | C129: GI | F129: 411.0009 | G129: =IFERROR(F129*(1-VLOOKUP(C129,ГОЛОВНА!K:L,2,0)), "-") -> 411.0009
A130: 97514162 | B130: Гориз насос CM1-2 A-R-I-E-AQQE C-A-A-N | C130: GI | F130: 325.7684 | G130: =IFERROR(F130*(1-VLOOKUP(C130,ГОЛОВНА!K:L,2,0)), "-") -> 325.7684
A131: 97514413 | B131: Горизонт насос CM1-2 A-R-I-E-AQQE F-A-A- | C131: GI | F131: 318.27 | G131: =IFERROR(F131*(1-VLOOKUP(C131,ГОЛОВНА!K:L,2,0)), "-") -> 318.27
A132: 98084540 | B132: Горизонт насос CM1-2 A-R-I-K-AQQK F-A-A- | C132: GI | F132: 971.2694 | G132: =IFERROR(F132*(1-VLOOKUP(C132,ГОЛОВНА!K:L,2,0)), "-") -> 971.2694
A133: 97516381 | B133: Горизонт насос CM1-2 A-R-I-V-AQQV C-A-A- | C133: GI | F133: 335.0899 | G133: =IFERROR(F133*(1-VLOOKUP(C133,ГОЛОВНА!K:L,2,0)), "-") -> 335.0899
A134: 97516382 | B134: Горизонт насос CM1-2 A-R-I-V-AQQV F-A-A- | C134: GI | F134: 327.5915 | G134: =IFERROR(F134*(1-VLOOKUP(C134,ГОЛОВНА!K:L,2,0)), "-") -> 327.5915
A135: 96807016 | B135: Горизонт насос CM1-3 A-R-A-E-AQQE C-A-A- | C135: DC | F135: 235.05 | G135: =IFERROR(F135*(1-VLOOKUP(C135,ГОЛОВНА!K:L,2,0)), "-") -> 235.05
A136: 97516559 | B136: Горизонт насос CM1-3 A-R-A-E-AQQE F-A-A- | C136: DC | F136: 227.27 | G136: =IFERROR(F136*(1-VLOOKUP(C136,ГОЛОВНА!K:L,2,0)), "-") -> 227.27
A137: 96935387 | B137: Горизонт насос CM1-3 A-R-A-E-AVBE F-A-A- | C137: DC | F137: 206.739 | G137: =IFERROR(F137*(1-VLOOKUP(C137,ГОЛОВНА!K:L,2,0)), "-") -> 206.739
A138: 96935683 | B138: Горизонт насос CM1-3 A-R-A-E-AVBE J-A-A- | C138: DC | F138: 230.4978 | G138: =IFERROR(F138*(1-VLOOKUP(C138,ГОЛОВНА!K:L,2,0)), "-") -> 230.4978
A139: 97516588 | B139: Горизонт насос CM1-3 A-R-A-V-AQQV C-A-A- | C139: DC | F139: 226.898 | G139: =IFERROR(F139*(1-VLOOKUP(C139,ГОЛОВНА!K:L,2,0)), "-") -> 226.898
A140: 97516589 | B140: Горизонт насос CM1-3 A-R-A-V-AQQV F-A-A- | C140: DC | F140: 219.507 | G140: =IFERROR(F140*(1-VLOOKUP(C140,ГОЛОВНА!K:L,2,0)), "-") -> 219.507
A141: 97516636 | B141: Горизонт насос CM1-3 A-R-G-E-AQQE C-A-A- | C141: GI | F141: 453.2515 | G141: =IFERROR(F141*(1-VLOOKUP(C141,ГОЛОВНА!K:L,2,0)), "-") -> 453.2515
A142: 97516637 | B142: Горизонт насос CM1-3 A-R-G-E-AQQE F-A-A- | C142: GI | F142: 445.7634 | G142: =IFERROR(F142*(1-VLOOKUP(C142,ГОЛОВНА!K:L,2,0)), "-") -> 445.7634
A143: 97516672 | B143: Горизонт насос CM1-3 A-R-G-V-AQQV C-A-A- | C143: GI | F143: 462.573 | G143: =IFERROR(F143*(1-VLOOKUP(C143,ГОЛОВНА!K:L,2,0)), "-") -> 462.573
A144: 97516673 | B144: Горизонт насос CM1-3 A-R-G-V-AQQV F-A-A- | C144: GI | F144: 455.0849 | G144: =IFERROR(F144*(1-VLOOKUP(C144,ГОЛОВНА!K:L,2,0)), "-") -> 455.0849
A145: 97514439 | B145: Горизонт насос CM1-3 A-R-I-E-AQQE C-A-A- | C145: GI | F145: 356.483 | G145: =IFERROR(F145*(1-VLOOKUP(C145,ГОЛОВНА!K:L,2,0)), "-") -> 356.483
A146: 97515109 | B146: Горизонт насос CM1-3 A-R-I-E-AQQE F-A-A- | C146: GI | F146: 348.9949 | G146: =IFERROR(F146*(1-VLOOKUP(C146,ГОЛОВНА!K:L,2,0)), "-") -> 348.9949
A147: 97516383 | B147: Горизонт насос CM1-3 A-R-I-V-AQQV C-A-A- | C147: GI | F147: 365.8148 | G147: =IFERROR(F147*(1-VLOOKUP(C147,ГОЛОВНА!K:L,2,0)), "-") -> 365.8148
A148: 97516384 | B148: Горизонт насос CM1-3 A-R-I-V-AQQV F-A-A- | C148: GI | F148: 358.3164 | G148: =IFERROR(F148*(1-VLOOKUP(C148,ГОЛОВНА!K:L,2,0)), "-") -> 358.3164
A149: 98477811 | B149: Горизонт насос CM1-3 S-R-I-E-AVBE C-A-A- | C149: GI | F149: 375.1466 | G149: =IFERROR(F149*(1-VLOOKUP(C149,ГОЛОВНА!K:L,2,0)), "-") -> 375.1466
A150: 97516560 | B150: Гориз насос CM1-4 A-R-A-E-AQQE C-A-A-N | C150: DC | F150: 244.6915 | G150: =IFERROR(F150*(1-VLOOKUP(C150,ГОЛОВНА!K:L,2,0)), "-") -> 244.6915
A151: 97514257 | B151: Горизонт насос CM1-4 A-R-A-E-AQQE F-A-A- | C151: DC | F151: 246.03 | G151: =IFERROR(F151*(1-VLOOKUP(C151,ГОЛОВНА!K:L,2,0)), "-") -> 246.03
A152: 96935390 | B152: Горизонт насос CM1-4 A-R-A-E-AVBE C-A-A- | C152: DC | F152: 235.5335 | G152: =IFERROR(F152*(1-VLOOKUP(C152,ГОЛОВНА!K:L,2,0)), "-") -> 235.5335
A153: 97516590 | B153: Горизонт насос CM1-4 A-R-A-V-AQQV C-A-A- | C153: DC | F153: 248.292 | G153: =IFERROR(F153*(1-VLOOKUP(C153,ГОЛОВНА!K:L,2,0)), "-") -> 248.292
A154: 96989472 | B154: Горизонт насос CM1-4 A-R-A-V-AQQV F-A-A- | C154: DC | F154: 237.3385 | G154: =IFERROR(F154*(1-VLOOKUP(C154,ГОЛОВНА!K:L,2,0)), "-") -> 237.3385
A155: 97516638 | B155: Горизонт насос CM1-4 A-R-G-E-AQQE C-A-A- | C155: GI | F155: 483.9764 | G155: =IFERROR(F155*(1-VLOOKUP(C155,ГОЛОВНА!K:L,2,0)), "-") -> 483.9764
A156: 97516639 | B156: Горизонт насос CM1-4 A-R-G-E-AQQE F-A-A- | C156: GI | F156: 472.8215 | G156: =IFERROR(F156*(1-VLOOKUP(C156,ГОЛОВНА!K:L,2,0)), "-") -> 472.8215
A157: 97516674 | B157: Горизонт насос CM1-4 A-R-G-V-AQQV C-A-A- | C157: GI | F157: 493.2979 | G157: =IFERROR(F157*(1-VLOOKUP(C157,ГОЛОВНА!K:L,2,0)), "-") -> 493.2979
A158: 97516675 | B158: Горизонт насос CM1-4 A-R-G-V-AQQV F-A-A- | C158: GI | F158: 482.143 | G158: =IFERROR(F158*(1-VLOOKUP(C158,ГОЛОВНА!K:L,2,0)), "-") -> 482.143
A159: 97514999 | B159: Горизонт насос CM1-4 A-R-I-E-AQQE C-A-A- | C159: GI | F159: 385.0243 | G159: =IFERROR(F159*(1-VLOOKUP(C159,ГОЛОВНА!K:L,2,0)), "-") -> 385.0243
A160: 97515121 | B160: Горизонт насос CM1-4 A-R-I-E-AQQE F-A-A- | C160: GI | F160: 373.8694 | G160: =IFERROR(F160*(1-VLOOKUP(C160,ГОЛОВНА!K:L,2,0)), "-") -> 373.8694
A161: 97516385 | B161: Горизонт насос CM1-4 A-R-I-V-AQQV C-A-A- | C161: GI | F161: 394.3458 | G161: =IFERROR(F161*(1-VLOOKUP(C161,ГОЛОВНА!K:L,2,0)), "-") -> 394.3458
A162: 97516386 | B162: Горизонт насос CM1-4 A-R-I-V-AQQV F-A-A- | C162: GI | F162: 383.1909 | G162: =IFERROR(F162*(1-VLOOKUP(C162,ГОЛОВНА!K:L,2,0)), "-") -> 383.1909
A163: 96807018 | B163: Горизонт насос CM1-5 A-R-A-E-AQQE C-A-A- | C163: DC | F163: 258.552 | G163: =IFERROR(F163*(1-VLOOKUP(C163,ГОЛОВНА!K:L,2,0)), "-") -> 258.552
A164: 97516561 | B164: Горизонт насос CM1-5 A-R-A-E-AQQE F-A-A- | C164: DC | F164: 260.59 | G164: =IFERROR(F164*(1-VLOOKUP(C164,ГОЛОВНА!K:L,2,0)), "-") -> 260.59
A165: 96806794 | B165: Горизонт насос CM1-5 A-R-A-E-AVBE C-A-A- | C165: DC | F165: 249.3845 | G165: =IFERROR(F165*(1-VLOOKUP(C165,ГОЛОВНА!K:L,2,0)), "-") -> 249.3845
A166: 97516591 | B166: Горизонт насос CM1-5 A-R-A-V-AQQV C-A-A- | C166: DC | F166: 262.162 | G166: =IFERROR(F166*(1-VLOOKUP(C166,ГОЛОВНА!K:L,2,0)), "-") -> 262.162
A167: 97516592 | B167: Горизонт насос CM1-5 A-R-A-V-AQQV F-A-A- | C167: DC | F167: 251.1705 | G167: =IFERROR(F167*(1-VLOOKUP(C167,ГОЛОВНА!K:L,2,0)), "-") -> 251.1705
A168: 97516640 | B168: Горизонт насос CM1-5 A-R-G-E-AQQE C-A-A- | C168: GI | F168: 513.4344 | G168: =IFERROR(F168*(1-VLOOKUP(C168,ГОЛОВНА!K:L,2,0)), "-") -> 513.4344
A169: 97516641 | B169: Горизонт насос CM1-5 A-R-G-E-AQQE F-A-A- | C169: GI | F169: 502.2898 | G169: =IFERROR(F169*(1-VLOOKUP(C169,ГОЛОВНА!K:L,2,0)), "-") -> 502.2898
A170: 97516676 | B170: Горизонт насос CM1-5 A-R-G-V-AQQV C-A-A- | C170: GI | F170: 522.7559 | G170: =IFERROR(F170*(1-VLOOKUP(C170,ГОЛОВНА!K:L,2,0)), "-") -> 522.7559
A171: 97516677 | B171: Горизонт насос CM1-5 A-R-G-V-AQQV F-A-A- | C171: GI | F171: 511.6113 | G171: =IFERROR(F171*(1-VLOOKUP(C171,ГОЛОВНА!K:L,2,0)), "-") -> 511.6113
A172: 97515000 | B172: Горизонт насос CM1-5 A-R-I-E-AQQE C-A-A- | C172: GI | F172: 411.7322 | G172: =IFERROR(F172*(1-VLOOKUP(C172,ГОЛОВНА!K:L,2,0)), "-") -> 411.7322
A173: 96807014 | B173: Горизонт насос CM1-5 A-R-I-E-AQQE F-A-A- | C173: GI | F173: 400.5773 | G173: =IFERROR(F173*(1-VLOOKUP(C173,ГОЛОВНА!K:L,2,0)), "-") -> 400.5773
A174: 97516387 | B174: Горизонт насос CM1-5 A-R-I-V-AQQV C-A-A- | C174: GI | F174: 421.0537 | G174: =IFERROR(F174*(1-VLOOKUP(C174,ГОЛОВНА!K:L,2,0)), "-") -> 421.0537
A175: 97516388 | B175: Горизонт насос CM1-5 A-R-I-V-AQQV F-A-A- | C175: GI | F175: 409.9091 | G175: =IFERROR(F175*(1-VLOOKUP(C175,ГОЛОВНА!K:L,2,0)), "-") -> 409.9091
A176: 97516579 | B176: Горизонт насос CM15-1 A-R-A-E-AQQE C-A-A | C176: DC | F176: 826.7565 | G176: =IFERROR(F176*(1-VLOOKUP(C176,ГОЛОВНА!K:L,2,0)), "-") -> 826.7565
A177: 97516580 | B177: Горизонт насос CM15-1 A-R-A-E-AQQE F-A-A | C177: DC | F177: 682.077 | G177: =IFERROR(F177*(1-VLOOKUP(C177,ГОЛОВНА!K:L,2,0)), "-") -> 682.077
A178: 96806957 | B178: Горизонт насос CM15-1 A-R-A-E-AVBE C-A-A | C178: DC | F178: 808.412 | G178: =IFERROR(F178*(1-VLOOKUP(C178,ГОЛОВНА!K:L,2,0)), "-") -> 808.412
A179: 97516625 | B179: Горизонт насос CM15-1 A-R-A-V-AQQV C-A-A | C179: DC | F179: 834.119 | G179: =IFERROR(F179*(1-VLOOKUP(C179,ГОЛОВНА!K:L,2,0)), "-") -> 834.119
A180: 97516626 | B180: Горизонт насос CM15-1 A-R-A-V-AQQV F-A-A | C180: DC | F180: 689.3865 | G180: =IFERROR(F180*(1-VLOOKUP(C180,ГОЛОВНА!K:L,2,0)), "-") -> 689.3865
A181: 97516661 | B181: Горизонт насос CM15-1 A-R-G-E-AQQE C-A-A | C181: GI | F181: 1097.5062 | G181: =IFERROR(F181*(1-VLOOKUP(C181,ГОЛОВНА!K:L,2,0)), "-") -> 1097.5062
A182: 96806998 | B182: Горизонт насос CM15-1 A-R-G-E-AQQE F-A-A | C182: GI | F182: 949.3344 | G182: =IFERROR(F182*(1-VLOOKUP(C182,ГОЛОВНА!K:L,2,0)), "-") -> 949.3344
A183: 97516723 | B183: Горизонт насос CM15-1 A-R-G-V-AQQV C-A-A | C183: GI | F183: 1116.5303 | G183: =IFERROR(F183*(1-VLOOKUP(C183,ГОЛОВНА!K:L,2,0)), "-") -> 1116.5303
A184: 97516724 | B184: Горизонт насос CM15-1 A-R-G-V-AQQV F-A-A | C184: GI | F184: 967.848 | G184: =IFERROR(F184*(1-VLOOKUP(C184,ГОЛОВНА!K:L,2,0)), "-") -> 967.848
